Workbook

Sheet INTRO
B2: PC Joint Reporting Form v.3.1
B4: The purpose of this template Joint Reporting Form (JRF) - available as an Excel file - is to provide national health authorities and data managers with a standardized tool to address these reporting challenges, facilitate integration and thereby further contribute to improving overall programme management. This template aims to standardize national reporting of programme implementation outcomes, improve availability and coordination of preventive chemotherapy data across the World Health Organization regions. National authorities are requested to complete this form for submission to the World Health Organization any time before 15 August of the current year for reporting data on PC interventions implemented during the previous year.
B6: Structure of the application (worksheets):
B8: INTRO | C8: This worksheet includes guides on how to complete the joint reporting form and information about status of PC for endemic diseases in the country
B9: COUNTRY_INFO | C9: This worksheet includes information about administrative structure of the country, population by age group, status of endemicity for each disease, population requiring PC, planned interventions and interventions implemented
B10: MDA1, MDA2, MDA3, T1, T2 and T3 | C10: These worksheets include information about endemic districts targeted for treatment with specified PC medicines, treatment plan, and number of people who received treatment by age group
B11: DISTRICT | C11: This worksheet includes summary of people treated by disease at the level of implementation. If data by gender is available, it requires to enter.
B12: SUMMARY | C12: This worksheet includes summary of people treated by disease and by PC intervention. Before generating the report (run macros) please select the disease for which you need the report. Follow the same rule to generate various reports. This worksheet should be printed and submitted as a Joint Report (see the instruction for submission in the SUMMARY worksheet).
B14: Instruction for data entry
B16: Most of the cells in the above-mentioned worksheets include formula that are calculated automatically according to the treatment policy recommended by WHO for each disease. See the link http://www.who.int/neglected_diseases/preventive_chemotherapy/pct_manual/en/index.html
B18: Please enter your data into the cells according to their colour code:
C20: White - cell is not protected. Please enter the value of the requested indicator.
C22: Yellow - cell is protected and includes name of indicator. No data entry required.
C24: Orange - cell is not protected and includes a drop-down menu. Please select the value from the drop-down list.
C27: Green - cell is not protected and includes formula. Please change the value only if your data are different from those that are calculated automatically.
C30: Blue - cell is protected and includes formula. No data entry required.
B32: Country data
B34: COUNTRY | E34: Ghana
B36: Year of reporting data | E36: 2019
B38: Is country endemic for lymphatic filariasis (LF)? | E38: Endemic
B40: Is country endemic for onchocerciasis (ONCHO)? | E40: Endemic
B42: Is country endemic for soil-transmitted helminthiases (STH)? | E42: Endemic
B44: Is country endemic for schistosomiasis (SCH)? | E44: Endemic
B46: How many administrative units in the country? | E46: 216
B47: If demographical data at the second administrative level are not available by age group, please enter the proportion (%) of population by age group in the country. If data are available, please leave these cells blank.
B48: 1-4 years age | C48: Preschool-age children (PreSAC) | E48: 0.108
B49: 5-14 years age | C49: School-age children (SAC) | E49: 0.245
B50: 15 years + | C50: Adults | E50: 0.617

Sheet COUNTRY_INFO
A1: COUNTRY INFORMATION
A2: Administrative structure, population by age group, endemicity status, planned interventions and interventions implemented
A4: TOTAL | D4: =SUBTOTAL(9,D$9:D$1000) -> 30889813 | E4: =SUBTOTAL(9,E$9:E$1000) -> 3336102 | F4: 7568003 | G4: 19059014 | L4: =SUBTOTAL(9,L$9:L$1000) -> 1349658 | M4: 7621641.875 | N4: 10904105 | O4: 10685201.34
A6: Country administrative structure | D6: Population | H6: Endemicity | L6: Population requiring PC | P6: Number of treatment rounds planned for the year | T6: PC implemented | V6: Click to see the recommended strategy
A7: Country | B7: Province/State | C7: District | D7: Total | E7: PreSAC | F7: SAC | G7: Adults | H7: LF | I7: Oncho | J7: STH | K7: SCH | L7: LF | M7: Oncho | N7: STH | O7: SCH | P7: LF | Q7: Oncho | R7: STH | S7: SCH | T7: ROUND 1 | U7: ROUND2 | X7: IU_ID | Y7: IU_Name
A9: =IF(INTRO!$E$34<>0,INTRO!$E$34,"") -> Ghana | B9: Ashanti | C9: Adansi North | D9: 135660 | E9: =IF(INTRO!$E$48="","",ROUND($D9*INTRO!$E$48,0)) -> 14651 | F9: =IF(INTRO!$E$49="","",ROUND($D9*INTRO!$E$49,0)) -> 33237 | G9: =IF(INTRO!$E$50="","",ROUND($D9*INTRO!$E$50,0)) -> 83702 | H9: 0 | I9: 1 | J9: 2 | K9: 2 | L9: =IF(INTRO!$E$38="Endemic", IF($H9>0, IF($H9=4,"Unknown", IF($H9=99,"Stopped", $D9)), 0),"Not required") -> 0 | M9: 55915.46175 | N9: =IF(INTRO!$E$42="Endemic", IF(AND($J9>1,$J9<5), IF($J9=4, "Unknown", E9+F9), 0),"Not required") -> 47888 | O9: =IF(INTRO!$E$44="Endemic", IF(AND($K9>0,$K9<5), IF($K9=4,"Unknown", IF($K9=1, $F9*0.33, IF($K9=2, $F9*0.5+$G9*0.2, SUM(F9:G9)))), 0),"Not required") -> 33358.9 | P9: 0 | Q9: 2 | R9: 1 | S9: 1 | T9: MDA3 (IVM) | U9: T1 (PZQ+ALB/MBD) | V9: MDA 1 | W9: T2 | X9: 21379 | Y9: Adansi North
A10: =IF(INTRO!$E$34<>0,INTRO!$E$34,"") -> Ghana | B10: Ashanti | C10: Adansi South | D10: 146158 | E10: =IF(INTRO!$E$48="","",ROUND($D10*INTRO!$E$48,0)) -> 15785 | F10: =IF(INTRO!$E$49="","",ROUND($D10*INTRO!$E$49,0)) -> 35809 | G10: =IF(INTRO!$E$50="","",ROUND($D10*INTRO!$E$50,0)) -> 90179 | H10: 0 | I10: 1 | J10: 2 | K10: 2 | L10: =IF(INTRO!$E$38="Endemic", IF($H10>0, IF($H10=4,"Unknown", IF($H10=99,"Stopped", $D10)), 0),"Not required") -> 0 | M10: 90176 | N10: =IF(INTRO!$E$42="Endemic", IF(AND($J10>1,$J10<5), IF($J10=4, "Unknown", E10+F10), 0),"Not required") -> 51594 | O10: =IF(INTRO!$E$44="Endemic", IF(AND($K10>0,$K10<5), IF($K10=4,"Unknown", IF($K10=1, $F10*0.33, IF($K10=2, $F10*0.5+$G10*0.2, SUM(F10:G10)))), 0),"Not required") -> 35940.3 | P10: 0 | Q10: 2 | R10: 1 | S10: 1 | T10: MDA3 (IVM) | U10: T1 (PZQ+ALB/MBD) | V10: MDA 1 | W10: T2 | X10: 21380 | Y10: Adansi South
A11: =IF(INTRO!$E$34<>0,INTRO!$E$34,"") -> Ghana | B11: Ashanti | C11: Afigya-Kwabre | D11: 172458 | E11: =IF(INTRO!$E$48="","",ROUND($D11*INTRO!$E$48,0)) -> 18625 | F11: =IF(INTRO!$E$49="","",ROUND($D11*INTRO!$E$49,0)) -> 42252 | G11: =IF(INTRO!$E$50="","",ROUND($D11*INTRO!$E$50,0)) -> 106407 | H11: 0 | I11: 1 | J11: 2 | K11: 2 | L11: =IF(INTRO!$E$38="Endemic", IF($H11>0, IF($H11=4,"Unknown", IF($H11=99,"Stopped", $D11)), 0),"Not required") -> 0 | M11: 68877.14025 | N11: =IF(INTRO!$E$42="Endemic", IF(AND($J11>1,$J11<5), IF($J11=4, "Unknown", E11+F11), 0),"Not required") -> 60877 | O11: =IF(INTRO!$E$44="Endemic", IF(AND($K11>0,$K11<5), IF($K11=4,"Unknown", IF($K11=1, $F11*0.33, IF($K11=2, $F11*0.5+$G11*0.2, SUM(F11:G11)))), 0),"Not required") -> 42407.4 | P11: 0 | Q11: 1 | R11: 1 | S11: 1 | T11: MDA3 (IVM) | U11: T1 (PZQ+ALB/MBD) | V11: MDA 1 | W11: T2 | X11: 21381 | Y11: Afigya-Kwabre
A12: =IF(INTRO!$E$34<>0,INTRO!$E$34,"") -> Ghana | B12: Ashanti | C12: Ahafo-Ano North | D12: 119438 | E12: =IF(INTRO!$E$48="","",ROUND($D12*INTRO!$E$48,0)) -> 12899 | F12: =IF(INTRO!$E$49="","",ROUND($D12*INTRO!$E$49,0)) -> 29262 | G12: =IF(INTRO!$E$50="","",ROUND($D12*INTRO!$E$50,0)) -> 73693 | H12: 0 | I12: 1 | J12: 2 | K12: 2 | L12: =IF(INTRO!$E$38="Endemic", IF($H12>0, IF($H12=4,"Unknown", IF($H12=99,"Stopped", $D12)), 0),"Not required") -> 0 | M12: 26924.41915 | N12: =IF(INTRO!$E$42="Endemic", IF(AND($J12>1,$J12<5), IF($J12=4, "Unknown", E12+F12), 0),"Not required") -> 42161 | O12: =IF(INTRO!$E$44="Endemic", IF(AND($K12>0,$K12<5), IF($K12=4,"Unknown", IF($K12=1, $F12*0.33, IF($K12=2, $F12*0.5+$G12*0.2, SUM(F12:G12)))), 0),"Not required") -> 29369.6 | P12: 0 | Q12: 1 | R12: 1 | S12: 1 | T12: MDA3 (IVM) | U12: T1 (PZQ+ALB/MBD) | V12: MDA 1 | W12: T2 | X12: 21382 | Y12: Ahafo-Ano North
A13: =IF(INTRO!$E$34<>0,INTRO!$E$34,"") -> Ghana | B13: Ashanti | C13: Ahafo-Ano South | D13: 154114 | E13: =IF(INTRO!$E$48="","",ROUND($D13*INTRO!$E$48,0)) -> 16644 | F13: =IF(INTRO!$E$49="","",ROUND($D13*INTRO!$E$49,0)) -> 37758 | G13: =IF(INTRO!$E$50="","",ROUND($D13*INTRO!$E$50,0)) -> 95088 | H13: 0 | I13: 1 | J13: 2 | K13: 3 | L13: =IF(INTRO!$E$38="Endemic", IF($H13>0, IF($H13=4,"Unknown", IF($H13=99,"Stopped", $D13)), 0),"Not required") -> 0 | M13: 46385.49145 | N13: =IF(INTRO!$E$42="Endemic", IF(AND($J13>1,$J13<5), IF($J13=4, "Unknown", E13+F13), 0),"Not required") -> 54402 | O13: =IF(INTRO!$E$44="Endemic", IF(AND($K13>0,$K13<5), IF($K13=4,"Unknown", IF($K13=1, $F13*0.33, IF($K13=2, $F13*0.5+$G13*0.2, SUM(F13:G13)))), 0),"Not required") -> 132846 | P13: 0 | Q13: 1 | R13: 1 | S13: 1 | T13: MDA3 (IVM) | U13: T1 (PZQ+ALB/MBD) | V13: MDA 1 | W13: T2 | X13: 21383 | Y13: Ahafo-Ano South
A14: =IF(INTRO!$E$34<>0,INTRO!$E$34,"") -> Ghana | B14: Ashanti | C14: Amansie Central | D14: 114948 | E14: =IF(INTRO!$E$48="","",ROUND($D14*INTRO!$E$48,0)) -> 12414 | F14: =IF(INTRO!$E$49="","",ROUND($D14*INTRO!$E$49,0)) -> 28162 | G14: =IF(INTRO!$E$50="","",ROUND($D14*INTRO!$E$50,0)) -> 70923 | H14: 0 | I14: 1 | J14: 2 | K14: 3 | L14: =IF(INTRO!$E$38="Endemic", IF($H14>0, IF($H14=4,"Unknown", IF($H14=99,"Stopped", $D14)), 0),"Not required") -> 0 | M14: 25507.20495 | N14: =IF(INTRO!$E$42="Endemic", IF(AND($J14>1,$J14<5), IF($J14=4, "Unknown", E14+F14), 0),"Not required") -> 40576 | O14: =IF(INTRO!$E$44="Endemic", IF(AND($K14>0,$K14<5), IF($K14=4,"Unknown", IF($K14=1, $F14*0.33, IF($K14=2, $F14*0.5+$G14*0.2, SUM(F14:G14)))), 0),"Not required") -> 99085 | P14: 0 | Q14: 2 | R14: 1 | S14: 1 | T14: MDA3 (IVM) | U14: T1 (PZQ+ALB/MBD) | V14: MDA 1 | W14: T2 | X14: 21384 | Y14: Amansie Central
A15: =IF(INTRO!$E$34<>0,INTRO!$E$34,"") -> Ghana | B15: Ashanti | C15: Mampong Muncipal | D15: 111541 | E15: =IF(INTRO!$E$48="","",ROUND($D15*INTRO!$E$48,0)) -> 12046 | F15: =IF(INTRO!$E$49="","",ROUND($D15*INTRO!$E$49,0)) -> 27328 | G15: =IF(INTRO!$E$50="","",ROUND($D15*INTRO!$E$50,0)) -> 68821 | H15: 0 | I15: 1 | J15: 2 | K15: 2 | L15: =IF(INTRO!$E$38="Endemic", IF($H15>0, IF($H15=4,"Unknown", IF($H15=99,"Stopped", $D15)), 0),"Not required") -> 0 | M15: 33225.89775 | N15: =IF(INTRO!$E$42="Endemic", IF(AND($J15>1,$J15<5), IF($J15=4, "Unknown", E15+F15), 0),"Not required") -> 39374 | O15: =IF(INTRO!$E$44="Endemic", IF(AND($K15>0,$K15<5), IF($K15=4,"Unknown", IF($K15=1, $F15*0.33, IF($K15=2, $F15*0.5+$G15*0.2, SUM(F15:G15)))), 0),"Not required") -> 27428.2 | P15: 0 | Q15: 1 | R15: 1 | S15: 1 | T15: MDA3 (IVM) | U15: T1 (PZQ+ALB/MBD) | V15: MDA 1 | W15: T2 | X15: 21378 | Y15: Mampong Muncipal
A16: =IF(INTRO!$E$34<>0,INTRO!$E$34,"") -> Ghana | B16: Ashanti | C16: Amansie West | D16: 170730 | E16: =IF(INTRO!$E$48="","",ROUND($D16*INTRO!$E$48,0)) -> 18439 | F16: =IF(INTRO!$E$49="","",ROUND($D16*INTRO!$E$49,0)) -> 41829 | G16: =IF(INTRO!$E$50="","",ROUND($D16*INTRO!$E$50,0)) -> 105340 | H16: 0 | I16: 1 | J16: 2 | K16: 3 | L16: =IF(INTRO!$E$38="Endemic", IF($H16>0, IF($H16=4,"Unknown", IF($H16=99,"Stopped", $D16)), 0),"Not required") -> 0 | M16: 16285.5936 | N16: =IF(INTRO!$E$42="Endemic", IF(AND($J16>1,$J16<5), IF($J16=4, "Unknown", E16+F16), 0),"Not required") -> 60268 | O16: =IF(INTRO!$E$44="Endemic", IF(AND($K16>0,$K16<5), IF($K16=4,"Unknown", IF($K16=1, $F16*0.33, IF($K16=2, $F16*0.5+$G16*0.2, SUM(F16:G16)))), 0),"Not required") -> 147169 | P16: 0 | Q16: 1 | R16: 1 | S16: 1 | T16: MDA3 (IVM) | U16: T1 (PZQ+ALB/MBD) | V16: MDA 1 | W16: T2 | X16: 21385 | Y16: Amansie West
A17: =IF(INTRO!$E$34<>0,INTRO!$E$34,"") -> Ghana | B17: Ashanti | C17: Asante-Akim Central | D17: 90584 | E17: =IF(INTRO!$E$48="","",ROUND($D17*INTRO!$E$48,0)) -> 9783 | F17: =IF(INTRO!$E$49="","",ROUND($D17*INTRO!$E$49,0)) -> 22193 | G17: =IF(INTRO!$E$50="","",ROUND($D17*INTRO!$E$50,0)) -> 55890 | H17: 0 | I17: 0 | J17: 2 | K17: 2 | L17: =IF(INTRO!$E$38="Endemic", IF($H17>0, IF($H17=4,"Unknown", IF($H17=99,"Stopped", $D17)), 0),"Not required") -> 0 | M17: 0 | N17: =IF(INTRO!$E$42="Endemic", IF(AND($J17>1,$J17<5), IF($J17=4, "Unknown", E17+F17), 0),"Not required") -> 31976 | O17: =IF(INTRO!$E$44="Endemic", IF(AND($K17>0,$K17<5), IF($K17=4,"Unknown", IF($K17=1, $F17*0.33, IF($K17=2, $F17*0.5+$G17*0.2, SUM(F17:G17)))), 0),"Not required") -> 22274.5 | P17: 0 | Q17: 0 | R17: 1 | S17: 1 | U17: T1 (PZQ+ALB/MBD) | W17: T1 | X17: 21388 | Y17: Asante-Akim Central
A18: =IF(INTRO!$E$34<>0,INTRO!$E$34,"") -> Ghana | B18: Ashanti | C18: Asante-Akim North | D18: 87643 | E18: =IF(INTRO!$E$48="","",ROUND($D18*INTRO!$E$48,0)) -> 9465 | F18: =IF(INTRO!$E$49="","",ROUND($D18*INTRO!$E$49,0)) -> 21473 | G18: =IF(INTRO!$E$50="","",ROUND($D18*INTRO!$E$50,0)) -> 54076 | H18: 0 | I18: 0 | J18: 2 | K18: 2 | L18: =IF(INTRO!$E$38="Endemic", IF($H18>0, IF($H18=4,"Unknown", IF($H18=99,"Stopped", $D18)), 0),"Not required") -> 0 | M18: 0 | N18: =IF(INTRO!$E$42="Endemic", IF(AND($J18>1,$J18<5), IF($J18=4, "Unknown", E18+F18), 0),"Not required") -> 30938 | O18: =IF(INTRO!$E$44="Endemic", IF(AND($K18>0,$K18<5), IF($K18=4,"Unknown", IF($K18=1, $F18*0.33, IF($K18=2, $F18*0.5+$G18*0.2, SUM(F18:G18)))), 0),"Not required") -> 21551.7 | P18: 0 | Q18: 0 | R18: 1 | S18: 1 | U18: T1 (PZQ+ALB/MBD) | W18: T1 | X18: 21386 | Y18: Asante-Akim North
A19: =IF(INTRO!$E$34<>0,INTRO!$E$34,"") -> Ghana | B19: Ashanti | C19: Asante-Akim South | D19: 148523 | E19: =IF(INTRO!$E$48="","",ROUND($D19*INTRO!$E$48,0)) -> 16040 | F19: =IF(INTRO!$E$49="","",ROUND($D19*INTRO!$E$49,0)) -> 36388 | G19: =IF(INTRO!$E$50="","",ROUND($D19*INTRO!$E$50,0)) -> 91639 | H19: 0 | I19: 1 | J19: 2 | K19: 2 | L19: =IF(INTRO!$E$38="Endemic", IF($H19>0, IF($H19=4,"Unknown", IF($H19=99,"Stopped", $D19)), 0),"Not required") -> 0 | M19: 75268.74095 | N19: =IF(INTRO!$E$42="Endemic", IF(AND($J19>1,$J19<5), IF($J19=4, "Unknown", E19+F19), 0),"Not required") -> 52428 | O19: =IF(INTRO!$E$44="Endemic", IF(AND($K19>0,$K19<5), IF($K19=4,"Unknown", IF($K19=1, $F19*0.33, IF($K19=2, $F19*0.5+$G19*0.2, SUM(F19:G19)))), 0),"Not required") -> 36521.8 | P19: 0 | Q19: 2 | R19: 1 | S19: 1 | T19: MDA3 (IVM) | U19: T1 (PZQ+ALB/MBD) | V19: MDA 1 | W19: T2 | X19: 21387 | Y19: Asante-Akim South
A20: =IF(INTRO!$E$34<>0,INTRO!$E$34,"") -> Ghana | B20: Ashanti | C20: Atwima-Kwanwoma | D20: 114812 | E20: =IF(INTRO!$E$48="","",ROUND($D20*INTRO!$E$48,0)) -> 12400 | F20: =IF(INTRO!$E$49="","",ROUND($D20*INTRO!$E$49,0)) -> 28129 | G20: =IF(INTRO!$E$50="","",ROUND($D20*INTRO!$E$50,0)) -> 70839 | H20: 0 | I20: 0 | J20: 2 | K20: 2 | L20: =IF(INTRO!$E$38="Endemic", IF($H20>0, IF($H20=4,"Unknown", IF($H20=99,"Stopped", $D20)), 0),"Not required") -> 0 | M20: 0 | N20: =IF(INTRO!$E$42="Endemic", IF(AND($J20>1,$J20<5), IF($J20=4, "Unknown", E20+F20), 0),"Not required") -> 40529 | O20: =IF(INTRO!$E$44="Endemic", IF(AND($K20>0,$K20<5), IF($K20=4,"Unknown", IF($K20=1, $F20*0.33, IF($K20=2, $F20*0.5+$G20*0.2, SUM(F20:G20)))), 0),"Not required") -> 28232.3 | P20: 0 | Q20: 0 | R20: 1 | S20: 1 | U20: T1 (PZQ+ALB/MBD) | W20: T1 | X20: 21390 | Y20: Atwima-Kwanwoma
A21: =IF(INTRO!$E$34<>0,INTRO!$E$34,"") -> Ghana | B21: Ashanti | C21: Atwima-Mponua | D21: 150974 | E21: =IF(INTRO!$E$48="","",ROUND($D21*INTRO!$E$48,0)) -> 16305 | F21: =IF(INTRO!$E$49="","",ROUND($D21*INTRO!$E$49,0)) -> 36989 | G21: =IF(INTRO!$E$50="","",ROUND($D21*INTRO!$E$50,0)) -> 93151 | H21: 0 | I21: 1 | J21: 2 | K21: 3 | L21: =IF(INTRO!$E$38="Endemic", IF($H21>0, IF($H21=4,"Unknown", IF($H21=99,"Stopped", $D21)), 0),"Not required") -> 0 | M21: 87323 | N21: =IF(INTRO!$E$42="Endemic", IF(AND($J21>1,$J21<5), IF($J21=4, "Unknown", E21+F21), 0),"Not required") -> 53294 | O21: =IF(INTRO!$E$44="Endemic", IF(AND($K21>0,$K21<5), IF($K21=4,"Unknown", IF($K21=1, $F21*0.33, IF($K21=2, $F21*0.5+$G21*0.2, SUM(F21:G21)))), 0),"Not required") -> 130140 | P21: 0 | Q21: 1 | R21: 1 | S21: 1 | T21: MDA3 (IVM) | U21: T1 (PZQ+ALB/MBD) | V21: MDA 1 | W21: T2 | X21: 21391 | Y21: Atwima-Mponua
A22: =IF(INTRO!$E$34<>0,INTRO!$E$34,"") -> Ghana | B22: Ashanti | C22: Atwima-Nwabiagya | D22: 188780 | E22: =IF(INTRO!$E$48="","",ROUND($D22*INTRO!$E$48,0)) -> 20388 | F22: =IF(INTRO!$E$49="","",ROUND($D22*INTRO!$E$49,0)) -> 46251 | G22: =IF(INTRO!$E$50="","",ROUND($D22*INTRO!$E$50,0)) -> 116477 | H22: 0 | I22: 1 | J22: 2 | K22: 2 | L22: =IF(INTRO!$E$38="Endemic", IF($H22>0, IF($H22=4,"Unknown", IF($H22=99,"Stopped", $D22)), 0),"Not required") -> 0 | M22: 58231.2463 | N22: =IF(INTRO!$E$42="Endemic", IF(AND($J22>1,$J22<5), IF($J22=4, "Unknown", E22+F22), 0),"Not required") -> 66639 | O22: =IF(INTRO!$E$44="Endemic", IF(AND($K22>0,$K22<5), IF($K22=4,"Unknown", IF($K22=1, $F22*0.33, IF($K22=2, $F22*0.5+$G22*0.2, SUM(F22:G22)))), 0),"Not required") -> 46420.9 | P22: 0 | Q22: 1 | R22: 1 | S22: 1 | T22: MDA3 (IVM) | U22: T1 (PZQ+ALB/MBD) | V22: MDA 1 | W22: T2 | X22: 21392 | Y22: Atwima-Nwabiagya
A23: =IF(INTRO!$E$34<>0,INTRO!$E$34,"") -> Ghana | B23: Ashanti | C23: Bosomtwe | D23: 118962 | E23: =IF(INTRO!$E$48="","",ROUND($D23*INTRO!$E$48,0)) -> 12848 | F23: =IF(INTRO!$E$49="","",ROUND($D23*INTRO!$E$49,0)) -> 29146 | G23: =IF(INTRO!$E$50="","",ROUND($D23*INTRO!$E$50,0)) -> 73400 | H23: 0 | I23: 0 | J23: 2 | K23: 2 | L23: =IF(INTRO!$E$38="Endemic", IF($H23>0, IF($H23=4,"Unknown", IF($H23=99,"Stopped", $D23)), 0),"Not required") -> 0 | M23: 0 | N23: =IF(INTRO!$E$42="Endemic", IF(AND($J23>1,$J23<5), IF($J23=4, "Unknown", E23+F23), 0),"Not required") -> 41994 | O23: =IF(INTRO!$E$44="Endemic", IF(AND($K23>0,$K23<5), IF($K23=4,"Unknown", IF($K23=1, $F23*0.33, IF($K23=2, $F23*0.5+$G23*0.2, SUM(F23:G23)))), 0),"Not required") -> 29253 | P23: 0 | Q23: 0 | R23: 1 | S23: 1 | U23: T1 (PZQ+ALB/MBD) | W23: T1 | X23: 21395 | Y23: Bosomtwe
A24: =IF(INTRO!$E$34<>0,INTRO!$E$34,"") -> Ghana | B24: Ashanti | C24: Bosome-Freho | D24: 76509 | E24: =IF(INTRO!$E$48="","",ROUND($D24*INTRO!$E$48,0)) -> 8263 | F24: =IF(INTRO!$E$49="","",ROUND($D24*INTRO!$E$49,0)) -> 18745 | G24: =IF(INTRO!$E$50="","",ROUND($D24*INTRO!$E$50,0)) -> 47206 | H24: 0 | I24: 1 | J24: 2 | K24: 3 | L24: =IF(INTRO!$E$38="Endemic", IF($H24>0, IF($H24=4,"Unknown", IF($H24=99,"Stopped", $D24)), 0),"Not required") -> 0 | M24: 40566.43115 | N24: =IF(INTRO!$E$42="Endemic", IF(AND($J24>1,$J24<5), IF($J24=4, "Unknown", E24+F24), 0),"Not required") -> 27008 | O24: =IF(INTRO!$E$44="Endemic", IF(AND($K24>0,$K24<5), IF($K24=4,"Unknown", IF($K24=1, $F24*0.33, IF($K24=2, $F24*0.5+$G24*0.2, SUM(F24:G24)))), 0),"Not required") -> 65951 | P24: 0 | Q24: 2 | R24: 1 | S24: 1 | T24: MDA3 (IVM) | U24: T1 (PZQ+ALB/MBD) | V24: MDA 1 | W24: T2 | X24: 21394 | Y24: Bosome-Freho
A25: =IF(INTRO!$E$34<>0,INTRO!$E$34,"") -> Ghana | B25: Ashanti | C25: Ejisu-Juaben | D25: 182114 | E25: =IF(INTRO!$E$48="","",ROUND($D25*INTRO!$E$48,0)) -> 19668 | F25: =IF(INTRO!$E$49="","",ROUND($D25*INTRO!$E$49,0)) -> 44618 | G25: =IF(INTRO!$E$50="","",ROUND($D25*INTRO!$E$50,0)) -> 112364 | H25: 0 | I25: 1 | J25: 2 | K25: 2 | L25: =IF(INTRO!$E$38="Endemic", IF($H25>0, IF($H25=4,"Unknown", IF($H25=99,"Stopped", $D25)), 0),"Not required") -> 0 | M25: 67537.67845 | N25: =IF(INTRO!$E$42="Endemic", IF(AND($J25>1,$J25<5), IF($J25=4, "Unknown", E25+F25), 0),"Not required") -> 64286 | O25: =IF(INTRO!$E$44="Endemic", IF(AND($K25>0,$K25<5), IF($K25=4,"Unknown", IF($K25=1, $F25*0.33, IF($K25=2, $F25*0.5+$G25*0.2, SUM(F25:G25)))), 0),"Not required") -> 44781.8 | P25: 0 | Q25: 1 | R25: 1 | S25: 1 | T25: MDA3 (IVM) | U25: T1 (PZQ+ALB/MBD) | V25: MDA 1 | W25: T2 | X25: 21396 | Y25: Ejisu-Juaben
A26: =IF(INTRO!$E$34<>0,INTRO!$E$34,"") -> Ghana | B26: Ashanti | C26: Ejura-Sekyedomasi | D26: 108241 | E26: =IF(INTRO!$E$48="","",ROUND($D26*INTRO!$E$48,0)) -> 11690 | F26: =IF(INTRO!$E$49="","",ROUND($D26*INTRO!$E$49,0)) -> 26519 | G26: =IF(INTRO!$E$50="","",ROUND($D26*INTRO!$E$50,0)) -> 66785 | H26: 0 | I26: 1 | J26: 2 | K26: 3 | L26: =IF(INTRO!$E$38="Endemic", IF($H26>0, IF($H26=4,"Unknown", IF($H26=99,"Stopped", $D26)), 0),"Not required") -> 0 | M26: 18944.19555 | N26: =IF(INTRO!$E$42="Endemic", IF(AND($J26>1,$J26<5), IF($J26=4, "Unknown", E26+F26), 0),"Not required") -> 38209 | O26: =IF(INTRO!$E$44="Endemic", IF(AND($K26>0,$K26<5), IF($K26=4,"Unknown", IF($K26=1, $F26*0.33, IF($K26=2, $F26*0.5+$G26*0.2, SUM(F26:G26)))), 0),"Not required") -> 93304 | P26: 0 | Q26: 1 | R26: 1 | S26: 1 | T26: MDA3 (IVM) | U26: T1 (PZQ+ALB/MBD) | V26: MDA 1 | W26: T2 | X26: 21397 | Y26: Ejura-Sekyedomasi
A27: =IF(INTRO!$E$34<>0,INTRO!$E$34,"") -> Ghana | B27: Ashanti | C27: Kumasi Metropolis | D27: 2191829 | E27: =IF(INTRO!$E$48="","",ROUND($D27*INTRO!$E$48,0)) -> 236718 | F27: =IF(INTRO!$E$49="","",ROUND($D27*INTRO!$E$49,0)) -> 536998 | G27: =IF(INTRO!$E$50="","",ROUND($D27*INTRO!$E$50,0)) -> 1352358 | H27: 0 | I27: 0 | J27: 2 | K27: 2 | L27: =IF(INTRO!$E$38="Endemic", IF($H27>0, IF($H27=4,"Unknown", IF($H27=99,"Stopped", $D27)), 0),"Not required") -> 0 | M27: 0 | N27: =IF(INTRO!$E$42="Endemic", IF(AND($J27>1,$J27<5), IF($J27=4, "Unknown", E27+F27), 0),"Not required") -> 773716 | O27: =IF(INTRO!$E$44="Endemic", IF(AND($K27>0,$K27<5), IF($K27=4,"Unknown", IF($K27=1, $F27*0.33, IF($K27=2, $F27*0.5+$G27*0.2, SUM(F27:G27)))), 0),"Not required") -> 538970.6 | P27: 0 | Q27: 0 | R27: 0 | S27: 0 | W27: T1 | X27: 21398 | Y27: Kumasi Metropolis
A28: =IF(INTRO!$E$34<>0,INTRO!$E$34,"") -> Ghana | B28: Ashanti | C28: Kwabre | D28: 146383 | E28: =IF(INTRO!$E$48="","",ROUND($D28*INTRO!$E$48,0)) -> 15809 | F28: =IF(INTRO!$E$49="","",ROUND($D28*INTRO!$E$49,0)) -> 35864 | G28: =IF(INTRO!$E$50="","",ROUND($D28*INTRO!$E$50,0)) -> 90318 | H28: 0 | I28: 0 | J28: 2 | K28: 2 | L28: =IF(INTRO!$E$38="Endemic", IF($H28>0, IF($H28=4,"Unknown", IF($H28=99,"Stopped", $D28)), 0),"Not required") -> 0 | M28: 0 | N28: =IF(INTRO!$E$42="Endemic", IF(AND($J28>1,$J28<5), IF($J28=4, "Unknown", E28+F28), 0),"Not required") -> 51673 | O28: =IF(INTRO!$E$44="Endemic", IF(AND($K28>0,$K28<5), IF($K28=4,"Unknown", IF($K28=1, $F28*0.33, IF($K28=2, $F28*0.5+$G28*0.2, SUM(F28:G28)))), 0),"Not required") -> 35995.6 | P28: 0 | Q28: 0 | R28: 1 | S28: 1 | U28: T1 (PZQ+ALB/MBD) | W28: T1 | X28: 21400 | Y28: Kwabre
A29: =IF(INTRO!$E$34<>0,INTRO!$E$34,"") -> Ghana | B29: Ashanti | C29: Bekwai Municipal | D29: 149509 | E29: =IF(INTRO!$E$48="","",ROUND($D29*INTRO!$E$48,0)) -> 16147 | F29: =IF(INTRO!$E$49="","",ROUND($D29*INTRO!$E$49,0)) -> 36630 | G29: =IF(INTRO!$E$50="","",ROUND($D29*INTRO!$E$50,0)) -> 92247 | H29: 0 | I29: 0 | J29: 2 | K29: 2 | L29: =IF(INTRO!$E$38="Endemic", IF($H29>0, IF($H29=4,"Unknown", IF($H29=99,"Stopped", $D29)), 0),"Not required") -> 0 | M29: 0 | N29: =IF(INTRO!$E$42="Endemic", IF(AND($J29>1,$J29<5), IF($J29=4, "Unknown", E29+F29), 0),"Not required") -> 52777 | O29: =IF(INTRO!$E$44="Endemic", IF(AND($K29>0,$K29<5), IF($K29=4,"Unknown", IF($K29=1, $F29*0.33, IF($K29=2, $F29*0.5+$G29*0.2, SUM(F29:G29)))), 0),"Not required") -> 36764.4 | P29: 0 | Q29: 0 | R29: 1 | S29: 1 | U29: T1 (PZQ+ALB/MBD) | W29: T1 | X29: 21393 | Y29: Bekwai Municipal
A30: =IF(INTRO!$E$34<>0,INTRO!$E$34,"") -> Ghana | B30: Ashanti | C30: Asokore-Mampong | D30: 386130 | E30: =IF(INTRO!$E$48="","",ROUND($D30*INTRO!$E$48,0)) -> 41702 | F30: =IF(INTRO!$E$49="","",ROUND($D30*INTRO!$E$49,0)) -> 94602 | G30: =IF(INTRO!$E$50="","",ROUND($D30*INTRO!$E$50,0)) -> 238242 | H30: 0 | I30: 0 | J30: 2 | K30: 2 | L30: =IF(INTRO!$E$38="Endemic", IF($H30>0, IF($H30=4,"Unknown", IF($H30=99,"Stopped", $D30)), 0),"Not required") -> 0 | M30: 0 | N30: =IF(INTRO!$E$42="Endemic", IF(AND($J30>1,$J30<5), IF($J30=4, "Unknown", E30+F30), 0),"Not required") -> 136304 | O30: =IF(INTRO!$E$44="Endemic", IF(AND($K30>0,$K30<5), IF($K30=4,"Unknown", IF($K30=1, $F30*0.33, IF($K30=2, $F30*0.5+$G30*0.2, SUM(F30:G30)))), 0),"Not required") -> 94949.4 | P30: 0 | Q30: 0 | R30: 1 | S30: 1 | U30: T1 (PZQ+ALB/MBD) | W30: T1 | X30: 21389 | Y30: Asokore-Mampong
A31: =IF(INTRO!$E$34<>0,INTRO!$E$34,"") -> Ghana | B31: Ashanti | C31: Obuasi Municipal | D31: 213629 | E31: =IF(INTRO!$E$48="","",ROUND($D31*INTRO!$E$48,0)) -> 23072 | F31: =IF(INTRO!$E$49="","",ROUND($D31*INTRO!$E$49,0)) -> 52339 | G31: =IF(INTRO!$E$50="","",ROUND($D31*INTRO!$E$50,0)) -> 131809 | H31: 0 | I31: 1 | J31: 2 | K31: 2 | L31: =IF(INTRO!$E$38="Endemic", IF($H31>0, IF($H31=4,"Unknown", IF($H31=99,"Stopped", $D31)), 0),"Not required") -> 0 | M31: 86308.6982 | N31: =IF(INTRO!$E$42="Endemic", IF(AND($J31>1,$J31<5), IF($J31=4, "Unknown", E31+F31), 0),"Not required") -> 75411 | O31: =IF(INTRO!$E$44="Endemic", IF(AND($K31>0,$K31<5), IF($K31=4,"Unknown", IF($K31=1, $F31*0.33, IF($K31=2, $F31*0.5+$G31*0.2, SUM(F31:G31)))), 0),"Not required") -> 52531.3 | P31: 0 | Q31: 1 | R31: 1 | S31: 1 | T31: MDA3 (IVM) | U31: T1 (PZQ+ALB/MBD) | V31: MDA 1 | W31: T2 | X31: 21401 | Y31: Obuasi Municipal
A32: =IF(INTRO!$E$34<>0,INTRO!$E$34,"") -> Ghana | B32: Ashanti | C32: Offiinso Municipal | D32: 97408 | E32: =IF(INTRO!$E$48="","",ROUND($D32*INTRO!$E$48,0)) -> 10520 | F32: =IF(INTRO!$E$49="","",ROUND($D32*INTRO!$E$49,0)) -> 23865 | G32: =IF(INTRO!$E$50="","",ROUND($D32*INTRO!$E$50,0)) -> 60101 | H32: 0 | I32: 1 | J32: 2 | K32: 2 | L32: =IF(INTRO!$E$38="Endemic", IF($H32>0, IF($H32=4,"Unknown", IF($H32=99,"Stopped", $D32)), 0),"Not required") -> 0 | M32: 40254.538 | N32: =IF(INTRO!$E$42="Endemic", IF(AND($J32>1,$J32<5), IF($J32=4, "Unknown", E32+F32), 0),"Not required") -> 34385 | O32: =IF(INTRO!$E$44="Endemic", IF(AND($K32>0,$K32<5), IF($K32=4,"Unknown", IF($K32=1, $F32*0.33, IF($K32=2, $F32*0.5+$G32*0.2, SUM(F32:G32)))), 0),"Not required") -> 23952.7 | P32: 0 | Q32: 2 | R32: 1 | S32: 1 | T32: MDA3 (IVM) | U32: T1 (PZQ+ALB/MBD) | V32: MDA 1 | W32: T2 | X32: 21402 | Y32: Offiinso Municipal
A33: =IF(INTRO!$E$34<>0,INTRO!$E$34,"") -> Ghana | B33: Ashanti | C33: Offinso North | D33: 72055 | E33: =IF(INTRO!$E$48="","",ROUND($D33*INTRO!$E$48,0)) -> 7782 | F33: =IF(INTRO!$E$49="","",ROUND($D33*INTRO!$E$49,0)) -> 17653 | G33: =IF(INTRO!$E$50="","",ROUND($D33*INTRO!$E$50,0)) -> 44458 | H33: 0 | I33: 1 | J33: 2 | K33: 2 | L33: =IF(INTRO!$E$38="Endemic", IF($H33>0, IF($H33=4,"Unknown", IF($H33=99,"Stopped", $D33)), 0),"Not required") -> 0 | M33: 44458 | N33: =IF(INTRO!$E$42="Endemic", IF(AND($J33>1,$J33<5), IF($J33=4, "Unknown", E33+F33), 0),"Not required") -> 25435 | O33: =IF(INTRO!$E$44="Endemic", IF(AND($K33>0,$K33<5), IF($K33=4,"Unknown", IF($K33=1, $F33*0.33, IF($K33=2, $F33*0.5+$G33*0.2, SUM(F33:G33)))), 0),"Not required") -> 17718.1 | P33: 0 | Q33: 2 | R33: 1 | S33: 1 | T33: MDA3 (IVM) | U33: T1 (PZQ+ALB/MBD) | V33: MDA 1 | W33: T2 | X33: 21403 | Y33: Offinso North
A34: =IF(INTRO!$E$34<>0,INTRO!$E$34,"") -> Ghana | B34: Ashanti | C34: Sekyere-Afram Plains | D34: 36147 | E34: =IF(INTRO!$E$48="","",ROUND($D34*INTRO!$E$48,0)) -> 3904 | F34: =IF(INTRO!$E$49="","",ROUND($D34*INTRO!$E$49,0)) -> 8856 | G34: =IF(INTRO!$E$50="","",ROUND($D34*INTRO!$E$50,0)) -> 22303 | H34: 0 | I34: 1 | J34: 2 | K34: 3 | L34: =IF(INTRO!$E$38="Endemic", IF($H34>0, IF($H34=4,"Unknown", IF($H34=99,"Stopped", $D34)), 0),"Not required") -> 0 | M34: 12615.3269 | N34: =IF(INTRO!$E$42="Endemic", IF(AND($J34>1,$J34<5), IF($J34=4, "Unknown", E34+F34), 0),"Not required") -> 12760 | O34: =IF(INTRO!$E$44="Endemic", IF(AND($K34>0,$K34<5), IF($K34=4,"Unknown", IF($K34=1, $F34*0.33, IF($K34=2, $F34*0.5+$G34*0.2, SUM(F34:G34)))), 0),"Not required") -> 31159 | P34: 0 | Q34: 1 | R34: 1 | S34: 1 | T34: MDA3 (IVM) | U34: T1 (PZQ+ALB/MBD) | V34: MDA 1 | W34: T2 | X34: 21407 | Y34: Sekyere-Afram Plains
A35: =IF(INTRO!$E$34<>0,INTRO!$E$34,"") -> Ghana | B35: Ashanti | C35: Kumawu | D35: 82850 | E35: =IF(INTRO!$E$48="","",ROUND($D35*INTRO!$E$48,0)) -> 8948 | F35: =IF(INTRO!$E$49="","",ROUND($D35*INTRO!$E$49,0)) -> 20298 | G35: =IF(INTRO!$E$50="","",ROUND($D35*INTRO!$E$50,0)) -> 51118 | H35: 0 | I35: 1 | J35: 2 | K35: 3 | L35: =IF(INTRO!$E$38="Endemic", IF($H35>0, IF($H35=4,"Unknown", IF($H35=99,"Stopped", $D35)), 0),"Not required") -> 0 | M35: 44534.4542 | N35: =IF(INTRO!$E$42="Endemic", IF(AND($J35>1,$J35<5), IF($J35=4, "Unknown", E35+F35), 0),"Not required") -> 29246 | O35: =IF(INTRO!$E$44="Endemic", IF(AND($K35>0,$K35<5), IF($K35=4,"Unknown", IF($K35=1, $F35*0.33, IF($K35=2, $F35*0.5+$G35*0.2, SUM(F35:G35)))), 0),"Not required") -> 71416 | P35: 0 | Q35: 1 | R35: 1 | S35: 1 | T35: MDA3 (IVM) | U35: T1 (PZQ+ALB/MBD) | V35: MDA 1 | W35: T2 | X35: 21399 | Y35: Kumawu
A36: =IF(INTRO!$E$34<>0,INTRO!$E$34,"") -> Ghana | B36: Ashanti | C36: Sekyere Central | D36: 90234 | E36: =IF(INTRO!$E$48="","",ROUND($D36*INTRO!$E$48,0)) -> 9745 | F36: =IF(INTRO!$E$49="","",ROUND($D36*INTRO!$E$49,0)) -> 22107 | G36: =IF(INTRO!$E$50="","",ROUND($D36*INTRO!$E$50,0)) -> 55674 | H36: 0 | I36: 1 | J36: 2 | K36: 2 | L36: =IF(INTRO!$E$38="Endemic", IF($H36>0, IF($H36=4,"Unknown", IF($H36=99,"Stopped", $D36)), 0),"Not required") -> 0 | M36: 48558.1409 | N36: =IF(INTRO!$E$42="Endemic", IF(AND($J36>1,$J36<5), IF($J36=4, "Unknown", E36+F36), 0),"Not required") -> 31852 | O36: =IF(INTRO!$E$44="Endemic", IF(AND($K36>0,$K36<5), IF($K36=4,"Unknown", IF($K36=1, $F36*0.33, IF($K36=2, $F36*0.5+$G36*0.2, SUM(F36:G36)))), 0),"Not required") -> 22188.3 | P36: 0 | Q36: 1 | R36: 1 | S36: 1 | T36: MDA3 (IVM) | U36: T1 (PZQ+ALB/MBD) | V36: MDA 1 | W36: T2 | X36: 21404 | Y36: Sekyere Central
A37: =IF(INTRO!$E$34<>0,INTRO!$E$34,"") -> Ghana | B37: Ashanti | C37: Sekyere East | D37: 78757 | E37: =IF(INTRO!$E$48="","",ROUND($D37*INTRO!$E$48,0)) -> 8506 | F37: =IF(INTRO!$E$49="","",ROUND($D37*INTRO!$E$49,0)) -> 19295 | G37: =IF(INTRO!$E$50="","",ROUND($D37*INTRO!$E$50,0)) -> 48593 | H37: 0 | I37: 1 | J37: 2 | K37: 2 | L37: =IF(INTRO!$E$38="Endemic", IF($H37>0, IF($H37=4,"Unknown", IF($H37=99,"Stopped", $D37)), 0),"Not required") -> 0 | M37: 37797.38545 | N37: =IF(INTRO!$E$42="Endemic", IF(AND($J37>1,$J37<5), IF($J37=4, "Unknown", E37+F37), 0),"Not required") -> 27801 | O37: =IF(INTRO!$E$44="Endemic", IF(AND($K37>0,$K37<5), IF($K37=4,"Unknown", IF($K37=1, $F37*0.33, IF($K37=2, $F37*0.5+$G37*0.2, SUM(F37:G37)))), 0),"Not required") -> 19366.1 | P37: 0 | Q37: 1 | R37: 1 | S37: 1 | T37: MDA3 (IVM) | U37: T1 (PZQ+ALB/MBD) | V37: MDA 1 | W37: T2 | X37: 21405 | Y37: Sekyere East
A38: =IF(INTRO!$E$34<>0,INTRO!$E$34,"") -> Ghana | B38: Ashanti | C38: Sekyere South | D38: 119088 | E38: =IF(INTRO!$E$48="","",ROUND($D38*INTRO!$E$48,0)) -> 12862 | F38: =IF(INTRO!$E$49="","",ROUND($D38*INTRO!$E$49,0)) -> 29177 | G38: =IF(INTRO!$E$50="","",ROUND($D38*INTRO!$E$50,0)) -> 73477 | H38: 0 | I38: 1 | J38: 2 | K38: 2 | L38: =IF(INTRO!$E$38="Endemic", IF($H38>0, IF($H38=4,"Unknown", IF($H38=99,"Stopped", $D38)), 0),"Not required") -> 0 | M38: 25887.13145 | N38: =IF(INTRO!$E$42="Endemic", IF(AND($J38>1,$J38<5), IF($J38=4, "Unknown", E38+F38), 0),"Not required") -> 42039 | O38: =IF(INTRO!$E$44="Endemic", IF(AND($K38>0,$K38<5), IF($K38=4,"Unknown", IF($K38=1, $F38*0.33, IF($K38=2, $F38*0.5+$G38*0.2, SUM(F38:G38)))), 0),"Not required") -> 29283.9 | P38: 0 | Q38: 1 | R38: 1 | S38: 1 | T38: MDA3 (IVM) | U38: T1 (PZQ+ALB/MBD) | V38: MDA 1 | W38: T2 | X38: 21406 | Y38: Sekyere South
A39: =IF(INTRO!$E$34<>0,INTRO!$E$34,"") -> Ghana | B39: Brong-Ahafo | C39: Asunafo North | D39: 153093 | E39: =IF(INTRO!$E$48="","",ROUND($D39*INTRO!$E$48,0)) -> 16534 | F39: =IF(INTRO!$E$49="","",ROUND($D39*INTRO!$E$49,0)) -> 37508 | G39: =IF(INTRO!$E$50="","",ROUND($D39*INTRO!$E$50,0)) -> 94458 | H39: 0 | I39: 1 | J39: 2 | K39: 2 | L39: =IF(INTRO!$E$38="Endemic", IF($H39>0, IF($H39=4,"Unknown", IF($H39=99,"Stopped", $D39)), 0),"Not required") -> 0 | M39: 65471 | N39: =IF(INTRO!$E$42="Endemic", IF(AND($J39>1,$J39<5), IF($J39=4, "Unknown", E39+F39), 0),"Not required") -> 54042 | O39: =IF(INTRO!$E$44="Endemic", IF(AND($K39>0,$K39<5), IF($K39=4,"Unknown", IF($K39=1, $F39*0.33, IF($K39=2, $F39*0.5+$G39*0.2, SUM(F39:G39)))), 0),"Not required") -> 37645.6 | P39: 0 | Q39: 2 | R39: 1 | S39: 1 | T39: MDA3 (IVM) | U39: T1 (PZQ+ALB/MBD) | V39: MDA 1 | W39: T2 | X39: 21408 | Y39: Asunafo North
A40: =IF(INTRO!$E$34<>0,INTRO!$E$34,"") -> Ghana | B40: Brong-Ahafo | C40: Asunafo South | D40: 117356 | E40: =IF(INTRO!$E$48="","",ROUND($D40*INTRO!$E$48,0)) -> 12674 | F40: =IF(INTRO!$E$49="","",ROUND($D40*INTRO!$E$49,0)) -> 28752 | G40: =IF(INTRO!$E$50="","",ROUND($D40*INTRO!$E$50,0)) -> 72409 | H40: 0 | I40: 1 | J40: 2 | K40: 2 | L40: =IF(INTRO!$E$38="Endemic", IF($H40>0, IF($H40=4,"Unknown", IF($H40=99,"Stopped", $D40)), 0),"Not required") -> 0 | M40: 22522.85058 | N40: =IF(INTRO!$E$42="Endemic", IF(AND($J40>1,$J40<5), IF($J40=4, "Unknown", E40+F40), 0),"Not required") -> 41426 | O40: =IF(INTRO!$E$44="Endemic", IF(AND($K40>0,$K40<5), IF($K40=4,"Unknown", IF($K40=1, $F40*0.33, IF($K40=2, $F40*0.5+$G40*0.2, SUM(F40:G40)))), 0),"Not required") -> 28857.8 | P40: 0 | Q40: 2 | R40: 1 | S40: 1 | T40: MDA3 (IVM) | U40: T1 (PZQ+ALB/MBD) | V40: MDA 1 | W40: T2 | X40: 21409 | Y40: Asunafo South
A41: =IF(INTRO!$E$34<>0,INTRO!$E$34,"") -> Ghana | B41: Brong-Ahafo | C41: Asutifi North | D41: 65074 | E41: =IF(INTRO!$E$48="","",ROUND($D41*INTRO!$E$48,0)) -> 7028 | F41: =IF(INTRO!$E$49="","",ROUND($D41*INTRO!$E$49,0)) -> 15943 | G41: =IF(INTRO!$E$50="","",ROUND($D41*INTRO!$E$50,0)) -> 40151 | H41: 0 | I41: 1 | J41: 2 | K41: 2 | L41: =IF(INTRO!$E$38="Endemic", IF($H41>0, IF($H41=4,"Unknown", IF($H41=99,"Stopped", $D41)), 0),"Not required") -> 0 | M41: 10235.92675 | N41: =IF(INTRO!$E$42="Endemic", IF(AND($J41>1,$J41<5), IF($J41=4, "Unknown", E41+F41), 0),"Not required") -> 22971 | O41: =IF(INTRO!$E$44="Endemic", IF(AND($K41>0,$K41<5), IF($K41=4,"Unknown", IF($K41=1, $F41*0.33, IF($K41=2, $F41*0.5+$G41*0.2, SUM(F41:G41)))), 0),"Not required") -> 16001.7 | P41: 0 | Q41: 1 | R41: 1 | S41: 1 | T41: MDA3 (IVM) | U41: T1 (PZQ+ALB/MBD) | V41: MDA 1 | W41: T2 | X41: 21411 | Y41: Asutifi North
A42: =IF(INTRO!$E$34<>0,INTRO!$E$34,"") -> Ghana | B42: Brong-Ahafo | C42: Asutifi South | D42: 64884 | E42: =IF(INTRO!$E$48="","",ROUND($D42*INTRO!$E$48,0)) -> 7007 | F42: =IF(INTRO!$E$49="","",ROUND($D42*INTRO!$E$49,0)) -> 15897 | G42: =IF(INTRO!$E$50="","",ROUND($D42*INTRO!$E$50,0)) -> 40033 | H42: 0 | I42: 1 | J42: 2 | K42: 2 | L42: =IF(INTRO!$E$38="Endemic", IF($H42>0, IF($H42=4,"Unknown", IF($H42=99,"Stopped", $D42)), 0),"Not required") -> 0 | M42: 53930 | N42: =IF(INTRO!$E$42="Endemic", IF(AND($J42>1,$J42<5), IF($J42=4, "Unknown", E42+F42), 0),"Not required") -> 22904 | O42: =IF(INTRO!$E$44="Endemic", IF(AND($K42>0,$K42<5), IF($K42=4,"Unknown", IF($K42=1, $F42*0.33, IF($K42=2, $F42*0.5+$G42*0.2, SUM(F42:G42)))), 0),"Not required") -> 15955.1 | P42: 0 | Q42: 1 | R42: 1 | S42: 1 | T42: MDA3 (IVM) | U42: T1 (PZQ+ALB/MBD) | V42: MDA 1 | W42: T2 | X42: 21412 | Y42: Asutifi South
A43: =IF(INTRO!$E$34<>0,INTRO!$E$34,"") -> Ghana | B43: Brong-Ahafo | C43: Atebubu-Amanteng | D43: 130075 | E43: =IF(INTRO!$E$48="","",ROUND($D43*INTRO!$E$48,0)) -> 14048 | F43: =IF(INTRO!$E$49="","",ROUND($D43*INTRO!$E$49,0)) -> 31868 | G43: =IF(INTRO!$E$50="","",ROUND($D43*INTRO!$E$50,0)) -> 80256 | H43: 0 | I43: 1 | J43: 2 | K43: 2 | L43: =IF(INTRO!$E$38="Endemic", IF($H43>0, IF($H43=4,"Unknown", IF($H43=99,"Stopped", $D43)), 0),"Not required") -> 0 | M43: 48645.475 | N43: =IF(INTRO!$E$42="Endemic", IF(AND($J43>1,$J43<5), IF($J43=4, "Unknown", E43+F43), 0),"Not required") -> 45916 | O43: =IF(INTRO!$E$44="Endemic", IF(AND($K43>0,$K43<5), IF($K43=4,"Unknown", IF($K43=1, $F43*0.33, IF($K43=2, $F43*0.5+$G43*0.2, SUM(F43:G43)))), 0),"Not required") -> 31985.2 | P43: 0 | Q43: 2 | R43: 1 | S43: 1 | T43: MDA3 (IVM) | U43: T1 (PZQ+ALB/MBD) | V43: MDA 1 | W43: T2 | X43: 21413 | Y43: Atebubu-Amanteng
A44: =IF(INTRO!$E$34<>0,INTRO!$E$34,"") -> Ghana | B44: Brong-Ahafo | C44: Berekum | D44: 159162 | E44: =IF(INTRO!$E$48="","",ROUND($D44*INTRO!$E$48,0)) -> 17189 | F44: =IF(INTRO!$E$49="","",ROUND($D44*INTRO!$E$49,0)) -> 38995 | G44: =IF(INTRO!$E$50="","",ROUND($D44*INTRO!$E$50,0)) -> 98203 | H44: 0 | I44: 0 | J44: 2 | K44: 1 | L44: =IF(INTRO!$E$38="Endemic", IF($H44>0, IF($H44=4,"Unknown", IF($H44=99,"Stopped", $D44)), 0),"Not required") -> 0 | M44: 0 | N44: =IF(INTRO!$E$42="Endemic", IF(AND($J44>1,$J44<5), IF($J44=4, "Unknown", E44+F44), 0),"Not required") -> 56184 | O44: =IF(INTRO!$E$44="Endemic", IF(AND($K44>0,$K44<5), IF($K44=4,"Unknown", IF($K44=1, $F44*0.33, IF($K44=2, $F44*0.5+$G44*0.2, SUM(F44:G44)))), 0),"Not required") -> 12868.35 | P44: 0 | Q44: 0 | R44: 0 | S44: 0 | W44: T1 | X44: 21415 | Y44: Berekum
A45: =IF(INTRO!$E$34<>0,INTRO!$E$34,"") -> Ghana | B45: Brong-Ahafo | C45: Dormaa Municipal | D45: 137654 | E45: =IF(INTRO!$E$48="","",ROUND($D45*INTRO!$E$48,0)) -> 14867 | F45: =IF(INTRO!$E$49="","",ROUND($D45*INTRO!$E$49,0)) -> 33725 | G45: =IF(INTRO!$E$50="","",ROUND($D45*INTRO!$E$50,0)) -> 84933 | H45: 0 | I45: 0 | J45: 2 | K45: 1 | L45: =IF(INTRO!$E$38="Endemic", IF($H45>0, IF($H45=4,"Unknown", IF($H45=99,"Stopped", $D45)), 0),"Not required") -> 0 | M45: 0 | N45: =IF(INTRO!$E$42="Endemic", IF(AND($J45>1,$J45<5), IF($J45=4, "Unknown", E45+F45), 0),"Not required") -> 48592 | O45: =IF(INTRO!$E$44="Endemic", IF(AND($K45>0,$K45<5), IF($K45=4,"Unknown", IF($K45=1, $F45*0.33, IF($K45=2, $F45*0.5+$G45*0.2, SUM(F45:G45)))), 0),"Not required") -> 11129.25 | P45: 0 | Q45: 0 | R45: 0 | S45: 0 | W45: T1 | X45: 21417 | Y45: Dormaa Municipal
A46: =IF(INTRO!$E$34<>0,INTRO!$E$34,"") -> Ghana | B46: Brong-Ahafo | C46: Dormaa West | D46: 58541 | E46: =IF(INTRO!$E$48="","",ROUND($D46*INTRO!$E$48,0)) -> 6322 | F46: =IF(INTRO!$E$49="","",ROUND($D46*INTRO!$E$49,0)) -> 14343 | G46: =IF(INTRO!$E$50="","",ROUND($D46*INTRO!$E$50,0)) -> 36120 | H46: 0 | I46: 0 | J46: 2 | K46: 1 | L46: =IF(INTRO!$E$38="Endemic", IF($H46>0, IF($H46=4,"Unknown", IF($H46=99,"Stopped", $D46)), 0),"Not required") -> 0 | M46: 0 | N46: =IF(INTRO!$E$42="Endemic", IF(AND($J46>1,$J46<5), IF($J46=4, "Unknown", E46+F46), 0),"Not required") -> 20665 | O46: =IF(INTRO!$E$44="Endemic", IF(AND($K46>0,$K46<5), IF($K46=4,"Unknown", IF($K46=1, $F46*0.33, IF($K46=2, $F46*0.5+$G46*0.2, SUM(F46:G46)))), 0),"Not required") -> 4733.19 | P46: 0 | Q46: 0 | R46: 0 | S46: 0 | W46: T1 | X46: 21418 | Y46: Dormaa West
A47: =IF(INTRO!$E$34<>0,INTRO!$E$34,"") -> Ghana | B47: Brong-Ahafo | C47: Dormaa East | D47: 62461 | E47: =IF(INTRO!$E$48="","",ROUND($D47*INTRO!$E$48,0)) -> 6746 | F47: =IF(INTRO!$E$49="","",ROUND($D47*INTRO!$E$49,0)) -> 15303 | G47: =IF(INTRO!$E$50="","",ROUND($D47*INTRO!$E$50,0)) -> 38538 | H47: 0 | I47: 0 | J47: 2 | K47: 1 | L47: =IF(INTRO!$E$38="Endemic", IF($H47>0, IF($H47=4,"Unknown", IF($H47=99,"Stopped", $D47)), 0),"Not required") -> 0 | M47: 0 | N47: =IF(INTRO!$E$42="Endemic", IF(AND($J47>1,$J47<5), IF($J47=4, "Unknown", E47+F47), 0),"Not required") -> 22049 | O47: =IF(INTRO!$E$44="Endemic", IF(AND($K47>0,$K47<5), IF($K47=4,"Unknown", IF($K47=1, $F47*0.33, IF($K47=2, $F47*0.5+$G47*0.2, SUM(F47:G47)))), 0),"Not required") -> 5049.99 | P47: 0 | Q47: 0 | R47: 0 | S47: 0 | W47: T1 | X47: 21416 | Y47: Dormaa East
A48: =IF(INTRO!$E$34<>0,INTRO!$E$34,"") -> Ghana | B48: Brong-Ahafo | C48: Jaman North | D48: 101983 | E48: =IF(INTRO!$E$48="","",ROUND($D48*INTRO!$E$48,0)) -> 11014 | F48: =IF(INTRO!$E$49="","",ROUND($D48*INTRO!$E$49,0)) -> 24986 | G48: =IF(INTRO!$E$50="","",ROUND($D48*INTRO!$E$50,0)) -> 62924 | H48: 0 | I48: 0 | J48: 2 | K48: 2 | L48: =IF(INTRO!$E$38="Endemic", IF($H48>0, IF($H48=4,"Unknown", IF($H48=99,"Stopped", $D48)), 0),"Not required") -> 0 | M48: 0 | N48: =IF(INTRO!$E$42="Endemic", IF(AND($J48>1,$J48<5), IF($J48=4, "Unknown", E48+F48), 0),"Not required") -> 36000 | O48: =IF(INTRO!$E$44="Endemic", IF(AND($K48>0,$K48<5), IF($K48=4,"Unknown", IF($K48=1, $F48*0.33, IF($K48=2, $F48*0.5+$G48*0.2, SUM(F48:G48)))), 0),"Not required") -> 25077.8 | P48: 0 | Q48: 0 | R48: 1 | S48: 1 | U48: T1 (PZQ+ALB/MBD) | W48: T1 | X48: 21419 | Y48: Jaman North
A49: =IF(INTRO!$E$34<>0,INTRO!$E$34,"") -> Ghana | B49: Brong-Ahafo | C49: Jaman south | D49: 113757 | E49: =IF(INTRO!$E$48="","",ROUND($D49*INTRO!$E$48,0)) -> 12286 | F49: =IF(INTRO!$E$49="","",ROUND($D49*INTRO!$E$49,0)) -> 27870 | G49: =IF(INTRO!$E$50="","",ROUND($D49*INTRO!$E$50,0)) -> 70188 | H49: 0 | I49: 0 | J49: 2 | K49: 1 | L49: =IF(INTRO!$E$38="Endemic", IF($H49>0, IF($H49=4,"Unknown", IF($H49=99,"Stopped", $D49)), 0),"Not required") -> 0 | M49: 0 | N49: =IF(INTRO!$E$42="Endemic", IF(AND($J49>1,$J49<5), IF($J49=4, "Unknown", E49+F49), 0),"Not required") -> 40156 | O49: =IF(INTRO!$E$44="Endemic", IF(AND($K49>0,$K49<5), IF($K49=4,"Unknown", IF($K49=1, $F49*0.33, IF($K49=2, $F49*0.5+$G49*0.2, SUM(F49:G49)))), 0),"Not required") -> 9197.1 | P49: 0 | Q49: 0 | R49: 0 | S49: 0 | W49: T1 | X49: 21420 | Y49: Jaman south
A50: =IF(INTRO!$E$34<>0,INTRO!$E$34,"") -> Ghana | B50: Brong-Ahafo | C50: Kintampo North | D50: 117234 | E50: =IF(INTRO!$E$48="","",ROUND($D50*INTRO!$E$48,0)) -> 12661 | F50: =IF(INTRO!$E$49="","",ROUND($D50*INTRO!$E$49,0)) -> 28722 | G50: =IF(INTRO!$E$50="","",ROUND($D50*INTRO!$E$50,0)) -> 72333 | H50: 0 | I50: 1 | J50: 2 | K50: 2 | L50: =IF(INTRO!$E$38="Endemic", IF($H50>0, IF($H50=4,"Unknown", IF($H50=99,"Stopped", $D50)), 0),"Not required") -> 0 | M50: 56336.9151 | N50: =IF(INTRO!$E$42="Endemic", IF(AND($J50>1,$J50<5), IF($J50=4, "Unknown", E50+F50), 0),"Not required") -> 41383 | O50: =IF(INTRO!$E$44="Endemic", IF(AND($K50>0,$K50<5), IF($K50=4,"Unknown", IF($K50=1, $F50*0.33, IF($K50=2, $F50*0.5+$G50*0.2, SUM(F50:G50)))), 0),"Not required") -> 28827.6 | P50: 0 | Q50: 2 | R50: 1 | S50: 1 | T50: MDA3 (IVM) | U50: T1 (PZQ+ALB/MBD) | V50: MDA 1 | W50: T2 | X50: 21421 | Y50: Kintampo North
A51: =IF(INTRO!$E$34<>0,INTRO!$E$34,"") -> Ghana | B51: Brong-Ahafo | C51: Kintampo South | D51: 99454 | E51: =IF(INTRO!$E$48="","",ROUND($D51*INTRO!$E$48,0)) -> 10741 | F51: =IF(INTRO!$E$49="","",ROUND($D51*INTRO!$E$49,0)) -> 24366 | G51: =IF(INTRO!$E$50="","",ROUND($D51*INTRO!$E$50,0)) -> 61363 | H51: 0 | I51: 1 | J51: 2 | K51: 2 | L51: =IF(INTRO!$E$38="Endemic", IF($H51>0, IF($H51=4,"Unknown", IF($H51=99,"Stopped", $D51)), 0),"Not required") -> 0 | M51: 65994.1166 | N51: =IF(INTRO!$E$42="Endemic", IF(AND($J51>1,$J51<5), IF($J51=4, "Unknown", E51+F51), 0),"Not required") -> 35107 | O51: =IF(INTRO!$E$44="Endemic", IF(AND($K51>0,$K51<5), IF($K51=4,"Unknown", IF($K51=1, $F51*0.33, IF($K51=2, $F51*0.5+$G51*0.2, SUM(F51:G51)))), 0),"Not required") -> 24455.6 | P51: 0 | Q51: 2 | R51: 1 | S51: 1 | T51: MDA3 (IVM) | U51: T1 (PZQ+ALB/MBD) | V51: MDA 1 | W51: T2 | X51: 21422 | Y51: Kintampo South
A52: =IF(INTRO!$E$34<>0,INTRO!$E$34,"") -> Ghana | B52: Brong-Ahafo | C52: Nkoranza North | D52: 80908 | E52: =IF(INTRO!$E$48="","",ROUND($D52*INTRO!$E$48,0)) -> 8738 | F52: =IF(INTRO!$E$49="","",ROUND($D52*INTRO!$E$49,0)) -> 19822 | G52: =IF(INTRO!$E$50="","",ROUND($D52*INTRO!$E$50,0)) -> 49920 | H52: 0 | I52: 1 | J52: 2 | K52: 2 | L52: =IF(INTRO!$E$38="Endemic", IF($H52>0, IF($H52=4,"Unknown", IF($H52=99,"Stopped", $D52)), 0),"Not required") -> 0 | M52: 67925.5569 | N52: =IF(INTRO!$E$42="Endemic", IF(AND($J52>1,$J52<5), IF($J52=4, "Unknown", E52+F52), 0),"Not required") -> 28560 | O52: =IF(INTRO!$E$44="Endemic", IF(AND($K52>0,$K52<5), IF($K52=4,"Unknown", IF($K52=1, $F52*0.33, IF($K52=2, $F52*0.5+$G52*0.2, SUM(F52:G52)))), 0),"Not required") -> 19895 | P52: 0 | Q52: 2 | R52: 1 | S52: 1 | T52: MDA3 (IVM) | U52: T1 (PZQ+ALB/MBD) | V52: MDA 1 | W52: T2 | X52: 21423 | Y52: Nkoranza North
A53: =IF(INTRO!$E$34<>0,INTRO!$E$34,"") -> Ghana | B53: Brong-Ahafo | C53: Nkoranza South | D53: 123924 | E53: =IF(INTRO!$E$48="","",ROUND($D53*INTRO!$E$48,0)) -> 13384 | F53: =IF(INTRO!$E$49="","",ROUND($D53*INTRO!$E$49,0)) -> 30361 | G53: =IF(INTRO!$E$50="","",ROUND($D53*INTRO!$E$50,0)) -> 76461 | H53: 0 | I53: 1 | J53: 2 | K53: 2 | L53: =IF(INTRO!$E$38="Endemic", IF($H53>0, IF($H53=4,"Unknown", IF($H53=99,"Stopped", $D53)), 0),"Not required") -> 0 | M53: 98451 | N53: =IF(INTRO!$E$42="Endemic", IF(AND($J53>1,$J53<5), IF($J53=4, "Unknown", E53+F53), 0),"Not required") -> 43745 | O53: =IF(INTRO!$E$44="Endemic", IF(AND($K53>0,$K53<5), IF($K53=4,"Unknown", IF($K53=1, $F53*0.33, IF($K53=2, $F53*0.5+$G53*0.2, SUM(F53:G53)))), 0),"Not required") -> 30472.7 | P53: 0 | Q53: 2 | R53: 1 | S53: 1 | T53: MDA3 (IVM) | U53: T1 (PZQ+ALB/MBD) | V53: MDA 1 | W53: T2 | X53: 21424 | Y53: Nkoranza South
A54: =IF(INTRO!$E$34<>0,INTRO!$E$34,"") -> Ghana | B54: Brong-Ahafo | C54: Pru | D54: 158695 | E54: =IF(INTRO!$E$48="","",ROUND($D54*INTRO!$E$48,0)) -> 17139 | F54: =IF(INTRO!$E$49="","",ROUND($D54*INTRO!$E$49,0)) -> 38880 | G54: =IF(INTRO!$E$50="","",ROUND($D54*INTRO!$E$50,0)) -> 97915 | H54: 0 | I54: 1 | J54: 2 | K54: 3 | L54: =IF(INTRO!$E$38="Endemic", IF($H54>0, IF($H54=4,"Unknown", IF($H54=99,"Stopped", $D54)), 0),"Not required") -> 0 | M54: 136795 | N54: =IF(INTRO!$E$42="Endemic", IF(AND($J54>1,$J54<5), IF($J54=4, "Unknown", E54+F54), 0),"Not required") -> 56019 | O54: =IF(INTRO!$E$44="Endemic", IF(AND($K54>0,$K54<5), IF($K54=4,"Unknown", IF($K54=1, $F54*0.33, IF($K54=2, $F54*0.5+$G54*0.2, SUM(F54:G54)))), 0),"Not required") -> 136795 | P54: 0 | Q54: 2 | R54: 1 | S54: 1 | T54: MDA3 (IVM) | U54: T1 (PZQ+ALB/MBD) | V54: MDA 1 | W54: T2 | X54: 21425 | Y54: Pru
A55: =IF(INTRO!$E$34<>0,INTRO!$E$34,"") -> Ghana | B55: Brong-Ahafo | C55: Sene East | D55: 74297 | E55: =IF(INTRO!$E$48="","",ROUND($D55*INTRO!$E$48,0)) -> 8024 | F55: =IF(INTRO!$E$49="","",ROUND($D55*INTRO!$E$49,0)) -> 18203 | G55: =IF(INTRO!$E$50="","",ROUND($D55*INTRO!$E$50,0)) -> 45841 | H55: 0 | I55: 1 | J55: 2 | K55: 3 | L55: =IF(INTRO!$E$38="Endemic", IF($H55>0, IF($H55=4,"Unknown", IF($H55=99,"Stopped", $D55)), 0),"Not required") -> 0 | M55: 42524.37795 | N55: =IF(INTRO!$E$42="Endemic", IF(AND($J55>1,$J55<5), IF($J55=4, "Unknown", E55+F55), 0),"Not required") -> 26227 | O55: =IF(INTRO!$E$44="Endemic", IF(AND($K55>0,$K55<5), IF($K55=4,"Unknown", IF($K55=1, $F55*0.33, IF($K55=2, $F55*0.5+$G55*0.2, SUM(F55:G55)))), 0),"Not required") -> 64044 | P55: 0 | Q55: 1 | R55: 1 | S55: 1 | T55: MDA3 (IVM) | U55: T1 (PZQ+ALB/MBD) | V55: MDA 1 | W55: T2 | X55: 21427 | Y55: Sene East
A56: =IF(INTRO!$E$34<>0,INTRO!$E$34,"") -> Ghana | B56: Brong-Ahafo | C56: Sene West | D56: 71581 | E56: =IF(INTRO!$E$48="","",ROUND($D56*INTRO!$E$48,0)) -> 7731 | F56: =IF(INTRO!$E$49="","",ROUND($D56*INTRO!$E$49,0)) -> 17537 | G56: =IF(INTRO!$E$50="","",ROUND($D56*INTRO!$E$50,0)) -> 44165 | H56: 0 | I56: 1 | J56: 2 | K56: 3 | L56: =IF(INTRO!$E$38="Endemic", IF($H56>0, IF($H56=4,"Unknown", IF($H56=99,"Stopped", $D56)), 0),"Not required") -> 0 | M56: 54781 | N56: =IF(INTRO!$E$42="Endemic", IF(AND($J56>1,$J56<5), IF($J56=4, "Unknown", E56+F56), 0),"Not required") -> 25268 | O56: =IF(INTRO!$E$44="Endemic", IF(AND($K56>0,$K56<5), IF($K56=4,"Unknown", IF($K56=1, $F56*0.33, IF($K56=2, $F56*0.5+$G56*0.2, SUM(F56:G56)))), 0),"Not required") -> 61702 | P56: 0 | Q56: 1 | R56: 1 | S56: 1 | T56: MDA3 (IVM) | U56: T1 (PZQ+ALB/MBD) | V56: MDA 1 | W56: T2 | X56: 21428 | Y56: Sene West
A57: =IF(INTRO!$E$34<>0,INTRO!$E$34,"") -> Ghana | B57: Brong-Ahafo | C57: Sunyani Municipal | D57: 151299 | E57: =IF(INTRO!$E$48="","",ROUND($D57*INTRO!$E$48,0)) -> 16340 | F57: =IF(INTRO!$E$49="","",ROUND($D57*INTRO!$E$49,0)) -> 37068 | G57: =IF(INTRO!$E$50="","",ROUND($D57*INTRO!$E$50,0)) -> 93351 | H57: 1 | I57: 0 | J57: 2 | K57: 2 | L57: =IF(INTRO!$E$38="Endemic", IF($H57>0, IF($H57=4,"Unknown", IF($H57=99,"Stopped", $D57)), 0),"Not required") -> 151299 | M57: 0 | N57: =IF(INTRO!$E$42="Endemic", IF(AND($J57>1,$J57<5), IF($J57=4, "Unknown", E57+F57), 0),"Not required") -> 53408 | O57: =IF(INTRO!$E$44="Endemic", IF(AND($K57>0,$K57<5), IF($K57=4,"Unknown", IF($K57=1, $F57*0.33, IF($K57=2, $F57*0.5+$G57*0.2, SUM(F57:G57)))), 0),"Not required") -> 37204.2 | P57: 1 | Q57: 0 | R57: 1 | S57: 1 | T57: MDA1 (IVM+ALB) | U57: T1 (PZQ+ALB/MBD) | V57: MDA 1 | W57: T2 | X57: 21429 | Y57: Sunyani Municipal
A58: =IF(INTRO!$E$34<>0,INTRO!$E$34,"") -> Ghana | B58: Brong-Ahafo | C58: Sunyani West | D58: 104700 | E58: =IF(INTRO!$E$48="","",ROUND($D58*INTRO!$E$48,0)) -> 11308 | F58: =IF(INTRO!$E$49="","",ROUND($D58*INTRO!$E$49,0)) -> 25652 | G58: =IF(INTRO!$E$50="","",ROUND($D58*INTRO!$E$50,0)) -> 64600 | H58: 1 | I58: 1 | J58: 2 | K58: 1 | L58: =IF(INTRO!$E$38="Endemic", IF($H58>0, IF($H58=4,"Unknown", IF($H58=99,"Stopped", $D58)), 0),"Not required") -> 104700 | M58: 23541 | N58: =IF(INTRO!$E$42="Endemic", IF(AND($J58>1,$J58<5), IF($J58=4, "Unknown", E58+F58), 0),"Not required") -> 36960 | O58: =IF(INTRO!$E$44="Endemic", IF(AND($K58>0,$K58<5), IF($K58=4,"Unknown", IF($K58=1, $F58*0.33, IF($K58=2, $F58*0.5+$G58*0.2, SUM(F58:G58)))), 0),"Not required") -> 8465.16 | P58: 1 | Q58: 1 | R58: 0 | S58: 0 | T58: MDA1 (IVM+ALB) | U58: MDA3 (IVM) | V58: MDA 1 | W58: T2 | X58: 21430 | Y58: Sunyani West
A59: =IF(INTRO!$E$34<>0,INTRO!$E$34,"") -> Ghana | B59: Brong-Ahafo | C59: Tain | D59: 108178 | E59: =IF(INTRO!$E$48="","",ROUND($D59*INTRO!$E$48,0)) -> 11683 | F59: =IF(INTRO!$E$49="","",ROUND($D59*INTRO!$E$49,0)) -> 26504 | G59: =IF(INTRO!$E$50="","",ROUND($D59*INTRO!$E$50,0)) -> 66746 | H59: 0 | I59: 1 | J59: 2 | K59: 1 | L59: =IF(INTRO!$E$38="Endemic", IF($H59>0, IF($H59=4,"Unknown", IF($H59=99,"Stopped", $D59)), 0),"Not required") -> 0 | M59: 46818.43095 | N59: =IF(INTRO!$E$42="Endemic", IF(AND($J59>1,$J59<5), IF($J59=4, "Unknown", E59+F59), 0),"Not required") -> 38187 | O59: =IF(INTRO!$E$44="Endemic", IF(AND($K59>0,$K59<5), IF($K59=4,"Unknown", IF($K59=1, $F59*0.33, IF($K59=2, $F59*0.5+$G59*0.2, SUM(F59:G59)))), 0),"Not required") -> 8746.32 | P59: 0 | Q59: 2 | R59: 0 | S59: 0 | T59: MDA3 (IVM) | V59: MDA 1 | W59: T2 | X59: 21431 | Y59: Tain
A60: =IF(INTRO!$E$34<>0,INTRO!$E$34,"") -> Ghana | B60: Brong-Ahafo | C60: Banda | D60: 24903 | E60: =IF(INTRO!$E$48="","",ROUND($D60*INTRO!$E$48,0)) -> 2690 | F60: =IF(INTRO!$E$49="","",ROUND($D60*INTRO!$E$49,0)) -> 6101 | G60: =IF(INTRO!$E$50="","",ROUND($D60*INTRO!$E$50,0)) -> 15365 | H60: 0 | I60: 1 | J60: 2 | K60: 3 | L60: =IF(INTRO!$E$38="Endemic", IF($H60>0, IF($H60=4,"Unknown", IF($H60=99,"Stopped", $D60)), 0),"Not required") -> 0 | M60: 21466 | N60: =IF(INTRO!$E$42="Endemic", IF(AND($J60>1,$J60<5), IF($J60=4, "Unknown", E60+F60), 0),"Not required") -> 8791 | O60: =IF(INTRO!$E$44="Endemic", IF(AND($K60>0,$K60<5), IF($K60=4,"Unknown", IF($K60=1, $F60*0.33, IF($K60=2, $F60*0.5+$G60*0.2, SUM(F60:G60)))), 0),"Not required") -> 21466 | P60: 0 | Q60: 2 | R60: 1 | S60: 1 | T60: MDA3 (IVM) | U60: T1 (PZQ+ALB/MBD) | V60: MDA 1 | W60: T2 | X60: 21414 | Y60: Banda
A61: =IF(INTRO!$E$34<>0,INTRO!$E$34,"") -> Ghana | B61: Brong-Ahafo | C61: Tano North | D61: 98193 | E61: =IF(INTRO!$E$48="","",ROUND($D61*INTRO!$E$48,0)) -> 10605 | F61: =IF(INTRO!$E$49="","",ROUND($D61*INTRO!$E$49,0)) -> 24057 | G61: =IF(INTRO!$E$50="","",ROUND($D61*INTRO!$E$50,0)) -> 60585 | H61: 0 | I61: 1 | J61: 2 | K61: 2 | L61: =IF(INTRO!$E$38="Endemic", IF($H61>0, IF($H61=4,"Unknown", IF($H61=99,"Stopped", $D61)), 0),"Not required") -> 0 | M61: 80448.11105 | N61: =IF(INTRO!$E$42="Endemic", IF(AND($J61>1,$J61<5), IF($J61=4, "Unknown", E61+F61), 0),"Not required") -> 34662 | O61: =IF(INTRO!$E$44="Endemic", IF(AND($K61>0,$K61<5), IF($K61=4,"Unknown", IF($K61=1, $F61*0.33, IF($K61=2, $F61*0.5+$G61*0.2, SUM(F61:G61)))), 0),"Not required") -> 24145.5 | P61: 0 | Q61: 1 | R61: 1 | S61: 1 | T61: MDA3 (IVM) | U61: T1 (PZQ+ALB/MBD) | V61: MDA 1 | W61: T2 | X61: 21432 | Y61: Tano North
A62: =IF(INTRO!$E$34<>0,INTRO!$E$34,"") -> Ghana | B62: Brong-Ahafo | C62: Tano South | D62: 95930 | E62: =IF(INTRO!$E$48="","",ROUND($D62*INTRO!$E$48,0)) -> 10360 | F62: =IF(INTRO!$E$49="","",ROUND($D62*INTRO!$E$49,0)) -> 23503 | G62: =IF(INTRO!$E$50="","",ROUND($D62*INTRO!$E$50,0)) -> 59189 | H62: 0 | I62: 1 | J62: 2 | K62: 2 | L62: =IF(INTRO!$E$38="Endemic", IF($H62>0, IF($H62=4,"Unknown", IF($H62=99,"Stopped", $D62)), 0),"Not required") -> 0 | M62: 19422.1961 | N62: =IF(INTRO!$E$42="Endemic", IF(AND($J62>1,$J62<5), IF($J62=4, "Unknown", E62+F62), 0),"Not required") -> 33863 | O62: =IF(INTRO!$E$44="Endemic", IF(AND($K62>0,$K62<5), IF($K62=4,"Unknown", IF($K62=1, $F62*0.33, IF($K62=2, $F62*0.5+$G62*0.2, SUM(F62:G62)))), 0),"Not required") -> 23589.3 | P62: 0 | Q62: 0 | R62: 1 | S62: 1 | T62: MDA3 (IVM) | U62: T1 (PZQ+ALB/MBD) | V62: MDA 1 | W62: T2 | X62: 21433 | Y62: Tano South
A63: =IF(INTRO!$E$34<>0,INTRO!$E$34,"") -> Ghana | B63: Brong-Ahafo | C63: Techiman Municipal | D63: 181459 | E63: =IF(INTRO!$E$48="","",ROUND($D63*INTRO!$E$48,0)) -> 19598 | F63: =IF(INTRO!$E$49="","",ROUND($D63*INTRO!$E$49,0)) -> 44457 | G63: =IF(INTRO!$E$50="","",ROUND($D63*INTRO!$E$50,0)) -> 111960 | H63: 99 | I63: 0 | J63: 2 | K63: 2 | L63: =IF(INTRO!$E$38="Endemic", IF($H63>0, IF($H63=4,"Unknown", IF($H63=99,"Stopped", $D63)), 0),"Not required") -> Stopped | M63: 0 | N63: =IF(INTRO!$E$42="Endemic", IF(AND($J63>1,$J63<5), IF($J63=4, "Unknown", E63+F63), 0),"Not required") -> 64055 | O63: =IF(INTRO!$E$44="Endemic", IF(AND($K63>0,$K63<5), IF($K63=4,"Unknown", IF($K63=1, $F63*0.33, IF($K63=2, $F63*0.5+$G63*0.2, SUM(F63:G63)))), 0),"Not required") -> 44620.5 | P63: 0 | Q63: 0 | R63: 1 | S63: 1 | U63: T1 (PZQ+ALB/MBD) | W63: T1 | X63: 21434 | Y63: Techiman Municipal
A64: =IF(INTRO!$E$34<>0,INTRO!$E$34,"") -> Ghana | B64: Brong-Ahafo | C64: Techiman North | D64: 72526 | E64: =IF(INTRO!$E$48="","",ROUND($D64*INTRO!$E$48,0)) -> 7833 | F64: =IF(INTRO!$E$49="","",ROUND($D64*INTRO!$E$49,0)) -> 17769 | G64: =IF(INTRO!$E$50="","",ROUND($D64*INTRO!$E$50,0)) -> 44749 | H64: 99 | I64: 1 | J64: 2 | K64: 2 | L64: =IF(INTRO!$E$38="Endemic", IF($H64>0, IF($H64=4,"Unknown", IF($H64=99,"Stopped", $D64)), 0),"Not required") -> Stopped | M64: 8607.95 | N64: =IF(INTRO!$E$42="Endemic", IF(AND($J64>1,$J64<5), IF($J64=4, "Unknown", E64+F64), 0),"Not required") -> 25602 | O64: =IF(INTRO!$E$44="Endemic", IF(AND($K64>0,$K64<5), IF($K64=4,"Unknown", IF($K64=1, $F64*0.33, IF($K64=2, $F64*0.5+$G64*0.2, SUM(F64:G64)))), 0),"Not required") -> 17834.3 | P64: 0 | Q64: 2 | R64: 1 | S64: 1 | T64: MDA3 (IVM) | U64: T1 (PZQ+ALB/MBD) | V64: MDA 1 | W64: T2 | X64: 21435 | Y64: Techiman North
A65: =IF(INTRO!$E$34<>0,INTRO!$E$34,"") -> Ghana | B65: Brong-Ahafo | C65: Wenchi Municipal | D65: 110184 | E65: =IF(INTRO!$E$48="","",ROUND($D65*INTRO!$E$48,0)) -> 11900 | F65: =IF(INTRO!$E$49="","",ROUND($D65*INTRO!$E$49,0)) -> 26995 | G65: =IF(INTRO!$E$50="","",ROUND($D65*INTRO!$E$50,0)) -> 67984 | H65: 0 | I65: 1 | J65: 2 | K65: 1 | L65: =IF(INTRO!$E$38="Endemic", IF($H65>0, IF($H65=4,"Unknown", IF($H65=99,"Stopped", $D65)), 0),"Not required") -> 0 | M65: 76548 | N65: =IF(INTRO!$E$42="Endemic", IF(AND($J65>1,$J65<5), IF($J65=4, "Unknown", E65+F65), 0),"Not required") -> 38895 | O65: =IF(INTRO!$E$44="Endemic", IF(AND($K65>0,$K65<5), IF($K65=4,"Unknown", IF($K65=1, $F65*0.33, IF($K65=2, $F65*0.5+$G65*0.2, SUM(F65:G65)))), 0),"Not required") -> 8908.35 | P65: 0 | Q65: 2 | R65: 1 | S65: 1 | T65: MDA3 (IVM) | U65: T1 (PZQ+ALB/MBD) | V65: MDA 1 | W65: T2 | X65: 21436 | Y65: Wenchi Municipal
A66: =IF(INTRO!$E$34<>0,INTRO!$E$34,"") -> Ghana | B66: Central | C66: Abura-Asebu-Kwamankese | D66: 153136 | E66: =IF(INTRO!$E$48="","",ROUND($D66*INTRO!$E$48,0)) -> 16539 | F66: =IF(INTRO!$E$49="","",ROUND($D66*INTRO!$E$49,0)) -> 37518 | G66: =IF(INTRO!$E$50="","",ROUND($D66*INTRO!$E$50,0)) -> 94485 | H66: 99 | I66: 0 | J66: 2 | K66: 2 | L66: =IF(INTRO!$E$38="Endemic", IF($H66>0, IF($H66=4,"Unknown", IF($H66=99,"Stopped", $D66)), 0),"Not required") -> Stopped | M66: 0 | N66: =IF(INTRO!$E$42="Endemic", IF(AND($J66>1,$J66<5), IF($J66=4, "Unknown", E66+F66), 0),"Not required") -> 54057 | O66: =IF(INTRO!$E$44="Endemic", IF(AND($K66>0,$K66<5), IF($K66=4,"Unknown", IF($K66=1, $F66*0.33, IF($K66=2, $F66*0.5+$G66*0.2, SUM(F66:G66)))), 0),"Not required") -> 37656 | P66: 0 | Q66: 0 | R66: 1 | S66: 1 | U66: T1 (PZQ+ALB/MBD) | W66: T1 | X66: 21437 | Y66: Abura-Asebu-Kwamankese
A67: =IF(INTRO!$E$34<>0,INTRO!$E$34,"") -> Ghana | B67: Central | C67: Agona East | D67: 112279 | E67: =IF(INTRO!$E$48="","",ROUND($D67*INTRO!$E$48,0)) -> 12126 | F67: =IF(INTRO!$E$49="","",ROUND($D67*INTRO!$E$49,0)) -> 27508 | G67: =IF(INTRO!$E$50="","",ROUND($D67*INTRO!$E$50,0)) -> 69276 | H67: 99 | I67: 0 | J67: 2 | K67: 2 | L67: =IF(INTRO!$E$38="Endemic", IF($H67>0, IF($H67=4,"Unknown", IF($H67=99,"Stopped", $D67)), 0),"Not required") -> Stopped | M67: 0 | N67: =IF(INTRO!$E$42="Endemic", IF(AND($J67>1,$J67<5), IF($J67=4, "Unknown", E67+F67), 0),"Not required") -> 39634 | O67: =IF(INTRO!$E$44="Endemic", IF(AND($K67>0,$K67<5), IF($K67=4,"Unknown", IF($K67=1, $F67*0.33, IF($K67=2, $F67*0.5+$G67*0.2, SUM(F67:G67)))), 0),"Not required") -> 27609.2 | P67: 0 | Q67: 0 | R67: 1 | S67: 1 | U67: T1 (PZQ+ALB/MBD) | W67: T1 | X67: 21438 | Y67: Agona East
A68: =IF(INTRO!$E$34<>0,INTRO!$E$34,"") -> Ghana | B68: Central | C68: Agona West | D68: 150748 | E68: =IF(INTRO!$E$48="","",ROUND($D68*INTRO!$E$48,0)) -> 16281 | F68: =IF(INTRO!$E$49="","",ROUND($D68*INTRO!$E$49,0)) -> 36933 | G68: =IF(INTRO!$E$50="","",ROUND($D68*INTRO!$E$50,0)) -> 93012 | H68: 99 | I68: 0 | J68: 2 | K68: 2 | L68: =IF(INTRO!$E$38="Endemic", IF($H68>0, IF($H68=4,"Unknown", IF($H68=99,"Stopped", $D68)), 0),"Not required") -> Stopped | M68: 0 | N68: =IF(INTRO!$E$42="Endemic", IF(AND($J68>1,$J68<5), IF($J68=4, "Unknown", E68+F68), 0),"Not required") -> 53214 | O68: =IF(INTRO!$E$44="Endemic", IF(AND($K68>0,$K68<5), IF($K68=4,"Unknown", IF($K68=1, $F68*0.33, IF($K68=2, $F68*0.5+$G68*0.2, SUM(F68:G68)))), 0),"Not required") -> 37068.9 | P68: 0 | Q68: 0 | R68: 1 | S68: 1 | U68: T1 (PZQ+ALB/MBD) | W68: T1 | X68: 21439 | Y68: Agona West
A69: =IF(INTRO!$E$34<>0,INTRO!$E$34,"") -> Ghana | B69: Central | C69: Ajumako-Enyan-Essiam | D69: 180396 | E69: =IF(INTRO!$E$48="","",ROUND($D69*INTRO!$E$48,0)) -> 19483 | F69: =IF(INTRO!$E$49="","",ROUND($D69*INTRO!$E$49,0)) -> 44197 | G69: =IF(INTRO!$E$50="","",ROUND($D69*INTRO!$E$50,0)) -> 111304 | H69: 99 | I69: 0 | J69: 2 | K69: 2 | L69: =IF(INTRO!$E$38="Endemic", IF($H69>0, IF($H69=4,"Unknown", IF($H69=99,"Stopped", $D69)), 0),"Not required") -> Stopped | M69: 0 | N69: =IF(INTRO!$E$42="Endemic", IF(AND($J69>1,$J69<5), IF($J69=4, "Unknown", E69+F69), 0),"Not required") -> 63680 | O69: =IF(INTRO!$E$44="Endemic", IF(AND($K69>0,$K69<5), IF($K69=4,"Unknown", IF($K69=1, $F69*0.33, IF($K69=2, $F69*0.5+$G69*0.2, SUM(F69:G69)))), 0),"Not required") -> 44359.3 | P69: 0 | Q69: 0 | R69: 1 | S69: 1 | U69: T1 (PZQ+ALB/MBD) | W69: T1 | X69: 21440 | Y69: Ajumako-Enyan-Essiam
A70: =IF(INTRO!$E$34<>0,INTRO!$E$34,"") -> Ghana | B70: Central | C70: Asikuma-Odoben-Brakwa | D70: 147282 | E70: =IF(INTRO!$E$48="","",ROUND($D70*INTRO!$E$48,0)) -> 15906 | F70: =IF(INTRO!$E$49="","",ROUND($D70*INTRO!$E$49,0)) -> 36084 | G70: =IF(INTRO!$E$50="","",ROUND($D70*INTRO!$E$50,0)) -> 90873 | H70: 99 | I70: 0 | J70: 2 | K70: 3 | L70: =IF(INTRO!$E$38="Endemic", IF($H70>0, IF($H70=4,"Unknown", IF($H70=99,"Stopped", $D70)), 0),"Not required") -> Stopped | M70: 0 | N70: =IF(INTRO!$E$42="Endemic", IF(AND($J70>1,$J70<5), IF($J70=4, "Unknown", E70+F70), 0),"Not required") -> 51990 | O70: =IF(INTRO!$E$44="Endemic", IF(AND($K70>0,$K70<5), IF($K70=4,"Unknown", IF($K70=1, $F70*0.33, IF($K70=2, $F70*0.5+$G70*0.2, SUM(F70:G70)))), 0),"Not required") -> 126957 | P70: 0 | Q70: 0 | R70: 1 | S70: 1 | U70: T1 (PZQ+ALB/MBD) | W70: T1 | X70: 21441 | Y70: Asikuma-Odoben-Brakwa
A71: =IF(INTRO!$E$34<>0,INTRO!$E$34,"") -> Ghana | B71: Central | C71: Assin North | D71: 210838 | E71: =IF(INTRO!$E$48="","",ROUND($D71*INTRO!$E$48,0)) -> 22771 | F71: =IF(INTRO!$E$49="","",ROUND($D71*INTRO!$E$49,0)) -> 51655 | G71: =IF(INTRO!$E$50="","",ROUND($D71*INTRO!$E$50,0)) -> 130087 | H71: 99 | I71: 1 | J71: 2 | K71: 3 | L71: =IF(INTRO!$E$38="Endemic", IF($H71>0, IF($H71=4,"Unknown", IF($H71=99,"Stopped", $D71)), 0),"Not required") -> Stopped | M71: 113238.4186 | N71: =IF(INTRO!$E$42="Endemic", IF(AND($J71>1,$J71<5), IF($J71=4, "Unknown", E71+F71), 0),"Not required") -> 74426 | O71: =IF(INTRO!$E$44="Endemic", IF(AND($K71>0,$K71<5), IF($K71=4,"Unknown", IF($K71=1, $F71*0.33, IF($K71=2, $F71*0.5+$G71*0.2, SUM(F71:G71)))), 0),"Not required") -> 181742 | P71: 0 | Q71: 2 | R71: 1 | S71: 1 | T71: MDA3 (IVM) | U71: T1 (PZQ+ALB/MBD) | V71: MDA 1 | W71: T2 | X71: 21442 | Y71: Assin North
A72: =IF(INTRO!$E$34<>0,INTRO!$E$34,"") -> Ghana | B72: Central | C72: Assin South | D72: 136225 | E72: =IF(INTRO!$E$48="","",ROUND($D72*INTRO!$E$48,0)) -> 14712 | F72: =IF(INTRO!$E$49="","",ROUND($D72*INTRO!$E$49,0)) -> 33375 | G72: =IF(INTRO!$E$50="","",ROUND($D72*INTRO!$E$50,0)) -> 84051 | H72: 99 | I72: 1 | J72: 2 | K72: 2 | L72: =IF(INTRO!$E$38="Endemic", IF($H72>0, IF($H72=4,"Unknown", IF($H72=99,"Stopped", $D72)), 0),"Not required") -> Stopped | M72: 80333.24955 | N72: =IF(INTRO!$E$42="Endemic", IF(AND($J72>1,$J72<5), IF($J72=4, "Unknown", E72+F72), 0),"Not required") -> 48087 | O72: =IF(INTRO!$E$44="Endemic", IF(AND($K72>0,$K72<5), IF($K72=4,"Unknown", IF($K72=1, $F72*0.33, IF($K72=2, $F72*0.5+$G72*0.2, SUM(F72:G72)))), 0),"Not required") -> 33497.7 | P72: 0 | Q72: 2 | R72: 1 | S72: 1 | T72: MDA3 (IVM) | U72: T1 (PZQ+ALB/MBD) | V72: MDA 1 | W72: T2 | X72: 21443 | Y72: Assin South
A73: =IF(INTRO!$E$34<>0,INTRO!$E$34,"") -> Ghana | B73: Central | C73: Awutu-Senya West | D73: 114652 | E73: =IF(INTRO!$E$48="","",ROUND($D73*INTRO!$E$48,0)) -> 12382 | F73: =IF(INTRO!$E$49="","",ROUND($D73*INTRO!$E$49,0)) -> 28090 | G73: =IF(INTRO!$E$50="","",ROUND($D73*INTRO!$E$50,0)) -> 70740 | H73: 99 | I73: 0 | J73: 2 | K73: 2 | L73: =IF(INTRO!$E$38="Endemic", IF($H73>0, IF($H73=4,"Unknown", IF($H73=99,"Stopped", $D73)), 0),"Not required") -> Stopped | M73: 0 | N73: =IF(INTRO!$E$42="Endemic", IF(AND($J73>1,$J73<5), IF($J73=4, "Unknown", E73+F73), 0),"Not required") -> 40472 | O73: =IF(INTRO!$E$44="Endemic", IF(AND($K73>0,$K73<5), IF($K73=4,"Unknown", IF($K73=1, $F73*0.33, IF($K73=2, $F73*0.5+$G73*0.2, SUM(F73:G73)))), 0),"Not required") -> 28193 | P73: 0 | Q73: 0 | R73: 1 | S73: 1 | U73: T1 (PZQ+ALB/MBD) | W73: T1 | X73: 21445 | Y73: Awutu-Senya West
A74: =IF(INTRO!$E$34<>0,INTRO!$E$34,"") -> Ghana | B74: Central | C74: Awutu-Senya East | D74: 140571 | E74: =IF(INTRO!$E$48="","",ROUND($D74*INTRO!$E$48,0)) -> 15182 | F74: =IF(INTRO!$E$49="","",ROUND($D74*INTRO!$E$49,0)) -> 34440 | G74: =IF(INTRO!$E$50="","",ROUND($D74*INTRO!$E$50,0)) -> 86732 | H74: 99 | I74: 0 | J74: 2 | K74: 2 | L74: =IF(INTRO!$E$38="Endemic", IF($H74>0, IF($H74=4,"Unknown", IF($H74=99,"Stopped", $D74)), 0),"Not required") -> Stopped | M74: 0 | N74: =IF(INTRO!$E$42="Endemic", IF(AND($J74>1,$J74<5), IF($J74=4, "Unknown", E74+F74), 0),"Not required") -> 49622 | O74: =IF(INTRO!$E$44="Endemic", IF(AND($K74>0,$K74<5), IF($K74=4,"Unknown", IF($K74=1, $F74*0.33, IF($K74=2, $F74*0.5+$G74*0.2, SUM(F74:G74)))), 0),"Not required") -> 34566.4 | P74: 0 | Q74: 0 | R74: 1 | S74: 1 | U74: T1 (PZQ+ALB/MBD) | W74: T1 | X74: 21444 | Y74: Awutu-Senya East
A75: =IF(INTRO!$E$34<>0,INTRO!$E$34,"") -> Ghana | B75: Central | C75: Cape Coast | D75: 222015 | E75: =IF(INTRO!$E$48="","",ROUND($D75*INTRO!$E$48,0)) -> 23978 | F75: =IF(INTRO!$E$49="","",ROUND($D75*INTRO!$E$49,0)) -> 54394 | G75: =IF(INTRO!$E$50="","",ROUND($D75*INTRO!$E$50,0)) -> 136983 | H75: 99 | I75: 0 | J75: 2 | K75: 2 | L75: =IF(INTRO!$E$38="Endemic", IF($H75>0, IF($H75=4,"Unknown", IF($H75=99,"Stopped", $D75)), 0),"Not required") -> Stopped | M75: 0 | N75: =IF(INTRO!$E$42="Endemic", IF(AND($J75>1,$J75<5), IF($J75=4, "Unknown", E75+F75), 0),"Not required") -> 78372 | O75: =IF(INTRO!$E$44="Endemic", IF(AND($K75>0,$K75<5), IF($K75=4,"Unknown", IF($K75=1, $F75*0.33, IF($K75=2, $F75*0.5+$G75*0.2, SUM(F75:G75)))), 0),"Not required") -> 54593.6 | P75: 0 | Q75: 0 | R75: 1 | S75: 1 | U75: T1 (PZQ+ALB/MBD) | W75: T1 | X75: 21446 | Y75: Cape Coast
A76: =IF(INTRO!$E$34<>0,INTRO!$E$34,"") -> Ghana | B76: Central | C76: Efutu | D76: 89642 | E76: =IF(INTRO!$E$48="","",ROUND($D76*INTRO!$E$48,0)) -> 9681 | F76: =IF(INTRO!$E$49="","",ROUND($D76*INTRO!$E$49,0)) -> 21962 | G76: =IF(INTRO!$E$50="","",ROUND($D76*INTRO!$E$50,0)) -> 55309 | H76: 99 | I76: 0 | J76: 2 | K76: 2 | L76: =IF(INTRO!$E$38="Endemic", IF($H76>0, IF($H76=4,"Unknown", IF($H76=99,"Stopped", $D76)), 0),"Not required") -> Stopped | M76: 0 | N76: =IF(INTRO!$E$42="Endemic", IF(AND($J76>1,$J76<5), IF($J76=4, "Unknown", E76+F76), 0),"Not required") -> 31643 | O76: =IF(INTRO!$E$44="Endemic", IF(AND($K76>0,$K76<5), IF($K76=4,"Unknown", IF($K76=1, $F76*0.33, IF($K76=2, $F76*0.5+$G76*0.2, SUM(F76:G76)))), 0),"Not required") -> 22042.8 | P76: 0 | Q76: 0 | R76: 1 | S76: 1 | U76: T1 (PZQ+ALB/MBD) | W76: T1 | X76: 21447 | Y76: Efutu
A77: =IF(INTRO!$E$34<>0,INTRO!$E$34,"") -> Ghana | B77: Central | C77: Gomoa East | D77: 270598 | E77: =IF(INTRO!$E$48="","",ROUND($D77*INTRO!$E$48,0)) -> 29225 | F77: =IF(INTRO!$E$49="","",ROUND($D77*INTRO!$E$49,0)) -> 66297 | G77: =IF(INTRO!$E$50="","",ROUND($D77*INTRO!$E$50,0)) -> 166959 | H77: 99 | I77: 0 | J77: 2 | K77: 2 | L77: =IF(INTRO!$E$38="Endemic", IF($H77>0, IF($H77=4,"Unknown", IF($H77=99,"Stopped", $D77)), 0),"Not required") -> Stopped | M77: 0 | N77: =IF(INTRO!$E$42="Endemic", IF(AND($J77>1,$J77<5), IF($J77=4, "Unknown", E77+F77), 0),"Not required") -> 95522 | O77: =IF(INTRO!$E$44="Endemic", IF(AND($K77>0,$K77<5), IF($K77=4,"Unknown", IF($K77=1, $F77*0.33, IF($K77=2, $F77*0.5+$G77*0.2, SUM(F77:G77)))), 0),"Not required") -> 66540.3 | P77: 0 | Q77: 0 | R77: 1 | S77: 1 | U77: T1 (PZQ+ALB/MBD) | W77: T1 | X77: 21449 | Y77: Gomoa East
A78: =IF(INTRO!$E$34<>0,INTRO!$E$34,"") -> Ghana | B78: Central | C78: Gomoa West | D78: 176663 | E78: =IF(INTRO!$E$48="","",ROUND($D78*INTRO!$E$48,0)) -> 19080 | F78: =IF(INTRO!$E$49="","",ROUND($D78*INTRO!$E$49,0)) -> 43282 | G78: =IF(INTRO!$E$50="","",ROUND($D78*INTRO!$E$50,0)) -> 109001 | H78: 99 | I78: 0 | J78: 2 | K78: 2 | L78: =IF(INTRO!$E$38="Endemic", IF($H78>0, IF($H78=4,"Unknown", IF($H78=99,"Stopped", $D78)), 0),"Not required") -> Stopped | M78: 0 | N78: =IF(INTRO!$E$42="Endemic", IF(AND($J78>1,$J78<5), IF($J78=4, "Unknown", E78+F78), 0),"Not required") -> 62362 | O78: =IF(INTRO!$E$44="Endemic", IF(AND($K78>0,$K78<5), IF($K78=4,"Unknown", IF($K78=1, $F78*0.33, IF($K78=2, $F78*0.5+$G78*0.2, SUM(F78:G78)))), 0),"Not required") -> 43441.2 | P78: 0 | Q78: 0 | R78: 1 | S78: 1 | U78: T1 (PZQ+ALB/MBD) | W78: T1 | X78: 21450 | Y78: Gomoa West
A79: =IF(INTRO!$E$34<>0,INTRO!$E$34,"") -> Ghana | B79: Central | C79: Komenda-Edina-Eguafo-Abirem | D79: 189098 | E79: =IF(INTRO!$E$48="","",ROUND($D79*INTRO!$E$48,0)) -> 20423 | F79: =IF(INTRO!$E$49="","",ROUND($D79*INTRO!$E$49,0)) -> 46329 | G79: =IF(INTRO!$E$50="","",ROUND($D79*INTRO!$E$50,0)) -> 116673 | H79: 99 | I79: 0 | J79: 2 | K79: 2 | L79: =IF(INTRO!$E$38="Endemic", IF($H79>0, IF($H79=4,"Unknown", IF($H79=99,"Stopped", $D79)), 0),"Not required") -> Stopped | M79: 0 | N79: =IF(INTRO!$E$42="Endemic", IF(AND($J79>1,$J79<5), IF($J79=4, "Unknown", E79+F79), 0),"Not required") -> 66752 | O79: =IF(INTRO!$E$44="Endemic", IF(AND($K79>0,$K79<5), IF($K79=4,"Unknown", IF($K79=1, $F79*0.33, IF($K79=2, $F79*0.5+$G79*0.2, SUM(F79:G79)))), 0),"Not required") -> 46499.1 | P79: 0 | Q79: 0 | R79: 1 | S79: 1 | U79: T1 (PZQ+ALB/MBD) | W79: T1 | X79: 21451 | Y79: Komenda-Edina-Eguafo-Abirem
A80: =IF(INTRO!$E$34<>0,INTRO!$E$34,"") -> Ghana | B80: Central | C80: Mfansteman | D80: 188611 | E80: =IF(INTRO!$E$48="","",ROUND($D80*INTRO!$E$48,0)) -> 20370 | F80: =IF(INTRO!$E$49="","",ROUND($D80*INTRO!$E$49,0)) -> 46210 | G80: =IF(INTRO!$E$50="","",ROUND($D80*INTRO!$E$50,0)) -> 116373 | H80: 99 | I80: 0 | J80: 2 | K80: 3 | L80: =IF(INTRO!$E$38="Endemic", IF($H80>0, IF($H80=4,"Unknown", IF($H80=99,"Stopped", $D80)), 0),"Not required") -> Stopped | M80: 0 | N80: =IF(INTRO!$E$42="Endemic", IF(AND($J80>1,$J80<5), IF($J80=4, "Unknown", E80+F80), 0),"Not required") -> 66580 | O80: =IF(INTRO!$E$44="Endemic", IF(AND($K80>0,$K80<5), IF($K80=4,"Unknown", IF($K80=1, $F80*0.33, IF($K80=2, $F80*0.5+$G80*0.2, SUM(F80:G80)))), 0),"Not required") -> 162583 | P80: 0 | Q80: 0 | R80: 1 | S80: 1 | U80: T1 (PZQ+ALB/MBD) | W80: T1 | X80: 21453 | Y80: Mfansteman
A81: =IF(INTRO!$E$34<>0,INTRO!$E$34,"") -> Ghana | B81: Central | C81: Ekumfi | D81: 68255 | E81: =IF(INTRO!$E$48="","",ROUND($D81*INTRO!$E$48,0)) -> 7372 | F81: =IF(INTRO!$E$49="","",ROUND($D81*INTRO!$E$49,0)) -> 16722 | G81: =IF(INTRO!$E$50="","",ROUND($D81*INTRO!$E$50,0)) -> 42113 | H81: 99 | I81: 0 | J81: 2 | K81: 3 | L81: =IF(INTRO!$E$38="Endemic", IF($H81>0, IF($H81=4,"Unknown", IF($H81=99,"Stopped", $D81)), 0),"Not required") -> Stopped | M81: 0 | N81: =IF(INTRO!$E$42="Endemic", IF(AND($J81>1,$J81<5), IF($J81=4, "Unknown", E81+F81), 0),"Not required") -> 24094 | O81: =IF(INTRO!$E$44="Endemic", IF(AND($K81>0,$K81<5), IF($K81=4,"Unknown", IF($K81=1, $F81*0.33, IF($K81=2, $F81*0.5+$G81*0.2, SUM(F81:G81)))), 0),"Not required") -> 58835 | P81: 0 | Q81: 0 | R81: 1 | S81: 1 | U81: T1 (PZQ+ALB/MBD) | W81: T1 | X81: 21448 | Y81: Ekumfi
A82: =IF(INTRO!$E$34<>0,INTRO!$E$34,"") -> Ghana | B82: Central | C82: Hemang Lower Denkyira | D82: 72045 | E82: =IF(INTRO!$E$48="","",ROUND($D82*INTRO!$E$48,0)) -> 7781 | F82: =IF(INTRO!$E$49="","",ROUND($D82*INTRO!$E$49,0)) -> 17651 | G82: =IF(INTRO!$E$50="","",ROUND($D82*INTRO!$E$50,0)) -> 44452 | H82: 99 | I82: 1 | J82: 2 | K82: 2 | L82: =IF(INTRO!$E$38="Endemic", IF($H82>0, IF($H82=4,"Unknown", IF($H82=99,"Stopped", $D82)), 0),"Not required") -> Stopped | M82: 54784 | N82: =IF(INTRO!$E$42="Endemic", IF(AND($J82>1,$J82<5), IF($J82=4, "Unknown", E82+F82), 0),"Not required") -> 25432 | O82: =IF(INTRO!$E$44="Endemic", IF(AND($K82>0,$K82<5), IF($K82=4,"Unknown", IF($K82=1, $F82*0.33, IF($K82=2, $F82*0.5+$G82*0.2, SUM(F82:G82)))), 0),"Not required") -> 17715.9 | P82: 0 | Q82: 2 | R82: 1 | S82: 1 | T82: MDA3 (IVM) | U82: T1 (PZQ+ALB/MBD) | V82: MDA 1 | W82: T2 | X82: 21454 | Y82: Hemang Lower Denkyira
A83: =IF(INTRO!$E$34<>0,INTRO!$E$34,"") -> Ghana | B83: Central | C83: Twifu-Ati Mokwa | D83: 80685 | E83: =IF(INTRO!$E$48="","",ROUND($D83*INTRO!$E$48,0)) -> 8714 | F83: =IF(INTRO!$E$49="","",ROUND($D83*INTRO!$E$49,0)) -> 19768 | G83: =IF(INTRO!$E$50="","",ROUND($D83*INTRO!$E$50,0)) -> 49783 | H83: 99 | I83: 1 | J83: 2 | K83: 2 | L83: =IF(INTRO!$E$38="Endemic", IF($H83>0, IF($H83=4,"Unknown", IF($H83=99,"Stopped", $D83)), 0),"Not required") -> Stopped | M83: 71709.80155 | N83: =IF(INTRO!$E$42="Endemic", IF(AND($J83>1,$J83<5), IF($J83=4, "Unknown", E83+F83), 0),"Not required") -> 28482 | O83: =IF(INTRO!$E$44="Endemic", IF(AND($K83>0,$K83<5), IF($K83=4,"Unknown", IF($K83=1, $F83*0.33, IF($K83=2, $F83*0.5+$G83*0.2, SUM(F83:G83)))), 0),"Not required") -> 19840.6 | P83: 0 | Q83: 2 | R83: 1 | S83: 1 | T83: MDA3 (IVM) | U83: T1 (PZQ+ALB/MBD) | V83: MDA 1 | W83: T2 | X83: 21455 | Y83: Twifu-Ati Mokwa
A84: =IF(INTRO!$E$34<>0,INTRO!$E$34,"") -> Ghana | B84: Central | C84: Upper Denkyira East | D84: 95147 | E84: =IF(INTRO!$E$48="","",ROUND($D84*INTRO!$E$48,0)) -> 10276 | F84: =IF(INTRO!$E$49="","",ROUND($D84*INTRO!$E$49,0)) -> 23311 | G84: =IF(INTRO!$E$50="","",ROUND($D84*INTRO!$E$50,0)) -> 58706 | H84: 0 | I84: 1 | J84: 2 | K84: 3 | L84: =IF(INTRO!$E$38="Endemic", IF($H84>0, IF($H84=4,"Unknown", IF($H84=99,"Stopped", $D84)), 0),"Not required") -> 0 | M84: 57029.6183 | N84: =IF(INTRO!$E$42="Endemic", IF(AND($J84>1,$J84<5), IF($J84=4, "Unknown", E84+F84), 0),"Not required") -> 33587 | O84: =IF(INTRO!$E$44="Endemic", IF(AND($K84>0,$K84<5), IF($K84=4,"Unknown", IF($K84=1, $F84*0.33, IF($K84=2, $F84*0.5+$G84*0.2, SUM(F84:G84)))), 0),"Not required") -> 82017 | P84: 0 | Q84: 2 | R84: 1 | S84: 1 | T84: MDA3 (IVM) | U84: T1 (PZQ+ALB/MBD) | V84: MDA 1 | W84: T2 | X84: 21456 | Y84: Upper Denkyira East
A85: =IF(INTRO!$E$34<>0,INTRO!$E$34,"") -> Ghana | B85: Central | C85: Upper Denkyira West | D85: 78477 | E85: =IF(INTRO!$E$48="","",ROUND($D85*INTRO!$E$48,0)) -> 8476 | F85: =IF(INTRO!$E$49="","",ROUND($D85*INTRO!$E$49,0)) -> 19227 | G85: =IF(INTRO!$E$50="","",ROUND($D85*INTRO!$E$50,0)) -> 48420 | H85: 0 | I85: 1 | J85: 2 | K85: 2 | L85: =IF(INTRO!$E$38="Endemic", IF($H85>0, IF($H85=4,"Unknown", IF($H85=99,"Stopped", $D85)), 0),"Not required") -> 0 | M85: 50075.19625 | N85: =IF(INTRO!$E$42="Endemic", IF(AND($J85>1,$J85<5), IF($J85=4, "Unknown", E85+F85), 0),"Not required") -> 27703 | O85: =IF(INTRO!$E$44="Endemic", IF(AND($K85>0,$K85<5), IF($K85=4,"Unknown", IF($K85=1, $F85*0.33, IF($K85=2, $F85*0.5+$G85*0.2, SUM(F85:G85)))), 0),"Not required") -> 19297.5 | P85: 0 | Q85: 2 | R85: 1 | S85: 1 | T85: MDA3 (IVM) | U85: T1 (PZQ+ALB/MBD) | V85: MDA 1 | W85: T2 | X85: 21457 | Y85: Upper Denkyira West
A86: =IF(INTRO!$E$34<>0,INTRO!$E$34,"") -> Ghana | B86: Eastern | C86: Akwapim North | D86: 164976 | E86: =IF(INTRO!$E$48="","",ROUND($D86*INTRO!$E$48,0)) -> 17817 | F86: =IF(INTRO!$E$49="","",ROUND($D86*INTRO!$E$49,0)) -> 40419 | G86: =IF(INTRO!$E$50="","",ROUND($D86*INTRO!$E$50,0)) -> 101790 | H86: 0 | I86: 1 | J86: 2 | K86: 2 | L86: =IF(INTRO!$E$38="Endemic", IF($H86>0, IF($H86=4,"Unknown", IF($H86=99,"Stopped", $D86)), 0),"Not required") -> 0 | M86: 78454 | N86: =IF(INTRO!$E$42="Endemic", IF(AND($J86>1,$J86<5), IF($J86=4, "Unknown", E86+F86), 0),"Not required") -> 58236 | O86: =IF(INTRO!$E$44="Endemic", IF(AND($K86>0,$K86<5), IF($K86=4,"Unknown", IF($K86=1, $F86*0.33, IF($K86=2, $F86*0.5+$G86*0.2, SUM(F86:G86)))), 0),"Not required") -> 40567.5 | P86: 0 | Q86: 2 | R86: 1 | S86: 1 | T86: MDA3 (IVM) | U86: T1 (PZQ+ALB/MBD) | V86: MDA 1 | W86: T2 | X86: 21458 | Y86: Akwapim North
A87: =IF(INTRO!$E$34<>0,INTRO!$E$34,"") -> Ghana | B87: Eastern | C87: Akwapim South | D87: 45330 | E87: =IF(INTRO!$E$48="","",ROUND($D87*INTRO!$E$48,0)) -> 4896 | F87: =IF(INTRO!$E$49="","",ROUND($D87*INTRO!$E$49,0)) -> 11106 | G87: =IF(INTRO!$E$50="","",ROUND($D87*INTRO!$E$50,0)) -> 27969 | H87: 99 | I87: 0 | J87: 2 | K87: 2 | L87: =IF(INTRO!$E$38="Endemic", IF($H87>0, IF($H87=4,"Unknown", IF($H87=99,"Stopped", $D87)), 0),"Not required") -> Stopped | M87: 0 | N87: =IF(INTRO!$E$42="Endemic", IF(AND($J87>1,$J87<5), IF($J87=4, "Unknown", E87+F87), 0),"Not required") -> 16002 | O87: =IF(INTRO!$E$44="Endemic", IF(AND($K87>0,$K87<5), IF($K87=4,"Unknown", IF($K87=1, $F87*0.33, IF($K87=2, $F87*0.5+$G87*0.2, SUM(F87:G87)))), 0),"Not required") -> 11146.8 | P87: 0 | Q87: 0 | R87: 1 | S87: 1 | U87: T1 (PZQ+ALB/MBD) | W87: T1 | X87: 21459 | Y87: Akwapim South
A88: =IF(INTRO!$E$34<>0,INTRO!$E$34,"") -> Ghana | B88: Eastern | C88: Nsawam Adoagyiri Municipal | D88: 103954 | E88: =IF(INTRO!$E$48="","",ROUND($D88*INTRO!$E$48,0)) -> 11227 | F88: =IF(INTRO!$E$49="","",ROUND($D88*INTRO!$E$49,0)) -> 25469 | G88: =IF(INTRO!$E$50="","",ROUND($D88*INTRO!$E$50,0)) -> 64140 | H88: 99 | I88: 0 | J88: 2 | K88: 2 | L88: =IF(INTRO!$E$38="Endemic", IF($H88>0, IF($H88=4,"Unknown", IF($H88=99,"Stopped", $D88)), 0),"Not required") -> Stopped | M88: 0 | N88: =IF(INTRO!$E$42="Endemic", IF(AND($J88>1,$J88<5), IF($J88=4, "Unknown", E88+F88), 0),"Not required") -> 36696 | O88: =IF(INTRO!$E$44="Endemic", IF(AND($K88>0,$K88<5), IF($K88=4,"Unknown", IF($K88=1, $F88*0.33, IF($K88=2, $F88*0.5+$G88*0.2, SUM(F88:G88)))), 0),"Not required") -> 25562.5 | P88: 0 | Q88: 0 | R88: 1 | S88: 1 | U88: T1 (PZQ+ALB/MBD) | W88: T1 | X88: 21480 | Y88: Nsawam Adoagyiri Municipal
A89: =IF(INTRO!$E$34<>0,INTRO!$E$34,"") -> Ghana | B89: Eastern | C89: Akyemansa | D89: 117702 | E89: =IF(INTRO!$E$48="","",ROUND($D89*INTRO!$E$48,0)) -> 12712 | F89: =IF(INTRO!$E$49="","",ROUND($D89*INTRO!$E$49,0)) -> 28837 | G89: =IF(INTRO!$E$50="","",ROUND($D89*INTRO!$E$50,0)) -> 72622 | H89: 0 | I89: 1 | J89: 2 | K89: 2 | L89: =IF(INTRO!$E$38="Endemic", IF($H89>0, IF($H89=4,"Unknown", IF($H89=99,"Stopped", $D89)), 0),"Not required") -> 0 | M89: 87548 | N89: =IF(INTRO!$E$42="Endemic", IF(AND($J89>1,$J89<5), IF($J89=4, "Unknown", E89+F89), 0),"Not required") -> 41549 | O89: =IF(INTRO!$E$44="Endemic", IF(AND($K89>0,$K89<5), IF($K89=4,"Unknown", IF($K89=1, $F89*0.33, IF($K89=2, $F89*0.5+$G89*0.2, SUM(F89:G89)))), 0),"Not required") -> 28942.9 | P89: 0 | Q89: 2 | R89: 1 | S89: 1 | T89: MDA3 (IVM) | U89: T1 (PZQ+ALB/MBD) | V89: MDA 1 | W89: T2 | X89: 21460 | Y89: Akyemansa
A90: =IF(INTRO!$E$34<>0,INTRO!$E$34,"") -> Ghana | B90: Eastern | C90: Asuogyaman | D90: 118514 | E90: =IF(INTRO!$E$48="","",ROUND($D90*INTRO!$E$48,0)) -> 12800 | F90: =IF(INTRO!$E$49="","",ROUND($D90*INTRO!$E$49,0)) -> 29036 | G90: =IF(INTRO!$E$50="","",ROUND($D90*INTRO!$E$50,0)) -> 73123 | H90: 0 | I90: 0 | J90: 2 | K90: 2 | L90: =IF(INTRO!$E$38="Endemic", IF($H90>0, IF($H90=4,"Unknown", IF($H90=99,"Stopped", $D90)), 0),"Not required") -> 0 | M90: 0 | N90: =IF(INTRO!$E$42="Endemic", IF(AND($J90>1,$J90<5), IF($J90=4, "Unknown", E90+F90), 0),"Not required") -> 41836 | O90: =IF(INTRO!$E$44="Endemic", IF(AND($K90>0,$K90<5), IF($K90=4,"Unknown", IF($K90=1, $F90*0.33, IF($K90=2, $F90*0.5+$G90*0.2, SUM(F90:G90)))), 0),"Not required") -> 29142.6 | P90: 0 | Q90: 0 | R90: 1 | S90: 1 | U90: T1 (PZQ+ALB/MBD) | W90: T1 | X90: 21461 | Y90: Asuogyaman
A91: =IF(INTRO!$E$34<>0,INTRO!$E$34,"") -> Ghana | B91: Eastern | C91: Atiwa | D91: 133715 | E91: =IF(INTRO!$E$48="","",ROUND($D91*INTRO!$E$48,0)) -> 14441 | F91: =IF(INTRO!$E$49="","",ROUND($D91*INTRO!$E$49,0)) -> 32760 | G91: =IF(INTRO!$E$50="","",ROUND($D91*INTRO!$E$50,0)) -> 82502 | H91: 0 | I91: 1 | J91: 2 | K91: 3 | L91: =IF(INTRO!$E$38="Endemic", IF($H91>0, IF($H91=4,"Unknown", IF($H91=99,"Stopped", $D91)), 0),"Not required") -> 0 | M91: 115259.0975 | N91: =IF(INTRO!$E$42="Endemic", IF(AND($J91>1,$J91<5), IF($J91=4, "Unknown", E91+F91), 0),"Not required") -> 47201 | O91: =IF(INTRO!$E$44="Endemic", IF(AND($K91>0,$K91<5), IF($K91=4,"Unknown", IF($K91=1, $F91*0.33, IF($K91=2, $F91*0.5+$G91*0.2, SUM(F91:G91)))), 0),"Not required") -> 115262 | P91: 0 | Q91: 1 | R91: 1 | S91: 1 | T91: MDA3 (IVM) | U91: T1 (PZQ+ALB/MBD) | V91: MDA 1 | W91: T2 | X91: 21462 | Y91: Atiwa
A92: =IF(INTRO!$E$34<>0,INTRO!$E$34,"") -> Ghana | B92: Eastern | C92: Birim Central | D92: 175112 | E92: =IF(INTRO!$E$48="","",ROUND($D92*INTRO!$E$48,0)) -> 18912 | F92: =IF(INTRO!$E$49="","",ROUND($D92*INTRO!$E$49,0)) -> 42902 | G92: =IF(INTRO!$E$50="","",ROUND($D92*INTRO!$E$50,0)) -> 108044 | H92: 0 | I92: 1 | J92: 2 | K92: 2 | L92: =IF(INTRO!$E$38="Endemic", IF($H92>0, IF($H92=4,"Unknown", IF($H92=99,"Stopped", $D92)), 0),"Not required") -> 0 | M92: 68180.90285 | N92: =IF(INTRO!$E$42="Endemic", IF(AND($J92>1,$J92<5), IF($J92=4, "Unknown", E92+F92), 0),"Not required") -> 61814 | O92: =IF(INTRO!$E$44="Endemic", IF(AND($K92>0,$K92<5), IF($K92=4,"Unknown", IF($K92=1, $F92*0.33, IF($K92=2, $F92*0.5+$G92*0.2, SUM(F92:G92)))), 0),"Not required") -> 43059.8 | P92: 0 | Q92: 2 | R92: 1 | S92: 1 | T92: MDA3 (IVM) | U92: T1 (PZQ+ALB/MBD) | V92: MDA 1 | W92: T2 | X92: 21464 | Y92: Birim Central
A93: =IF(INTRO!$E$34<>0,INTRO!$E$34,"") -> Ghana | B93: Eastern | C93: Birim North | D93: 95380 | E93: =IF(INTRO!$E$48="","",ROUND($D93*INTRO!$E$48,0)) -> 10301 | F93: =IF(INTRO!$E$49="","",ROUND($D93*INTRO!$E$49,0)) -> 23368 | G93: =IF(INTRO!$E$50="","",ROUND($D93*INTRO!$E$50,0)) -> 58849 | H93: 0 | I93: 1 | J93: 2 | K93: 2 | L93: =IF(INTRO!$E$38="Endemic", IF($H93>0, IF($H93=4,"Unknown", IF($H93=99,"Stopped", $D93)), 0),"Not required") -> 0 | M93: 64813.6938 | N93: =IF(INTRO!$E$42="Endemic", IF(AND($J93>1,$J93<5), IF($J93=4, "Unknown", E93+F93), 0),"Not required") -> 33669 | O93: =IF(INTRO!$E$44="Endemic", IF(AND($K93>0,$K93<5), IF($K93=4,"Unknown", IF($K93=1, $F93*0.33, IF($K93=2, $F93*0.5+$G93*0.2, SUM(F93:G93)))), 0),"Not required") -> 23453.8 | P93: 0 | Q93: 2 | R93: 1 | S93: 1 | T93: MDA3 (IVM) | U93: T1 (PZQ+ALB/MBD) | V93: MDA 1 | W93: T2 | X93: 21465 | Y93: Birim North
A94: =IF(INTRO!$E$34<>0,INTRO!$E$34,"") -> Ghana | B94: Eastern | C94: Birim South | D94: 144770 | E94: =IF(INTRO!$E$48="","",ROUND($D94*INTRO!$E$48,0)) -> 15635 | F94: =IF(INTRO!$E$49="","",ROUND($D94*INTRO!$E$49,0)) -> 35469 | G94: =IF(INTRO!$E$50="","",ROUND($D94*INTRO!$E$50,0)) -> 89323 | H94: 0 | I94: 1 | J94: 2 | K94: 3 | L94: =IF(INTRO!$E$38="Endemic", IF($H94>0, IF($H94=4,"Unknown", IF($H94=99,"Stopped", $D94)), 0),"Not required") -> 0 | M94: 39433.72005 | N94: =IF(INTRO!$E$42="Endemic", IF(AND($J94>1,$J94<5), IF($J94=4, "Unknown", E94+F94), 0),"Not required") -> 51104 | O94: =IF(INTRO!$E$44="Endemic", IF(AND($K94>0,$K94<5), IF($K94=4,"Unknown", IF($K94=1, $F94*0.33, IF($K94=2, $F94*0.5+$G94*0.2, SUM(F94:G94)))), 0),"Not required") -> 124792 | P94: 0 | Q94: 2 | R94: 1 | S94: 1 | T94: MDA3 (IVM) | U94: T1 (PZQ+ALB/MBD) | V94: MDA 1 | W94: T2 | X94: 21466 | Y94: Birim South
A95: =IF(INTRO!$E$34<>0,INTRO!$E$34,"") -> Ghana | B95: Eastern | C95: East Akim Municipal | D95: 202946 | E95: =IF(INTRO!$E$48="","",ROUND($D95*INTRO!$E$48,0)) -> 21918 | F95: =IF(INTRO!$E$49="","",ROUND($D95*INTRO!$E$49,0)) -> 49722 | G95: =IF(INTRO!$E$50="","",ROUND($D95*INTRO!$E$50,0)) -> 125218 | H95: 0 | I95: 1 | J95: 2 | K95: 2 | L95: =IF(INTRO!$E$38="Endemic", IF($H95>0, IF($H95=4,"Unknown", IF($H95=99,"Stopped", $D95)), 0),"Not required") -> 0 | M95: 116946.678 | N95: =IF(INTRO!$E$42="Endemic", IF(AND($J95>1,$J95<5), IF($J95=4, "Unknown", E95+F95), 0),"Not required") -> 71640 | O95: =IF(INTRO!$E$44="Endemic", IF(AND($K95>0,$K95<5), IF($K95=4,"Unknown", IF($K95=1, $F95*0.33, IF($K95=2, $F95*0.5+$G95*0.2, SUM(F95:G95)))), 0),"Not required") -> 49904.6 | P95: 0 | Q95: 1 | R95: 1 | S95: 1 | T95: MDA3 (IVM) | U95: T1 (PZQ+ALB/MBD) | V95: MDA 1 | W95: T2 | X95: 21469 | Y95: East Akim Municipal
A96: =IF(INTRO!$E$34<>0,INTRO!$E$34,"") -> Ghana | B96: Eastern | C96: Fanteakwa | D96: 131288 | E96: =IF(INTRO!$E$48="","",ROUND($D96*INTRO!$E$48,0)) -> 14179 | F96: =IF(INTRO!$E$49="","",ROUND($D96*INTRO!$E$49,0)) -> 32166 | G96: =IF(INTRO!$E$50="","",ROUND($D96*INTRO!$E$50,0)) -> 81005 | H96: 0 | I96: 1 | J96: 2 | K96: 3 | L96: =IF(INTRO!$E$38="Endemic", IF($H96>0, IF($H96=4,"Unknown", IF($H96=99,"Stopped", $D96)), 0),"Not required") -> 0 | M96: 105576.2731 | N96: =IF(INTRO!$E$42="Endemic", IF(AND($J96>1,$J96<5), IF($J96=4, "Unknown", E96+F96), 0),"Not required") -> 46345 | O96: =IF(INTRO!$E$44="Endemic", IF(AND($K96>0,$K96<5), IF($K96=4,"Unknown", IF($K96=1, $F96*0.33, IF($K96=2, $F96*0.5+$G96*0.2, SUM(F96:G96)))), 0),"Not required") -> 113171 | P96: 0 | Q96: 1 | R96: 1 | S96: 1 | T96: MDA3 (IVM) | U96: T1 (PZQ+ALB/MBD) | V96: MDA 1 | W96: T2 | X96: 21470 | Y96: Fanteakwa
A97: =IF(INTRO!$E$34<>0,INTRO!$E$34,"") -> Ghana | B97: Eastern | C97: Kwaebibirem | D97: 137889 | E97: =IF(INTRO!$E$48="","",ROUND($D97*INTRO!$E$48,0)) -> 14892 | F97: =IF(INTRO!$E$49="","",ROUND($D97*INTRO!$E$49,0)) -> 33783 | G97: =IF(INTRO!$E$50="","",ROUND($D97*INTRO!$E$50,0)) -> 85078 | H97: 0 | I97: 1 | J97: 2 | K97: 3 | L97: =IF(INTRO!$E$38="Endemic", IF($H97>0, IF($H97=4,"Unknown", IF($H97=99,"Stopped", $D97)), 0),"Not required") -> 0 | M97: 52638.3748 | N97: =IF(INTRO!$E$42="Endemic", IF(AND($J97>1,$J97<5), IF($J97=4, "Unknown", E97+F97), 0),"Not required") -> 48675 | O97: =IF(INTRO!$E$44="Endemic", IF(AND($K97>0,$K97<5), IF($K97=4,"Unknown", IF($K97=1, $F97*0.33, IF($K97=2, $F97*0.5+$G97*0.2, SUM(F97:G97)))), 0),"Not required") -> 118861 | P97: 0 | Q97: 2 | R97: 1 | S97: 1 | T97: MDA3 (IVM) | U97: T1 (PZQ+ALB/MBD) | V97: MDA 1 | W97: T2 | X97: 21471 | Y97: Kwaebibirem
A98: =IF(INTRO!$E$34<>0,INTRO!$E$34,"") -> Ghana | B98: Eastern | C98: Denkyembour | D98: 94873 | E98: =IF(INTRO!$E$48="","",ROUND($D98*INTRO!$E$48,0)) -> 10246 | F98: =IF(INTRO!$E$49="","",ROUND($D98*INTRO!$E$49,0)) -> 23244 | G98: =IF(INTRO!$E$50="","",ROUND($D98*INTRO!$E$50,0)) -> 58537 | H98: 0 | I98: 0 | J98: 2 | K98: 3 | L98: =IF(INTRO!$E$38="Endemic", IF($H98>0, IF($H98=4,"Unknown", IF($H98=99,"Stopped", $D98)), 0),"Not required") -> 0 | M98: 0 | N98: =IF(INTRO!$E$42="Endemic", IF(AND($J98>1,$J98<5), IF($J98=4, "Unknown", E98+F98), 0),"Not required") -> 33490 | O98: =IF(INTRO!$E$44="Endemic", IF(AND($K98>0,$K98<5), IF($K98=4,"Unknown", IF($K98=1, $F98*0.33, IF($K98=2, $F98*0.5+$G98*0.2, SUM(F98:G98)))), 0),"Not required") -> 81781 | P98: 0 | Q98: 0 | R98: 1 | S98: 1 | U98: T1 (PZQ+ALB/MBD) | W98: T1 | X98: 21468 | Y98: Denkyembour
A99: =IF(INTRO!$E$34<>0,INTRO!$E$34,"") -> Ghana | B99: Eastern | C99: Kwahu East | D99: 93225 | E99: =IF(INTRO!$E$48="","",ROUND($D99*INTRO!$E$48,0)) -> 10068 | F99: =IF(INTRO!$E$49="","",ROUND($D99*INTRO!$E$49,0)) -> 22840 | G99: =IF(INTRO!$E$50="","",ROUND($D99*INTRO!$E$50,0)) -> 57520 | H99: 0 | I99: 1 | J99: 2 | K99: 3 | L99: =IF(INTRO!$E$38="Endemic", IF($H99>0, IF($H99=4,"Unknown", IF($H99=99,"Stopped", $D99)), 0),"Not required") -> 0 | M99: 30492.725 | N99: =IF(INTRO!$E$42="Endemic", IF(AND($J99>1,$J99<5), IF($J99=4, "Unknown", E99+F99), 0),"Not required") -> 32908 | O99: =IF(INTRO!$E$44="Endemic", IF(AND($K99>0,$K99<5), IF($K99=4,"Unknown", IF($K99=1, $F99*0.33, IF($K99=2, $F99*0.5+$G99*0.2, SUM(F99:G99)))), 0),"Not required") -> 80360 | P99: 0 | Q99: 2 | R99: 1 | S99: 1 | T99: MDA3 (IVM) | U99: T1 (PZQ+ALB/MBD) | V99: MDA 1 | W99: T2 | X99: 21474 | Y99: Kwahu East
A100: =IF(INTRO!$E$34<>0,INTRO!$E$34,"") -> Ghana | B100: Eastern | C100: Kwahu Afram Plains North | D100: 123987 | E100: =IF(INTRO!$E$48="","",ROUND($D100*INTRO!$E$48,0)) -> 13391 | F100: =IF(INTRO!$E$49="","",ROUND($D100*INTRO!$E$49,0)) -> 30377 | G100: =IF(INTRO!$E$50="","",ROUND($D100*INTRO!$E$50,0)) -> 76500 | H100: 0 | I100: 1 | J100: 2 | K100: 3 | L100: =IF(INTRO!$E$38="Endemic", IF($H100>0, IF($H100=4,"Unknown", IF($H100=99,"Stopped", $D100)), 0),"Not required") -> 0 | M100: 30214 | N100: =IF(INTRO!$E$42="Endemic", IF(AND($J100>1,$J100<5), IF($J100=4, "Unknown", E100+F100), 0),"Not required") -> 43768 | O100: =IF(INTRO!$E$44="Endemic", IF(AND($K100>0,$K100<5), IF($K100=4,"Unknown", IF($K100=1, $F100*0.33, IF($K100=2, $F100*0.5+$G100*0.2, SUM(F100:G100)))), 0),"Not required") -> 106877 | P100: 0 | Q100: 2 | R100: 1 | S100: 1 | T100: MDA3 (IVM) | U100: T1 (PZQ+ALB/MBD) | V100: MDA 1 | W100: T2 | X100: 21472 | Y100: Kwahu Afram Plains North
A101: =IF(INTRO!$E$34<>0,INTRO!$E$34,"") -> Ghana | B101: Eastern | C101: Kwahu Afram Plains South | D101: 139807 | E101: =IF(INTRO!$E$48="","",ROUND($D101*INTRO!$E$48,0)) -> 15099 | F101: =IF(INTRO!$E$49="","",ROUND($D101*INTRO!$E$49,0)) -> 34253 | G101: =IF(INTRO!$E$50="","",ROUND($D101*INTRO!$E$50,0)) -> 86261 | H101: 0 | I101: 1 | J101: 2 | K101: 3 | L101: =IF(INTRO!$E$38="Endemic", IF($H101>0, IF($H101=4,"Unknown", IF($H101=99,"Stopped", $D101)), 0),"Not required") -> 0 | M101: 36548 | N101: =IF(INTRO!$E$42="Endemic", IF(AND($J101>1,$J101<5), IF($J101=4, "Unknown", E101+F101), 0),"Not required") -> 49352 | O101: =IF(INTRO!$E$44="Endemic", IF(AND($K101>0,$K101<5), IF($K101=4,"Unknown", IF($K101=1, $F101*0.33, IF($K101=2, $F101*0.5+$G101*0.2, SUM(F101:G101)))), 0),"Not required") -> 120514 | P101: 0 | Q101: 2 | R101: 1 | S101: 1 | T101: MDA3 (IVM) | U101: T1 (PZQ+ALB/MBD) | V101: MDA 1 | W101: T2 | X101: 21473 | Y101: Kwahu Afram Plains South
A102: =IF(INTRO!$E$34<>0,INTRO!$E$34,"") -> Ghana | B102: Eastern | C102: Kwahu South | D102: 84320 | E102: =IF(INTRO!$E$48="","",ROUND($D102*INTRO!$E$48,0)) -> 9107 | F102: =IF(INTRO!$E$49="","",ROUND($D102*INTRO!$E$49,0)) -> 20658 | G102: =IF(INTRO!$E$50="","",ROUND($D102*INTRO!$E$50,0)) -> 52025 | H102: 0 | I102: 1 | J102: 2 | K102: 3 | L102: =IF(INTRO!$E$38="Endemic", IF($H102>0, IF($H102=4,"Unknown", IF($H102=99,"Stopped", $D102)), 0),"Not required") -> 0 | M102: 34091.77675 | N102: =IF(INTRO!$E$42="Endemic", IF(AND($J102>1,$J102<5), IF($J102=4, "Unknown", E102+F102), 0),"Not required") -> 29765 | O102: =IF(INTRO!$E$44="Endemic", IF(AND($K102>0,$K102<5), IF($K102=4,"Unknown", IF($K102=1, $F102*0.33, IF($K102=2, $F102*0.5+$G102*0.2, SUM(F102:G102)))), 0),"Not required") -> 72683 | P102: 0 | Q102: 2 | R102: 1 | S102: 1 | T102: MDA3 (IVM) | U102: T1 (PZQ+ALB/MBD) | V102: MDA 1 | W102: T2 | X102: 21476 | Y102: Kwahu South
A103: =IF(INTRO!$E$34<>0,INTRO!$E$34,"") -> Ghana | B103: Eastern | C103: Kwahu West | D103: 113121 | E103: =IF(INTRO!$E$48="","",ROUND($D103*INTRO!$E$48,0)) -> 12217 | F103: =IF(INTRO!$E$49="","",ROUND($D103*INTRO!$E$49,0)) -> 27715 | G103: =IF(INTRO!$E$50="","",ROUND($D103*INTRO!$E$50,0)) -> 69796 | H103: 0 | I103: 1 | J103: 2 | K103: 2 | L103: =IF(INTRO!$E$38="Endemic", IF($H103>0, IF($H103=4,"Unknown", IF($H103=99,"Stopped", $D103)), 0),"Not required") -> 0 | M103: 43125.19195 | N103: =IF(INTRO!$E$42="Endemic", IF(AND($J103>1,$J103<5), IF($J103=4, "Unknown", E103+F103), 0),"Not required") -> 39932 | O103: =IF(INTRO!$E$44="Endemic", IF(AND($K103>0,$K103<5), IF($K103=4,"Unknown", IF($K103=1, $F103*0.33, IF($K103=2, $F103*0.5+$G103*0.2, SUM(F103:G103)))), 0),"Not required") -> 27816.7 | P103: 0 | Q103: 2 | R103: 1 | S103: 1 | T103: MDA3 (IVM) | U103: T1 (PZQ+ALB/MBD) | V103: MDA 1 | W103: T2 | X103: 21477 | Y103: Kwahu West
A104: =IF(INTRO!$E$34<>0,INTRO!$E$34,"") -> Ghana | B104: Eastern | C104: Lower Manya Krobo | D104: 107877 | E104: =IF(INTRO!$E$48="","",ROUND($D104*INTRO!$E$48,0)) -> 11651 | F104: =IF(INTRO!$E$49="","",ROUND($D104*INTRO!$E$49,0)) -> 26430 | G104: =IF(INTRO!$E$50="","",ROUND($D104*INTRO!$E$50,0)) -> 66560 | H104: 0 | I104: 0 | J104: 2 | K104: 2 | L104: =IF(INTRO!$E$38="Endemic", IF($H104>0, IF($H104=4,"Unknown", IF($H104=99,"Stopped", $D104)), 0),"Not required") -> 0 | M104: 0 | N104: =IF(INTRO!$E$42="Endemic", IF(AND($J104>1,$J104<5), IF($J104=4, "Unknown", E104+F104), 0),"Not required") -> 38081 | O104: =IF(INTRO!$E$44="Endemic", IF(AND($K104>0,$K104<5), IF($K104=4,"Unknown", IF($K104=1, $F104*0.33, IF($K104=2, $F104*0.5+$G104*0.2, SUM(F104:G104)))), 0),"Not required") -> 26527 | P104: 0 | Q104: 0 | R104: 1 | S104: 1 | U104: T1 (PZQ+ALB/MBD) | W104: T1 | X104: 21478 | Y104: Lower Manya Krobo
A105: =IF(INTRO!$E$34<>0,INTRO!$E$34,"") -> Ghana | B105: Eastern | C105: New Juaben Municipal | D105: 222082 | E105: =IF(INTRO!$E$48="","",ROUND($D105*INTRO!$E$48,0)) -> 23985 | F105: =IF(INTRO!$E$49="","",ROUND($D105*INTRO!$E$49,0)) -> 54410 | G105: =IF(INTRO!$E$50="","",ROUND($D105*INTRO!$E$50,0)) -> 137025 | H105: 0 | I105: 1 | J105: 2 | K105: 2 | L105: =IF(INTRO!$E$38="Endemic", IF($H105>0, IF($H105=4,"Unknown", IF($H105=99,"Stopped", $D105)), 0),"Not required") -> 0 | M105: 68742 | N105: =IF(INTRO!$E$42="Endemic", IF(AND($J105>1,$J105<5), IF($J105=4, "Unknown", E105+F105), 0),"Not required") -> 78395 | O105: =IF(INTRO!$E$44="Endemic", IF(AND($K105>0,$K105<5), IF($K105=4,"Unknown", IF($K105=1, $F105*0.33, IF($K105=2, $F105*0.5+$G105*0.2, SUM(F105:G105)))), 0),"Not required") -> 54610 | P105: 0 | Q105: 2 | R105: 1 | S105: 1 | T105: MDA3 (IVM) | U105: T1 (PZQ+ALB/MBD) | V105: MDA 1 | W105: T2 | X105: 21479 | Y105: New Juaben Municipal
A106: =IF(INTRO!$E$34<>0,INTRO!$E$34,"") -> Ghana | B106: Eastern | C106: Suhum | D106: 110389 | E106: =IF(INTRO!$E$48="","",ROUND($D106*INTRO!$E$48,0)) -> 11922 | F106: =IF(INTRO!$E$49="","",ROUND($D106*INTRO!$E$49,0)) -> 27045 | G106: =IF(INTRO!$E$50="","",ROUND($D106*INTRO!$E$50,0)) -> 68110 | H106: 99 | I106: 1 | J106: 2 | K106: 2 | L106: =IF(INTRO!$E$38="Endemic", IF($H106>0, IF($H106=4,"Unknown", IF($H106=99,"Stopped", $D106)), 0),"Not required") -> Stopped | M106: 45975.35 | N106: =IF(INTRO!$E$42="Endemic", IF(AND($J106>1,$J106<5), IF($J106=4, "Unknown", E106+F106), 0),"Not required") -> 38967 | O106: =IF(INTRO!$E$44="Endemic", IF(AND($K106>0,$K106<5), IF($K106=4,"Unknown", IF($K106=1, $F106*0.33, IF($K106=2, $F106*0.5+$G106*0.2, SUM(F106:G106)))), 0),"Not required") -> 27144.5 | P106: 0 | Q106: 2 | R106: 1 | S106: 1 | T106: MDA3 (IVM) | U106: T1 (PZQ+ALB/MBD) | V106: MDA 1 | W106: T2 | X106: 21481 | Y106: Suhum
A107: =IF(INTRO!$E$34<>0,INTRO!$E$34,"") -> Ghana | B107: Eastern | C107: Ayensuano | D107: 92141 | E107: =IF(INTRO!$E$48="","",ROUND($D107*INTRO!$E$48,0)) -> 9951 | F107: =IF(INTRO!$E$49="","",ROUND($D107*INTRO!$E$49,0)) -> 22575 | G107: =IF(INTRO!$E$50="","",ROUND($D107*INTRO!$E$50,0)) -> 56851 | H107: 99 | I107: 0 | J107: 2 | K107: 2 | L107: =IF(INTRO!$E$38="Endemic", IF($H107>0, IF($H107=4,"Unknown", IF($H107=99,"Stopped", $D107)), 0),"Not required") -> Stopped | M107: 0 | N107: =IF(INTRO!$E$42="Endemic", IF(AND($J107>1,$J107<5), IF($J107=4, "Unknown", E107+F107), 0),"Not required") -> 32526 | O107: =IF(INTRO!$E$44="Endemic", IF(AND($K107>0,$K107<5), IF($K107=4,"Unknown", IF($K107=1, $F107*0.33, IF($K107=2, $F107*0.5+$G107*0.2, SUM(F107:G107)))), 0),"Not required") -> 22657.7 | P107: 0 | Q107: 0 | R107: 1 | S107: 1 | U107: T1 (PZQ+ALB/MBD) | W107: T1 | X107: 21463 | Y107: Ayensuano
A108: =IF(INTRO!$E$34<>0,INTRO!$E$34,"") -> Ghana | B108: Eastern | C108: Upper Manya Krobo | D108: 87142 | E108: =IF(INTRO!$E$48="","",ROUND($D108*INTRO!$E$48,0)) -> 9411 | F108: =IF(INTRO!$E$49="","",ROUND($D108*INTRO!$E$49,0)) -> 21350 | G108: =IF(INTRO!$E$50="","",ROUND($D108*INTRO!$E$50,0)) -> 53767 | H108: 0 | I108: 0 | J108: 2 | K108: 2 | L108: =IF(INTRO!$E$38="Endemic", IF($H108>0, IF($H108=4,"Unknown", IF($H108=99,"Stopped", $D108)), 0),"Not required") -> 0 | M108: 0 | N108: =IF(INTRO!$E$42="Endemic", IF(AND($J108>1,$J108<5), IF($J108=4, "Unknown", E108+F108), 0),"Not required") -> 30761 | O108: =IF(INTRO!$E$44="Endemic", IF(AND($K108>0,$K108<5), IF($K108=4,"Unknown", IF($K108=1, $F108*0.33, IF($K108=2, $F108*0.5+$G108*0.2, SUM(F108:G108)))), 0),"Not required") -> 21428.4 | P108: 0 | Q108: 0 | R108: 1 | S108: 1 | U108: T1 (PZQ+ALB/MBD) | W108: T1 | X108: 21482 | Y108: Upper Manya Krobo
A109: =IF(INTRO!$E$34<>0,INTRO!$E$34,"") -> Ghana | B109: Eastern | C109: Upper West Akim | D109: 105224 | E109: =IF(INTRO!$E$48="","",ROUND($D109*INTRO!$E$48,0)) -> 11364 | F109: =IF(INTRO!$E$49="","",ROUND($D109*INTRO!$E$49,0)) -> 25780 | G109: =IF(INTRO!$E$50="","",ROUND($D109*INTRO!$E$50,0)) -> 64923 | H109: 99 | I109: 0 | J109: 2 | K109: 3 | L109: =IF(INTRO!$E$38="Endemic", IF($H109>0, IF($H109=4,"Unknown", IF($H109=99,"Stopped", $D109)), 0),"Not required") -> Stopped | M109: 0 | N109: =IF(INTRO!$E$42="Endemic", IF(AND($J109>1,$J109<5), IF($J109=4, "Unknown", E109+F109), 0),"Not required") -> 37144 | O109: =IF(INTRO!$E$44="Endemic", IF(AND($K109>0,$K109<5), IF($K109=4,"Unknown", IF($K109=1, $F109*0.33, IF($K109=2, $F109*0.5+$G109*0.2, SUM(F109:G109)))), 0),"Not required") -> 90703 | P109: 0 | Q109: 0 | R109: 1 | S109: 1 | U109: T1 (PZQ+ALB/MBD) | W109: T1 | X109: 21483 | Y109: Upper West Akim
A110: =IF(INTRO!$E$34<>0,INTRO!$E$34,"") -> Ghana | B110: Eastern | C110: West Akim Municipal | D110: 130907 | E110: =IF(INTRO!$E$48="","",ROUND($D110*INTRO!$E$48,0)) -> 14138 | F110: =IF(INTRO!$E$49="","",ROUND($D110*INTRO!$E$49,0)) -> 32072 | G110: =IF(INTRO!$E$50="","",ROUND($D110*INTRO!$E$50,0)) -> 80770 | H110: 99 | I110: 1 | J110: 2 | K110: 3 | L110: =IF(INTRO!$E$38="Endemic", IF($H110>0, IF($H110=4,"Unknown", IF($H110=99,"Stopped", $D110)), 0),"Not required") -> Stopped | M110: 43268.325 | N110: =IF(INTRO!$E$42="Endemic", IF(AND($J110>1,$J110<5), IF($J110=4, "Unknown", E110+F110), 0),"Not required") -> 46210 | O110: =IF(INTRO!$E$44="Endemic", IF(AND($K110>0,$K110<5), IF($K110=4,"Unknown", IF($K110=1, $F110*0.33, IF($K110=2, $F110*0.5+$G110*0.2, SUM(F110:G110)))), 0),"Not required") -> 112842 | P110: 0 | Q110: 2 | R110: 1 | S110: 1 | T110: MDA3 (IVM) | U110: T1 (PZQ+ALB/MBD) | V110: MDA 1 | W110: T2 | X110: 21484 | Y110: West Akim Municipal
A111: =IF(INTRO!$E$34<>0,INTRO!$E$34,"") -> Ghana | B111: Eastern | C111: Yilo Krobo | D111: 106185 | E111: =IF(INTRO!$E$48="","",ROUND($D111*INTRO!$E$48,0)) -> 11468 | F111: =IF(INTRO!$E$49="","",ROUND($D111*INTRO!$E$49,0)) -> 26015 | G111: =IF(INTRO!$E$50="","",ROUND($D111*INTRO!$E$50,0)) -> 65516 | H111: 0 | I111: 1 | J111: 2 | K111: 2 | L111: =IF(INTRO!$E$38="Endemic", IF($H111>0, IF($H111=4,"Unknown", IF($H111=99,"Stopped", $D111)), 0),"Not required") -> 0 | M111: 46065.64635 | N111: =IF(INTRO!$E$42="Endemic", IF(AND($J111>1,$J111<5), IF($J111=4, "Unknown", E111+F111), 0),"Not required") -> 37483 | O111: =IF(INTRO!$E$44="Endemic", IF(AND($K111>0,$K111<5), IF($K111=4,"Unknown", IF($K111=1, $F111*0.33, IF($K111=2, $F111*0.5+$G111*0.2, SUM(F111:G111)))), 0),"Not required") -> 26110.7 | P111: 0 | Q111: 1 | R111: 1 | S111: 1 | T111: MDA3 (IVM) | U111: T1 (PZQ+ALB/MBD) | V111: MDA 1 | W111: T2 | X111: 21485 | Y111: Yilo Krobo
A112: =IF(INTRO!$E$34<>0,INTRO!$E$34,"") -> Ghana | B112: Greater Accra | C112: Accra Metro | D112: 2175908 | E112: =IF(INTRO!$E$48="","",ROUND($D112*INTRO!$E$48,0)) -> 234998 | F112: =IF(INTRO!$E$49="","",ROUND($D112*INTRO!$E$49,0)) -> 533097 | G112: =IF(INTRO!$E$50="","",ROUND($D112*INTRO!$E$50,0)) -> 1342535 | H112: 99 | I112: 0 | J112: 2 | K112: 2 | L112: =IF(INTRO!$E$38="Endemic", IF($H112>0, IF($H112=4,"Unknown", IF($H112=99,"Stopped", $D112)), 0),"Not required") -> Stopped | M112: 0 | N112: =IF(INTRO!$E$42="Endemic", IF(AND($J112>1,$J112<5), IF($J112=4, "Unknown", E112+F112), 0),"Not required") -> 768095 | O112: =IF(INTRO!$E$44="Endemic", IF(AND($K112>0,$K112<5), IF($K112=4,"Unknown", IF($K112=1, $F112*0.33, IF($K112=2, $F112*0.5+$G112*0.2, SUM(F112:G112)))), 0),"Not required") -> 535055.5 | P112: 0 | Q112: 0 | R112: 0 | S112: 0 | W112: T1 | X112: 21486 | Y112: Accra Metro
A113: =IF(INTRO!$E$34<>0,INTRO!$E$34,"") -> Ghana | B113: Greater Accra | C113: La Dade-Kotopon | D113: 239832 | E113: =IF(INTRO!$E$48="","",ROUND($D113*INTRO!$E$48,0)) -> 25902 | F113: =IF(INTRO!$E$49="","",ROUND($D113*INTRO!$E$49,0)) -> 58759 | G113: =IF(INTRO!$E$50="","",ROUND($D113*INTRO!$E$50,0)) -> 147976 | H113: 99 | I113: 0 | J113: 2 | K113: 2 | L113: =IF(INTRO!$E$38="Endemic", IF($H113>0, IF($H113=4,"Unknown", IF($H113=99,"Stopped", $D113)), 0),"Not required") -> Stopped | M113: 0 | N113: =IF(INTRO!$E$42="Endemic", IF(AND($J113>1,$J113<5), IF($J113=4, "Unknown", E113+F113), 0),"Not required") -> 84661 | O113: =IF(INTRO!$E$44="Endemic", IF(AND($K113>0,$K113<5), IF($K113=4,"Unknown", IF($K113=1, $F113*0.33, IF($K113=2, $F113*0.5+$G113*0.2, SUM(F113:G113)))), 0),"Not required") -> 58974.7 | P113: 0 | Q113: 0 | R113: 0 | S113: 0 | W113: T1 | X113: 21497 | Y113: La Dade-Kotopon
A114: =IF(INTRO!$E$34<>0,INTRO!$E$34,"") -> Ghana | B114: Greater Accra | C114: Adenta | D114: 102210 | E114: =IF(INTRO!$E$48="","",ROUND($D114*INTRO!$E$48,0)) -> 11039 | F114: =IF(INTRO!$E$49="","",ROUND($D114*INTRO!$E$49,0)) -> 25041 | G114: =IF(INTRO!$E$50="","",ROUND($D114*INTRO!$E$50,0)) -> 63064 | H114: 0 | I114: 0 | J114: 2 | K114: 2 | L114: =IF(INTRO!$E$38="Endemic", IF($H114>0, IF($H114=4,"Unknown", IF($H114=99,"Stopped", $D114)), 0),"Not required") -> 0 | M114: 0 | N114: =IF(INTRO!$E$42="Endemic", IF(AND($J114>1,$J114<5), IF($J114=4, "Unknown", E114+F114), 0),"Not required") -> 36080 | O114: =IF(INTRO!$E$44="Endemic", IF(AND($K114>0,$K114<5), IF($K114=4,"Unknown", IF($K114=1, $F114*0.33, IF($K114=2, $F114*0.5+$G114*0.2, SUM(F114:G114)))), 0),"Not required") -> 25133.3 | P114: 0 | Q114: 0 | R114: 1 | S114: 1 | U114: T1 (PZQ+ALB/MBD) | W114: T1 | X114: 21489 | Y114: Adenta
A115: =IF(INTRO!$E$34<>0,INTRO!$E$34,"") -> Ghana | B115: Greater Accra | C115: Ashiaman | D115: 249560 | E115: =IF(INTRO!$E$48="","",ROUND($D115*INTRO!$E$48,0)) -> 26952 | F115: =IF(INTRO!$E$49="","",ROUND($D115*INTRO!$E$49,0)) -> 61142 | G115: =IF(INTRO!$E$50="","",ROUND($D115*INTRO!$E$50,0)) -> 153979 | H115: 0 | I115: 0 | J115: 2 | K115: 2 | L115: =IF(INTRO!$E$38="Endemic", IF($H115>0, IF($H115=4,"Unknown", IF($H115=99,"Stopped", $D115)), 0),"Not required") -> 0 | M115: 0 | N115: =IF(INTRO!$E$42="Endemic", IF(AND($J115>1,$J115<5), IF($J115=4, "Unknown", E115+F115), 0),"Not required") -> 88094 | O115: =IF(INTRO!$E$44="Endemic", IF(AND($K115>0,$K115<5), IF($K115=4,"Unknown", IF($K115=1, $F115*0.33, IF($K115=2, $F115*0.5+$G115*0.2, SUM(F115:G115)))), 0),"Not required") -> 61366.8 | P115: 0 | Q115: 0 | R115: 1 | S115: 1 | U115: T1 (PZQ+ALB/MBD) | W115: T1 | X115: 21490 | Y115: Ashiaman
A116: =IF(INTRO!$E$34<>0,INTRO!$E$34,"") -> Ghana | B116: Greater Accra | C116: Ada East | D116: 93658 | E116: =IF(INTRO!$E$48="","",ROUND($D116*INTRO!$E$48,0)) -> 10115 | F116: =IF(INTRO!$E$49="","",ROUND($D116*INTRO!$E$49,0)) -> 22946 | G116: =IF(INTRO!$E$50="","",ROUND($D116*INTRO!$E$50,0)) -> 57787 | H116: 0 | I116: 0 | J116: 2 | K116: 2 | L116: =IF(INTRO!$E$38="Endemic", IF($H116>0, IF($H116=4,"Unknown", IF($H116=99,"Stopped", $D116)), 0),"Not required") -> 0 | M116: 0 | N116: =IF(INTRO!$E$42="Endemic", IF(AND($J116>1,$J116<5), IF($J116=4, "Unknown", E116+F116), 0),"Not required") -> 33061 | O116: =IF(INTRO!$E$44="Endemic", IF(AND($K116>0,$K116<5), IF($K116=4,"Unknown", IF($K116=1, $F116*0.33, IF($K116=2, $F116*0.5+$G116*0.2, SUM(F116:G116)))), 0),"Not required") -> 23030.4 | P116: 0 | Q116: 0 | R116: 1 | S116: 1 | U116: T1 (PZQ+ALB/MBD) | W116: T1 | X116: 21487 | Y116: Ada East
A117: =IF(INTRO!$E$34<>0,INTRO!$E$34,"") -> Ghana | B117: Greater Accra | C117: Ada West | D117: 77262 | E117: =IF(INTRO!$E$48="","",ROUND($D117*INTRO!$E$48,0)) -> 8344 | F117: =IF(INTRO!$E$49="","",ROUND($D117*INTRO!$E$49,0)) -> 18929 | G117: =IF(INTRO!$E$50="","",ROUND($D117*INTRO!$E$50,0)) -> 47671 | H117: 0 | I117: 0 | J117: 2 | K117: 2 | L117: =IF(INTRO!$E$38="Endemic", IF($H117>0, IF($H117=4,"Unknown", IF($H117=99,"Stopped", $D117)), 0),"Not required") -> 0 | M117: 0 | N117: =IF(INTRO!$E$42="Endemic", IF(AND($J117>1,$J117<5), IF($J117=4, "Unknown", E117+F117), 0),"Not required") -> 27273 | O117: =IF(INTRO!$E$44="Endemic", IF(AND($K117>0,$K117<5), IF($K117=4,"Unknown", IF($K117=1, $F117*0.33, IF($K117=2, $F117*0.5+$G117*0.2, SUM(F117:G117)))), 0),"Not required") -> 18998.7 | P117: 0 | Q117: 0 | R117: 1 | S117: 1 | U117: T1 (PZQ+ALB/MBD) | W117: T1 | X117: 21488 | Y117: Ada West
A118: =IF(INTRO!$E$34<>0,INTRO!$E$34,"") -> Ghana | B118: Greater Accra | C118: Shai Osudoku | D118: 68105 | E118: =IF(INTRO!$E$48="","",ROUND($D118*INTRO!$E$48,0)) -> 7355 | F118: =IF(INTRO!$E$49="","",ROUND($D118*INTRO!$E$49,0)) -> 16686 | G118: =IF(INTRO!$E$50="","",ROUND($D118*INTRO!$E$50,0)) -> 42021 | H118: 0 | I118: 0 | J118: 2 | K118: 2 | L118: =IF(INTRO!$E$38="Endemic", IF($H118>0, IF($H118=4,"Unknown", IF($H118=99,"Stopped", $D118)), 0),"Not required") -> 0 | M118: 0 | N118: =IF(INTRO!$E$42="Endemic", IF(AND($J118>1,$J118<5), IF($J118=4, "Unknown", E118+F118), 0),"Not required") -> 24041 | O118: =IF(INTRO!$E$44="Endemic", IF(AND($K118>0,$K118<5), IF($K118=4,"Unknown", IF($K118=1, $F118*0.33, IF($K118=2, $F118*0.5+$G118*0.2, SUM(F118:G118)))), 0),"Not required") -> 16747.2 | P118: 0 | Q118: 0 | R118: 1 | S118: 1 | U118: T1 (PZQ+ALB/MBD) | W118: T1 | X118: 21501 | Y118: Shai Osudoku
A119: =IF(INTRO!$E$34<>0,INTRO!$E$34,"") -> Ghana | B119: Greater Accra | C119: Ningo Prampram | D119: 92414 | E119: =IF(INTRO!$E$48="","",ROUND($D119*INTRO!$E$48,0)) -> 9981 | F119: =IF(INTRO!$E$49="","",ROUND($D119*INTRO!$E$49,0)) -> 22641 | G119: =IF(INTRO!$E$50="","",ROUND($D119*INTRO!$E$50,0)) -> 57019 | H119: 0 | I119: 0 | J119: 2 | K119: 2 | L119: =IF(INTRO!$E$38="Endemic", IF($H119>0, IF($H119=4,"Unknown", IF($H119=99,"Stopped", $D119)), 0),"Not required") -> 0 | M119: 0 | N119: =IF(INTRO!$E$42="Endemic", IF(AND($J119>1,$J119<5), IF($J119=4, "Unknown", E119+F119), 0),"Not required") -> 32622 | O119: =IF(INTRO!$E$44="Endemic", IF(AND($K119>0,$K119<5), IF($K119=4,"Unknown", IF($K119=1, $F119*0.33, IF($K119=2, $F119*0.5+$G119*0.2, SUM(F119:G119)))), 0),"Not required") -> 22724.3 | P119: 0 | Q119: 0 | R119: 1 | S119: 1 | U119: T1 (PZQ+ALB/MBD) | W119: T1 | X119: 21500 | Y119: Ningo Prampram
A120: =IF(INTRO!$E$34<>0,INTRO!$E$34,"") -> Ghana | B120: Greater Accra | C120: Ga East | D120: 193067 | E120: =IF(INTRO!$E$48="","",ROUND($D120*INTRO!$E$48,0)) -> 20851 | F120: =IF(INTRO!$E$49="","",ROUND($D120*INTRO!$E$49,0)) -> 47301 | G120: =IF(INTRO!$E$50="","",ROUND($D120*INTRO!$E$50,0)) -> 119122 | H120: 99 | I120: 0 | J120: 2 | K120: 2 | L120: =IF(INTRO!$E$38="Endemic", IF($H120>0, IF($H120=4,"Unknown", IF($H120=99,"Stopped", $D120)), 0),"Not required") -> Stopped | M120: 0 | N120: =IF(INTRO!$E$42="Endemic", IF(AND($J120>1,$J120<5), IF($J120=4, "Unknown", E120+F120), 0),"Not required") -> 68152 | O120: =IF(INTRO!$E$44="Endemic", IF(AND($K120>0,$K120<5), IF($K120=4,"Unknown", IF($K120=1, $F120*0.33, IF($K120=2, $F120*0.5+$G120*0.2, SUM(F120:G120)))), 0),"Not required") -> 47474.9 | P120: 0 | Q120: 0 | R120: 1 | S120: 1 | U120: T1 (PZQ+ALB/MBD) | W120: T1 | X120: 21493 | Y120: Ga East
A121: =IF(INTRO!$E$34<>0,INTRO!$E$34,"") -> Ghana | B121: Greater Accra | C121: La-Nkwantanang-Madina | D121: 146264 | E121: =IF(INTRO!$E$48="","",ROUND($D121*INTRO!$E$48,0)) -> 15797 | F121: =IF(INTRO!$E$49="","",ROUND($D121*INTRO!$E$49,0)) -> 35835 | G121: =IF(INTRO!$E$50="","",ROUND($D121*INTRO!$E$50,0)) -> 90245 | H121: 99 | I121: 0 | J121: 2 | K121: 2 | L121: =IF(INTRO!$E$38="Endemic", IF($H121>0, IF($H121=4,"Unknown", IF($H121=99,"Stopped", $D121)), 0),"Not required") -> Stopped | M121: 0 | N121: =IF(INTRO!$E$42="Endemic", IF(AND($J121>1,$J121<5), IF($J121=4, "Unknown", E121+F121), 0),"Not required") -> 51632 | O121: =IF(INTRO!$E$44="Endemic", IF(AND($K121>0,$K121<5), IF($K121=4,"Unknown", IF($K121=1, $F121*0.33, IF($K121=2, $F121*0.5+$G121*0.2, SUM(F121:G121)))), 0),"Not required") -> 35966.5 | P121: 0 | Q121: 0 | R121: 1 | S121: 1 | U121: T1 (PZQ+ALB/MBD) | W121: T1 | X121: 21498 | Y121: La-Nkwantanang-Madina
A122: =IF(INTRO!$E$34<>0,INTRO!$E$34,"") -> Ghana | B122: Greater Accra | C122: Ga South | D122: 634630 | E122: =IF(INTRO!$E$48="","",ROUND($D122*INTRO!$E$48,0)) -> 68540 | F122: =IF(INTRO!$E$49="","",ROUND($D122*INTRO!$E$49,0)) -> 155484 | G122: =IF(INTRO!$E$50="","",ROUND($D122*INTRO!$E$50,0)) -> 391567 | H122: 99 | I122: 0 | J122: 2 | K122: 3 | L122: =IF(INTRO!$E$38="Endemic", IF($H122>0, IF($H122=4,"Unknown", IF($H122=99,"Stopped", $D122)), 0),"Not required") -> Stopped | M122: 0 | N122: =IF(INTRO!$E$42="Endemic", IF(AND($J122>1,$J122<5), IF($J122=4, "Unknown", E122+F122), 0),"Not required") -> 224024 | O122: =IF(INTRO!$E$44="Endemic", IF(AND($K122>0,$K122<5), IF($K122=4,"Unknown", IF($K122=1, $F122*0.33, IF($K122=2, $F122*0.5+$G122*0.2, SUM(F122:G122)))), 0),"Not required") -> 547051 | P122: 0 | Q122: 0 | R122: 1 | S122: 1 | U122: T1 (PZQ+ALB/MBD) | W122: T1 | X122: 21494 | Y122: Ga South
A123: =IF(INTRO!$E$34<>0,INTRO!$E$34,"") -> Ghana | B123: Greater Accra | C123: Ga Central | D123: 56131 | E123: =IF(INTRO!$E$48="","",ROUND($D123*INTRO!$E$48,0)) -> 6062 | F123: =IF(INTRO!$E$49="","",ROUND($D123*INTRO!$E$49,0)) -> 13752 | G123: =IF(INTRO!$E$50="","",ROUND($D123*INTRO!$E$50,0)) -> 34633 | H123: 99 | I123: 0 | J123: 2 | K123: 3 | L123: =IF(INTRO!$E$38="Endemic", IF($H123>0, IF($H123=4,"Unknown", IF($H123=99,"Stopped", $D123)), 0),"Not required") -> Stopped | M123: 0 | N123: =IF(INTRO!$E$42="Endemic", IF(AND($J123>1,$J123<5), IF($J123=4, "Unknown", E123+F123), 0),"Not required") -> 19814 | O123: =IF(INTRO!$E$44="Endemic", IF(AND($K123>0,$K123<5), IF($K123=4,"Unknown", IF($K123=1, $F123*0.33, IF($K123=2, $F123*0.5+$G123*0.2, SUM(F123:G123)))), 0),"Not required") -> 48385 | P123: 0 | Q123: 0 | R123: 1 | S123: 1 | U123: T1 (PZQ+ALB/MBD) | W123: T1 | X123: 21492 | Y123: Ga Central
A124: =IF(INTRO!$E$34<>0,INTRO!$E$34,"") -> Ghana | B124: Greater Accra | C124: Ga West | D124: 287215 | E124: =IF(INTRO!$E$48="","",ROUND($D124*INTRO!$E$48,0)) -> 31019 | F124: =IF(INTRO!$E$49="","",ROUND($D124*INTRO!$E$49,0)) -> 70368 | G124: =IF(INTRO!$E$50="","",ROUND($D124*INTRO!$E$50,0)) -> 177212 | H124: 99 | I124: 0 | J124: 2 | K124: 3 | L124: =IF(INTRO!$E$38="Endemic", IF($H124>0, IF($H124=4,"Unknown", IF($H124=99,"Stopped", $D124)), 0),"Not required") -> Stopped | M124: 0 | N124: =IF(INTRO!$E$42="Endemic", IF(AND($J124>1,$J124<5), IF($J124=4, "Unknown", E124+F124), 0),"Not required") -> 101387 | O124: =IF(INTRO!$E$44="Endemic", IF(AND($K124>0,$K124<5), IF($K124=4,"Unknown", IF($K124=1, $F124*0.33, IF($K124=2, $F124*0.5+$G124*0.2, SUM(F124:G124)))), 0),"Not required") -> 247580 | P124: 0 | Q124: 0 | R124: 1 | S124: 1 | U124: T1 (PZQ+ALB/MBD) | W124: T1 | X124: 21495 | Y124: Ga West
A125: =IF(INTRO!$E$34<>0,INTRO!$E$34,"") -> Ghana | B125: Greater Accra | C125: Ledzokuku-Krowor | D125: 297858 | E125: =IF(INTRO!$E$48="","",ROUND($D125*INTRO!$E$48,0)) -> 32169 | F125: =IF(INTRO!$E$49="","",ROUND($D125*INTRO!$E$49,0)) -> 72975 | G125: =IF(INTRO!$E$50="","",ROUND($D125*INTRO!$E$50,0)) -> 183778 | H125: 99 | I125: 0 | J125: 2 | K125: 2 | L125: =IF(INTRO!$E$38="Endemic", IF($H125>0, IF($H125=4,"Unknown", IF($H125=99,"Stopped", $D125)), 0),"Not required") -> Stopped | M125: 0 | N125: =IF(INTRO!$E$42="Endemic", IF(AND($J125>1,$J125<5), IF($J125=4, "Unknown", E125+F125), 0),"Not required") -> 105144 | O125: =IF(INTRO!$E$44="Endemic", IF(AND($K125>0,$K125<5), IF($K125=4,"Unknown", IF($K125=1, $F125*0.33, IF($K125=2, $F125*0.5+$G125*0.2, SUM(F125:G125)))), 0),"Not required") -> 73243.1 | P125: 0 | Q125: 0 | R125: 1 | S125: 1 | U125: T1 (PZQ+ALB/MBD) | W125: T1 | X125: 21499 | Y125: Ledzokuku-Krowor
A126: =IF(INTRO!$E$34<>0,INTRO!$E$34,"") -> Ghana | B126: Greater Accra | C126: Tema | D126: 382591 | E126: =IF(INTRO!$E$48="","",ROUND($D126*INTRO!$E$48,0)) -> 41320 | F126: =IF(INTRO!$E$49="","",ROUND($D126*INTRO!$E$49,0)) -> 93735 | G126: =IF(INTRO!$E$50="","",ROUND($D126*INTRO!$E$50,0)) -> 236059 | H126: 0 | I126: 0 | J126: 2 | K126: 2 | L126: =IF(INTRO!$E$38="Endemic", IF($H126>0, IF($H126=4,"Unknown", IF($H126=99,"Stopped", $D126)), 0),"Not required") -> 0 | M126: 0 | N126: =IF(INTRO!$E$42="Endemic", IF(AND($J126>1,$J126<5), IF($J126=4, "Unknown", E126+F126), 0),"Not required") -> 135055 | O126: =IF(INTRO!$E$44="Endemic", IF(AND($K126>0,$K126<5), IF($K126=4,"Unknown", IF($K126=1, $F126*0.33, IF($K126=2, $F126*0.5+$G126*0.2, SUM(F126:G126)))), 0),"Not required") -> 94079.3 | P126: 0 | Q126: 0 | R126: 0 | S126: 0 | W126: T1 | X126: 21502 | Y126: Tema
A127: =IF(INTRO!$E$34<>0,INTRO!$E$34,"") -> Ghana | B127: Greater Accra | C127: Kpone Katamanso | D127: 143569 | E127: =IF(INTRO!$E$48="","",ROUND($D127*INTRO!$E$48,0)) -> 15505 | F127: =IF(INTRO!$E$49="","",ROUND($D127*INTRO!$E$49,0)) -> 35174 | G127: =IF(INTRO!$E$50="","",ROUND($D127*INTRO!$E$50,0)) -> 88582 | H127: 0 | I127: 0 | J127: 2 | K127: 2 | L127: =IF(INTRO!$E$38="Endemic", IF($H127>0, IF($H127=4,"Unknown", IF($H127=99,"Stopped", $D127)), 0),"Not required") -> 0 | M127: 0 | N127: =IF(INTRO!$E$42="Endemic", IF(AND($J127>1,$J127<5), IF($J127=4, "Unknown", E127+F127), 0),"Not required") -> 50679 | O127: =IF(INTRO!$E$44="Endemic", IF(AND($K127>0,$K127<5), IF($K127=4,"Unknown", IF($K127=1, $F127*0.33, IF($K127=2, $F127*0.5+$G127*0.2, SUM(F127:G127)))), 0),"Not required") -> 35303.4 | P127: 0 | Q127: 0 | R127: 1 | S127: 1 | U127: T1 (PZQ+ALB/MBD) | W127: T1 | X127: 21496 | Y127: Kpone Katamanso
A128: =IF(INTRO!$E$34<>0,INTRO!$E$34,"") -> Ghana | B128: Northern | C128: Bole | D128: 79249 | E128: =IF(INTRO!$E$48="","",ROUND($D128*INTRO!$E$48,0)) -> 8559 | F128: =IF(INTRO!$E$49="","",ROUND($D128*INTRO!$E$49,0)) -> 19416 | G128: =IF(INTRO!$E$50="","",ROUND($D128*INTRO!$E$50,0)) -> 48897 | H128: 1 | I128: 1 | J128: 2 | K128: 3 | L128: =IF(INTRO!$E$38="Endemic", IF($H128>0, IF($H128=4,"Unknown", IF($H128=99,"Stopped", $D128)), 0),"Not required") -> 79249 | M128: 68313 | N128: =IF(INTRO!$E$42="Endemic", IF(AND($J128>1,$J128<5), IF($J128=4, "Unknown", E128+F128), 0),"Not required") -> 27975 | O128: =IF(INTRO!$E$44="Endemic", IF(AND($K128>0,$K128<5), IF($K128=4,"Unknown", IF($K128=1, $F128*0.33, IF($K128=2, $F128*0.5+$G128*0.2, SUM(F128:G128)))), 0),"Not required") -> 68313 | P128: 1 | Q128: 1 | R128: 1 | S128: 1 | T128: MDA1 (IVM+ALB) | U128: T1 (PZQ+ALB/MBD) | V128: MDA 1 | W128: T2 | X128: 21503 | Y128: Bole
A129: =IF(INTRO!$E$34<>0,INTRO!$E$34,"") -> Ghana | B129: Northern | C129: Bunkpurugu-Yunyuo | D129: 157730 | E129: =IF(INTRO!$E$48="","",ROUND($D129*INTRO!$E$48,0)) -> 17035 | F129: =IF(INTRO!$E$49="","",ROUND($D129*INTRO!$E$49,0)) -> 38644 | G129: =IF(INTRO!$E$50="","",ROUND($D129*INTRO!$E$50,0)) -> 97319 | H129: 99 | I129: 0 | J129: 2 | K129: 1 | L129: =IF(INTRO!$E$38="Endemic", IF($H129>0, IF($H129=4,"Unknown", IF($H129=99,"Stopped", $D129)), 0),"Not required") -> Stopped | M129: 0 | N129: =IF(INTRO!$E$42="Endemic", IF(AND($J129>1,$J129<5), IF($J129=4, "Unknown", E129+F129), 0),"Not required") -> 55679 | O129: =IF(INTRO!$E$44="Endemic", IF(AND($K129>0,$K129<5), IF($K129=4,"Unknown", IF($K129=1, $F129*0.33, IF($K129=2, $F129*0.5+$G129*0.2, SUM(F129:G129)))), 0),"Not required") -> 12752.52 | P129: 0 | Q129: 0 | R129: 0 | S129: 0 | W129: T1 | X129: 21504 | Y129: Bunkpurugu-Yunyuo
A130: =IF(INTRO!$E$34<>0,INTRO!$E$34,"") -> Ghana | B130: Northern | C130: Central Gonja | D130: 113066 | E130: =IF(INTRO!$E$48="","",ROUND($D130*INTRO!$E$48,0)) -> 12211 | F130: =IF(INTRO!$E$49="","",ROUND($D130*INTRO!$E$49,0)) -> 27701 | G130: =IF(INTRO!$E$50="","",ROUND($D130*INTRO!$E$50,0)) -> 69762 | H130: 99 | I130: 0 | J130: 2 | K130: 2 | L130: =IF(INTRO!$E$38="Endemic", IF($H130>0, IF($H130=4,"Unknown", IF($H130=99,"Stopped", $D130)), 0),"Not required") -> Stopped | M130: 0 | N130: =IF(INTRO!$E$42="Endemic", IF(AND($J130>1,$J130<5), IF($J130=4, "Unknown", E130+F130), 0),"Not required") -> 39912 | O130: =IF(INTRO!$E$44="Endemic", IF(AND($K130>0,$K130<5), IF($K130=4,"Unknown", IF($K130=1, $F130*0.33, IF($K130=2, $F130*0.5+$G130*0.2, SUM(F130:G130)))), 0),"Not required") -> 27802.9 | P130: 0 | Q130: 0 | R130: 1 | S130: 1 | U130: T1 (PZQ+ALB/MBD) | W130: T1 | X130: 21505 | Y130: Central Gonja
A131: =IF(INTRO!$E$34<>0,INTRO!$E$34,"") -> Ghana | B131: Northern | C131: Chereponi | D131: 68698 | E131: =IF(INTRO!$E$48="","",ROUND($D131*INTRO!$E$48,0)) -> 7419 | F131: =IF(INTRO!$E$49="","",ROUND($D131*INTRO!$E$49,0)) -> 16831 | G131: =IF(INTRO!$E$50="","",ROUND($D131*INTRO!$E$50,0)) -> 42387 | H131: 99 | I131: 0 | J131: 2 | K131: 1 | L131: =IF(INTRO!$E$38="Endemic", IF($H131>0, IF($H131=4,"Unknown", IF($H131=99,"Stopped", $D131)), 0),"Not required") -> Stopped | M131: 0 | N131: =IF(INTRO!$E$42="Endemic", IF(AND($J131>1,$J131<5), IF($J131=4, "Unknown", E131+F131), 0),"Not required") -> 24250 | O131: =IF(INTRO!$E$44="Endemic", IF(AND($K131>0,$K131<5), IF($K131=4,"Unknown", IF($K131=1, $F131*0.33, IF($K131=2, $F131*0.5+$G131*0.2, SUM(F131:G131)))), 0),"Not required") -> 5554.23 | P131: 0 | Q131: 0 | R131: 0 | S131: 0 | W131: T1 | X131: 21506 | Y131: Chereponi
A132: =IF(INTRO!$E$34<>0,INTRO!$E$34,"") -> Ghana | B132: Northern | C132: East Gonja | D132: 174276 | E132: =IF(INTRO!$E$48="","",ROUND($D132*INTRO!$E$48,0)) -> 18822 | F132: =IF(INTRO!$E$49="","",ROUND($D132*INTRO!$E$49,0)) -> 42698 | G132: =IF(INTRO!$E$50="","",ROUND($D132*INTRO!$E$50,0)) -> 107528 | H132: 99 | I132: 1 | J132: 2 | K132: 3 | L132: =IF(INTRO!$E$38="Endemic", IF($H132>0, IF($H132=4,"Unknown", IF($H132=99,"Stopped", $D132)), 0),"Not required") -> Stopped | M132: 57162.81422 | N132: =IF(INTRO!$E$42="Endemic", IF(AND($J132>1,$J132<5), IF($J132=4, "Unknown", E132+F132), 0),"Not required") -> 61520 | O132: =IF(INTRO!$E$44="Endemic", IF(AND($K132>0,$K132<5), IF($K132=4,"Unknown", IF($K132=1, $F132*0.33, IF($K132=2, $F132*0.5+$G132*0.2, SUM(F132:G132)))), 0),"Not required") -> 150226 | P132: 0 | Q132: 2 | R132: 1 | S132: 1 | T132: MDA3 (IVM) | U132: T1 (PZQ+ALB/MBD) | V132: MDA 1 | W132: T2 | X132: 21507 | Y132: East Gonja
A133: =IF(INTRO!$E$34<>0,INTRO!$E$34,"") -> Ghana | B133: Northern | C133: East Mamprusi | D133: 155696 | E133: =IF(INTRO!$E$48="","",ROUND($D133*INTRO!$E$48,0)) -> 16815 | F133: =IF(INTRO!$E$49="","",ROUND($D133*INTRO!$E$49,0)) -> 38146 | G133: =IF(INTRO!$E$50="","",ROUND($D133*INTRO!$E$50,0)) -> 96064 | H133: 99 | I133: 0 | J133: 2 | K133: 1 | L133: =IF(INTRO!$E$38="Endemic", IF($H133>0, IF($H133=4,"Unknown", IF($H133=99,"Stopped", $D133)), 0),"Not required") -> Stopped | M133: 0 | N133: =IF(INTRO!$E$42="Endemic", IF(AND($J133>1,$J133<5), IF($J133=4, "Unknown", E133+F133), 0),"Not required") -> 54961 | O133: =IF(INTRO!$E$44="Endemic", IF(AND($K133>0,$K133<5), IF($K133=4,"Unknown", IF($K133=1, $F133*0.33, IF($K133=2, $F133*0.5+$G133*0.2, SUM(F133:G133)))), 0),"Not required") -> 12588.18 | P133: 0 | Q133: 0 | R133: 0 | S133: 0 | W133: T1 | X133: 21508 | Y133: East Mamprusi
A134: =IF(INTRO!$E$34<>0,INTRO!$E$34,"") -> Ghana | B134: Northern | C134: Gushiegu | D134: 143150 | E134: =IF(INTRO!$E$48="","",ROUND($D134*INTRO!$E$48,0)) -> 15460 | F134: =IF(INTRO!$E$49="","",ROUND($D134*INTRO!$E$49,0)) -> 35072 | G134: =IF(INTRO!$E$50="","",ROUND($D134*INTRO!$E$50,0)) -> 88324 | H134: 99 | I134: 0 | J134: 2 | K134: 1 | L134: =IF(INTRO!$E$38="Endemic", IF($H134>0, IF($H134=4,"Unknown", IF($H134=99,"Stopped", $D134)), 0),"Not required") -> Stopped | M134: 0 | N134: =IF(INTRO!$E$42="Endemic", IF(AND($J134>1,$J134<5), IF($J134=4, "Unknown", E134+F134), 0),"Not required") -> 50532 | O134: =IF(INTRO!$E$44="Endemic", IF(AND($K134>0,$K134<5), IF($K134=4,"Unknown", IF($K134=1, $F134*0.33, IF($K134=2, $F134*0.5+$G134*0.2, SUM(F134:G134)))), 0),"Not required") -> 11573.76 | P134: 0 | Q134: 0 | R134: 0 | S134: 0 | W134: T1 | X134: 21509 | Y134: Gushiegu
A135: =IF(INTRO!$E$34<>0,INTRO!$E$34,"") -> Ghana | B135: Northern | C135: Karaga | D135: 99980 | E135: =IF(INTRO!$E$48="","",ROUND($D135*INTRO!$E$48,0)) -> 10798 | F135: =IF(INTRO!$E$49="","",ROUND($D135*INTRO!$E$49,0)) -> 24495 | G135: =IF(INTRO!$E$50="","",ROUND($D135*INTRO!$E$50,0)) -> 61688 | H135: 99 | I135: 0 | J135: 2 | K135: 1 | L135: =IF(INTRO!$E$38="Endemic", IF($H135>0, IF($H135=4,"Unknown", IF($H135=99,"Stopped", $D135)), 0),"Not required") -> Stopped | M135: 0 | N135: =IF(INTRO!$E$42="Endemic", IF(AND($J135>1,$J135<5), IF($J135=4, "Unknown", E135+F135), 0),"Not required") -> 35293 | O135: =IF(INTRO!$E$44="Endemic", IF(AND($K135>0,$K135<5), IF($K135=4,"Unknown", IF($K135=1, $F135*0.33, IF($K135=2, $F135*0.5+$G135*0.2, SUM(F135:G135)))), 0),"Not required") -> 8083.35 | P135: 0 | Q135: 0 | R135: 0 | S135: 0 | W135: T1 | X135: 21510 | Y135: Karaga
A136: =IF(INTRO!$E$34<>0,INTRO!$E$34,"") -> Ghana | B136: Northern | C136: Kpandai | D136: 140007 | E136: =IF(INTRO!$E$48="","",ROUND($D136*INTRO!$E$48,0)) -> 15121 | F136: =IF(INTRO!$E$49="","",ROUND($D136*INTRO!$E$49,0)) -> 34302 | G136: =IF(INTRO!$E$50="","",ROUND($D136*INTRO!$E$50,0)) -> 86384 | H136: 99 | I136: 1 | J136: 2 | K136: 3 | L136: =IF(INTRO!$E$38="Endemic", IF($H136>0, IF($H136=4,"Unknown", IF($H136=99,"Stopped", $D136)), 0),"Not required") -> Stopped | M136: 120686 | N136: =IF(INTRO!$E$42="Endemic", IF(AND($J136>1,$J136<5), IF($J136=4, "Unknown", E136+F136), 0),"Not required") -> 49423 | O136: =IF(INTRO!$E$44="Endemic", IF(AND($K136>0,$K136<5), IF($K136=4,"Unknown", IF($K136=1, $F136*0.33, IF($K136=2, $F136*0.5+$G136*0.2, SUM(F136:G136)))), 0),"Not required") -> 120686 | P136: 0 | Q136: 2 | R136: 1 | S136: 1 | T136: MDA3 (IVM) | U136: T1 (PZQ+ALB/MBD) | V136: MDA 1 | W136: T2 | X136: 21511 | Y136: Kpandai
A137: =IF(INTRO!$E$34<>0,INTRO!$E$34,"") -> Ghana | B137: Northern | C137: Nanumba North | D137: 182168 | E137: =IF(INTRO!$E$48="","",ROUND($D137*INTRO!$E$48,0)) -> 19674 | F137: =IF(INTRO!$E$49="","",ROUND($D137*INTRO!$E$49,0)) -> 44631 | G137: =IF(INTRO!$E$50="","",ROUND($D137*INTRO!$E$50,0)) -> 112398 | H137: 99 | I137: 1 | J137: 2 | K137: 2 | L137: =IF(INTRO!$E$38="Endemic", IF($H137>0, IF($H137=4,"Unknown", IF($H137=99,"Stopped", $D137)), 0),"Not required") -> Stopped | M137: 43677.59549 | N137: =IF(INTRO!$E$42="Endemic", IF(AND($J137>1,$J137<5), IF($J137=4, "Unknown", E137+F137), 0),"Not required") -> 64305 | O137: =IF(INTRO!$E$44="Endemic", IF(AND($K137>0,$K137<5), IF($K137=4,"Unknown", IF($K137=1, $F137*0.33, IF($K137=2, $F137*0.5+$G137*0.2, SUM(F137:G137)))), 0),"Not required") -> 44795.1 | P137: 0 | Q137: 2 | R137: 1 | S137: 1 | T137: MDA3 (IVM) | U137: T1 (PZQ+ALB/MBD) | V137: MDA 1 | W137: T2 | X137: 21515 | Y137: Nanumba North
A138: =IF(INTRO!$E$34<>0,INTRO!$E$34,"") -> Ghana | B138: Northern | C138: Nanumba South | D138: 120255 | E138: =IF(INTRO!$E$48="","",ROUND($D138*INTRO!$E$48,0)) -> 12988 | F138: =IF(INTRO!$E$49="","",ROUND($D138*INTRO!$E$49,0)) -> 29462 | G138: =IF(INTRO!$E$50="","",ROUND($D138*INTRO!$E$50,0)) -> 74197 | H138: 99 | I138: 1 | J138: 2 | K138: 2 | L138: =IF(INTRO!$E$38="Endemic", IF($H138>0, IF($H138=4,"Unknown", IF($H138=99,"Stopped", $D138)), 0),"Not required") -> Stopped | M138: 103221 | N138: =IF(INTRO!$E$42="Endemic", IF(AND($J138>1,$J138<5), IF($J138=4, "Unknown", E138+F138), 0),"Not required") -> 42450 | O138: =IF(INTRO!$E$44="Endemic", IF(AND($K138>0,$K138<5), IF($K138=4,"Unknown", IF($K138=1, $F138*0.33, IF($K138=2, $F138*0.5+$G138*0.2, SUM(F138:G138)))), 0),"Not required") -> 29570.4 | P138: 0 | Q138: 2 | R138: 1 | S138: 1 | T138: MDA3 (IVM) | U138: T1 (PZQ+ALB/MBD) | V138: MDA 1 | W138: T2 | X138: 21516 | Y138: Nanumba South
A139: =IF(INTRO!$E$34<>0,INTRO!$E$34,"") -> Ghana | B139: Northern | C139: Saboba | D139: 84540 | E139: =IF(INTRO!$E$48="","",ROUND($D139*INTRO!$E$48,0)) -> 9130 | F139: =IF(INTRO!$E$49="","",ROUND($D139*INTRO!$E$49,0)) -> 20712 | G139: =IF(INTRO!$E$50="","",ROUND($D139*INTRO!$E$50,0)) -> 52161 | H139: 99 | I139: 0 | J139: 2 | K139: 1 | L139: =IF(INTRO!$E$38="Endemic", IF($H139>0, IF($H139=4,"Unknown", IF($H139=99,"Stopped", $D139)), 0),"Not required") -> Stopped | M139: 0 | N139: =IF(INTRO!$E$42="Endemic", IF(AND($J139>1,$J139<5), IF($J139=4, "Unknown", E139+F139), 0),"Not required") -> 29842 | O139: =IF(INTRO!$E$44="Endemic", IF(AND($K139>0,$K139<5), IF($K139=4,"Unknown", IF($K139=1, $F139*0.33, IF($K139=2, $F139*0.5+$G139*0.2, SUM(F139:G139)))), 0),"Not required") -> 6834.96 | P139: 0 | Q139: 0 | R139: 0 | S139: 0 | W139: T1 | X139: 21518 | Y139: Saboba
A140: =IF(INTRO!$E$34<>0,INTRO!$E$34,"") -> Ghana | B140: Northern | C140: Savelugu-Nanton | D140: 179207 | E140: =IF(INTRO!$E$48="","",ROUND($D140*INTRO!$E$48,0)) -> 19354 | F140: =IF(INTRO!$E$49="","",ROUND($D140*INTRO!$E$49,0)) -> 43906 | G140: =IF(INTRO!$E$50="","",ROUND($D140*INTRO!$E$50,0)) -> 110571 | H140: 99 | I140: 1 | J140: 2 | K140: 1 | L140: =IF(INTRO!$E$38="Endemic", IF($H140>0, IF($H140=4,"Unknown", IF($H140=99,"Stopped", $D140)), 0),"Not required") -> Stopped | M140: 41765.12968 | N140: =IF(INTRO!$E$42="Endemic", IF(AND($J140>1,$J140<5), IF($J140=4, "Unknown", E140+F140), 0),"Not required") -> 63260 | O140: =IF(INTRO!$E$44="Endemic", IF(AND($K140>0,$K140<5), IF($K140=4,"Unknown", IF($K140=1, $F140*0.33, IF($K140=2, $F140*0.5+$G140*0.2, SUM(F140:G140)))), 0),"Not required") -> 14488.98 | P140: 0 | Q140: 2 | R140: 0 | S140: 0 | T140: MDA3 (IVM) | V140: MDA 1 | W140: T2 | X140: 21520 | Y140: Savelugu-Nanton
A141: =IF(INTRO!$E$34<>0,INTRO!$E$34,"") -> Ghana | B141: Northern | C141: Sawla-Tuna-Kalba | D141: 128488 | E141: =IF(INTRO!$E$48="","",ROUND($D141*INTRO!$E$48,0)) -> 13877 | F141: =IF(INTRO!$E$49="","",ROUND($D141*INTRO!$E$49,0)) -> 31480 | G141: =IF(INTRO!$E$50="","",ROUND($D141*INTRO!$E$50,0)) -> 79277 | H141: 1 | I141: 1 | J141: 2 | K141: 1 | L141: =IF(INTRO!$E$38="Endemic", IF($H141>0, IF($H141=4,"Unknown", IF($H141=99,"Stopped", $D141)), 0),"Not required") -> 128488 | M141: 110757 | N141: =IF(INTRO!$E$42="Endemic", IF(AND($J141>1,$J141<5), IF($J141=4, "Unknown", E141+F141), 0),"Not required") -> 45357 | O141: =IF(INTRO!$E$44="Endemic", IF(AND($K141>0,$K141<5), IF($K141=4,"Unknown", IF($K141=1, $F141*0.33, IF($K141=2, $F141*0.5+$G141*0.2, SUM(F141:G141)))), 0),"Not required") -> 10388.4 | P141: 1 | Q141: 1 | R141: 0 | S141: 0 | T141: MDA1 (IVM+ALB) | U141: MDA3 (IVM) | V141: MDA 1 | W141: T2 | X141: 21521 | Y141: Sawla-Tuna-Kalba
A142: =IF(INTRO!$E$34<>0,INTRO!$E$34,"") -> Ghana | B142: Northern | C142: Tamale | D142: 287246 | E142: =IF(INTRO!$E$48="","",ROUND($D142*INTRO!$E$48,0)) -> 31023 | F142: =IF(INTRO!$E$49="","",ROUND($D142*INTRO!$E$49,0)) -> 70375 | G142: =IF(INTRO!$E$50="","",ROUND($D142*INTRO!$E$50,0)) -> 177231 | H142: 99 | I142: 0 | J142: 2 | K142: 1 | L142: =IF(INTRO!$E$38="Endemic", IF($H142>0, IF($H142=4,"Unknown", IF($H142=99,"Stopped", $D142)), 0),"Not required") -> Stopped | M142: 0 | N142: =IF(INTRO!$E$42="Endemic", IF(AND($J142>1,$J142<5), IF($J142=4, "Unknown", E142+F142), 0),"Not required") -> 101398 | O142: =IF(INTRO!$E$44="Endemic", IF(AND($K142>0,$K142<5), IF($K142=4,"Unknown", IF($K142=1, $F142*0.33, IF($K142=2, $F142*0.5+$G142*0.2, SUM(F142:G142)))), 0),"Not required") -> 23223.75 | P142: 0 | Q142: 0 | R142: 0 | S142: 0 | W142: T1 | X142: 21523 | Y142: Tamale
A143: =IF(INTRO!$E$34<>0,INTRO!$E$34,"") -> Ghana | B143: Northern | C143: Sagnarigu | D143: 190550 | E143: =IF(INTRO!$E$48="","",ROUND($D143*INTRO!$E$48,0)) -> 20579 | F143: =IF(INTRO!$E$49="","",ROUND($D143*INTRO!$E$49,0)) -> 46685 | G143: =IF(INTRO!$E$50="","",ROUND($D143*INTRO!$E$50,0)) -> 117569 | H143: 99 | I143: 0 | J143: 2 | K143: 1 | L143: =IF(INTRO!$E$38="Endemic", IF($H143>0, IF($H143=4,"Unknown", IF($H143=99,"Stopped", $D143)), 0),"Not required") -> Stopped | M143: 0 | N143: =IF(INTRO!$E$42="Endemic", IF(AND($J143>1,$J143<5), IF($J143=4, "Unknown", E143+F143), 0),"Not required") -> 67264 | O143: =IF(INTRO!$E$44="Endemic", IF(AND($K143>0,$K143<5), IF($K143=4,"Unknown", IF($K143=1, $F143*0.33, IF($K143=2, $F143*0.5+$G143*0.2, SUM(F143:G143)))), 0),"Not required") -> 15406.05 | P143: 0 | Q143: 0 | R143: 0 | S143: 0 | W143: T1 | X143: 21519 | Y143: Sagnarigu
A144: =IF(INTRO!$E$34<>0,INTRO!$E$34,"") -> Ghana | B144: Northern | C144: Tolon | D144: 94489 | E144: =IF(INTRO!$E$48="","",ROUND($D144*INTRO!$E$48,0)) -> 10205 | F144: =IF(INTRO!$E$49="","",ROUND($D144*INTRO!$E$49,0)) -> 23150 | G144: =IF(INTRO!$E$50="","",ROUND($D144*INTRO!$E$50,0)) -> 58300 | H144: 99 | I144: 0 | J144: 2 | K144: 1 | L144: =IF(INTRO!$E$38="Endemic", IF($H144>0, IF($H144=4,"Unknown", IF($H144=99,"Stopped", $D144)), 0),"Not required") -> Stopped | M144: 0 | N144: =IF(INTRO!$E$42="Endemic", IF(AND($J144>1,$J144<5), IF($J144=4, "Unknown", E144+F144), 0),"Not required") -> 33355 | O144: =IF(INTRO!$E$44="Endemic", IF(AND($K144>0,$K144<5), IF($K144=4,"Unknown", IF($K144=1, $F144*0.33, IF($K144=2, $F144*0.5+$G144*0.2, SUM(F144:G144)))), 0),"Not required") -> 7639.5 | P144: 0 | Q144: 0 | R144: 0 | S144: 0 | W144: T1 | X144: 21525 | Y144: Tolon
A145: =IF(INTRO!$E$34<>0,INTRO!$E$34,"") -> Ghana | B145: Northern | C145: Kumbungu | D145: 50042 | E145: =IF(INTRO!$E$48="","",ROUND($D145*INTRO!$E$48,0)) -> 5405 | F145: =IF(INTRO!$E$49="","",ROUND($D145*INTRO!$E$49,0)) -> 12260 | G145: =IF(INTRO!$E$50="","",ROUND($D145*INTRO!$E$50,0)) -> 30876 | H145: 99 | I145: 1 | J145: 2 | K145: 1 | L145: =IF(INTRO!$E$38="Endemic", IF($H145>0, IF($H145=4,"Unknown", IF($H145=99,"Stopped", $D145)), 0),"Not required") -> Stopped | M145: 43136 | N145: =IF(INTRO!$E$42="Endemic", IF(AND($J145>1,$J145<5), IF($J145=4, "Unknown", E145+F145), 0),"Not required") -> 17665 | O145: =IF(INTRO!$E$44="Endemic", IF(AND($K145>0,$K145<5), IF($K145=4,"Unknown", IF($K145=1, $F145*0.33, IF($K145=2, $F145*0.5+$G145*0.2, SUM(F145:G145)))), 0),"Not required") -> 4045.8 | P145: 0 | Q145: 2 | R145: 0 | S145: 0 | T145: MDA3 (IVM) | V145: MDA 1 | W145: T2 | X145: 21512 | Y145: Kumbungu
A146: =IF(INTRO!$E$34<>0,INTRO!$E$34,"") -> Ghana | B146: Northern | C146: West Gonja | D146: 52984 | E146: =IF(INTRO!$E$48="","",ROUND($D146*INTRO!$E$48,0)) -> 5722 | F146: =IF(INTRO!$E$49="","",ROUND($D146*INTRO!$E$49,0)) -> 12981 | G146: =IF(INTRO!$E$50="","",ROUND($D146*INTRO!$E$50,0)) -> 32691 | H146: 1 | I146: 0 | J146: 2 | K146: 1 | L146: =IF(INTRO!$E$38="Endemic", IF($H146>0, IF($H146=4,"Unknown", IF($H146=99,"Stopped", $D146)), 0),"Not required") -> 52984 | M146: 0 | N146: =IF(INTRO!$E$42="Endemic", IF(AND($J146>1,$J146<5), IF($J146=4, "Unknown", E146+F146), 0),"Not required") -> 18703 | O146: =IF(INTRO!$E$44="Endemic", IF(AND($K146>0,$K146<5), IF($K146=4,"Unknown", IF($K146=1, $F146*0.33, IF($K146=2, $F146*0.5+$G146*0.2, SUM(F146:G146)))), 0),"Not required") -> 4283.73 | P146: 1 | Q146: 0 | R146: 0 | S146: 0 | T146: MDA1 (IVM+ALB) | V146: MDA 1 | W146: T2 | X146: 21526 | Y146: West Gonja
A147: =IF(INTRO!$E$34<>0,INTRO!$E$34,"") -> Ghana | B147: Northern | C147: North Gonja | D147: 56029 | E147: =IF(INTRO!$E$48="","",ROUND($D147*INTRO!$E$48,0)) -> 6051 | F147: =IF(INTRO!$E$49="","",ROUND($D147*INTRO!$E$49,0)) -> 13727 | G147: =IF(INTRO!$E$50="","",ROUND($D147*INTRO!$E$50,0)) -> 34570 | H147: 1 | I147: 1 | J147: 2 | K147: 1 | L147: =IF(INTRO!$E$38="Endemic", IF($H147>0, IF($H147=4,"Unknown", IF($H147=99,"Stopped", $D147)), 0),"Not required") -> 56029 | M147: 48297 | N147: =IF(INTRO!$E$42="Endemic", IF(AND($J147>1,$J147<5), IF($J147=4, "Unknown", E147+F147), 0),"Not required") -> 19778 | O147: =IF(INTRO!$E$44="Endemic", IF(AND($K147>0,$K147<5), IF($K147=4,"Unknown", IF($K147=1, $F147*0.33, IF($K147=2, $F147*0.5+$G147*0.2, SUM(F147:G147)))), 0),"Not required") -> 4529.91 | P147: 1 | Q147: 1 | R147: 0 | S147: 0 | T147: MDA1 (IVM+ALB) | U147: MDA3 (IVM) | V147: MDA 1 | W147: T2 | X147: 21517 | Y147: North Gonja
A148: =IF(INTRO!$E$34<>0,INTRO!$E$34,"") -> Ghana | B148: Northern | C148: West Mamprusi | D148: 155835 | E148: =IF(INTRO!$E$48="","",ROUND($D148*INTRO!$E$48,0)) -> 16830 | F148: =IF(INTRO!$E$49="","",ROUND($D148*INTRO!$E$49,0)) -> 38180 | G148: =IF(INTRO!$E$50="","",ROUND($D148*INTRO!$E$50,0)) -> 96150 | H148: 99 | I148: 0 | J148: 2 | K148: 2 | L148: =IF(INTRO!$E$38="Endemic", IF($H148>0, IF($H148=4,"Unknown", IF($H148=99,"Stopped", $D148)), 0),"Not required") -> Stopped | M148: 0 | N148: =IF(INTRO!$E$42="Endemic", IF(AND($J148>1,$J148<5), IF($J148=4, "Unknown", E148+F148), 0),"Not required") -> 55010 | O148: =IF(INTRO!$E$44="Endemic", IF(AND($K148>0,$K148<5), IF($K148=4,"Unknown", IF($K148=1, $F148*0.33, IF($K148=2, $F148*0.5+$G148*0.2, SUM(F148:G148)))), 0),"Not required") -> 38320 | P148: 0 | Q148: 0 | R148: 1 | S148: 1 | U148: T1 (PZQ+ALB/MBD) | W148: T1 | X148: 21527 | Y148: West Mamprusi
A149: =IF(INTRO!$E$34<>0,INTRO!$E$34,"") -> Ghana | B149: Northern | C149: Mamprugo Moaduri | D149: 60336 | E149: =IF(INTRO!$E$48="","",ROUND($D149*INTRO!$E$48,0)) -> 6516 | F149: =IF(INTRO!$E$49="","",ROUND($D149*INTRO!$E$49,0)) -> 14782 | G149: =IF(INTRO!$E$50="","",ROUND($D149*INTRO!$E$50,0)) -> 37227 | H149: 99 | I149: 1 | J149: 2 | K149: 2 | L149: =IF(INTRO!$E$38="Endemic", IF($H149>0, IF($H149=4,"Unknown", IF($H149=99,"Stopped", $D149)), 0),"Not required") -> Stopped | M149: 52009 | N149: =IF(INTRO!$E$42="Endemic", IF(AND($J149>1,$J149<5), IF($J149=4, "Unknown", E149+F149), 0),"Not required") -> 21298 | O149: =IF(INTRO!$E$44="Endemic", IF(AND($K149>0,$K149<5), IF($K149=4,"Unknown", IF($K149=1, $F149*0.33, IF($K149=2, $F149*0.5+$G149*0.2, SUM(F149:G149)))), 0),"Not required") -> 14836.4 | P149: 0 | Q149: 2 | R149: 1 | S149: 1 | T149: MDA3 (IVM) | U149: T1 (PZQ+ALB/MBD) | V149: MDA 1 | W149: T2 | X149: 21513 | Y149: Mamprugo Moaduri
A150: =IF(INTRO!$E$34<>0,INTRO!$E$34,"") -> Ghana | B150: Northern | C150: Yendi | D150: 152159 | E150: =IF(INTRO!$E$48="","",ROUND($D150*INTRO!$E$48,0)) -> 16433 | F150: =IF(INTRO!$E$49="","",ROUND($D150*INTRO!$E$49,0)) -> 37279 | G150: =IF(INTRO!$E$50="","",ROUND($D150*INTRO!$E$50,0)) -> 93882 | H150: 99 | I150: 0 | J150: 2 | K150: 1 | L150: =IF(INTRO!$E$38="Endemic", IF($H150>0, IF($H150=4,"Unknown", IF($H150=99,"Stopped", $D150)), 0),"Not required") -> Stopped | M150: 0 | N150: =IF(INTRO!$E$42="Endemic", IF(AND($J150>1,$J150<5), IF($J150=4, "Unknown", E150+F150), 0),"Not required") -> 53712 | O150: =IF(INTRO!$E$44="Endemic", IF(AND($K150>0,$K150<5), IF($K150=4,"Unknown", IF($K150=1, $F150*0.33, IF($K150=2, $F150*0.5+$G150*0.2, SUM(F150:G150)))), 0),"Not required") -> 12302.07 | P150: 0 | Q150: 0 | R150: 0 | S150: 0 | W150: T1 | X150: 21528 | Y150: Yendi
A151: =IF(INTRO!$E$34<>0,INTRO!$E$34,"") -> Ghana | B151: Northern | C151: Mion | D151: 104645 | E151: =IF(INTRO!$E$48="","",ROUND($D151*INTRO!$E$48,0)) -> 11302 | F151: =IF(INTRO!$E$49="","",ROUND($D151*INTRO!$E$49,0)) -> 25638 | G151: =IF(INTRO!$E$50="","",ROUND($D151*INTRO!$E$50,0)) -> 64566 | H151: 99 | I151: 0 | J151: 2 | K151: 1 | L151: =IF(INTRO!$E$38="Endemic", IF($H151>0, IF($H151=4,"Unknown", IF($H151=99,"Stopped", $D151)), 0),"Not required") -> Stopped | M151: 0 | N151: =IF(INTRO!$E$42="Endemic", IF(AND($J151>1,$J151<5), IF($J151=4, "Unknown", E151+F151), 0),"Not required") -> 36940 | O151: =IF(INTRO!$E$44="Endemic", IF(AND($K151>0,$K151<5), IF($K151=4,"Unknown", IF($K151=1, $F151*0.33, IF($K151=2, $F151*0.5+$G151*0.2, SUM(F151:G151)))), 0),"Not required") -> 8460.54 | P151: 0 | Q151: 0 | R151: 0 | S151: 0 | W151: T1 | X151: 21514 | Y151: Mion
A152: =IF(INTRO!$E$34<>0,INTRO!$E$34,"") -> Ghana | B152: Northern | C152: Zabzugu | D152: 82962 | E152: =IF(INTRO!$E$48="","",ROUND($D152*INTRO!$E$48,0)) -> 8960 | F152: =IF(INTRO!$E$49="","",ROUND($D152*INTRO!$E$49,0)) -> 20326 | G152: =IF(INTRO!$E$50="","",ROUND($D152*INTRO!$E$50,0)) -> 51188 | H152: 99 | I152: 1 | J152: 2 | K152: 2 | L152: =IF(INTRO!$E$38="Endemic", IF($H152>0, IF($H152=4,"Unknown", IF($H152=99,"Stopped", $D152)), 0),"Not required") -> Stopped | M152: 71514 | N152: =IF(INTRO!$E$42="Endemic", IF(AND($J152>1,$J152<5), IF($J152=4, "Unknown", E152+F152), 0),"Not required") -> 29286 | O152: =IF(INTRO!$E$44="Endemic", IF(AND($K152>0,$K152<5), IF($K152=4,"Unknown", IF($K152=1, $F152*0.33, IF($K152=2, $F152*0.5+$G152*0.2, SUM(F152:G152)))), 0),"Not required") -> 20400.6 | P152: 0 | Q152: 2 | R152: 1 | S152: 1 | T152: MDA3 (IVM) | U152: T1 (PZQ+ALB/MBD) | V152: MDA 1 | W152: T2 | X152: 21529 | Y152: Zabzugu
A153: =IF(INTRO!$E$34<>0,INTRO!$E$34,"") -> Ghana | B153: Northern | C153: Tatale Sangule | D153: 76393 | E153: =IF(INTRO!$E$48="","",ROUND($D153*INTRO!$E$48,0)) -> 8250 | F153: =IF(INTRO!$E$49="","",ROUND($D153*INTRO!$E$49,0)) -> 18716 | G153: =IF(INTRO!$E$50="","",ROUND($D153*INTRO!$E$50,0)) -> 47134 | H153: 99 | I153: 0 | J153: 2 | K153: 2 | L153: =IF(INTRO!$E$38="Endemic", IF($H153>0, IF($H153=4,"Unknown", IF($H153=99,"Stopped", $D153)), 0),"Not required") -> Stopped | M153: 0 | N153: =IF(INTRO!$E$42="Endemic", IF(AND($J153>1,$J153<5), IF($J153=4, "Unknown", E153+F153), 0),"Not required") -> 26966 | O153: =IF(INTRO!$E$44="Endemic", IF(AND($K153>0,$K153<5), IF($K153=4,"Unknown", IF($K153=1, $F153*0.33, IF($K153=2, $F153*0.5+$G153*0.2, SUM(F153:G153)))), 0),"Not required") -> 18784.8 | P153: 0 | Q153: 0 | R153: 1 | S153: 1 | U153: T1 (PZQ+ALB/MBD) | W153: T1 | X153: 21524 | Y153: Tatale Sangule
A154: =IF(INTRO!$E$34<>0,INTRO!$E$34,"") -> Ghana | B154: Upper East | C154: Bawku Municipal | D154: 110964 | E154: =IF(INTRO!$E$48="","",ROUND($D154*INTRO!$E$48,0)) -> 11984 | F154: =IF(INTRO!$E$49="","",ROUND($D154*INTRO!$E$49,0)) -> 27186 | G154: =IF(INTRO!$E$50="","",ROUND($D154*INTRO!$E$50,0)) -> 68465 | H154: 99 | I154: 0 | J154: 2 | K154: 2 | L154: =IF(INTRO!$E$38="Endemic", IF($H154>0, IF($H154=4,"Unknown", IF($H154=99,"Stopped", $D154)), 0),"Not required") -> Stopped | M154: 0 | N154: =IF(INTRO!$E$42="Endemic", IF(AND($J154>1,$J154<5), IF($J154=4, "Unknown", E154+F154), 0),"Not required") -> 39170 | O154: =IF(INTRO!$E$44="Endemic", IF(AND($K154>0,$K154<5), IF($K154=4,"Unknown", IF($K154=1, $F154*0.33, IF($K154=2, $F154*0.5+$G154*0.2, SUM(F154:G154)))), 0),"Not required") -> 27286 | P154: 0 | Q154: 0 | R154: 1 | S154: 1 | U154: T1 (PZQ+ALB/MBD) | W154: T1 | X154: 21530 | Y154: Bawku Municipal
A155: =IF(INTRO!$E$34<>0,INTRO!$E$34,"") -> Ghana | B155: Upper East | C155: Pusiga | D155: 64951 | E155: =IF(INTRO!$E$48="","",ROUND($D155*INTRO!$E$48,0)) -> 7015 | F155: =IF(INTRO!$E$49="","",ROUND($D155*INTRO!$E$49,0)) -> 15913 | G155: =IF(INTRO!$E$50="","",ROUND($D155*INTRO!$E$50,0)) -> 40075 | H155: 99 | I155: 0 | J155: 2 | K155: 2 | L155: =IF(INTRO!$E$38="Endemic", IF($H155>0, IF($H155=4,"Unknown", IF($H155=99,"Stopped", $D155)), 0),"Not required") -> Stopped | M155: 0 | N155: =IF(INTRO!$E$42="Endemic", IF(AND($J155>1,$J155<5), IF($J155=4, "Unknown", E155+F155), 0),"Not required") -> 22928 | O155: =IF(INTRO!$E$44="Endemic", IF(AND($K155>0,$K155<5), IF($K155=4,"Unknown", IF($K155=1, $F155*0.33, IF($K155=2, $F155*0.5+$G155*0.2, SUM(F155:G155)))), 0),"Not required") -> 15971.5 | P155: 0 | Q155: 0 | R155: 1 | S155: 1 | U155: T1 (PZQ+ALB/MBD) | W155: T1 | X155: 21542 | Y155: Pusiga
A156: =IF(INTRO!$E$34<>0,INTRO!$E$34,"") -> Ghana | B156: Upper East | C156: Binduri | D156: 69341 | E156: =IF(INTRO!$E$48="","",ROUND($D156*INTRO!$E$48,0)) -> 7489 | F156: =IF(INTRO!$E$49="","",ROUND($D156*INTRO!$E$49,0)) -> 16989 | G156: =IF(INTRO!$E$50="","",ROUND($D156*INTRO!$E$50,0)) -> 42783 | H156: 99 | I156: 0 | J156: 2 | K156: 2 | L156: =IF(INTRO!$E$38="Endemic", IF($H156>0, IF($H156=4,"Unknown", IF($H156=99,"Stopped", $D156)), 0),"Not required") -> Stopped | M156: 0 | N156: =IF(INTRO!$E$42="Endemic", IF(AND($J156>1,$J156<5), IF($J156=4, "Unknown", E156+F156), 0),"Not required") -> 24478 | O156: =IF(INTRO!$E$44="Endemic", IF(AND($K156>0,$K156<5), IF($K156=4,"Unknown", IF($K156=1, $F156*0.33, IF($K156=2, $F156*0.5+$G156*0.2, SUM(F156:G156)))), 0),"Not required") -> 17051.1 | P156: 0 | Q156: 0 | R156: 1 | S156: 1 | U156: T1 (PZQ+ALB/MBD) | W156: T1 | X156: 21532 | Y156: Binduri
A157: =IF(INTRO!$E$34<>0,INTRO!$E$34,"") -> Ghana | B157: Upper East | C157: Bawku West | D157: 105893 | E157: =IF(INTRO!$E$48="","",ROUND($D157*INTRO!$E$48,0)) -> 11436 | F157: =IF(INTRO!$E$49="","",ROUND($D157*INTRO!$E$49,0)) -> 25944 | G157: =IF(INTRO!$E$50="","",ROUND($D157*INTRO!$E$50,0)) -> 65336 | H157: 99 | I157: 1 | J157: 2 | K157: 2 | L157: =IF(INTRO!$E$38="Endemic", IF($H157>0, IF($H157=4,"Unknown", IF($H157=99,"Stopped", $D157)), 0),"Not required") -> Stopped | M157: 91280 | N157: =IF(INTRO!$E$42="Endemic", IF(AND($J157>1,$J157<5), IF($J157=4, "Unknown", E157+F157), 0),"Not required") -> 37380 | O157: =IF(INTRO!$E$44="Endemic", IF(AND($K157>0,$K157<5), IF($K157=4,"Unknown", IF($K157=1, $F157*0.33, IF($K157=2, $F157*0.5+$G157*0.2, SUM(F157:G157)))), 0),"Not required") -> 26039.2 | P157: 0 | Q157: 2 | R157: 1 | S157: 1 | T157: MDA3 (IVM) | U157: T1 (PZQ+ALB/MBD) | V157: MDA 1 | W157: T2 | X157: 21531 | Y157: Bawku West
A158: =IF(INTRO!$E$34<>0,INTRO!$E$34,"") -> Ghana | B158: Upper East | C158: Bolgatanga Municipal | D158: 148139 | E158: =IF(INTRO!$E$48="","",ROUND($D158*INTRO!$E$48,0)) -> 15999 | F158: =IF(INTRO!$E$49="","",ROUND($D158*INTRO!$E$49,0)) -> 36294 | G158: =IF(INTRO!$E$50="","",ROUND($D158*INTRO!$E$50,0)) -> 91402 | H158: 99 | I158: 0 | J158: 2 | K158: 2 | L158: =IF(INTRO!$E$38="Endemic", IF($H158>0, IF($H158=4,"Unknown", IF($H158=99,"Stopped", $D158)), 0),"Not required") -> Stopped | M158: 0 | N158: =IF(INTRO!$E$42="Endemic", IF(AND($J158>1,$J158<5), IF($J158=4, "Unknown", E158+F158), 0),"Not required") -> 52293 | O158: =IF(INTRO!$E$44="Endemic", IF(AND($K158>0,$K158<5), IF($K158=4,"Unknown", IF($K158=1, $F158*0.33, IF($K158=2, $F158*0.5+$G158*0.2, SUM(F158:G158)))), 0),"Not required") -> 36427.4 | P158: 0 | Q158: 0 | R158: 1 | S158: 1 | U158: T1 (PZQ+ALB/MBD) | W158: T1 | X158: 21533 | Y158: Bolgatanga Municipal
A159: =IF(INTRO!$E$34<>0,INTRO!$E$34,"") -> Ghana | B159: Upper East | C159: Bongo | D159: 95207 | E159: =IF(INTRO!$E$48="","",ROUND($D159*INTRO!$E$48,0)) -> 10282 | F159: =IF(INTRO!$E$49="","",ROUND($D159*INTRO!$E$49,0)) -> 23326 | G159: =IF(INTRO!$E$50="","",ROUND($D159*INTRO!$E$50,0)) -> 58743 | H159: 99 | I159: 0 | J159: 2 | K159: 3 | L159: =IF(INTRO!$E$38="Endemic", IF($H159>0, IF($H159=4,"Unknown", IF($H159=99,"Stopped", $D159)), 0),"Not required") -> Stopped | M159: 0 | N159: =IF(INTRO!$E$42="Endemic", IF(AND($J159>1,$J159<5), IF($J159=4, "Unknown", E159+F159), 0),"Not required") -> 33608 | O159: =IF(INTRO!$E$44="Endemic", IF(AND($K159>0,$K159<5), IF($K159=4,"Unknown", IF($K159=1, $F159*0.33, IF($K159=2, $F159*0.5+$G159*0.2, SUM(F159:G159)))), 0),"Not required") -> 82069 | P159: 0 | Q159: 0 | R159: 1 | S159: 1 | U159: T1 (PZQ+ALB/MBD) | W159: T1 | X159: 21534 | Y159: Bongo
A160: =IF(INTRO!$E$34<>0,INTRO!$E$34,"") -> Ghana | B160: Upper East | C160: Builsa North | D160: 63599 | E160: =IF(INTRO!$E$48="","",ROUND($D160*INTRO!$E$48,0)) -> 6869 | F160: =IF(INTRO!$E$49="","",ROUND($D160*INTRO!$E$49,0)) -> 15582 | G160: =IF(INTRO!$E$50="","",ROUND($D160*INTRO!$E$50,0)) -> 39241 | H160: 99 | I160: 0 | J160: 2 | K160: 2 | L160: =IF(INTRO!$E$38="Endemic", IF($H160>0, IF($H160=4,"Unknown", IF($H160=99,"Stopped", $D160)), 0),"Not required") -> Stopped | N160: =IF(INTRO!$E$42="Endemic", IF(AND($J160>1,$J160<5), IF($J160=4, "Unknown", E160+F160), 0),"Not required") -> 22451 | O160: =IF(INTRO!$E$44="Endemic", IF(AND($K160>0,$K160<5), IF($K160=4,"Unknown", IF($K160=1, $F160*0.33, IF($K160=2, $F160*0.5+$G160*0.2, SUM(F160:G160)))), 0),"Not required") -> 15639.2 | P160: 0 | Q160: 0 | R160: 1 | S160: 1 | U160: T1 (PZQ+ALB/MBD) | V160: MDA 1 | W160: T2 | X160: 21536 | Y160: Builsa North
A161: =IF(INTRO!$E$34<>0,INTRO!$E$34,"") -> Ghana | B161: Upper East | C161: Builsa South | D161: 41118 | E161: =IF(INTRO!$E$48="","",ROUND($D161*INTRO!$E$48,0)) -> 4441 | F161: =IF(INTRO!$E$49="","",ROUND($D161*INTRO!$E$49,0)) -> 10074 | G161: =IF(INTRO!$E$50="","",ROUND($D161*INTRO!$E$50,0)) -> 25370 | H161: 99 | I161: 1 | J161: 2 | K161: 2 | L161: =IF(INTRO!$E$38="Endemic", IF($H161>0, IF($H161=4,"Unknown", IF($H161=99,"Stopped", $D161)), 0),"Not required") -> Stopped | M161: 35491.90219 | N161: =IF(INTRO!$E$42="Endemic", IF(AND($J161>1,$J161<5), IF($J161=4, "Unknown", E161+F161), 0),"Not required") -> 14515 | O161: =IF(INTRO!$E$44="Endemic", IF(AND($K161>0,$K161<5), IF($K161=4,"Unknown", IF($K161=1, $F161*0.33, IF($K161=2, $F161*0.5+$G161*0.2, SUM(F161:G161)))), 0),"Not required") -> 10111 | P161: 0 | Q161: 2 | R161: 1 | S161: 1 | T161: MDA3 (IVM) | U161: T1 (PZQ+ALB/MBD) | W161: T1 | X161: 21537 | Y161: Builsa South
A162: =IF(INTRO!$E$34<>0,INTRO!$E$34,"") -> Ghana | B162: Upper East | C162: Garu-Tempane | D162: 146397 | E162: =IF(INTRO!$E$48="","",ROUND($D162*INTRO!$E$48,0)) -> 15811 | F162: =IF(INTRO!$E$49="","",ROUND($D162*INTRO!$E$49,0)) -> 35867 | G162: =IF(INTRO!$E$50="","",ROUND($D162*INTRO!$E$50,0)) -> 90327 | H162: 99 | I162: 1 | J162: 2 | K162: 2 | L162: =IF(INTRO!$E$38="Endemic", IF($H162>0, IF($H162=4,"Unknown", IF($H162=99,"Stopped", $D162)), 0),"Not required") -> Stopped | M162: 126194 | N162: =IF(INTRO!$E$42="Endemic", IF(AND($J162>1,$J162<5), IF($J162=4, "Unknown", E162+F162), 0),"Not required") -> 51678 | O162: =IF(INTRO!$E$44="Endemic", IF(AND($K162>0,$K162<5), IF($K162=4,"Unknown", IF($K162=1, $F162*0.33, IF($K162=2, $F162*0.5+$G162*0.2, SUM(F162:G162)))), 0),"Not required") -> 35998.9 | P162: 0 | Q162: 2 | R162: 1 | S162: 1 | T162: MDA3 (IVM) | U162: T1 (PZQ+ALB/MBD) | V162: MDA 1 | W162: T2 | X162: 21538 | Y162: Garu-Tempane
A163: =IF(INTRO!$E$34<>0,INTRO!$E$34,"") -> Ghana | B163: Upper East | C163: Kassena-Nankana | D163: 123808 | E163: =IF(INTRO!$E$48="","",ROUND($D163*INTRO!$E$48,0)) -> 13371 | F163: =IF(INTRO!$E$49="","",ROUND($D163*INTRO!$E$49,0)) -> 30333 | G163: =IF(INTRO!$E$50="","",ROUND($D163*INTRO!$E$50,0)) -> 76390 | H163: 99 | I163: 0 | J163: 2 | K163: 3 | L163: =IF(INTRO!$E$38="Endemic", IF($H163>0, IF($H163=4,"Unknown", IF($H163=99,"Stopped", $D163)), 0),"Not required") -> Stopped | M163: 0 | N163: =IF(INTRO!$E$42="Endemic", IF(AND($J163>1,$J163<5), IF($J163=4, "Unknown", E163+F163), 0),"Not required") -> 43704 | O163: =IF(INTRO!$E$44="Endemic", IF(AND($K163>0,$K163<5), IF($K163=4,"Unknown", IF($K163=1, $F163*0.33, IF($K163=2, $F163*0.5+$G163*0.2, SUM(F163:G163)))), 0),"Not required") -> 106723 | P163: 0 | Q163: 0 | R163: 1 | S163: 1 | U163: T1 (PZQ+ALB/MBD) | W163: T1 | X163: 21539 | Y163: Kassena-Nankana
A164: =IF(INTRO!$E$34<>0,INTRO!$E$34,"") -> Ghana | B164: Upper East | C164: Kassena-Nankana West | D164: 79579 | E164: =IF(INTRO!$E$48="","",ROUND($D164*INTRO!$E$48,0)) -> 8595 | F164: =IF(INTRO!$E$49="","",ROUND($D164*INTRO!$E$49,0)) -> 19497 | G164: =IF(INTRO!$E$50="","",ROUND($D164*INTRO!$E$50,0)) -> 49100 | H164: 1 | I164: 1 | J164: 2 | K164: 3 | L164: =IF(INTRO!$E$38="Endemic", IF($H164>0, IF($H164=4,"Unknown", IF($H164=99,"Stopped", $D164)), 0),"Not required") -> 79579 | M164: 68597 | N164: =IF(INTRO!$E$42="Endemic", IF(AND($J164>1,$J164<5), IF($J164=4, "Unknown", E164+F164), 0),"Not required") -> 28092 | O164: =IF(INTRO!$E$44="Endemic", IF(AND($K164>0,$K164<5), IF($K164=4,"Unknown", IF($K164=1, $F164*0.33, IF($K164=2, $F164*0.5+$G164*0.2, SUM(F164:G164)))), 0),"Not required") -> 68597 | P164: 1 | Q164: 1 | R164: 1 | S164: 1 | T164: MDA1 (IVM+ALB) | U164: T1 (PZQ+ALB/MBD) | V164: MDA 1 | W164: T2 | X164: 21540 | Y164: Kassena-Nankana West
A165: =IF(INTRO!$E$34<>0,INTRO!$E$34,"") -> Ghana | B165: Upper East | C165: Nadbam | D165: 38091 | E165: =IF(INTRO!$E$48="","",ROUND($D165*INTRO!$E$48,0)) -> 4114 | F165: =IF(INTRO!$E$49="","",ROUND($D165*INTRO!$E$49,0)) -> 9332 | G165: =IF(INTRO!$E$50="","",ROUND($D165*INTRO!$E$50,0)) -> 23502 | H165: 1 | I165: 0 | J165: 2 | K165: 2 | L165: =IF(INTRO!$E$38="Endemic", IF($H165>0, IF($H165=4,"Unknown", IF($H165=99,"Stopped", $D165)), 0),"Not required") -> 38091 | M165: 0 | N165: =IF(INTRO!$E$42="Endemic", IF(AND($J165>1,$J165<5), IF($J165=4, "Unknown", E165+F165), 0),"Not required") -> 13446 | O165: =IF(INTRO!$E$44="Endemic", IF(AND($K165>0,$K165<5), IF($K165=4,"Unknown", IF($K165=1, $F165*0.33, IF($K165=2, $F165*0.5+$G165*0.2, SUM(F165:G165)))), 0),"Not required") -> 9366.4 | P165: 1 | Q165: 0 | R165: 1 | S165: 1 | T165: MDA1 (IVM+ALB) | U165: T1 (PZQ+ALB/MBD) | V165: MDA 1 | W165: T2 | X165: 21541 | Y165: Nadbam
A166: =IF(INTRO!$E$34<>0,INTRO!$E$34,"") -> Ghana | B166: Upper East | C166: Talensi | D166: 91433 | E166: =IF(INTRO!$E$48="","",ROUND($D166*INTRO!$E$48,0)) -> 9875 | F166: =IF(INTRO!$E$49="","",ROUND($D166*INTRO!$E$49,0)) -> 22401 | G166: =IF(INTRO!$E$50="","",ROUND($D166*INTRO!$E$50,0)) -> 56414 | H166: 99 | I166: 0 | J166: 2 | K166: 2 | L166: =IF(INTRO!$E$38="Endemic", IF($H166>0, IF($H166=4,"Unknown", IF($H166=99,"Stopped", $D166)), 0),"Not required") -> Stopped | M166: 0 | N166: =IF(INTRO!$E$42="Endemic", IF(AND($J166>1,$J166<5), IF($J166=4, "Unknown", E166+F166), 0),"Not required") -> 32276 | O166: =IF(INTRO!$E$44="Endemic", IF(AND($K166>0,$K166<5), IF($K166=4,"Unknown", IF($K166=1, $F166*0.33, IF($K166=2, $F166*0.5+$G166*0.2, SUM(F166:G166)))), 0),"Not required") -> 22483.3 | P166: 0 | Q166: 0 | R166: 1 | S166: 1 | U166: T1 (PZQ+ALB/MBD) | W166: T1 | X166: 21543 | Y166: Talensi
A167: =IF(INTRO!$E$34<>0,INTRO!$E$34,"") -> Ghana | B167: Upper West | C167: Jirapa | D167: 105193 | E167: =IF(INTRO!$E$48="","",ROUND($D167*INTRO!$E$48,0)) -> 11361 | F167: =IF(INTRO!$E$49="","",ROUND($D167*INTRO!$E$49,0)) -> 25772 | G167: =IF(INTRO!$E$50="","",ROUND($D167*INTRO!$E$50,0)) -> 64904 | H167: 1 | I167: 1 | J167: 2 | K167: 2 | L167: =IF(INTRO!$E$38="Endemic", IF($H167>0, IF($H167=4,"Unknown", IF($H167=99,"Stopped", $D167)), 0),"Not required") -> 105193 | M167: 90676 | N167: =IF(INTRO!$E$42="Endemic", IF(AND($J167>1,$J167<5), IF($J167=4, "Unknown", E167+F167), 0),"Not required") -> 37133 | O167: =IF(INTRO!$E$44="Endemic", IF(AND($K167>0,$K167<5), IF($K167=4,"Unknown", IF($K167=1, $F167*0.33, IF($K167=2, $F167*0.5+$G167*0.2, SUM(F167:G167)))), 0),"Not required") -> 25866.8 | P167: 1 | Q167: 1 | R167: 1 | S167: 1 | T167: MDA1 (IVM+ALB) | U167: T1 (PZQ+ALB/MBD) | V167: MDA 1 | W167: T2 | X167: 21545 | Y167: Jirapa
A168: =IF(INTRO!$E$34<>0,INTRO!$E$34,"") -> Ghana | B168: Upper West | C168: Lambussie | D168: 61466 | E168: =IF(INTRO!$E$48="","",ROUND($D168*INTRO!$E$48,0)) -> 6638 | F168: =IF(INTRO!$E$49="","",ROUND($D168*INTRO!$E$49,0)) -> 15059 | G168: =IF(INTRO!$E$50="","",ROUND($D168*INTRO!$E$50,0)) -> 37925 | H168: 99 | I168: 0 | J168: 2 | K168: 2 | L168: =IF(INTRO!$E$38="Endemic", IF($H168>0, IF($H168=4,"Unknown", IF($H168=99,"Stopped", $D168)), 0),"Not required") -> Stopped | N168: =IF(INTRO!$E$42="Endemic", IF(AND($J168>1,$J168<5), IF($J168=4, "Unknown", E168+F168), 0),"Not required") -> 21697 | O168: =IF(INTRO!$E$44="Endemic", IF(AND($K168>0,$K168<5), IF($K168=4,"Unknown", IF($K168=1, $F168*0.33, IF($K168=2, $F168*0.5+$G168*0.2, SUM(F168:G168)))), 0),"Not required") -> 15114.5 | P168: 0 | Q168: 0 | R168: 1 | S168: 1 | U168: T1 (PZQ+ALB/MBD) | W168: T1 | X168: 21546 | Y168: Lambussie
A169: =IF(INTRO!$E$34<>0,INTRO!$E$34,"") -> Ghana | B169: Upper West | C169: Lawra | D169: 66200 | E169: =IF(INTRO!$E$48="","",ROUND($D169*INTRO!$E$48,0)) -> 7150 | F169: =IF(INTRO!$E$49="","",ROUND($D169*INTRO!$E$49,0)) -> 16219 | G169: =IF(INTRO!$E$50="","",ROUND($D169*INTRO!$E$50,0)) -> 40845 | H169: 1 | I169: 1 | J169: 2 | K169: 1 | L169: =IF(INTRO!$E$38="Endemic", IF($H169>0, IF($H169=4,"Unknown", IF($H169=99,"Stopped", $D169)), 0),"Not required") -> 66200 | M169: 57064 | N169: =IF(INTRO!$E$42="Endemic", IF(AND($J169>1,$J169<5), IF($J169=4, "Unknown", E169+F169), 0),"Not required") -> 23369 | O169: =IF(INTRO!$E$44="Endemic", IF(AND($K169>0,$K169<5), IF($K169=4,"Unknown", IF($K169=1, $F169*0.33, IF($K169=2, $F169*0.5+$G169*0.2, SUM(F169:G169)))), 0),"Not required") -> 5352.27 | P169: 1 | Q169: 1 | R169: 0 | S169: 0 | T169: MDA1 (IVM+ALB) | U169: MDA3 (IVM) | V169: MDA 1 | W169: T2 | X169: 21547 | Y169: Lawra
A170: =IF(INTRO!$E$34<>0,INTRO!$E$34,"") -> Ghana | B170: Upper West | C170: Nandom | D170: 53900 | E170: =IF(INTRO!$E$48="","",ROUND($D170*INTRO!$E$48,0)) -> 5821 | F170: =IF(INTRO!$E$49="","",ROUND($D170*INTRO!$E$49,0)) -> 13206 | G170: =IF(INTRO!$E$50="","",ROUND($D170*INTRO!$E$50,0)) -> 33256 | H170: 99 | I170: 1 | J170: 2 | K170: 1 | L170: =IF(INTRO!$E$38="Endemic", IF($H170>0, IF($H170=4,"Unknown", IF($H170=99,"Stopped", $D170)), 0),"Not required") -> Stopped | M170: 46462 | N170: =IF(INTRO!$E$42="Endemic", IF(AND($J170>1,$J170<5), IF($J170=4, "Unknown", E170+F170), 0),"Not required") -> 19027 | O170: =IF(INTRO!$E$44="Endemic", IF(AND($K170>0,$K170<5), IF($K170=4,"Unknown", IF($K170=1, $F170*0.33, IF($K170=2, $F170*0.5+$G170*0.2, SUM(F170:G170)))), 0),"Not required") -> 4357.98 | P170: 0 | Q170: 2 | R170: 0 | S170: 0 | T170: MDA3 (IVM) | V170: MDA 1 | W170: T2 | X170: 21549 | Y170: Nandom
A171: =IF(INTRO!$E$34<>0,INTRO!$E$34,"") -> Ghana | B171: Upper West | C171: Nadowli | D171: 73544 | E171: =IF(INTRO!$E$48="","",ROUND($D171*INTRO!$E$48,0)) -> 7943 | F171: =IF(INTRO!$E$49="","",ROUND($D171*INTRO!$E$49,0)) -> 18018 | G171: =IF(INTRO!$E$50="","",ROUND($D171*INTRO!$E$50,0)) -> 45377 | H171: 99 | I171: 1 | J171: 2 | K171: 2 | L171: =IF(INTRO!$E$38="Endemic", IF($H171>0, IF($H171=4,"Unknown", IF($H171=99,"Stopped", $D171)), 0),"Not required") -> Stopped | M171: 63395 | N171: =IF(INTRO!$E$42="Endemic", IF(AND($J171>1,$J171<5), IF($J171=4, "Unknown", E171+F171), 0),"Not required") -> 25961 | O171: =IF(INTRO!$E$44="Endemic", IF(AND($K171>0,$K171<5), IF($K171=4,"Unknown", IF($K171=1, $F171*0.33, IF($K171=2, $F171*0.5+$G171*0.2, SUM(F171:G171)))), 0),"Not required") -> 18084.4 | P171: 0 | Q171: 2 | R171: 1 | S171: 1 | T171: MDA3 (IVM) | U171: T1 (PZQ+ALB/MBD) | V171: MDA 1 | W171: T2 | X171: 21548 | Y171: Nadowli
A172: =IF(INTRO!$E$34<>0,INTRO!$E$34,"") -> Ghana | B172: Upper West | C172: Daffiama Bussie Issa | D172: 38773 | E172: =IF(INTRO!$E$48="","",ROUND($D172*INTRO!$E$48,0)) -> 4187 | F172: =IF(INTRO!$E$49="","",ROUND($D172*INTRO!$E$49,0)) -> 9499 | G172: =IF(INTRO!$E$50="","",ROUND($D172*INTRO!$E$50,0)) -> 23923 | H172: 99 | I172: 1 | J172: 2 | K172: 2 | L172: =IF(INTRO!$E$38="Endemic", IF($H172>0, IF($H172=4,"Unknown", IF($H172=99,"Stopped", $D172)), 0),"Not required") -> Stopped | M172: 33422 | N172: =IF(INTRO!$E$42="Endemic", IF(AND($J172>1,$J172<5), IF($J172=4, "Unknown", E172+F172), 0),"Not required") -> 13686 | O172: =IF(INTRO!$E$44="Endemic", IF(AND($K172>0,$K172<5), IF($K172=4,"Unknown", IF($K172=1, $F172*0.33, IF($K172=2, $F172*0.5+$G172*0.2, SUM(F172:G172)))), 0),"Not required") -> 9534.1 | P172: 0 | Q172: 2 | R172: 1 | S172: 1 | T172: MDA3 (IVM) | U172: T1 (PZQ+ALB/MBD) | V172: MDA 1 | W172: T2 | X172: 21544 | Y172: Daffiama Bussie Issa
A173: =IF(INTRO!$E$34<>0,INTRO!$E$34,"") -> Ghana | B173: Upper West | C173: Sissala East | D173: 67265 | E173: =IF(INTRO!$E$48="","",ROUND($D173*INTRO!$E$48,0)) -> 7265 | F173: =IF(INTRO!$E$49="","",ROUND($D173*INTRO!$E$49,0)) -> 16480 | G173: =IF(INTRO!$E$50="","",ROUND($D173*INTRO!$E$50,0)) -> 41503 | H173: 99 | I173: 1 | J173: 2 | K173: 2 | L173: =IF(INTRO!$E$38="Endemic", IF($H173>0, IF($H173=4,"Unknown", IF($H173=99,"Stopped", $D173)), 0),"Not required") -> Stopped | M173: 57983 | N173: =IF(INTRO!$E$42="Endemic", IF(AND($J173>1,$J173<5), IF($J173=4, "Unknown", E173+F173), 0),"Not required") -> 23745 | O173: =IF(INTRO!$E$44="Endemic", IF(AND($K173>0,$K173<5), IF($K173=4,"Unknown", IF($K173=1, $F173*0.33, IF($K173=2, $F173*0.5+$G173*0.2, SUM(F173:G173)))), 0),"Not required") -> 16540.6 | P173: 0 | Q173: 2 | R173: 1 | S173: 1 | T173: MDA3 (IVM) | U173: T1 (PZQ+ALB/MBD) | V173: MDA 1 | W173: T2 | X173: 21550 | Y173: Sissala East
A174: =IF(INTRO!$E$34<>0,INTRO!$E$34,"") -> Ghana | B174: Upper West | C174: Sissala West | D174: 58989 | E174: =IF(INTRO!$E$48="","",ROUND($D174*INTRO!$E$48,0)) -> 6371 | F174: =IF(INTRO!$E$49="","",ROUND($D174*INTRO!$E$49,0)) -> 14452 | G174: =IF(INTRO!$E$50="","",ROUND($D174*INTRO!$E$50,0)) -> 36396 | H174: 99 | I174: 0 | J174: 2 | K174: 3 | L174: =IF(INTRO!$E$38="Endemic", IF($H174>0, IF($H174=4,"Unknown", IF($H174=99,"Stopped", $D174)), 0),"Not required") -> Stopped | M174: 0 | N174: =IF(INTRO!$E$42="Endemic", IF(AND($J174>1,$J174<5), IF($J174=4, "Unknown", E174+F174), 0),"Not required") -> 20823 | O174: =IF(INTRO!$E$44="Endemic", IF(AND($K174>0,$K174<5), IF($K174=4,"Unknown", IF($K174=1, $F174*0.33, IF($K174=2, $F174*0.5+$G174*0.2, SUM(F174:G174)))), 0),"Not required") -> 50848 | P174: 0 | Q174: 0 | R174: 1 | S174: 1 | U174: T1 (PZQ+ALB/MBD) | W174: T1 | X174: 21551 | Y174: Sissala West
A175: =IF(INTRO!$E$34<>0,INTRO!$E$34,"") -> Ghana | B175: Upper West | C175: Wa East | D175: 85765 | E175: =IF(INTRO!$E$48="","",ROUND($D175*INTRO!$E$48,0)) -> 9263 | F175: =IF(INTRO!$E$49="","",ROUND($D175*INTRO!$E$49,0)) -> 21012 | G175: =IF(INTRO!$E$50="","",ROUND($D175*INTRO!$E$50,0)) -> 52917 | H175: 1 | I175: 1 | J175: 2 | K175: 1 | L175: =IF(INTRO!$E$38="Endemic", IF($H175>0, IF($H175=4,"Unknown", IF($H175=99,"Stopped", $D175)), 0),"Not required") -> 85765 | M175: 73929 | N175: =IF(INTRO!$E$42="Endemic", IF(AND($J175>1,$J175<5), IF($J175=4, "Unknown", E175+F175), 0),"Not required") -> 30275 | O175: =IF(INTRO!$E$44="Endemic", IF(AND($K175>0,$K175<5), IF($K175=4,"Unknown", IF($K175=1, $F175*0.33, IF($K175=2, $F175*0.5+$G175*0.2, SUM(F175:G175)))), 0),"Not required") -> 6933.96 | P175: 1 | Q175: 1 | R175: 0 | S175: 0 | T175: MDA1 (IVM+ALB) | U175: MDA3 (IVM) | V175: MDA 1 | W175: T2 | X175: 21552 | Y175: Wa East
A176: =IF(INTRO!$E$34<>0,INTRO!$E$34,"") -> Ghana | B176: Upper West | C176: Wa Municipal | D176: 127579 | E176: =IF(INTRO!$E$48="","",ROUND($D176*INTRO!$E$48,0)) -> 13779 | F176: =IF(INTRO!$E$49="","",ROUND($D176*INTRO!$E$49,0)) -> 31257 | G176: =IF(INTRO!$E$50="","",ROUND($D176*INTRO!$E$50,0)) -> 78716 | H176: 99 | I176: 0 | J176: 2 | K176: 1 | L176: =IF(INTRO!$E$38="Endemic", IF($H176>0, IF($H176=4,"Unknown", IF($H176=99,"Stopped", $D176)), 0),"Not required") -> Stopped | M176: 0 | N176: =IF(INTRO!$E$42="Endemic", IF(AND($J176>1,$J176<5), IF($J176=4, "Unknown", E176+F176), 0),"Not required") -> 45036 | O176: =IF(INTRO!$E$44="Endemic", IF(AND($K176>0,$K176<5), IF($K176=4,"Unknown", IF($K176=1, $F176*0.33, IF($K176=2, $F176*0.5+$G176*0.2, SUM(F176:G176)))), 0),"Not required") -> 10314.81 | P176: 0 | Q176: 0 | R176: 0 | S176: 0 | W176: T1 | X176: 21553 | Y176: Wa Municipal
A177: =IF(INTRO!$E$34<>0,INTRO!$E$34,"") -> Ghana | B177: Upper West | C177: Wa West | D177: 96800 | E177: =IF(INTRO!$E$48="","",ROUND($D177*INTRO!$E$48,0)) -> 10454 | F177: =IF(INTRO!$E$49="","",ROUND($D177*INTRO!$E$49,0)) -> 23716 | G177: =IF(INTRO!$E$50="","",ROUND($D177*INTRO!$E$50,0)) -> 59726 | H177: 1 | I177: 1 | J177: 2 | K177: 1 | L177: =IF(INTRO!$E$38="Endemic", IF($H177>0, IF($H177=4,"Unknown", IF($H177=99,"Stopped", $D177)), 0),"Not required") -> 96800 | M177: 83442 | N177: =IF(INTRO!$E$42="Endemic", IF(AND($J177>1,$J177<5), IF($J177=4, "Unknown", E177+F177), 0),"Not required") -> 34170 | O177: =IF(INTRO!$E$44="Endemic", IF(AND($K177>0,$K177<5), IF($K177=4,"Unknown", IF($K177=1, $F177*0.33, IF($K177=2, $F177*0.5+$G177*0.2, SUM(F177:G177)))), 0),"Not required") -> 7826.28 | P177: 1 | Q177: 1 | R177: 0 | S177: 0 | T177: MDA1 (IVM+ALB) | U177: MDA3 (IVM) | V177: MDA 1 | W177: T2 | X177: 21554 | Y177: Wa West
A178: =IF(INTRO!$E$34<>0,INTRO!$E$34,"") -> Ghana | B178: Volta | C178: Agotime Ziope | D178: 42972 | E178: =IF(INTRO!$E$48="","",ROUND($D178*INTRO!$E$48,0)) -> 4641 | F178: =IF(INTRO!$E$49="","",ROUND($D178*INTRO!$E$49,0)) -> 10528 | G178: =IF(INTRO!$E$50="","",ROUND($D178*INTRO!$E$50,0)) -> 26514 | H178: 0 | I178: 1 | J178: 2 | K178: 2 | L178: =IF(INTRO!$E$38="Endemic", IF($H178>0, IF($H178=4,"Unknown", IF($H178=99,"Stopped", $D178)), 0),"Not required") -> 0 | M178: 37042 | N178: =IF(INTRO!$E$42="Endemic", IF(AND($J178>1,$J178<5), IF($J178=4, "Unknown", E178+F178), 0),"Not required") -> 15169 | O178: =IF(INTRO!$E$44="Endemic", IF(AND($K178>0,$K178<5), IF($K178=4,"Unknown", IF($K178=1, $F178*0.33, IF($K178=2, $F178*0.5+$G178*0.2, SUM(F178:G178)))), 0),"Not required") -> 10566.8 | P178: 0 | Q178: 2 | R178: 1 | S178: 1 | T178: MDA3 (IVM) | U178: T1 (PZQ+ALB/MBD) | V178: MDA 1 | W178: T2 | X178: 21557 | Y178: Agotime Ziope
A179: =IF(INTRO!$E$34<>0,INTRO!$E$34,"") -> Ghana | B179: Volta | C179: Adaklu | D179: 37350 | E179: =IF(INTRO!$E$48="","",ROUND($D179*INTRO!$E$48,0)) -> 4034 | F179: =IF(INTRO!$E$49="","",ROUND($D179*INTRO!$E$49,0)) -> 9151 | G179: =IF(INTRO!$E$50="","",ROUND($D179*INTRO!$E$50,0)) -> 23045 | H179: 0 | I179: 1 | J179: 2 | K179: 2 | L179: =IF(INTRO!$E$38="Endemic", IF($H179>0, IF($H179=4,"Unknown", IF($H179=99,"Stopped", $D179)), 0),"Not required") -> 0 | M179: 32196 | N179: =IF(INTRO!$E$42="Endemic", IF(AND($J179>1,$J179<5), IF($J179=4, "Unknown", E179+F179), 0),"Not required") -> 13185 | O179: =IF(INTRO!$E$44="Endemic", IF(AND($K179>0,$K179<5), IF($K179=4,"Unknown", IF($K179=1, $F179*0.33, IF($K179=2, $F179*0.5+$G179*0.2, SUM(F179:G179)))), 0),"Not required") -> 9184.5 | P179: 0 | Q179: 2 | R179: 1 | S179: 1 | T179: MDA3 (IVM) | U179: T1 (PZQ+ALB/MBD) | V179: MDA 1 | W179: T2 | X179: 21555 | Y179: Adaklu
A180: =IF(INTRO!$E$34<>0,INTRO!$E$34,"") -> Ghana | B180: Volta | C180: Akatsi South | D180: 119012 | E180: =IF(INTRO!$E$48="","",ROUND($D180*INTRO!$E$48,0)) -> 12853 | F180: =IF(INTRO!$E$49="","",ROUND($D180*INTRO!$E$49,0)) -> 29158 | G180: =IF(INTRO!$E$50="","",ROUND($D180*INTRO!$E$50,0)) -> 73430 | H180: 0 | I180: 0 | J180: 2 | K180: 2 | L180: =IF(INTRO!$E$38="Endemic", IF($H180>0, IF($H180=4,"Unknown", IF($H180=99,"Stopped", $D180)), 0),"Not required") -> 0 | M180: 0 | N180: =IF(INTRO!$E$42="Endemic", IF(AND($J180>1,$J180<5), IF($J180=4, "Unknown", E180+F180), 0),"Not required") -> 42011 | O180: =IF(INTRO!$E$44="Endemic", IF(AND($K180>0,$K180<5), IF($K180=4,"Unknown", IF($K180=1, $F180*0.33, IF($K180=2, $F180*0.5+$G180*0.2, SUM(F180:G180)))), 0),"Not required") -> 29265 | P180: 0 | Q180: 0 | R180: 1 | S180: 1 | U180: T1 (PZQ+ALB/MBD) | W180: T1 | X180: 21558 | Y180: Akatsi South
A181: =IF(INTRO!$E$34<>0,INTRO!$E$34,"") -> Ghana | B181: Volta | C181: Akatsi North | D181: 41200 | E181: =IF(INTRO!$E$48="","",ROUND($D181*INTRO!$E$48,0)) -> 4450 | F181: =IF(INTRO!$E$49="","",ROUND($D181*INTRO!$E$49,0)) -> 10094 | G181: =IF(INTRO!$E$50="","",ROUND($D181*INTRO!$E$50,0)) -> 25420 | H181: 0 | I181: 0 | J181: 2 | K181: 2 | L181: =IF(INTRO!$E$38="Endemic", IF($H181>0, IF($H181=4,"Unknown", IF($H181=99,"Stopped", $D181)), 0),"Not required") -> 0 | M181: 0 | N181: =IF(INTRO!$E$42="Endemic", IF(AND($J181>1,$J181<5), IF($J181=4, "Unknown", E181+F181), 0),"Not required") -> 14544 | O181: =IF(INTRO!$E$44="Endemic", IF(AND($K181>0,$K181<5), IF($K181=4,"Unknown", IF($K181=1, $F181*0.33, IF($K181=2, $F181*0.5+$G181*0.2, SUM(F181:G181)))), 0),"Not required") -> 10131 | P181: 0 | Q181: 0 | R181: 1 | S181: 1 | U181: T1 (PZQ+ALB/MBD) | W181: T1 | X181: 21559 | Y181: Akatsi North
A182: =IF(INTRO!$E$34<>0,INTRO!$E$34,"") -> Ghana | B182: Volta | C182: Biakoye | D182: 82189 | E182: =IF(INTRO!$E$48="","",ROUND($D182*INTRO!$E$48,0)) -> 8876 | F182: =IF(INTRO!$E$49="","",ROUND($D182*INTRO!$E$49,0)) -> 20136 | G182: =IF(INTRO!$E$50="","",ROUND($D182*INTRO!$E$50,0)) -> 50711 | H182: 0 | I182: 1 | J182: 2 | K182: 3 | L182: =IF(INTRO!$E$38="Endemic", IF($H182>0, IF($H182=4,"Unknown", IF($H182=99,"Stopped", $D182)), 0),"Not required") -> 0 | M182: 70847 | N182: =IF(INTRO!$E$42="Endemic", IF(AND($J182>1,$J182<5), IF($J182=4, "Unknown", E182+F182), 0),"Not required") -> 29012 | O182: =IF(INTRO!$E$44="Endemic", IF(AND($K182>0,$K182<5), IF($K182=4,"Unknown", IF($K182=1, $F182*0.33, IF($K182=2, $F182*0.5+$G182*0.2, SUM(F182:G182)))), 0),"Not required") -> 70847 | P182: 0 | Q182: 1 | R182: 1 | S182: 1 | T182: MDA3 (IVM) | U182: T1 (PZQ+ALB/MBD) | V182: MDA 1 | W182: T2 | X182: 21560 | Y182: Biakoye
A183: =IF(INTRO!$E$34<>0,INTRO!$E$34,"") -> Ghana | B183: Volta | C183: Ho Municipal | D183: 221099 | E183: =IF(INTRO!$E$48="","",ROUND($D183*INTRO!$E$48,0)) -> 23879 | F183: =IF(INTRO!$E$49="","",ROUND($D183*INTRO!$E$49,0)) -> 54169 | G183: =IF(INTRO!$E$50="","",ROUND($D183*INTRO!$E$50,0)) -> 136418 | H183: 0 | I183: 1 | J183: 2 | K183: 2 | L183: =IF(INTRO!$E$38="Endemic", IF($H183>0, IF($H183=4,"Unknown", IF($H183=99,"Stopped", $D183)), 0),"Not required") -> 0 | M183: 60729.2 | N183: =IF(INTRO!$E$42="Endemic", IF(AND($J183>1,$J183<5), IF($J183=4, "Unknown", E183+F183), 0),"Not required") -> 78048 | O183: =IF(INTRO!$E$44="Endemic", IF(AND($K183>0,$K183<5), IF($K183=4,"Unknown", IF($K183=1, $F183*0.33, IF($K183=2, $F183*0.5+$G183*0.2, SUM(F183:G183)))), 0),"Not required") -> 54368.1 | P183: 0 | Q183: 2 | R183: 1 | S183: 1 | T183: MDA3 (IVM) | U183: T1 (PZQ+ALB/MBD) | V183: MDA 1 | W183: T2 | X183: 21562 | Y183: Ho Municipal
A184: =IF(INTRO!$E$34<>0,INTRO!$E$34,"") -> Ghana | B184: Volta | C184: Ho West | D184: 117983 | E184: =IF(INTRO!$E$48="","",ROUND($D184*INTRO!$E$48,0)) -> 12742 | F184: =IF(INTRO!$E$49="","",ROUND($D184*INTRO!$E$49,0)) -> 28906 | G184: =IF(INTRO!$E$50="","",ROUND($D184*INTRO!$E$50,0)) -> 72796 | H184: 0 | I184: 1 | J184: 2 | K184: 2 | L184: =IF(INTRO!$E$38="Endemic", IF($H184>0, IF($H184=4,"Unknown", IF($H184=99,"Stopped", $D184)), 0),"Not required") -> 0 | M184: 101702 | N184: =IF(INTRO!$E$42="Endemic", IF(AND($J184>1,$J184<5), IF($J184=4, "Unknown", E184+F184), 0),"Not required") -> 41648 | O184: =IF(INTRO!$E$44="Endemic", IF(AND($K184>0,$K184<5), IF($K184=4,"Unknown", IF($K184=1, $F184*0.33, IF($K184=2, $F184*0.5+$G184*0.2, SUM(F184:G184)))), 0),"Not required") -> 29012.2 | P184: 0 | Q184: 2 | R184: 1 | S184: 1 | T184: MDA3 (IVM) | U184: T1 (PZQ+ALB/MBD) | V184: MDA 1 | W184: T2 | X184: 21563 | Y184: Ho West
A185: =IF(INTRO!$E$34<>0,INTRO!$E$34,"") -> Ghana | B185: Volta | C185: Hohoe | D185: 208297 | E185: =IF(INTRO!$E$48="","",ROUND($D185*INTRO!$E$48,0)) -> 22496 | F185: =IF(INTRO!$E$49="","",ROUND($D185*INTRO!$E$49,0)) -> 51033 | G185: =IF(INTRO!$E$50="","",ROUND($D185*INTRO!$E$50,0)) -> 128519 | H185: 0 | I185: 1 | J185: 2 | K185: 2 | L185: =IF(INTRO!$E$38="Endemic", IF($H185>0, IF($H185=4,"Unknown", IF($H185=99,"Stopped", $D185)), 0),"Not required") -> 0 | M185: 115521.6 | N185: =IF(INTRO!$E$42="Endemic", IF(AND($J185>1,$J185<5), IF($J185=4, "Unknown", E185+F185), 0),"Not required") -> 73529 | O185: =IF(INTRO!$E$44="Endemic", IF(AND($K185>0,$K185<5), IF($K185=4,"Unknown", IF($K185=1, $F185*0.33, IF($K185=2, $F185*0.5+$G185*0.2, SUM(F185:G185)))), 0),"Not required") -> 51220.3 | P185: 0 | Q185: 1 | R185: 1 | S185: 1 | T185: MDA3 (IVM) | U185: T1 (PZQ+ALB/MBD) | V185: MDA 1 | W185: T2 | X185: 21564 | Y185: Hohoe
A186: =IF(INTRO!$E$34<>0,INTRO!$E$34,"") -> Ghana | B186: Volta | C186: Afadjato South | D186: 118518 | E186: =IF(INTRO!$E$48="","",ROUND($D186*INTRO!$E$48,0)) -> 12800 | F186: =IF(INTRO!$E$49="","",ROUND($D186*INTRO!$E$49,0)) -> 29037 | G186: =IF(INTRO!$E$50="","",ROUND($D186*INTRO!$E$50,0)) -> 73126 | H186: 0 | I186: 1 | J186: 2 | K186: 2 | L186: =IF(INTRO!$E$38="Endemic", IF($H186>0, IF($H186=4,"Unknown", IF($H186=99,"Stopped", $D186)), 0),"Not required") -> 0 | M186: 102163 | N186: =IF(INTRO!$E$42="Endemic", IF(AND($J186>1,$J186<5), IF($J186=4, "Unknown", E186+F186), 0),"Not required") -> 41837 | O186: =IF(INTRO!$E$44="Endemic", IF(AND($K186>0,$K186<5), IF($K186=4,"Unknown", IF($K186=1, $F186*0.33, IF($K186=2, $F186*0.5+$G186*0.2, SUM(F186:G186)))), 0),"Not required") -> 29143.7 | P186: 0 | Q186: 1 | R186: 1 | S186: 1 | T186: MDA3 (IVM) | U186: T1 (PZQ+ALB/MBD) | V186: MDA 1 | W186: T2 | X186: 21556 | Y186: Afadjato South
A187: =IF(INTRO!$E$34<>0,INTRO!$E$34,"") -> Ghana | B187: Volta | C187: Jasikan | D187: 73809 | E187: =IF(INTRO!$E$48="","",ROUND($D187*INTRO!$E$48,0)) -> 7971 | F187: =IF(INTRO!$E$49="","",ROUND($D187*INTRO!$E$49,0)) -> 18083 | G187: =IF(INTRO!$E$50="","",ROUND($D187*INTRO!$E$50,0)) -> 45540 | H187: 0 | I187: 1 | J187: 2 | K187: 2 | L187: =IF(INTRO!$E$38="Endemic", IF($H187>0, IF($H187=4,"Unknown", IF($H187=99,"Stopped", $D187)), 0),"Not required") -> 0 | M187: 63623 | N187: =IF(INTRO!$E$42="Endemic", IF(AND($J187>1,$J187<5), IF($J187=4, "Unknown", E187+F187), 0),"Not required") -> 26054 | O187: =IF(INTRO!$E$44="Endemic", IF(AND($K187>0,$K187<5), IF($K187=4,"Unknown", IF($K187=1, $F187*0.33, IF($K187=2, $F187*0.5+$G187*0.2, SUM(F187:G187)))), 0),"Not required") -> 18149.5 | P187: 0 | Q187: 1 | R187: 1 | S187: 1 | T187: MDA3 (IVM) | U187: T1 (PZQ+ALB/MBD) | V187: MDA 1 | W187: T2 | X187: 21565 | Y187: Jasikan
A188: =IF(INTRO!$E$34<>0,INTRO!$E$34,"") -> Ghana | B188: Volta | C188: Kadjebi | D188: 73960 | E188: =IF(INTRO!$E$48="","",ROUND($D188*INTRO!$E$48,0)) -> 7988 | F188: =IF(INTRO!$E$49="","",ROUND($D188*INTRO!$E$49,0)) -> 18120 | G188: =IF(INTRO!$E$50="","",ROUND($D188*INTRO!$E$50,0)) -> 45633 | H188: 0 | I188: 1 | J188: 2 | K188: 2 | L188: =IF(INTRO!$E$38="Endemic", IF($H188>0, IF($H188=4,"Unknown", IF($H188=99,"Stopped", $D188)), 0),"Not required") -> 0 | M188: 63753 | N188: =IF(INTRO!$E$42="Endemic", IF(AND($J188>1,$J188<5), IF($J188=4, "Unknown", E188+F188), 0),"Not required") -> 26108 | O188: =IF(INTRO!$E$44="Endemic", IF(AND($K188>0,$K188<5), IF($K188=4,"Unknown", IF($K188=1, $F188*0.33, IF($K188=2, $F188*0.5+$G188*0.2, SUM(F188:G188)))), 0),"Not required") -> 18186.6 | P188: 0 | Q188: 1 | R188: 1 | S188: 1 | T188: MDA3 (IVM) | U188: T1 (PZQ+ALB/MBD) | V188: MDA 1 | W188: T2 | X188: 21566 | Y188: Kadjebi
A189: =IF(INTRO!$E$34<>0,INTRO!$E$34,"") -> Ghana | B189: Volta | C189: Keta | D189: 184105 | E189: =IF(INTRO!$E$48="","",ROUND($D189*INTRO!$E$48,0)) -> 19883 | F189: =IF(INTRO!$E$49="","",ROUND($D189*INTRO!$E$49,0)) -> 45106 | G189: =IF(INTRO!$E$50="","",ROUND($D189*INTRO!$E$50,0)) -> 113593 | H189: 0 | I189: 0 | J189: 2 | K189: 2 | L189: =IF(INTRO!$E$38="Endemic", IF($H189>0, IF($H189=4,"Unknown", IF($H189=99,"Stopped", $D189)), 0),"Not required") -> 0 | M189: 0 | N189: =IF(INTRO!$E$42="Endemic", IF(AND($J189>1,$J189<5), IF($J189=4, "Unknown", E189+F189), 0),"Not required") -> 64989 | O189: =IF(INTRO!$E$44="Endemic", IF(AND($K189>0,$K189<5), IF($K189=4,"Unknown", IF($K189=1, $F189*0.33, IF($K189=2, $F189*0.5+$G189*0.2, SUM(F189:G189)))), 0),"Not required") -> 45271.6 | P189: 0 | Q189: 0 | R189: 0 | S189: 1 | U189: T1 (PZQ+ALB/MBD) | W189: T1 | X189: 21567 | Y189: Keta
A190: =IF(INTRO!$E$34<>0,INTRO!$E$34,"") -> Ghana | B190: Volta | C190: Ketu North | D190: 124608 | E190: =IF(INTRO!$E$48="","",ROUND($D190*INTRO!$E$48,0)) -> 13458 | F190: =IF(INTRO!$E$49="","",ROUND($D190*INTRO!$E$49,0)) -> 30529 | G190: =IF(INTRO!$E$50="","",ROUND($D190*INTRO!$E$50,0)) -> 76883 | H190: 0 | I190: 0 | J190: 2 | K190: 2 | L190: =IF(INTRO!$E$38="Endemic", IF($H190>0, IF($H190=4,"Unknown", IF($H190=99,"Stopped", $D190)), 0),"Not required") -> 0 | M190: 0 | N190: =IF(INTRO!$E$42="Endemic", IF(AND($J190>1,$J190<5), IF($J190=4, "Unknown", E190+F190), 0),"Not required") -> 43987 | O190: =IF(INTRO!$E$44="Endemic", IF(AND($K190>0,$K190<5), IF($K190=4,"Unknown", IF($K190=1, $F190*0.33, IF($K190=2, $F190*0.5+$G190*0.2, SUM(F190:G190)))), 0),"Not required") -> 30641.1 | P190: 0 | Q190: 0 | R190: 1 | S190: 1 | U190: T1 (PZQ+ALB/MBD) | W190: T1 | X190: 21568 | Y190: Ketu North
A191: =IF(INTRO!$E$34<>0,INTRO!$E$34,"") -> Ghana | B191: Volta | C191: Ketu South | D191: 200490 | E191: =IF(INTRO!$E$48="","",ROUND($D191*INTRO!$E$48,0)) -> 21653 | F191: =IF(INTRO!$E$49="","",ROUND($D191*INTRO!$E$49,0)) -> 49120 | G191: =IF(INTRO!$E$50="","",ROUND($D191*INTRO!$E$50,0)) -> 123702 | H191: 0 | I191: 0 | J191: 2 | K191: 2 | L191: =IF(INTRO!$E$38="Endemic", IF($H191>0, IF($H191=4,"Unknown", IF($H191=99,"Stopped", $D191)), 0),"Not required") -> 0 | M191: 0 | N191: =IF(INTRO!$E$42="Endemic", IF(AND($J191>1,$J191<5), IF($J191=4, "Unknown", E191+F191), 0),"Not required") -> 70773 | O191: =IF(INTRO!$E$44="Endemic", IF(AND($K191>0,$K191<5), IF($K191=4,"Unknown", IF($K191=1, $F191*0.33, IF($K191=2, $F191*0.5+$G191*0.2, SUM(F191:G191)))), 0),"Not required") -> 49300.4 | P191: 0 | Q191: 0 | R191: 0 | S191: 1 | U191: T1 (PZQ+ALB/MBD) | W191: T1 | X191: 21569 | Y191: Ketu South
A192: =IF(INTRO!$E$34<>0,INTRO!$E$34,"") -> Ghana | B192: Volta | C192: Kpando | D192: 67017 | E192: =IF(INTRO!$E$48="","",ROUND($D192*INTRO!$E$48,0)) -> 7238 | F192: =IF(INTRO!$E$49="","",ROUND($D192*INTRO!$E$49,0)) -> 16419 | G192: =IF(INTRO!$E$50="","",ROUND($D192*INTRO!$E$50,0)) -> 41349 | H192: 0 | I192: 1 | J192: 2 | K192: 3 | L192: =IF(INTRO!$E$38="Endemic", IF($H192>0, IF($H192=4,"Unknown", IF($H192=99,"Stopped", $D192)), 0),"Not required") -> 0 | M192: 14347.67311 | N192: =IF(INTRO!$E$42="Endemic", IF(AND($J192>1,$J192<5), IF($J192=4, "Unknown", E192+F192), 0),"Not required") -> 23657 | O192: =IF(INTRO!$E$44="Endemic", IF(AND($K192>0,$K192<5), IF($K192=4,"Unknown", IF($K192=1, $F192*0.33, IF($K192=2, $F192*0.5+$G192*0.2, SUM(F192:G192)))), 0),"Not required") -> 57768 | P192: 0 | Q192: 1 | R192: 1 | S192: 1 | T192: MDA3 (IVM) | U192: T1 (PZQ+ALB/MBD) | V192: MDA 1 | W192: T2 | X192: 21570 | Y192: Kpando
A193: =IF(INTRO!$E$34<>0,INTRO!$E$34,"") -> Ghana | B193: Volta | C193: North Dayi | D193: 49778 | E193: =IF(INTRO!$E$48="","",ROUND($D193*INTRO!$E$48,0)) -> 5376 | F193: =IF(INTRO!$E$49="","",ROUND($D193*INTRO!$E$49,0)) -> 12196 | G193: =IF(INTRO!$E$50="","",ROUND($D193*INTRO!$E$50,0)) -> 30713 | H193: 0 | I193: 1 | J193: 2 | K193: 3 | L193: =IF(INTRO!$E$38="Endemic", IF($H193>0, IF($H193=4,"Unknown", IF($H193=99,"Stopped", $D193)), 0),"Not required") -> 0 | M193: 42909 | N193: =IF(INTRO!$E$42="Endemic", IF(AND($J193>1,$J193<5), IF($J193=4, "Unknown", E193+F193), 0),"Not required") -> 17572 | O193: =IF(INTRO!$E$44="Endemic", IF(AND($K193>0,$K193<5), IF($K193=4,"Unknown", IF($K193=1, $F193*0.33, IF($K193=2, $F193*0.5+$G193*0.2, SUM(F193:G193)))), 0),"Not required") -> 42909 | P193: 0 | Q193: 1 | R193: 1 | S193: 1 | T193: MDA3 (IVM) | U193: T1 (PZQ+ALB/MBD) | V193: MDA 1 | W193: T2 | X193: 21576 | Y193: North Dayi
A194: =IF(INTRO!$E$34<>0,INTRO!$E$34,"") -> Ghana | B194: Volta | C194: Krachi East | D194: 145675 | E194: =IF(INTRO!$E$48="","",ROUND($D194*INTRO!$E$48,0)) -> 15733 | F194: =IF(INTRO!$E$49="","",ROUND($D194*INTRO!$E$49,0)) -> 35690 | G194: =IF(INTRO!$E$50="","",ROUND($D194*INTRO!$E$50,0)) -> 89881 | H194: 0 | I194: 1 | J194: 2 | K194: 3 | L194: =IF(INTRO!$E$38="Endemic", IF($H194>0, IF($H194=4,"Unknown", IF($H194=99,"Stopped", $D194)), 0),"Not required") -> 0 | M194: 125571 | N194: =IF(INTRO!$E$42="Endemic", IF(AND($J194>1,$J194<5), IF($J194=4, "Unknown", E194+F194), 0),"Not required") -> 51423 | O194: =IF(INTRO!$E$44="Endemic", IF(AND($K194>0,$K194<5), IF($K194=4,"Unknown", IF($K194=1, $F194*0.33, IF($K194=2, $F194*0.5+$G194*0.2, SUM(F194:G194)))), 0),"Not required") -> 125571 | P194: 0 | Q194: 1 | R194: 1 | S194: 1 | T194: MDA3 (IVM) | U194: T1 (PZQ+ALB/MBD) | V194: MDA 1 | W194: T2 | X194: 21571 | Y194: Krachi East
A195: =IF(INTRO!$E$34<>0,INTRO!$E$34,"") -> Ghana | B195: Volta | C195: Krachi West | D195: 61631 | E195: =IF(INTRO!$E$48="","",ROUND($D195*INTRO!$E$48,0)) -> 6656 | F195: =IF(INTRO!$E$49="","",ROUND($D195*INTRO!$E$49,0)) -> 15100 | G195: =IF(INTRO!$E$50="","",ROUND($D195*INTRO!$E$50,0)) -> 38026 | H195: 0 | I195: 0 | J195: 2 | K195: 3 | L195: =IF(INTRO!$E$38="Endemic", IF($H195>0, IF($H195=4,"Unknown", IF($H195=99,"Stopped", $D195)), 0),"Not required") -> 0 | M195: 0 | N195: =IF(INTRO!$E$42="Endemic", IF(AND($J195>1,$J195<5), IF($J195=4, "Unknown", E195+F195), 0),"Not required") -> 21756 | O195: =IF(INTRO!$E$44="Endemic", IF(AND($K195>0,$K195<5), IF($K195=4,"Unknown", IF($K195=1, $F195*0.33, IF($K195=2, $F195*0.5+$G195*0.2, SUM(F195:G195)))), 0),"Not required") -> 53126 | P195: 0 | Q195: 0 | R195: 1 | S195: 1 | U195: T1 (PZQ+ALB/MBD) | W195: T1 | X195: 21573 | Y195: Krachi West
A196: =IF(INTRO!$E$34<>0,INTRO!$E$34,"") -> Ghana | B196: Volta | C196: Krachi Nchumuru | D196: 90654 | E196: =IF(INTRO!$E$48="","",ROUND($D196*INTRO!$E$48,0)) -> 9791 | F196: =IF(INTRO!$E$49="","",ROUND($D196*INTRO!$E$49,0)) -> 22210 | G196: =IF(INTRO!$E$50="","",ROUND($D196*INTRO!$E$50,0)) -> 55934 | H196: 0 | I196: 1 | J196: 2 | K196: 3 | L196: =IF(INTRO!$E$38="Endemic", IF($H196>0, IF($H196=4,"Unknown", IF($H196=99,"Stopped", $D196)), 0),"Not required") -> 0 | M196: 21566.83758 | N196: =IF(INTRO!$E$42="Endemic", IF(AND($J196>1,$J196<5), IF($J196=4, "Unknown", E196+F196), 0),"Not required") -> 32001 | O196: =IF(INTRO!$E$44="Endemic", IF(AND($K196>0,$K196<5), IF($K196=4,"Unknown", IF($K196=1, $F196*0.33, IF($K196=2, $F196*0.5+$G196*0.2, SUM(F196:G196)))), 0),"Not required") -> 78144 | P196: 0 | Q196: 2 | R196: 1 | S196: 1 | T196: MDA3 (IVM) | U196: T1 (PZQ+ALB/MBD) | V196: MDA 1 | W196: T2 | X196: 21572 | Y196: Krachi Nchumuru
A197: =IF(INTRO!$E$34<>0,INTRO!$E$34,"") -> Ghana | B197: Volta | C197: Nkwanta North | D197: 80508 | E197: =IF(INTRO!$E$48="","",ROUND($D197*INTRO!$E$48,0)) -> 8695 | F197: =IF(INTRO!$E$49="","",ROUND($D197*INTRO!$E$49,0)) -> 19724 | G197: =IF(INTRO!$E$50="","",ROUND($D197*INTRO!$E$50,0)) -> 49673 | H197: 0 | I197: 1 | J197: 2 | K197: 3 | L197: =IF(INTRO!$E$38="Endemic", IF($H197>0, IF($H197=4,"Unknown", IF($H197=99,"Stopped", $D197)), 0),"Not required") -> 0 | M197: 69397 | N197: =IF(INTRO!$E$42="Endemic", IF(AND($J197>1,$J197<5), IF($J197=4, "Unknown", E197+F197), 0),"Not required") -> 28419 | O197: =IF(INTRO!$E$44="Endemic", IF(AND($K197>0,$K197<5), IF($K197=4,"Unknown", IF($K197=1, $F197*0.33, IF($K197=2, $F197*0.5+$G197*0.2, SUM(F197:G197)))), 0),"Not required") -> 69397 | P197: 0 | Q197: 2 | R197: 1 | S197: 1 | T197: MDA3 (IVM) | U197: T1 (PZQ+ALB/MBD) | V197: MDA 1 | W197: T2 | X197: 21574 | Y197: Nkwanta North
A198: =IF(INTRO!$E$34<>0,INTRO!$E$34,"") -> Ghana | B198: Volta | C198: Nkwanta South | D198: 147014 | E198: =IF(INTRO!$E$48="","",ROUND($D198*INTRO!$E$48,0)) -> 15878 | F198: =IF(INTRO!$E$49="","",ROUND($D198*INTRO!$E$49,0)) -> 36018 | G198: =IF(INTRO!$E$50="","",ROUND($D198*INTRO!$E$50,0)) -> 90708 | H198: 0 | I198: 1 | J198: 2 | K198: 2 | L198: =IF(INTRO!$E$38="Endemic", IF($H198>0, IF($H198=4,"Unknown", IF($H198=99,"Stopped", $D198)), 0),"Not required") -> 0 | M198: 126726 | N198: =IF(INTRO!$E$42="Endemic", IF(AND($J198>1,$J198<5), IF($J198=4, "Unknown", E198+F198), 0),"Not required") -> 51896 | O198: =IF(INTRO!$E$44="Endemic", IF(AND($K198>0,$K198<5), IF($K198=4,"Unknown", IF($K198=1, $F198*0.33, IF($K198=2, $F198*0.5+$G198*0.2, SUM(F198:G198)))), 0),"Not required") -> 36150.6 | P198: 0 | Q198: 2 | R198: 1 | S198: 1 | T198: MDA3 (IVM) | U198: T1 (PZQ+ALB/MBD) | V198: MDA 1 | W198: T2 | X198: 21575 | Y198: Nkwanta South
A199: =IF(INTRO!$E$34<>0,INTRO!$E$34,"") -> Ghana | B199: Volta | C199: North Tongu | D199: 111967 | E199: =IF(INTRO!$E$48="","",ROUND($D199*INTRO!$E$48,0)) -> 12092 | F199: =IF(INTRO!$E$49="","",ROUND($D199*INTRO!$E$49,0)) -> 27432 | G199: =IF(INTRO!$E$50="","",ROUND($D199*INTRO!$E$50,0)) -> 69084 | H199: 0 | I199: 0 | J199: 2 | K199: 2 | L199: =IF(INTRO!$E$38="Endemic", IF($H199>0, IF($H199=4,"Unknown", IF($H199=99,"Stopped", $D199)), 0),"Not required") -> 0 | M199: 0 | N199: =IF(INTRO!$E$42="Endemic", IF(AND($J199>1,$J199<5), IF($J199=4, "Unknown", E199+F199), 0),"Not required") -> 39524 | O199: =IF(INTRO!$E$44="Endemic", IF(AND($K199>0,$K199<5), IF($K199=4,"Unknown", IF($K199=1, $F199*0.33, IF($K199=2, $F199*0.5+$G199*0.2, SUM(F199:G199)))), 0),"Not required") -> 27532.8 | P199: 0 | Q199: 0 | R199: 1 | S199: 1 | U199: T1 (PZQ+ALB/MBD) | W199: T1 | X199: 21577 | Y199: North Tongu
A200: =IF(INTRO!$E$34<>0,INTRO!$E$34,"") -> Ghana | B200: Volta | C200: Central Tongu | D200: 74096 | E200: =IF(INTRO!$E$48="","",ROUND($D200*INTRO!$E$48,0)) -> 8002 | F200: =IF(INTRO!$E$49="","",ROUND($D200*INTRO!$E$49,0)) -> 18154 | G200: =IF(INTRO!$E$50="","",ROUND($D200*INTRO!$E$50,0)) -> 45717 | H200: 0 | I200: 0 | J200: 2 | K200: 2 | L200: =IF(INTRO!$E$38="Endemic", IF($H200>0, IF($H200=4,"Unknown", IF($H200=99,"Stopped", $D200)), 0),"Not required") -> 0 | M200: 0 | N200: =IF(INTRO!$E$42="Endemic", IF(AND($J200>1,$J200<5), IF($J200=4, "Unknown", E200+F200), 0),"Not required") -> 26156 | O200: =IF(INTRO!$E$44="Endemic", IF(AND($K200>0,$K200<5), IF($K200=4,"Unknown", IF($K200=1, $F200*0.33, IF($K200=2, $F200*0.5+$G200*0.2, SUM(F200:G200)))), 0),"Not required") -> 18220.4 | P200: 0 | Q200: 0 | R200: 1 | S200: 1 | U200: T1 (PZQ+ALB/MBD) | W200: T1 | X200: 21561 | Y200: Central Tongu
A201: =IF(INTRO!$E$34<>0,INTRO!$E$34,"") -> Ghana | B201: Volta | C201: South Dayi | D201: 58194 | E201: =IF(INTRO!$E$48="","",ROUND($D201*INTRO!$E$48,0)) -> 6285 | F201: =IF(INTRO!$E$49="","",ROUND($D201*INTRO!$E$49,0)) -> 14258 | G201: =IF(INTRO!$E$50="","",ROUND($D201*INTRO!$E$50,0)) -> 35906 | H201: 0 | I201: 0 | J201: 2 | K201: 3 | L201: =IF(INTRO!$E$38="Endemic", IF($H201>0, IF($H201=4,"Unknown", IF($H201=99,"Stopped", $D201)), 0),"Not required") -> 0 | M201: 0 | N201: =IF(INTRO!$E$42="Endemic", IF(AND($J201>1,$J201<5), IF($J201=4, "Unknown", E201+F201), 0),"Not required") -> 20543 | O201: =IF(INTRO!$E$44="Endemic", IF(AND($K201>0,$K201<5), IF($K201=4,"Unknown", IF($K201=1, $F201*0.33, IF($K201=2, $F201*0.5+$G201*0.2, SUM(F201:G201)))), 0),"Not required") -> 50164 | P201: 0 | Q201: 0 | R201: 1 | S201: 1 | U201: T1 (PZQ+ALB/MBD) | W201: T1 | X201: 21578 | Y201: South Dayi
A202: =IF(INTRO!$E$34<>0,INTRO!$E$34,"") -> Ghana | B202: Volta | C202: South Tongu | D202: 109688 | E202: =IF(INTRO!$E$48="","",ROUND($D202*INTRO!$E$48,0)) -> 11846 | F202: =IF(INTRO!$E$49="","",ROUND($D202*INTRO!$E$49,0)) -> 26874 | G202: =IF(INTRO!$E$50="","",ROUND($D202*INTRO!$E$50,0)) -> 67677 | H202: 0 | I202: 0 | J202: 2 | K202: 2 | L202: =IF(INTRO!$E$38="Endemic", IF($H202>0, IF($H202=4,"Unknown", IF($H202=99,"Stopped", $D202)), 0),"Not required") -> 0 | M202: 0 | N202: =IF(INTRO!$E$42="Endemic", IF(AND($J202>1,$J202<5), IF($J202=4, "Unknown", E202+F202), 0),"Not required") -> 38720 | O202: =IF(INTRO!$E$44="Endemic", IF(AND($K202>0,$K202<5), IF($K202=4,"Unknown", IF($K202=1, $F202*0.33, IF($K202=2, $F202*0.5+$G202*0.2, SUM(F202:G202)))), 0),"Not required") -> 26972.4 | P202: 0 | Q202: 0 | R202: 1 | S202: 1 | U202: T1 (PZQ+ALB/MBD) | W202: T1 | X202: 21579 | Y202: South Tongu
A203: =IF(INTRO!$E$34<>0,INTRO!$E$34,"") -> Ghana | B203: Western | C203: Ahanta West | D203: 127387 | E203: =IF(INTRO!$E$48="","",ROUND($D203*INTRO!$E$48,0)) -> 13758 | F203: =IF(INTRO!$E$49="","",ROUND($D203*INTRO!$E$49,0)) -> 31210 | G203: =IF(INTRO!$E$50="","",ROUND($D203*INTRO!$E$50,0)) -> 78598 | H203: 1 | I203: 0 | J203: 2 | K203: 2 | L203: =IF(INTRO!$E$38="Endemic", IF($H203>0, IF($H203=4,"Unknown", IF($H203=99,"Stopped", $D203)), 0),"Not required") -> 127387 | M203: 0 | N203: =IF(INTRO!$E$42="Endemic", IF(AND($J203>1,$J203<5), IF($J203=4, "Unknown", E203+F203), 0),"Not required") -> 44968 | O203: =IF(INTRO!$E$44="Endemic", IF(AND($K203>0,$K203<5), IF($K203=4,"Unknown", IF($K203=1, $F203*0.33, IF($K203=2, $F203*0.5+$G203*0.2, SUM(F203:G203)))), 0),"Not required") -> 31324.6 | P203: 1 | Q203: 0 | R203: 1 | S203: 1 | T203: MDA1 (IVM+ALB) | U203: T1 (PZQ+ALB/MBD) | V203: MDA 1 | W203: T2 | X203: 21580 | Y203: Ahanta West
... 21 more rows

Sheet MDA1
A1: MDA 1 - Ivermectin (IVM) and Albendazole (ALB)
A2: Administrative structure, population requiring PC by age group, population treated by age group and coverage
A4: TOTAL | G4: =SUM(G$9:G$1000) -> 330666 | H4: =SUM(H$9:H$1000) -> 832738 | I4: =SUM(I$9:I$1000) -> 1163404 | K4: =SUM(K$9:K$1000) -> 239955 | L4: =SUM(L$9:L$1000) -> 739483 | M4: =SUM(M$9:M$1000) -> 979438 | O4: =IF(G4<>0, IF(K4/G4*100=0, "-", K4/G4*100), " ") -> 72.5671826 | P4: =IF(H4<>0, IF(L4/H4*100=0, "-", L4/H4*100), " ") -> 88.80139972 | Q4: =IF(I4<>0, IF(M4/I4*100=0, "-", M4/I4*100), " ") -> 84.18726427
D6: PC implemented | E6: Date | F6: Population targeted for MDA 1 | J6: Population treated | N6: Programme coverage (%)
A7: Country | B7: Province/State | C7: District | F7: PreSAC | G7: SAC | H7: Adults | I7: Total | J7: PreSAC | K7: SAC | L7: Adults | M7: Total | N7: PreSAC | O7: SAC | P7: Adults | Q7: Total
A9: =IF(COUNTRY_INFO!A9=0," ",COUNTRY_INFO!A9) -> Ghana | B9: =IF(COUNTRY_INFO!B9=0," ",COUNTRY_INFO!B9) -> Ashanti | C9: =IF(COUNTRY_INFO!C9=0," ",COUNTRY_INFO!C9) -> Adansi North | D9: =IF(COUNTRY_INFO!$T$9:$T$1000="MDA1 (IVM+ALB)", COUNTRY_INFO!$T$9:$T$1000, " ") ->  | I9: =SUM(F9:H9) -> 0 | M9: =SUM(J9:L9) -> 0 | O9: =IF(G9<>0, IF(K9/G9*100=0, "-", K9/G9*100), " ") ->  | P9: =IF(H9<>0, IF(L9/H9*100=0, "-", L9/H9*100), " ") -> 
A10: =IF(COUNTRY_INFO!A10=0," ",COUNTRY_INFO!A10) -> Ghana | B10: =IF(COUNTRY_INFO!B10=0," ",COUNTRY_INFO!B10) -> Ashanti | C10: =IF(COUNTRY_INFO!C10=0," ",COUNTRY_INFO!C10) -> Adansi South | D10: =IF(COUNTRY_INFO!$T$9:$T$1000="MDA1 (IVM+ALB)", COUNTRY_INFO!$T$9:$T$1000, " ") ->  | I10: =SUM(F10:H10) -> 0 | M10: =SUM(J10:L10) -> 0 | O10: =IF(G10<>0, IF(K10/G10*100=0, "-", K10/G10*100), " ") ->  | P10: =IF(H10<>0, IF(L10/H10*100=0, "-", L10/H10*100), " ") ->  | Q10: =IF(I10<>0, IF(M10/I10*100=0, "-", M10/I10*100), " ") -> 
A11: =IF(COUNTRY_INFO!A11=0," ",COUNTRY_INFO!A11) -> Ghana | B11: =IF(COUNTRY_INFO!B11=0," ",COUNTRY_INFO!B11) -> Ashanti | C11: =IF(COUNTRY_INFO!C11=0," ",COUNTRY_INFO!C11) -> Afigya-Kwabre | D11: =IF(COUNTRY_INFO!$T$9:$T$1000="MDA1 (IVM+ALB)", COUNTRY_INFO!$T$9:$T$1000, " ") ->  | I11: 0 | M11: 0
A12: =IF(COUNTRY_INFO!A12=0," ",COUNTRY_INFO!A12) -> Ghana | B12: =IF(COUNTRY_INFO!B12=0," ",COUNTRY_INFO!B12) -> Ashanti | C12: =IF(COUNTRY_INFO!C12=0," ",COUNTRY_INFO!C12) -> Ahafo-Ano North | D12: =IF(COUNTRY_INFO!$T$9:$T$1000="MDA1 (IVM+ALB)", COUNTRY_INFO!$T$9:$T$1000, " ") ->  | I12: 0 | M12: 0
A13: =IF(COUNTRY_INFO!A13=0," ",COUNTRY_INFO!A13) -> Ghana | B13: =IF(COUNTRY_INFO!B13=0," ",COUNTRY_INFO!B13) -> Ashanti | C13: =IF(COUNTRY_INFO!C13=0," ",COUNTRY_INFO!C13) -> Ahafo-Ano South | D13: =IF(COUNTRY_INFO!$T$9:$T$1000="MDA1 (IVM+ALB)", COUNTRY_INFO!$T$9:$T$1000, " ") ->  | I13: 0 | M13: 0
A14: =IF(COUNTRY_INFO!A14=0," ",COUNTRY_INFO!A14) -> Ghana | B14: =IF(COUNTRY_INFO!B14=0," ",COUNTRY_INFO!B14) -> Ashanti | C14: =IF(COUNTRY_INFO!C14=0," ",COUNTRY_INFO!C14) -> Amansie Central | D14: =IF(COUNTRY_INFO!$T$9:$T$1000="MDA1 (IVM+ALB)", COUNTRY_INFO!$T$9:$T$1000, " ") ->  | I14: 0 | M14: 0
A15: =IF(COUNTRY_INFO!A15=0," ",COUNTRY_INFO!A15) -> Ghana | B15: =IF(COUNTRY_INFO!B15=0," ",COUNTRY_INFO!B15) -> Ashanti | C15: =IF(COUNTRY_INFO!C15=0," ",COUNTRY_INFO!C15) -> Mampong Muncipal | D15: =IF(COUNTRY_INFO!$T$9:$T$1000="MDA1 (IVM+ALB)", COUNTRY_INFO!$T$9:$T$1000, " ") ->  | I15: 0 | M15: 0
A16: =IF(COUNTRY_INFO!A16=0," ",COUNTRY_INFO!A16) -> Ghana | B16: =IF(COUNTRY_INFO!B16=0," ",COUNTRY_INFO!B16) -> Ashanti | C16: =IF(COUNTRY_INFO!C16=0," ",COUNTRY_INFO!C16) -> Amansie West | D16: =IF(COUNTRY_INFO!$T$9:$T$1000="MDA1 (IVM+ALB)", COUNTRY_INFO!$T$9:$T$1000, " ") ->  | I16: 0 | M16: 0
A17: =IF(COUNTRY_INFO!A17=0," ",COUNTRY_INFO!A17) -> Ghana | B17: =IF(COUNTRY_INFO!B17=0," ",COUNTRY_INFO!B17) -> Ashanti | C17: =IF(COUNTRY_INFO!C17=0," ",COUNTRY_INFO!C17) -> Asante-Akim Central | D17: =IF(COUNTRY_INFO!$T$9:$T$1000="MDA1 (IVM+ALB)", COUNTRY_INFO!$T$9:$T$1000, " ") ->  | I17: 0 | M17: 0
A18: =IF(COUNTRY_INFO!A18=0," ",COUNTRY_INFO!A18) -> Ghana | B18: =IF(COUNTRY_INFO!B18=0," ",COUNTRY_INFO!B18) -> Ashanti | C18: =IF(COUNTRY_INFO!C18=0," ",COUNTRY_INFO!C18) -> Asante-Akim North | D18: =IF(COUNTRY_INFO!$T$9:$T$1000="MDA1 (IVM+ALB)", COUNTRY_INFO!$T$9:$T$1000, " ") ->  | I18: 0 | M18: 0
A19: =IF(COUNTRY_INFO!A19=0," ",COUNTRY_INFO!A19) -> Ghana | B19: =IF(COUNTRY_INFO!B19=0," ",COUNTRY_INFO!B19) -> Ashanti | C19: =IF(COUNTRY_INFO!C19=0," ",COUNTRY_INFO!C19) -> Asante-Akim South | D19: =IF(COUNTRY_INFO!$T$9:$T$1000="MDA1 (IVM+ALB)", COUNTRY_INFO!$T$9:$T$1000, " ") ->  | I19: 0 | M19: 0
A20: =IF(COUNTRY_INFO!A20=0," ",COUNTRY_INFO!A20) -> Ghana | B20: =IF(COUNTRY_INFO!B20=0," ",COUNTRY_INFO!B20) -> Ashanti | C20: =IF(COUNTRY_INFO!C20=0," ",COUNTRY_INFO!C20) -> Atwima-Kwanwoma | D20: =IF(COUNTRY_INFO!$T$9:$T$1000="MDA1 (IVM+ALB)", COUNTRY_INFO!$T$9:$T$1000, " ") ->  | I20: 0 | M20: 0
A21: =IF(COUNTRY_INFO!A21=0," ",COUNTRY_INFO!A21) -> Ghana | B21: =IF(COUNTRY_INFO!B21=0," ",COUNTRY_INFO!B21) -> Ashanti | C21: =IF(COUNTRY_INFO!C21=0," ",COUNTRY_INFO!C21) -> Atwima-Mponua | D21: =IF(COUNTRY_INFO!$T$9:$T$1000="MDA1 (IVM+ALB)", COUNTRY_INFO!$T$9:$T$1000, " ") ->  | I21: 0 | M21: 0
A22: =IF(COUNTRY_INFO!A22=0," ",COUNTRY_INFO!A22) -> Ghana | B22: =IF(COUNTRY_INFO!B22=0," ",COUNTRY_INFO!B22) -> Ashanti | C22: =IF(COUNTRY_INFO!C22=0," ",COUNTRY_INFO!C22) -> Atwima-Nwabiagya | D22: =IF(COUNTRY_INFO!$T$9:$T$1000="MDA1 (IVM+ALB)", COUNTRY_INFO!$T$9:$T$1000, " ") ->  | I22: 0 | M22: 0
A23: =IF(COUNTRY_INFO!A23=0," ",COUNTRY_INFO!A23) -> Ghana | B23: =IF(COUNTRY_INFO!B23=0," ",COUNTRY_INFO!B23) -> Ashanti | C23: =IF(COUNTRY_INFO!C23=0," ",COUNTRY_INFO!C23) -> Bosomtwe | D23: =IF(COUNTRY_INFO!$T$9:$T$1000="MDA1 (IVM+ALB)", COUNTRY_INFO!$T$9:$T$1000, " ") ->  | I23: 0 | M23: 0
A24: =IF(COUNTRY_INFO!A24=0," ",COUNTRY_INFO!A24) -> Ghana | B24: =IF(COUNTRY_INFO!B24=0," ",COUNTRY_INFO!B24) -> Ashanti | C24: =IF(COUNTRY_INFO!C24=0," ",COUNTRY_INFO!C24) -> Bosome-Freho | D24: =IF(COUNTRY_INFO!$T$9:$T$1000="MDA1 (IVM+ALB)", COUNTRY_INFO!$T$9:$T$1000, " ") ->  | I24: 0 | M24: 0
A25: =IF(COUNTRY_INFO!A25=0," ",COUNTRY_INFO!A25) -> Ghana | B25: =IF(COUNTRY_INFO!B25=0," ",COUNTRY_INFO!B25) -> Ashanti | C25: =IF(COUNTRY_INFO!C25=0," ",COUNTRY_INFO!C25) -> Ejisu-Juaben | D25: =IF(COUNTRY_INFO!$T$9:$T$1000="MDA1 (IVM+ALB)", COUNTRY_INFO!$T$9:$T$1000, " ") ->  | I25: 0 | M25: 0
A26: =IF(COUNTRY_INFO!A26=0," ",COUNTRY_INFO!A26) -> Ghana | B26: =IF(COUNTRY_INFO!B26=0," ",COUNTRY_INFO!B26) -> Ashanti | C26: =IF(COUNTRY_INFO!C26=0," ",COUNTRY_INFO!C26) -> Ejura-Sekyedomasi | D26: =IF(COUNTRY_INFO!$T$9:$T$1000="MDA1 (IVM+ALB)", COUNTRY_INFO!$T$9:$T$1000, " ") ->  | I26: 0 | M26: 0
A27: =IF(COUNTRY_INFO!A27=0," ",COUNTRY_INFO!A27) -> Ghana | B27: =IF(COUNTRY_INFO!B27=0," ",COUNTRY_INFO!B27) -> Ashanti | C27: =IF(COUNTRY_INFO!C27=0," ",COUNTRY_INFO!C27) -> Kumasi Metropolis | D27: =IF(COUNTRY_INFO!$T$9:$T$1000="MDA1 (IVM+ALB)", COUNTRY_INFO!$T$9:$T$1000, " ") ->  | I27: 0 | M27: 0
A28: =IF(COUNTRY_INFO!A28=0," ",COUNTRY_INFO!A28) -> Ghana | B28: =IF(COUNTRY_INFO!B28=0," ",COUNTRY_INFO!B28) -> Ashanti | C28: =IF(COUNTRY_INFO!C28=0," ",COUNTRY_INFO!C28) -> Kwabre | D28: =IF(COUNTRY_INFO!$T$9:$T$1000="MDA1 (IVM+ALB)", COUNTRY_INFO!$T$9:$T$1000, " ") ->  | I28: 0 | M28: 0
A29: =IF(COUNTRY_INFO!A29=0," ",COUNTRY_INFO!A29) -> Ghana | B29: =IF(COUNTRY_INFO!B29=0," ",COUNTRY_INFO!B29) -> Ashanti | C29: =IF(COUNTRY_INFO!C29=0," ",COUNTRY_INFO!C29) -> Bekwai Municipal | D29: =IF(COUNTRY_INFO!$T$9:$T$1000="MDA1 (IVM+ALB)", COUNTRY_INFO!$T$9:$T$1000, " ") ->  | I29: 0 | M29: 0
A30: =IF(COUNTRY_INFO!A30=0," ",COUNTRY_INFO!A30) -> Ghana | B30: =IF(COUNTRY_INFO!B30=0," ",COUNTRY_INFO!B30) -> Ashanti | C30: =IF(COUNTRY_INFO!C30=0," ",COUNTRY_INFO!C30) -> Asokore-Mampong | D30: =IF(COUNTRY_INFO!$T$9:$T$1000="MDA1 (IVM+ALB)", COUNTRY_INFO!$T$9:$T$1000, " ") ->  | I30: 0 | M30: 0
A31: =IF(COUNTRY_INFO!A31=0," ",COUNTRY_INFO!A31) -> Ghana | B31: =IF(COUNTRY_INFO!B31=0," ",COUNTRY_INFO!B31) -> Ashanti | C31: =IF(COUNTRY_INFO!C31=0," ",COUNTRY_INFO!C31) -> Obuasi Municipal | D31: =IF(COUNTRY_INFO!$T$9:$T$1000="MDA1 (IVM+ALB)", COUNTRY_INFO!$T$9:$T$1000, " ") ->  | I31: 0 | M31: 0
A32: =IF(COUNTRY_INFO!A32=0," ",COUNTRY_INFO!A32) -> Ghana | B32: =IF(COUNTRY_INFO!B32=0," ",COUNTRY_INFO!B32) -> Ashanti | C32: =IF(COUNTRY_INFO!C32=0," ",COUNTRY_INFO!C32) -> Offiinso Municipal | D32: =IF(COUNTRY_INFO!$T$9:$T$1000="MDA1 (IVM+ALB)", COUNTRY_INFO!$T$9:$T$1000, " ") ->  | I32: 0 | M32: 0
A33: =IF(COUNTRY_INFO!A33=0," ",COUNTRY_INFO!A33) -> Ghana | B33: =IF(COUNTRY_INFO!B33=0," ",COUNTRY_INFO!B33) -> Ashanti | C33: =IF(COUNTRY_INFO!C33=0," ",COUNTRY_INFO!C33) -> Offinso North | D33: =IF(COUNTRY_INFO!$T$9:$T$1000="MDA1 (IVM+ALB)", COUNTRY_INFO!$T$9:$T$1000, " ") ->  | I33: 0 | M33: 0
A34: =IF(COUNTRY_INFO!A34=0," ",COUNTRY_INFO!A34) -> Ghana | B34: =IF(COUNTRY_INFO!B34=0," ",COUNTRY_INFO!B34) -> Ashanti | C34: =IF(COUNTRY_INFO!C34=0," ",COUNTRY_INFO!C34) -> Sekyere-Afram Plains | D34: =IF(COUNTRY_INFO!$T$9:$T$1000="MDA1 (IVM+ALB)", COUNTRY_INFO!$T$9:$T$1000, " ") ->  | I34: 0 | M34: 0
A35: =IF(COUNTRY_INFO!A35=0," ",COUNTRY_INFO!A35) -> Ghana | B35: =IF(COUNTRY_INFO!B35=0," ",COUNTRY_INFO!B35) -> Ashanti | C35: =IF(COUNTRY_INFO!C35=0," ",COUNTRY_INFO!C35) -> Kumawu | D35: =IF(COUNTRY_INFO!$T$9:$T$1000="MDA1 (IVM+ALB)", COUNTRY_INFO!$T$9:$T$1000, " ") ->  | I35: 0 | M35: 0
A36: =IF(COUNTRY_INFO!A36=0," ",COUNTRY_INFO!A36) -> Ghana | B36: =IF(COUNTRY_INFO!B36=0," ",COUNTRY_INFO!B36) -> Ashanti | C36: =IF(COUNTRY_INFO!C36=0," ",COUNTRY_INFO!C36) -> Sekyere Central | D36: =IF(COUNTRY_INFO!$T$9:$T$1000="MDA1 (IVM+ALB)", COUNTRY_INFO!$T$9:$T$1000, " ") ->  | I36: 0 | M36: 0
A37: =IF(COUNTRY_INFO!A37=0," ",COUNTRY_INFO!A37) -> Ghana | B37: =IF(COUNTRY_INFO!B37=0," ",COUNTRY_INFO!B37) -> Ashanti | C37: =IF(COUNTRY_INFO!C37=0," ",COUNTRY_INFO!C37) -> Sekyere East | D37: =IF(COUNTRY_INFO!$T$9:$T$1000="MDA1 (IVM+ALB)", COUNTRY_INFO!$T$9:$T$1000, " ") ->  | I37: 0 | M37: 0
A38: =IF(COUNTRY_INFO!A38=0," ",COUNTRY_INFO!A38) -> Ghana | B38: =IF(COUNTRY_INFO!B38=0," ",COUNTRY_INFO!B38) -> Ashanti | C38: =IF(COUNTRY_INFO!C38=0," ",COUNTRY_INFO!C38) -> Sekyere South | D38: =IF(COUNTRY_INFO!$T$9:$T$1000="MDA1 (IVM+ALB)", COUNTRY_INFO!$T$9:$T$1000, " ") ->  | I38: 0 | M38: 0
A39: =IF(COUNTRY_INFO!A39=0," ",COUNTRY_INFO!A39) -> Ghana | B39: =IF(COUNTRY_INFO!B39=0," ",COUNTRY_INFO!B39) -> Brong-Ahafo | C39: =IF(COUNTRY_INFO!C39=0," ",COUNTRY_INFO!C39) -> Asunafo North | D39: =IF(COUNTRY_INFO!$T$9:$T$1000="MDA1 (IVM+ALB)", COUNTRY_INFO!$T$9:$T$1000, " ") ->  | I39: 0 | M39: 0
A40: =IF(COUNTRY_INFO!A40=0," ",COUNTRY_INFO!A40) -> Ghana | B40: =IF(COUNTRY_INFO!B40=0," ",COUNTRY_INFO!B40) -> Brong-Ahafo | C40: =IF(COUNTRY_INFO!C40=0," ",COUNTRY_INFO!C40) -> Asunafo South | D40: =IF(COUNTRY_INFO!$T$9:$T$1000="MDA1 (IVM+ALB)", COUNTRY_INFO!$T$9:$T$1000, " ") ->  | I40: 0 | M40: 0
A41: =IF(COUNTRY_INFO!A41=0," ",COUNTRY_INFO!A41) -> Ghana | B41: =IF(COUNTRY_INFO!B41=0," ",COUNTRY_INFO!B41) -> Brong-Ahafo | C41: =IF(COUNTRY_INFO!C41=0," ",COUNTRY_INFO!C41) -> Asutifi North | D41: =IF(COUNTRY_INFO!$T$9:$T$1000="MDA1 (IVM+ALB)", COUNTRY_INFO!$T$9:$T$1000, " ") ->  | I41: 0 | M41: 0
A42: =IF(COUNTRY_INFO!A42=0," ",COUNTRY_INFO!A42) -> Ghana | B42: =IF(COUNTRY_INFO!B42=0," ",COUNTRY_INFO!B42) -> Brong-Ahafo | C42: =IF(COUNTRY_INFO!C42=0," ",COUNTRY_INFO!C42) -> Asutifi South | D42: =IF(COUNTRY_INFO!$T$9:$T$1000="MDA1 (IVM+ALB)", COUNTRY_INFO!$T$9:$T$1000, " ") ->  | I42: 0 | M42: 0
A43: =IF(COUNTRY_INFO!A43=0," ",COUNTRY_INFO!A43) -> Ghana | B43: =IF(COUNTRY_INFO!B43=0," ",COUNTRY_INFO!B43) -> Brong-Ahafo | C43: =IF(COUNTRY_INFO!C43=0," ",COUNTRY_INFO!C43) -> Atebubu-Amanteng | D43: =IF(COUNTRY_INFO!$T$9:$T$1000="MDA1 (IVM+ALB)", COUNTRY_INFO!$T$9:$T$1000, " ") ->  | I43: 0 | M43: 0
A44: =IF(COUNTRY_INFO!A44=0," ",COUNTRY_INFO!A44) -> Ghana | B44: =IF(COUNTRY_INFO!B44=0," ",COUNTRY_INFO!B44) -> Brong-Ahafo | C44: =IF(COUNTRY_INFO!C44=0," ",COUNTRY_INFO!C44) -> Berekum | D44: =IF(COUNTRY_INFO!$T$9:$T$1000="MDA1 (IVM+ALB)", COUNTRY_INFO!$T$9:$T$1000, " ") ->  | I44: 0 | M44: 0
A45: =IF(COUNTRY_INFO!A45=0," ",COUNTRY_INFO!A45) -> Ghana | B45: =IF(COUNTRY_INFO!B45=0," ",COUNTRY_INFO!B45) -> Brong-Ahafo | C45: =IF(COUNTRY_INFO!C45=0," ",COUNTRY_INFO!C45) -> Dormaa Municipal | D45: =IF(COUNTRY_INFO!$T$9:$T$1000="MDA1 (IVM+ALB)", COUNTRY_INFO!$T$9:$T$1000, " ") ->  | I45: 0 | M45: 0
A46: =IF(COUNTRY_INFO!A46=0," ",COUNTRY_INFO!A46) -> Ghana | B46: =IF(COUNTRY_INFO!B46=0," ",COUNTRY_INFO!B46) -> Brong-Ahafo | C46: =IF(COUNTRY_INFO!C46=0," ",COUNTRY_INFO!C46) -> Dormaa West | D46: =IF(COUNTRY_INFO!$T$9:$T$1000="MDA1 (IVM+ALB)", COUNTRY_INFO!$T$9:$T$1000, " ") ->  | I46: 0 | M46: 0
A47: =IF(COUNTRY_INFO!A47=0," ",COUNTRY_INFO!A47) -> Ghana | B47: =IF(COUNTRY_INFO!B47=0," ",COUNTRY_INFO!B47) -> Brong-Ahafo | C47: =IF(COUNTRY_INFO!C47=0," ",COUNTRY_INFO!C47) -> Dormaa East | D47: =IF(COUNTRY_INFO!$T$9:$T$1000="MDA1 (IVM+ALB)", COUNTRY_INFO!$T$9:$T$1000, " ") ->  | I47: 0 | M47: 0
A48: =IF(COUNTRY_INFO!A48=0," ",COUNTRY_INFO!A48) -> Ghana | B48: =IF(COUNTRY_INFO!B48=0," ",COUNTRY_INFO!B48) -> Brong-Ahafo | C48: =IF(COUNTRY_INFO!C48=0," ",COUNTRY_INFO!C48) -> Jaman North | D48: =IF(COUNTRY_INFO!$T$9:$T$1000="MDA1 (IVM+ALB)", COUNTRY_INFO!$T$9:$T$1000, " ") ->  | I48: 0 | M48: 0
A49: =IF(COUNTRY_INFO!A49=0," ",COUNTRY_INFO!A49) -> Ghana | B49: =IF(COUNTRY_INFO!B49=0," ",COUNTRY_INFO!B49) -> Brong-Ahafo | C49: =IF(COUNTRY_INFO!C49=0," ",COUNTRY_INFO!C49) -> Jaman south | D49: =IF(COUNTRY_INFO!$T$9:$T$1000="MDA1 (IVM+ALB)", COUNTRY_INFO!$T$9:$T$1000, " ") ->  | I49: 0 | M49: 0
A50: =IF(COUNTRY_INFO!A50=0," ",COUNTRY_INFO!A50) -> Ghana | B50: =IF(COUNTRY_INFO!B50=0," ",COUNTRY_INFO!B50) -> Brong-Ahafo | C50: =IF(COUNTRY_INFO!C50=0," ",COUNTRY_INFO!C50) -> Kintampo North | D50: =IF(COUNTRY_INFO!$T$9:$T$1000="MDA1 (IVM+ALB)", COUNTRY_INFO!$T$9:$T$1000, " ") ->  | I50: 0 | M50: 0
A51: =IF(COUNTRY_INFO!A51=0," ",COUNTRY_INFO!A51) -> Ghana | B51: =IF(COUNTRY_INFO!B51=0," ",COUNTRY_INFO!B51) -> Brong-Ahafo | C51: =IF(COUNTRY_INFO!C51=0," ",COUNTRY_INFO!C51) -> Kintampo South | D51: =IF(COUNTRY_INFO!$T$9:$T$1000="MDA1 (IVM+ALB)", COUNTRY_INFO!$T$9:$T$1000, " ") ->  | I51: 0 | M51: 0
A52: =IF(COUNTRY_INFO!A52=0," ",COUNTRY_INFO!A52) -> Ghana | B52: =IF(COUNTRY_INFO!B52=0," ",COUNTRY_INFO!B52) -> Brong-Ahafo | C52: =IF(COUNTRY_INFO!C52=0," ",COUNTRY_INFO!C52) -> Nkoranza North | D52: =IF(COUNTRY_INFO!$T$9:$T$1000="MDA1 (IVM+ALB)", COUNTRY_INFO!$T$9:$T$1000, " ") ->  | I52: 0 | M52: 0
A53: =IF(COUNTRY_INFO!A53=0," ",COUNTRY_INFO!A53) -> Ghana | B53: =IF(COUNTRY_INFO!B53=0," ",COUNTRY_INFO!B53) -> Brong-Ahafo | C53: =IF(COUNTRY_INFO!C53=0," ",COUNTRY_INFO!C53) -> Nkoranza South | D53: =IF(COUNTRY_INFO!$T$9:$T$1000="MDA1 (IVM+ALB)", COUNTRY_INFO!$T$9:$T$1000, " ") ->  | I53: 0 | M53: 0
A54: =IF(COUNTRY_INFO!A54=0," ",COUNTRY_INFO!A54) -> Ghana | B54: =IF(COUNTRY_INFO!B54=0," ",COUNTRY_INFO!B54) -> Brong-Ahafo | C54: =IF(COUNTRY_INFO!C54=0," ",COUNTRY_INFO!C54) -> Pru | D54: =IF(COUNTRY_INFO!$T$9:$T$1000="MDA1 (IVM+ALB)", COUNTRY_INFO!$T$9:$T$1000, " ") ->  | I54: 0 | M54: 0
A55: =IF(COUNTRY_INFO!A55=0," ",COUNTRY_INFO!A55) -> Ghana | B55: =IF(COUNTRY_INFO!B55=0," ",COUNTRY_INFO!B55) -> Brong-Ahafo | C55: =IF(COUNTRY_INFO!C55=0," ",COUNTRY_INFO!C55) -> Sene East | D55: =IF(COUNTRY_INFO!$T$9:$T$1000="MDA1 (IVM+ALB)", COUNTRY_INFO!$T$9:$T$1000, " ") ->  | I55: 0 | M55: 0
A56: =IF(COUNTRY_INFO!A56=0," ",COUNTRY_INFO!A56) -> Ghana | B56: =IF(COUNTRY_INFO!B56=0," ",COUNTRY_INFO!B56) -> Brong-Ahafo | C56: =IF(COUNTRY_INFO!C56=0," ",COUNTRY_INFO!C56) -> Sene West | D56: =IF(COUNTRY_INFO!$T$9:$T$1000="MDA1 (IVM+ALB)", COUNTRY_INFO!$T$9:$T$1000, " ") ->  | I56: 0 | M56: 0
A57: =IF(COUNTRY_INFO!A57=0," ",COUNTRY_INFO!A57) -> Ghana | B57: =IF(COUNTRY_INFO!B57=0," ",COUNTRY_INFO!B57) -> Brong-Ahafo | C57: =IF(COUNTRY_INFO!C57=0," ",COUNTRY_INFO!C57) -> Sunyani Municipal | D57: =IF(COUNTRY_INFO!$T$9:$T$1000="MDA1 (IVM+ALB)", COUNTRY_INFO!$T$9:$T$1000, " ") -> MDA1 (IVM+ALB) | E57: July 2019 | G57: 37068 | H57: 93351 | I57: 130419 | K57: 26890 | L57: 82866 | M57: 109756 | O57: 72.54235459 | P57: 88.76819745 | Q57: 84.1564496
A58: =IF(COUNTRY_INFO!A58=0," ",COUNTRY_INFO!A58) -> Ghana | B58: =IF(COUNTRY_INFO!B58=0," ",COUNTRY_INFO!B58) -> Brong-Ahafo | C58: =IF(COUNTRY_INFO!C58=0," ",COUNTRY_INFO!C58) -> Sunyani West | D58: =IF(COUNTRY_INFO!$T$9:$T$1000="MDA1 (IVM+ALB)", COUNTRY_INFO!$T$9:$T$1000, " ") -> MDA1 (IVM+ALB) | E58: July 2019 | G58: 25652 | H58: 64600 | I58: 90252 | K58: 21110 | L58: 65054 | M58: 86164 | O58: 82.29377826 | P58: 100.7027864 | Q58: 95.47046049
A59: =IF(COUNTRY_INFO!A59=0," ",COUNTRY_INFO!A59) -> Ghana | B59: =IF(COUNTRY_INFO!B59=0," ",COUNTRY_INFO!B59) -> Brong-Ahafo | C59: =IF(COUNTRY_INFO!C59=0," ",COUNTRY_INFO!C59) -> Tain | D59: =IF(COUNTRY_INFO!$T$9:$T$1000="MDA1 (IVM+ALB)", COUNTRY_INFO!$T$9:$T$1000, " ") ->  | I59: 0 | M59: 0
A60: =IF(COUNTRY_INFO!A60=0," ",COUNTRY_INFO!A60) -> Ghana | B60: =IF(COUNTRY_INFO!B60=0," ",COUNTRY_INFO!B60) -> Brong-Ahafo | C60: =IF(COUNTRY_INFO!C60=0," ",COUNTRY_INFO!C60) -> Banda | D60: =IF(COUNTRY_INFO!$T$9:$T$1000="MDA1 (IVM+ALB)", COUNTRY_INFO!$T$9:$T$1000, " ") ->  | I60: 0 | M60: 0
A61: =IF(COUNTRY_INFO!A61=0," ",COUNTRY_INFO!A61) -> Ghana | B61: =IF(COUNTRY_INFO!B61=0," ",COUNTRY_INFO!B61) -> Brong-Ahafo | C61: =IF(COUNTRY_INFO!C61=0," ",COUNTRY_INFO!C61) -> Tano North | D61: =IF(COUNTRY_INFO!$T$9:$T$1000="MDA1 (IVM+ALB)", COUNTRY_INFO!$T$9:$T$1000, " ") ->  | I61: 0 | M61: 0
A62: =IF(COUNTRY_INFO!A62=0," ",COUNTRY_INFO!A62) -> Ghana | B62: =IF(COUNTRY_INFO!B62=0," ",COUNTRY_INFO!B62) -> Brong-Ahafo | C62: =IF(COUNTRY_INFO!C62=0," ",COUNTRY_INFO!C62) -> Tano South | D62: =IF(COUNTRY_INFO!$T$9:$T$1000="MDA1 (IVM+ALB)", COUNTRY_INFO!$T$9:$T$1000, " ") ->  | I62: 0 | M62: 0
A63: =IF(COUNTRY_INFO!A63=0," ",COUNTRY_INFO!A63) -> Ghana | B63: =IF(COUNTRY_INFO!B63=0," ",COUNTRY_INFO!B63) -> Brong-Ahafo | C63: =IF(COUNTRY_INFO!C63=0," ",COUNTRY_INFO!C63) -> Techiman Municipal | D63: =IF(COUNTRY_INFO!$T$9:$T$1000="MDA1 (IVM+ALB)", COUNTRY_INFO!$T$9:$T$1000, " ") ->  | I63: 0 | M63: 0
A64: =IF(COUNTRY_INFO!A64=0," ",COUNTRY_INFO!A64) -> Ghana | B64: =IF(COUNTRY_INFO!B64=0," ",COUNTRY_INFO!B64) -> Brong-Ahafo | C64: =IF(COUNTRY_INFO!C64=0," ",COUNTRY_INFO!C64) -> Techiman North | D64: =IF(COUNTRY_INFO!$T$9:$T$1000="MDA1 (IVM+ALB)", COUNTRY_INFO!$T$9:$T$1000, " ") ->  | I64: 0 | M64: 0
A65: =IF(COUNTRY_INFO!A65=0," ",COUNTRY_INFO!A65) -> Ghana | B65: =IF(COUNTRY_INFO!B65=0," ",COUNTRY_INFO!B65) -> Brong-Ahafo | C65: =IF(COUNTRY_INFO!C65=0," ",COUNTRY_INFO!C65) -> Wenchi Municipal | D65: =IF(COUNTRY_INFO!$T$9:$T$1000="MDA1 (IVM+ALB)", COUNTRY_INFO!$T$9:$T$1000, " ") ->  | I65: 0 | M65: 0
A66: =IF(COUNTRY_INFO!A66=0," ",COUNTRY_INFO!A66) -> Ghana | B66: =IF(COUNTRY_INFO!B66=0," ",COUNTRY_INFO!B66) -> Central | C66: =IF(COUNTRY_INFO!C66=0," ",COUNTRY_INFO!C66) -> Abura-Asebu-Kwamankese | D66: =IF(COUNTRY_INFO!$T$9:$T$1000="MDA1 (IVM+ALB)", COUNTRY_INFO!$T$9:$T$1000, " ") ->  | I66: 0 | M66: 0
A67: =IF(COUNTRY_INFO!A67=0," ",COUNTRY_INFO!A67) -> Ghana | B67: =IF(COUNTRY_INFO!B67=0," ",COUNTRY_INFO!B67) -> Central | C67: =IF(COUNTRY_INFO!C67=0," ",COUNTRY_INFO!C67) -> Agona East | D67: =IF(COUNTRY_INFO!$T$9:$T$1000="MDA1 (IVM+ALB)", COUNTRY_INFO!$T$9:$T$1000, " ") ->  | I67: 0 | M67: 0
A68: =IF(COUNTRY_INFO!A68=0," ",COUNTRY_INFO!A68) -> Ghana | B68: =IF(COUNTRY_INFO!B68=0," ",COUNTRY_INFO!B68) -> Central | C68: =IF(COUNTRY_INFO!C68=0," ",COUNTRY_INFO!C68) -> Agona West | D68: =IF(COUNTRY_INFO!$T$9:$T$1000="MDA1 (IVM+ALB)", COUNTRY_INFO!$T$9:$T$1000, " ") ->  | I68: 0 | M68: 0
A69: =IF(COUNTRY_INFO!A69=0," ",COUNTRY_INFO!A69) -> Ghana | B69: =IF(COUNTRY_INFO!B69=0," ",COUNTRY_INFO!B69) -> Central | C69: =IF(COUNTRY_INFO!C69=0," ",COUNTRY_INFO!C69) -> Ajumako-Enyan-Essiam | D69: =IF(COUNTRY_INFO!$T$9:$T$1000="MDA1 (IVM+ALB)", COUNTRY_INFO!$T$9:$T$1000, " ") ->  | I69: 0 | M69: 0
A70: =IF(COUNTRY_INFO!A70=0," ",COUNTRY_INFO!A70) -> Ghana | B70: =IF(COUNTRY_INFO!B70=0," ",COUNTRY_INFO!B70) -> Central | C70: =IF(COUNTRY_INFO!C70=0," ",COUNTRY_INFO!C70) -> Asikuma-Odoben-Brakwa | D70: =IF(COUNTRY_INFO!$T$9:$T$1000="MDA1 (IVM+ALB)", COUNTRY_INFO!$T$9:$T$1000, " ") ->  | I70: 0 | M70: 0
A71: =IF(COUNTRY_INFO!A71=0," ",COUNTRY_INFO!A71) -> Ghana | B71: =IF(COUNTRY_INFO!B71=0," ",COUNTRY_INFO!B71) -> Central | C71: =IF(COUNTRY_INFO!C71=0," ",COUNTRY_INFO!C71) -> Assin North | D71: =IF(COUNTRY_INFO!$T$9:$T$1000="MDA1 (IVM+ALB)", COUNTRY_INFO!$T$9:$T$1000, " ") ->  | I71: 0 | M71: 0
A72: =IF(COUNTRY_INFO!A72=0," ",COUNTRY_INFO!A72) -> Ghana | B72: =IF(COUNTRY_INFO!B72=0," ",COUNTRY_INFO!B72) -> Central | C72: =IF(COUNTRY_INFO!C72=0," ",COUNTRY_INFO!C72) -> Assin South | D72: =IF(COUNTRY_INFO!$T$9:$T$1000="MDA1 (IVM+ALB)", COUNTRY_INFO!$T$9:$T$1000, " ") ->  | I72: 0 | M72: 0
A73: =IF(COUNTRY_INFO!A73=0," ",COUNTRY_INFO!A73) -> Ghana | B73: =IF(COUNTRY_INFO!B73=0," ",COUNTRY_INFO!B73) -> Central | C73: =IF(COUNTRY_INFO!C73=0," ",COUNTRY_INFO!C73) -> Awutu-Senya West | D73: =IF(COUNTRY_INFO!$T$9:$T$1000="MDA1 (IVM+ALB)", COUNTRY_INFO!$T$9:$T$1000, " ") ->  | I73: 0 | M73: 0
A74: =IF(COUNTRY_INFO!A74=0," ",COUNTRY_INFO!A74) -> Ghana | B74: =IF(COUNTRY_INFO!B74=0," ",COUNTRY_INFO!B74) -> Central | C74: =IF(COUNTRY_INFO!C74=0," ",COUNTRY_INFO!C74) -> Awutu-Senya East | D74: =IF(COUNTRY_INFO!$T$9:$T$1000="MDA1 (IVM+ALB)", COUNTRY_INFO!$T$9:$T$1000, " ") ->  | I74: =SUM(F74:H74) -> 0 | M74: =SUM(J74:L74) -> 0 | O74: =IF(G74<>0, IF(K74/G74*100=0, "-", K74/G74*100), " ") ->  | P74: =IF(H74<>0, IF(L74/H74*100=0, "-", L74/H74*100), " ") ->  | Q74: =IF(I74<>0, IF(M74/I74*100=0, "-", M74/I74*100), " ") -> 
A75: =IF(COUNTRY_INFO!A75=0," ",COUNTRY_INFO!A75) -> Ghana | B75: =IF(COUNTRY_INFO!B75=0," ",COUNTRY_INFO!B75) -> Central | C75: =IF(COUNTRY_INFO!C75=0," ",COUNTRY_INFO!C75) -> Cape Coast | D75: =IF(COUNTRY_INFO!$T$9:$T$1000="MDA1 (IVM+ALB)", COUNTRY_INFO!$T$9:$T$1000, " ") ->  | I75: 0 | M75: 0
A76: =IF(COUNTRY_INFO!A76=0," ",COUNTRY_INFO!A76) -> Ghana | B76: =IF(COUNTRY_INFO!B76=0," ",COUNTRY_INFO!B76) -> Central | C76: =IF(COUNTRY_INFO!C76=0," ",COUNTRY_INFO!C76) -> Efutu | D76: =IF(COUNTRY_INFO!$T$9:$T$1000="MDA1 (IVM+ALB)", COUNTRY_INFO!$T$9:$T$1000, " ") ->  | I76: 0 | M76: 0
A77: =IF(COUNTRY_INFO!A77=0," ",COUNTRY_INFO!A77) -> Ghana | B77: =IF(COUNTRY_INFO!B77=0," ",COUNTRY_INFO!B77) -> Central | C77: =IF(COUNTRY_INFO!C77=0," ",COUNTRY_INFO!C77) -> Gomoa East | D77: =IF(COUNTRY_INFO!$T$9:$T$1000="MDA1 (IVM+ALB)", COUNTRY_INFO!$T$9:$T$1000, " ") ->  | I77: 0 | M77: 0
A78: =IF(COUNTRY_INFO!A78=0," ",COUNTRY_INFO!A78) -> Ghana | B78: =IF(COUNTRY_INFO!B78=0," ",COUNTRY_INFO!B78) -> Central | C78: =IF(COUNTRY_INFO!C78=0," ",COUNTRY_INFO!C78) -> Gomoa West | D78: =IF(COUNTRY_INFO!$T$9:$T$1000="MDA1 (IVM+ALB)", COUNTRY_INFO!$T$9:$T$1000, " ") ->  | I78: 0 | M78: 0
A79: =IF(COUNTRY_INFO!A79=0," ",COUNTRY_INFO!A79) -> Ghana | B79: =IF(COUNTRY_INFO!B79=0," ",COUNTRY_INFO!B79) -> Central | C79: =IF(COUNTRY_INFO!C79=0," ",COUNTRY_INFO!C79) -> Komenda-Edina-Eguafo-Abirem | D79: =IF(COUNTRY_INFO!$T$9:$T$1000="MDA1 (IVM+ALB)", COUNTRY_INFO!$T$9:$T$1000, " ") ->  | I79: 0 | M79: 0
A80: =IF(COUNTRY_INFO!A80=0," ",COUNTRY_INFO!A80) -> Ghana | B80: =IF(COUNTRY_INFO!B80=0," ",COUNTRY_INFO!B80) -> Central | C80: =IF(COUNTRY_INFO!C80=0," ",COUNTRY_INFO!C80) -> Mfansteman | D80: =IF(COUNTRY_INFO!$T$9:$T$1000="MDA1 (IVM+ALB)", COUNTRY_INFO!$T$9:$T$1000, " ") ->  | I80: 0 | M80: 0
A81: =IF(COUNTRY_INFO!A81=0," ",COUNTRY_INFO!A81) -> Ghana | B81: =IF(COUNTRY_INFO!B81=0," ",COUNTRY_INFO!B81) -> Central | C81: =IF(COUNTRY_INFO!C81=0," ",COUNTRY_INFO!C81) -> Ekumfi | D81: =IF(COUNTRY_INFO!$T$9:$T$1000="MDA1 (IVM+ALB)", COUNTRY_INFO!$T$9:$T$1000, " ") ->  | I81: 0 | M81: 0
A82: =IF(COUNTRY_INFO!A82=0," ",COUNTRY_INFO!A82) -> Ghana | B82: =IF(COUNTRY_INFO!B82=0," ",COUNTRY_INFO!B82) -> Central | C82: =IF(COUNTRY_INFO!C82=0," ",COUNTRY_INFO!C82) -> Hemang Lower Denkyira | D82: =IF(COUNTRY_INFO!$T$9:$T$1000="MDA1 (IVM+ALB)", COUNTRY_INFO!$T$9:$T$1000, " ") ->  | I82: 0 | M82: 0
A83: =IF(COUNTRY_INFO!A83=0," ",COUNTRY_INFO!A83) -> Ghana | B83: =IF(COUNTRY_INFO!B83=0," ",COUNTRY_INFO!B83) -> Central | C83: =IF(COUNTRY_INFO!C83=0," ",COUNTRY_INFO!C83) -> Twifu-Ati Mokwa | D83: =IF(COUNTRY_INFO!$T$9:$T$1000="MDA1 (IVM+ALB)", COUNTRY_INFO!$T$9:$T$1000, " ") ->  | I83: 0 | M83: 0
A84: =IF(COUNTRY_INFO!A84=0," ",COUNTRY_INFO!A84) -> Ghana | B84: =IF(COUNTRY_INFO!B84=0," ",COUNTRY_INFO!B84) -> Central | C84: =IF(COUNTRY_INFO!C84=0," ",COUNTRY_INFO!C84) -> Upper Denkyira East | D84: =IF(COUNTRY_INFO!$T$9:$T$1000="MDA1 (IVM+ALB)", COUNTRY_INFO!$T$9:$T$1000, " ") ->  | I84: 0 | M84: 0
A85: =IF(COUNTRY_INFO!A85=0," ",COUNTRY_INFO!A85) -> Ghana | B85: =IF(COUNTRY_INFO!B85=0," ",COUNTRY_INFO!B85) -> Central | C85: =IF(COUNTRY_INFO!C85=0," ",COUNTRY_INFO!C85) -> Upper Denkyira West | D85: =IF(COUNTRY_INFO!$T$9:$T$1000="MDA1 (IVM+ALB)", COUNTRY_INFO!$T$9:$T$1000, " ") ->  | I85: 0 | M85: 0
A86: =IF(COUNTRY_INFO!A86=0," ",COUNTRY_INFO!A86) -> Ghana | B86: =IF(COUNTRY_INFO!B86=0," ",COUNTRY_INFO!B86) -> Eastern | C86: =IF(COUNTRY_INFO!C86=0," ",COUNTRY_INFO!C86) -> Akwapim North | D86: =IF(COUNTRY_INFO!$T$9:$T$1000="MDA1 (IVM+ALB)", COUNTRY_INFO!$T$9:$T$1000, " ") ->  | I86: 0 | M86: 0
A87: =IF(COUNTRY_INFO!A87=0," ",COUNTRY_INFO!A87) -> Ghana | B87: =IF(COUNTRY_INFO!B87=0," ",COUNTRY_INFO!B87) -> Eastern | C87: =IF(COUNTRY_INFO!C87=0," ",COUNTRY_INFO!C87) -> Akwapim South | D87: =IF(COUNTRY_INFO!$T$9:$T$1000="MDA1 (IVM+ALB)", COUNTRY_INFO!$T$9:$T$1000, " ") ->  | I87: 0 | M87: 0
A88: =IF(COUNTRY_INFO!A88=0," ",COUNTRY_INFO!A88) -> Ghana | B88: =IF(COUNTRY_INFO!B88=0," ",COUNTRY_INFO!B88) -> Eastern | C88: =IF(COUNTRY_INFO!C88=0," ",COUNTRY_INFO!C88) -> Nsawam Adoagyiri Municipal | D88: =IF(COUNTRY_INFO!$T$9:$T$1000="MDA1 (IVM+ALB)", COUNTRY_INFO!$T$9:$T$1000, " ") ->  | I88: 0 | M88: 0
A89: =IF(COUNTRY_INFO!A89=0," ",COUNTRY_INFO!A89) -> Ghana | B89: =IF(COUNTRY_INFO!B89=0," ",COUNTRY_INFO!B89) -> Eastern | C89: =IF(COUNTRY_INFO!C89=0," ",COUNTRY_INFO!C89) -> Akyemansa | D89: =IF(COUNTRY_INFO!$T$9:$T$1000="MDA1 (IVM+ALB)", COUNTRY_INFO!$T$9:$T$1000, " ") ->  | I89: 0 | M89: 0
A90: =IF(COUNTRY_INFO!A90=0," ",COUNTRY_INFO!A90) -> Ghana | B90: =IF(COUNTRY_INFO!B90=0," ",COUNTRY_INFO!B90) -> Eastern | C90: =IF(COUNTRY_INFO!C90=0," ",COUNTRY_INFO!C90) -> Asuogyaman | D90: =IF(COUNTRY_INFO!$T$9:$T$1000="MDA1 (IVM+ALB)", COUNTRY_INFO!$T$9:$T$1000, " ") ->  | I90: 0 | M90: 0
A91: =IF(COUNTRY_INFO!A91=0," ",COUNTRY_INFO!A91) -> Ghana | B91: =IF(COUNTRY_INFO!B91=0," ",COUNTRY_INFO!B91) -> Eastern | C91: =IF(COUNTRY_INFO!C91=0," ",COUNTRY_INFO!C91) -> Atiwa | D91: =IF(COUNTRY_INFO!$T$9:$T$1000="MDA1 (IVM+ALB)", COUNTRY_INFO!$T$9:$T$1000, " ") ->  | I91: 0 | M91: 0
A92: =IF(COUNTRY_INFO!A92=0," ",COUNTRY_INFO!A92) -> Ghana | B92: =IF(COUNTRY_INFO!B92=0," ",COUNTRY_INFO!B92) -> Eastern | C92: =IF(COUNTRY_INFO!C92=0," ",COUNTRY_INFO!C92) -> Birim Central | D92: =IF(COUNTRY_INFO!$T$9:$T$1000="MDA1 (IVM+ALB)", COUNTRY_INFO!$T$9:$T$1000, " ") ->  | I92: 0 | M92: 0
A93: =IF(COUNTRY_INFO!A93=0," ",COUNTRY_INFO!A93) -> Ghana | B93: =IF(COUNTRY_INFO!B93=0," ",COUNTRY_INFO!B93) -> Eastern | C93: =IF(COUNTRY_INFO!C93=0," ",COUNTRY_INFO!C93) -> Birim North | D93: =IF(COUNTRY_INFO!$T$9:$T$1000="MDA1 (IVM+ALB)", COUNTRY_INFO!$T$9:$T$1000, " ") ->  | I93: 0 | M93: 0
A94: =IF(COUNTRY_INFO!A94=0," ",COUNTRY_INFO!A94) -> Ghana | B94: =IF(COUNTRY_INFO!B94=0," ",COUNTRY_INFO!B94) -> Eastern | C94: =IF(COUNTRY_INFO!C94=0," ",COUNTRY_INFO!C94) -> Birim South | D94: =IF(COUNTRY_INFO!$T$9:$T$1000="MDA1 (IVM+ALB)", COUNTRY_INFO!$T$9:$T$1000, " ") ->  | I94: 0 | M94: 0
A95: =IF(COUNTRY_INFO!A95=0," ",COUNTRY_INFO!A95) -> Ghana | B95: =IF(COUNTRY_INFO!B95=0," ",COUNTRY_INFO!B95) -> Eastern | C95: =IF(COUNTRY_INFO!C95=0," ",COUNTRY_INFO!C95) -> East Akim Municipal | D95: =IF(COUNTRY_INFO!$T$9:$T$1000="MDA1 (IVM+ALB)", COUNTRY_INFO!$T$9:$T$1000, " ") ->  | I95: 0 | M95: 0
A96: =IF(COUNTRY_INFO!A96=0," ",COUNTRY_INFO!A96) -> Ghana | B96: =IF(COUNTRY_INFO!B96=0," ",COUNTRY_INFO!B96) -> Eastern | C96: =IF(COUNTRY_INFO!C96=0," ",COUNTRY_INFO!C96) -> Fanteakwa | D96: =IF(COUNTRY_INFO!$T$9:$T$1000="MDA1 (IVM+ALB)", COUNTRY_INFO!$T$9:$T$1000, " ") ->  | I96: 0 | M96: 0
A97: =IF(COUNTRY_INFO!A97=0," ",COUNTRY_INFO!A97) -> Ghana | B97: =IF(COUNTRY_INFO!B97=0," ",COUNTRY_INFO!B97) -> Eastern | C97: =IF(COUNTRY_INFO!C97=0," ",COUNTRY_INFO!C97) -> Kwaebibirem | D97: =IF(COUNTRY_INFO!$T$9:$T$1000="MDA1 (IVM+ALB)", COUNTRY_INFO!$T$9:$T$1000, " ") ->  | I97: 0 | M97: 0
A98: =IF(COUNTRY_INFO!A98=0," ",COUNTRY_INFO!A98) -> Ghana | B98: =IF(COUNTRY_INFO!B98=0," ",COUNTRY_INFO!B98) -> Eastern | C98: =IF(COUNTRY_INFO!C98=0," ",COUNTRY_INFO!C98) -> Denkyembour | D98: =IF(COUNTRY_INFO!$T$9:$T$1000="MDA1 (IVM+ALB)", COUNTRY_INFO!$T$9:$T$1000, " ") ->  | I98: 0 | M98: 0
A99: =IF(COUNTRY_INFO!A99=0," ",COUNTRY_INFO!A99) -> Ghana | B99: =IF(COUNTRY_INFO!B99=0," ",COUNTRY_INFO!B99) -> Eastern | C99: =IF(COUNTRY_INFO!C99=0," ",COUNTRY_INFO!C99) -> Kwahu East | D99: =IF(COUNTRY_INFO!$T$9:$T$1000="MDA1 (IVM+ALB)", COUNTRY_INFO!$T$9:$T$1000, " ") ->  | I99: 0 | M99: 0
A100: =IF(COUNTRY_INFO!A100=0," ",COUNTRY_INFO!A100) -> Ghana | B100: =IF(COUNTRY_INFO!B100=0," ",COUNTRY_INFO!B100) -> Eastern | C100: =IF(COUNTRY_INFO!C100=0," ",COUNTRY_INFO!C100) -> Kwahu Afram Plains North | D100: =IF(COUNTRY_INFO!$T$9:$T$1000="MDA1 (IVM+ALB)", COUNTRY_INFO!$T$9:$T$1000, " ") ->  | I100: 0 | M100: 0
A101: =IF(COUNTRY_INFO!A101=0," ",COUNTRY_INFO!A101) -> Ghana | B101: =IF(COUNTRY_INFO!B101=0," ",COUNTRY_INFO!B101) -> Eastern | C101: =IF(COUNTRY_INFO!C101=0," ",COUNTRY_INFO!C101) -> Kwahu Afram Plains South | D101: =IF(COUNTRY_INFO!$T$9:$T$1000="MDA1 (IVM+ALB)", COUNTRY_INFO!$T$9:$T$1000, " ") ->  | I101: 0 | M101: 0
A102: =IF(COUNTRY_INFO!A102=0," ",COUNTRY_INFO!A102) -> Ghana | B102: =IF(COUNTRY_INFO!B102=0," ",COUNTRY_INFO!B102) -> Eastern | C102: =IF(COUNTRY_INFO!C102=0," ",COUNTRY_INFO!C102) -> Kwahu South | D102: =IF(COUNTRY_INFO!$T$9:$T$1000="MDA1 (IVM+ALB)", COUNTRY_INFO!$T$9:$T$1000, " ") ->  | I102: 0 | M102: 0
A103: =IF(COUNTRY_INFO!A103=0," ",COUNTRY_INFO!A103) -> Ghana | B103: =IF(COUNTRY_INFO!B103=0," ",COUNTRY_INFO!B103) -> Eastern | C103: =IF(COUNTRY_INFO!C103=0," ",COUNTRY_INFO!C103) -> Kwahu West | D103: =IF(COUNTRY_INFO!$T$9:$T$1000="MDA1 (IVM+ALB)", COUNTRY_INFO!$T$9:$T$1000, " ") ->  | I103: 0 | M103: 0
A104: =IF(COUNTRY_INFO!A104=0," ",COUNTRY_INFO!A104) -> Ghana | B104: =IF(COUNTRY_INFO!B104=0," ",COUNTRY_INFO!B104) -> Eastern | C104: =IF(COUNTRY_INFO!C104=0," ",COUNTRY_INFO!C104) -> Lower Manya Krobo | D104: =IF(COUNTRY_INFO!$T$9:$T$1000="MDA1 (IVM+ALB)", COUNTRY_INFO!$T$9:$T$1000, " ") ->  | I104: 0 | M104: 0
A105: =IF(COUNTRY_INFO!A105=0," ",COUNTRY_INFO!A105) -> Ghana | B105: =IF(COUNTRY_INFO!B105=0," ",COUNTRY_INFO!B105) -> Eastern | C105: =IF(COUNTRY_INFO!C105=0," ",COUNTRY_INFO!C105) -> New Juaben Municipal | D105: =IF(COUNTRY_INFO!$T$9:$T$1000="MDA1 (IVM+ALB)", COUNTRY_INFO!$T$9:$T$1000, " ") ->  | I105: 0 | M105: 0
A106: =IF(COUNTRY_INFO!A106=0," ",COUNTRY_INFO!A106) -> Ghana | B106: =IF(COUNTRY_INFO!B106=0," ",COUNTRY_INFO!B106) -> Eastern | C106: =IF(COUNTRY_INFO!C106=0," ",COUNTRY_INFO!C106) -> Suhum | D106: =IF(COUNTRY_INFO!$T$9:$T$1000="MDA1 (IVM+ALB)", COUNTRY_INFO!$T$9:$T$1000, " ") ->  | I106: 0 | M106: 0
A107: =IF(COUNTRY_INFO!A107=0," ",COUNTRY_INFO!A107) -> Ghana | B107: =IF(COUNTRY_INFO!B107=0," ",COUNTRY_INFO!B107) -> Eastern | C107: =IF(COUNTRY_INFO!C107=0," ",COUNTRY_INFO!C107) -> Ayensuano | D107: =IF(COUNTRY_INFO!$T$9:$T$1000="MDA1 (IVM+ALB)", COUNTRY_INFO!$T$9:$T$1000, " ") ->  | I107: 0 | M107: 0
A108: =IF(COUNTRY_INFO!A108=0," ",COUNTRY_INFO!A108) -> Ghana | B108: =IF(COUNTRY_INFO!B108=0," ",COUNTRY_INFO!B108) -> Eastern | C108: =IF(COUNTRY_INFO!C108=0," ",COUNTRY_INFO!C108) -> Upper Manya Krobo | D108: =IF(COUNTRY_INFO!$T$9:$T$1000="MDA1 (IVM+ALB)", COUNTRY_INFO!$T$9:$T$1000, " ") ->  | I108: 0 | M108: 0
A109: =IF(COUNTRY_INFO!A109=0," ",COUNTRY_INFO!A109) -> Ghana | B109: =IF(COUNTRY_INFO!B109=0," ",COUNTRY_INFO!B109) -> Eastern | C109: =IF(COUNTRY_INFO!C109=0," ",COUNTRY_INFO!C109) -> Upper West Akim | D109: =IF(COUNTRY_INFO!$T$9:$T$1000="MDA1 (IVM+ALB)", COUNTRY_INFO!$T$9:$T$1000, " ") ->  | I109: 0 | M109: 0
A110: =IF(COUNTRY_INFO!A110=0," ",COUNTRY_INFO!A110) -> Ghana | B110: =IF(COUNTRY_INFO!B110=0," ",COUNTRY_INFO!B110) -> Eastern | C110: =IF(COUNTRY_INFO!C110=0," ",COUNTRY_INFO!C110) -> West Akim Municipal | D110: =IF(COUNTRY_INFO!$T$9:$T$1000="MDA1 (IVM+ALB)", COUNTRY_INFO!$T$9:$T$1000, " ") ->  | I110: 0 | M110: 0
A111: =IF(COUNTRY_INFO!A111=0," ",COUNTRY_INFO!A111) -> Ghana | B111: =IF(COUNTRY_INFO!B111=0," ",COUNTRY_INFO!B111) -> Eastern | C111: =IF(COUNTRY_INFO!C111=0," ",COUNTRY_INFO!C111) -> Yilo Krobo | D111: =IF(COUNTRY_INFO!$T$9:$T$1000="MDA1 (IVM+ALB)", COUNTRY_INFO!$T$9:$T$1000, " ") ->  | I111: 0 | M111: 0
A112: =IF(COUNTRY_INFO!A112=0," ",COUNTRY_INFO!A112) -> Ghana | B112: =IF(COUNTRY_INFO!B112=0," ",COUNTRY_INFO!B112) -> Greater Accra | C112: =IF(COUNTRY_INFO!C112=0," ",COUNTRY_INFO!C112) -> Accra Metro | D112: =IF(COUNTRY_INFO!$T$9:$T$1000="MDA1 (IVM+ALB)", COUNTRY_INFO!$T$9:$T$1000, " ") ->  | I112: 0 | M112: 0
A113: =IF(COUNTRY_INFO!A113=0," ",COUNTRY_INFO!A113) -> Ghana | B113: =IF(COUNTRY_INFO!B113=0," ",COUNTRY_INFO!B113) -> Greater Accra | C113: =IF(COUNTRY_INFO!C113=0," ",COUNTRY_INFO!C113) -> La Dade-Kotopon | D113: =IF(COUNTRY_INFO!$T$9:$T$1000="MDA1 (IVM+ALB)", COUNTRY_INFO!$T$9:$T$1000, " ") ->  | I113: 0 | M113: 0
A114: =IF(COUNTRY_INFO!A114=0," ",COUNTRY_INFO!A114) -> Ghana | B114: =IF(COUNTRY_INFO!B114=0," ",COUNTRY_INFO!B114) -> Greater Accra | C114: =IF(COUNTRY_INFO!C114=0," ",COUNTRY_INFO!C114) -> Adenta | D114: =IF(COUNTRY_INFO!$T$9:$T$1000="MDA1 (IVM+ALB)", COUNTRY_INFO!$T$9:$T$1000, " ") ->  | I114: 0 | M114: 0
A115: =IF(COUNTRY_INFO!A115=0," ",COUNTRY_INFO!A115) -> Ghana | B115: =IF(COUNTRY_INFO!B115=0," ",COUNTRY_INFO!B115) -> Greater Accra | C115: =IF(COUNTRY_INFO!C115=0," ",COUNTRY_INFO!C115) -> Ashiaman | D115: =IF(COUNTRY_INFO!$T$9:$T$1000="MDA1 (IVM+ALB)", COUNTRY_INFO!$T$9:$T$1000, " ") ->  | I115: 0 | M115: 0
A116: =IF(COUNTRY_INFO!A116=0," ",COUNTRY_INFO!A116) -> Ghana | B116: =IF(COUNTRY_INFO!B116=0," ",COUNTRY_INFO!B116) -> Greater Accra | C116: =IF(COUNTRY_INFO!C116=0," ",COUNTRY_INFO!C116) -> Ada East | D116: =IF(COUNTRY_INFO!$T$9:$T$1000="MDA1 (IVM+ALB)", COUNTRY_INFO!$T$9:$T$1000, " ") ->  | I116: 0 | M116: 0
A117: =IF(COUNTRY_INFO!A117=0," ",COUNTRY_INFO!A117) -> Ghana | B117: =IF(COUNTRY_INFO!B117=0," ",COUNTRY_INFO!B117) -> Greater Accra | C117: =IF(COUNTRY_INFO!C117=0," ",COUNTRY_INFO!C117) -> Ada West | D117: =IF(COUNTRY_INFO!$T$9:$T$1000="MDA1 (IVM+ALB)", COUNTRY_INFO!$T$9:$T$1000, " ") ->  | I117: 0 | M117: 0
A118: =IF(COUNTRY_INFO!A118=0," ",COUNTRY_INFO!A118) -> Ghana | B118: =IF(COUNTRY_INFO!B118=0," ",COUNTRY_INFO!B118) -> Greater Accra | C118: =IF(COUNTRY_INFO!C118=0," ",COUNTRY_INFO!C118) -> Shai Osudoku | D118: =IF(COUNTRY_INFO!$T$9:$T$1000="MDA1 (IVM+ALB)", COUNTRY_INFO!$T$9:$T$1000, " ") ->  | I118: 0 | M118: 0
A119: =IF(COUNTRY_INFO!A119=0," ",COUNTRY_INFO!A119) -> Ghana | B119: =IF(COUNTRY_INFO!B119=0," ",COUNTRY_INFO!B119) -> Greater Accra | C119: =IF(COUNTRY_INFO!C119=0," ",COUNTRY_INFO!C119) -> Ningo Prampram | D119: =IF(COUNTRY_INFO!$T$9:$T$1000="MDA1 (IVM+ALB)", COUNTRY_INFO!$T$9:$T$1000, " ") ->  | I119: 0 | M119: 0
A120: =IF(COUNTRY_INFO!A120=0," ",COUNTRY_INFO!A120) -> Ghana | B120: =IF(COUNTRY_INFO!B120=0," ",COUNTRY_INFO!B120) -> Greater Accra | C120: =IF(COUNTRY_INFO!C120=0," ",COUNTRY_INFO!C120) -> Ga East | D120: =IF(COUNTRY_INFO!$T$9:$T$1000="MDA1 (IVM+ALB)", COUNTRY_INFO!$T$9:$T$1000, " ") ->  | I120: 0 | M120: 0
A121: =IF(COUNTRY_INFO!A121=0," ",COUNTRY_INFO!A121) -> Ghana | B121: =IF(COUNTRY_INFO!B121=0," ",COUNTRY_INFO!B121) -> Greater Accra | C121: =IF(COUNTRY_INFO!C121=0," ",COUNTRY_INFO!C121) -> La-Nkwantanang-Madina | D121: =IF(COUNTRY_INFO!$T$9:$T$1000="MDA1 (IVM+ALB)", COUNTRY_INFO!$T$9:$T$1000, " ") ->  | I121: 0 | M121: 0
A122: =IF(COUNTRY_INFO!A122=0," ",COUNTRY_INFO!A122) -> Ghana | B122: =IF(COUNTRY_INFO!B122=0," ",COUNTRY_INFO!B122) -> Greater Accra | C122: =IF(COUNTRY_INFO!C122=0," ",COUNTRY_INFO!C122) -> Ga South | D122: =IF(COUNTRY_INFO!$T$9:$T$1000="MDA1 (IVM+ALB)", COUNTRY_INFO!$T$9:$T$1000, " ") ->  | I122: 0 | M122: 0
A123: =IF(COUNTRY_INFO!A123=0," ",COUNTRY_INFO!A123) -> Ghana | B123: =IF(COUNTRY_INFO!B123=0," ",COUNTRY_INFO!B123) -> Greater Accra | C123: =IF(COUNTRY_INFO!C123=0," ",COUNTRY_INFO!C123) -> Ga Central | D123: =IF(COUNTRY_INFO!$T$9:$T$1000="MDA1 (IVM+ALB)", COUNTRY_INFO!$T$9:$T$1000, " ") ->  | I123: 0 | M123: 0
A124: =IF(COUNTRY_INFO!A124=0," ",COUNTRY_INFO!A124) -> Ghana | B124: =IF(COUNTRY_INFO!B124=0," ",COUNTRY_INFO!B124) -> Greater Accra | C124: =IF(COUNTRY_INFO!C124=0," ",COUNTRY_INFO!C124) -> Ga West | D124: =IF(COUNTRY_INFO!$T$9:$T$1000="MDA1 (IVM+ALB)", COUNTRY_INFO!$T$9:$T$1000, " ") ->  | I124: 0 | M124: 0
A125: =IF(COUNTRY_INFO!A125=0," ",COUNTRY_INFO!A125) -> Ghana | B125: =IF(COUNTRY_INFO!B125=0," ",COUNTRY_INFO!B125) -> Greater Accra | C125: =IF(COUNTRY_INFO!C125=0," ",COUNTRY_INFO!C125) -> Ledzokuku-Krowor | D125: =IF(COUNTRY_INFO!$T$9:$T$1000="MDA1 (IVM+ALB)", COUNTRY_INFO!$T$9:$T$1000, " ") ->  | I125: 0 | M125: 0
A126: =IF(COUNTRY_INFO!A126=0," ",COUNTRY_INFO!A126) -> Ghana | B126: =IF(COUNTRY_INFO!B126=0," ",COUNTRY_INFO!B126) -> Greater Accra | C126: =IF(COUNTRY_INFO!C126=0," ",COUNTRY_INFO!C126) -> Tema | D126: =IF(COUNTRY_INFO!$T$9:$T$1000="MDA1 (IVM+ALB)", COUNTRY_INFO!$T$9:$T$1000, " ") ->  | I126: 0 | M126: 0
A127: =IF(COUNTRY_INFO!A127=0," ",COUNTRY_INFO!A127) -> Ghana | B127: =IF(COUNTRY_INFO!B127=0," ",COUNTRY_INFO!B127) -> Greater Accra | C127: =IF(COUNTRY_INFO!C127=0," ",COUNTRY_INFO!C127) -> Kpone Katamanso | D127: =IF(COUNTRY_INFO!$T$9:$T$1000="MDA1 (IVM+ALB)", COUNTRY_INFO!$T$9:$T$1000, " ") ->  | I127: 0 | M127: 0
A128: =IF(COUNTRY_INFO!A128=0," ",COUNTRY_INFO!A128) -> Ghana | B128: =IF(COUNTRY_INFO!B128=0," ",COUNTRY_INFO!B128) -> Northern | C128: =IF(COUNTRY_INFO!C128=0," ",COUNTRY_INFO!C128) -> Bole | D128: =IF(COUNTRY_INFO!$T$9:$T$1000="MDA1 (IVM+ALB)", COUNTRY_INFO!$T$9:$T$1000, " ") -> MDA1 (IVM+ALB) | E128: July 2019 | G128: 19416 | H128: 48897 | I128: 68313 | K128: 15781 | L128: 48632 | M128: 64413 | O128: 81.27832715 | P128: 99.45804446 | Q128: 94.29098415
A129: =IF(COUNTRY_INFO!A129=0," ",COUNTRY_INFO!A129) -> Ghana | B129: =IF(COUNTRY_INFO!B129=0," ",COUNTRY_INFO!B129) -> Northern | C129: =IF(COUNTRY_INFO!C129=0," ",COUNTRY_INFO!C129) -> Bunkpurugu-Yunyuo | D129: =IF(COUNTRY_INFO!$T$9:$T$1000="MDA1 (IVM+ALB)", COUNTRY_INFO!$T$9:$T$1000, " ") ->  | I129: 0 | M129: 0
A130: =IF(COUNTRY_INFO!A130=0," ",COUNTRY_INFO!A130) -> Ghana | B130: =IF(COUNTRY_INFO!B130=0," ",COUNTRY_INFO!B130) -> Northern | C130: =IF(COUNTRY_INFO!C130=0," ",COUNTRY_INFO!C130) -> Central Gonja | D130: =IF(COUNTRY_INFO!$T$9:$T$1000="MDA1 (IVM+ALB)", COUNTRY_INFO!$T$9:$T$1000, " ") ->  | I130: 0 | M130: 0
A131: =IF(COUNTRY_INFO!A131=0," ",COUNTRY_INFO!A131) -> Ghana | B131: =IF(COUNTRY_INFO!B131=0," ",COUNTRY_INFO!B131) -> Northern | C131: =IF(COUNTRY_INFO!C131=0," ",COUNTRY_INFO!C131) -> Chereponi | D131: =IF(COUNTRY_INFO!$T$9:$T$1000="MDA1 (IVM+ALB)", COUNTRY_INFO!$T$9:$T$1000, " ") ->  | I131: 0 | M131: 0
A132: =IF(COUNTRY_INFO!A132=0," ",COUNTRY_INFO!A132) -> Ghana | B132: =IF(COUNTRY_INFO!B132=0," ",COUNTRY_INFO!B132) -> Northern | C132: =IF(COUNTRY_INFO!C132=0," ",COUNTRY_INFO!C132) -> East Gonja | D132: =IF(COUNTRY_INFO!$T$9:$T$1000="MDA1 (IVM+ALB)", COUNTRY_INFO!$T$9:$T$1000, " ") ->  | I132: 0 | M132: 0
A133: =IF(COUNTRY_INFO!A133=0," ",COUNTRY_INFO!A133) -> Ghana | B133: =IF(COUNTRY_INFO!B133=0," ",COUNTRY_INFO!B133) -> Northern | C133: =IF(COUNTRY_INFO!C133=0," ",COUNTRY_INFO!C133) -> East Mamprusi | D133: =IF(COUNTRY_INFO!$T$9:$T$1000="MDA1 (IVM+ALB)", COUNTRY_INFO!$T$9:$T$1000, " ") ->  | I133: 0 | M133: 0
A134: =IF(COUNTRY_INFO!A134=0," ",COUNTRY_INFO!A134) -> Ghana | B134: =IF(COUNTRY_INFO!B134=0," ",COUNTRY_INFO!B134) -> Northern | C134: =IF(COUNTRY_INFO!C134=0," ",COUNTRY_INFO!C134) -> Gushiegu | D134: =IF(COUNTRY_INFO!$T$9:$T$1000="MDA1 (IVM+ALB)", COUNTRY_INFO!$T$9:$T$1000, " ") ->  | I134: 0 | M134: 0
A135: =IF(COUNTRY_INFO!A135=0," ",COUNTRY_INFO!A135) -> Ghana | B135: =IF(COUNTRY_INFO!B135=0," ",COUNTRY_INFO!B135) -> Northern | C135: =IF(COUNTRY_INFO!C135=0," ",COUNTRY_INFO!C135) -> Karaga | D135: =IF(COUNTRY_INFO!$T$9:$T$1000="MDA1 (IVM+ALB)", COUNTRY_INFO!$T$9:$T$1000, " ") ->  | I135: 0 | M135: 0
A136: =IF(COUNTRY_INFO!A136=0," ",COUNTRY_INFO!A136) -> Ghana | B136: =IF(COUNTRY_INFO!B136=0," ",COUNTRY_INFO!B136) -> Northern | C136: =IF(COUNTRY_INFO!C136=0," ",COUNTRY_INFO!C136) -> Kpandai | D136: =IF(COUNTRY_INFO!$T$9:$T$1000="MDA1 (IVM+ALB)", COUNTRY_INFO!$T$9:$T$1000, " ") ->  | I136: 0 | M136: 0
A137: =IF(COUNTRY_INFO!A137=0," ",COUNTRY_INFO!A137) -> Ghana | B137: =IF(COUNTRY_INFO!B137=0," ",COUNTRY_INFO!B137) -> Northern | C137: =IF(COUNTRY_INFO!C137=0," ",COUNTRY_INFO!C137) -> Nanumba North | D137: =IF(COUNTRY_INFO!$T$9:$T$1000="MDA1 (IVM+ALB)", COUNTRY_INFO!$T$9:$T$1000, " ") ->  | I137: 0 | M137: 0
A138: =IF(COUNTRY_INFO!A138=0," ",COUNTRY_INFO!A138) -> Ghana | B138: =IF(COUNTRY_INFO!B138=0," ",COUNTRY_INFO!B138) -> Northern | C138: =IF(COUNTRY_INFO!C138=0," ",COUNTRY_INFO!C138) -> Nanumba South | D138: =IF(COUNTRY_INFO!$T$9:$T$1000="MDA1 (IVM+ALB)", COUNTRY_INFO!$T$9:$T$1000, " ") ->  | I138: =SUM(F138:H138) -> 0 | M138: =SUM(J138:L138) -> 0 | O138: =IF(G138<>0, IF(K138/G138*100=0, "-", K138/G138*100), " ") ->  | P138: =IF(H138<>0, IF(L138/H138*100=0, "-", L138/H138*100), " ") ->  | Q138: =IF(I138<>0, IF(M138/I138*100=0, "-", M138/I138*100), " ") -> 
A139: =IF(COUNTRY_INFO!A139=0," ",COUNTRY_INFO!A139) -> Ghana | B139: =IF(COUNTRY_INFO!B139=0," ",COUNTRY_INFO!B139) -> Northern | C139: =IF(COUNTRY_INFO!C139=0," ",COUNTRY_INFO!C139) -> Saboba | D139: =IF(COUNTRY_INFO!$T$9:$T$1000="MDA1 (IVM+ALB)", COUNTRY_INFO!$T$9:$T$1000, " ") ->  | I139: 0 | M139: 0
A140: =IF(COUNTRY_INFO!A140=0," ",COUNTRY_INFO!A140) -> Ghana | B140: =IF(COUNTRY_INFO!B140=0," ",COUNTRY_INFO!B140) -> Northern | C140: =IF(COUNTRY_INFO!C140=0," ",COUNTRY_INFO!C140) -> Savelugu-Nanton | D140: =IF(COUNTRY_INFO!$T$9:$T$1000="MDA1 (IVM+ALB)", COUNTRY_INFO!$T$9:$T$1000, " ") ->  | I140: 0 | M140: 0
A141: =IF(COUNTRY_INFO!A141=0," ",COUNTRY_INFO!A141) -> Ghana | B141: =IF(COUNTRY_INFO!B141=0," ",COUNTRY_INFO!B141) -> Northern | C141: =IF(COUNTRY_INFO!C141=0," ",COUNTRY_INFO!C141) -> Sawla-Tuna-Kalba | D141: =IF(COUNTRY_INFO!$T$9:$T$1000="MDA1 (IVM+ALB)", COUNTRY_INFO!$T$9:$T$1000, " ") -> MDA1 (IVM+ALB) | E141: July 2019 | G141: 31480 | H141: 79277 | I141: 110757 | K141: 18805 | L141: 57951 | M141: 76756 | O141: 59.73634053 | P141: 73.0993857 | Q141: 69.30126313
A142: =IF(COUNTRY_INFO!A142=0," ",COUNTRY_INFO!A142) -> Ghana | B142: =IF(COUNTRY_INFO!B142=0," ",COUNTRY_INFO!B142) -> Northern | C142: =IF(COUNTRY_INFO!C142=0," ",COUNTRY_INFO!C142) -> Tamale | D142: =IF(COUNTRY_INFO!$T$9:$T$1000="MDA1 (IVM+ALB)", COUNTRY_INFO!$T$9:$T$1000, " ") ->  | I142: 0 | M142: 0
A143: =IF(COUNTRY_INFO!A143=0," ",COUNTRY_INFO!A143) -> Ghana | B143: =IF(COUNTRY_INFO!B143=0," ",COUNTRY_INFO!B143) -> Northern | C143: =IF(COUNTRY_INFO!C143=0," ",COUNTRY_INFO!C143) -> Sagnarigu | D143: =IF(COUNTRY_INFO!$T$9:$T$1000="MDA1 (IVM+ALB)", COUNTRY_INFO!$T$9:$T$1000, " ") ->  | I143: 0 | M143: 0
A144: =IF(COUNTRY_INFO!A144=0," ",COUNTRY_INFO!A144) -> Ghana | B144: =IF(COUNTRY_INFO!B144=0," ",COUNTRY_INFO!B144) -> Northern | C144: =IF(COUNTRY_INFO!C144=0," ",COUNTRY_INFO!C144) -> Tolon | D144: =IF(COUNTRY_INFO!$T$9:$T$1000="MDA1 (IVM+ALB)", COUNTRY_INFO!$T$9:$T$1000, " ") ->  | I144: 0 | M144: 0
A145: =IF(COUNTRY_INFO!A145=0," ",COUNTRY_INFO!A145) -> Ghana | B145: =IF(COUNTRY_INFO!B145=0," ",COUNTRY_INFO!B145) -> Northern | C145: =IF(COUNTRY_INFO!C145=0," ",COUNTRY_INFO!C145) -> Kumbungu | D145: =IF(COUNTRY_INFO!$T$9:$T$1000="MDA1 (IVM+ALB)", COUNTRY_INFO!$T$9:$T$1000, " ") ->  | I145: 0 | M145: 0
A146: =IF(COUNTRY_INFO!A146=0," ",COUNTRY_INFO!A146) -> Ghana | B146: =IF(COUNTRY_INFO!B146=0," ",COUNTRY_INFO!B146) -> Northern | C146: =IF(COUNTRY_INFO!C146=0," ",COUNTRY_INFO!C146) -> West Gonja | D146: =IF(COUNTRY_INFO!$T$9:$T$1000="MDA1 (IVM+ALB)", COUNTRY_INFO!$T$9:$T$1000, " ") -> MDA1 (IVM+ALB) | E146: July 2019 | G146: 12981 | H146: 32691 | I146: 45672 | K146: 7319 | L146: 22555 | M146: 29874 | O146: 56.38240505 | P146: 68.99452449 | Q146: 65.40987914
A147: =IF(COUNTRY_INFO!A147=0," ",COUNTRY_INFO!A147) -> Ghana | B147: =IF(COUNTRY_INFO!B147=0," ",COUNTRY_INFO!B147) -> Northern | C147: =IF(COUNTRY_INFO!C147=0," ",COUNTRY_INFO!C147) -> North Gonja | D147: =IF(COUNTRY_INFO!$T$9:$T$1000="MDA1 (IVM+ALB)", COUNTRY_INFO!$T$9:$T$1000, " ") -> MDA1 (IVM+ALB) | E147: July 2019 | G147: 13727 | H147: 34570 | I147: 48297 | K147: 9603 | L147: 29594 | M147: 39197 | O147: 69.95701901 | P147: 85.60601678 | Q147: 81.15824999
A148: =IF(COUNTRY_INFO!A148=0," ",COUNTRY_INFO!A148) -> Ghana | B148: =IF(COUNTRY_INFO!B148=0," ",COUNTRY_INFO!B148) -> Northern | C148: =IF(COUNTRY_INFO!C148=0," ",COUNTRY_INFO!C148) -> West Mamprusi | D148: =IF(COUNTRY_INFO!$T$9:$T$1000="MDA1 (IVM+ALB)", COUNTRY_INFO!$T$9:$T$1000, " ") ->  | I148: 0 | M148: 0
A149: =IF(COUNTRY_INFO!A149=0," ",COUNTRY_INFO!A149) -> Ghana | B149: =IF(COUNTRY_INFO!B149=0," ",COUNTRY_INFO!B149) -> Northern | C149: =IF(COUNTRY_INFO!C149=0," ",COUNTRY_INFO!C149) -> Mamprugo Moaduri | D149: =IF(COUNTRY_INFO!$T$9:$T$1000="MDA1 (IVM+ALB)", COUNTRY_INFO!$T$9:$T$1000, " ") ->  | I149: 0 | M149: 0
A150: =IF(COUNTRY_INFO!A150=0," ",COUNTRY_INFO!A150) -> Ghana | B150: =IF(COUNTRY_INFO!B150=0," ",COUNTRY_INFO!B150) -> Northern | C150: =IF(COUNTRY_INFO!C150=0," ",COUNTRY_INFO!C150) -> Yendi | D150: =IF(COUNTRY_INFO!$T$9:$T$1000="MDA1 (IVM+ALB)", COUNTRY_INFO!$T$9:$T$1000, " ") ->  | I150: 0 | M150: 0
A151: =IF(COUNTRY_INFO!A151=0," ",COUNTRY_INFO!A151) -> Ghana | B151: =IF(COUNTRY_INFO!B151=0," ",COUNTRY_INFO!B151) -> Northern | C151: =IF(COUNTRY_INFO!C151=0," ",COUNTRY_INFO!C151) -> Mion | D151: =IF(COUNTRY_INFO!$T$9:$T$1000="MDA1 (IVM+ALB)", COUNTRY_INFO!$T$9:$T$1000, " ") ->  | I151: 0 | M151: 0
A152: =IF(COUNTRY_INFO!A152=0," ",COUNTRY_INFO!A152) -> Ghana | B152: =IF(COUNTRY_INFO!B152=0," ",COUNTRY_INFO!B152) -> Northern | C152: =IF(COUNTRY_INFO!C152=0," ",COUNTRY_INFO!C152) -> Zabzugu | D152: =IF(COUNTRY_INFO!$T$9:$T$1000="MDA1 (IVM+ALB)", COUNTRY_INFO!$T$9:$T$1000, " ") ->  | I152: 0 | M152: 0
A153: =IF(COUNTRY_INFO!A153=0," ",COUNTRY_INFO!A153) -> Ghana | B153: =IF(COUNTRY_INFO!B153=0," ",COUNTRY_INFO!B153) -> Northern | C153: =IF(COUNTRY_INFO!C153=0," ",COUNTRY_INFO!C153) -> Tatale Sangule | D153: =IF(COUNTRY_INFO!$T$9:$T$1000="MDA1 (IVM+ALB)", COUNTRY_INFO!$T$9:$T$1000, " ") ->  | I153: 0 | M153: 0
A154: =IF(COUNTRY_INFO!A154=0," ",COUNTRY_INFO!A154) -> Ghana | B154: =IF(COUNTRY_INFO!B154=0," ",COUNTRY_INFO!B154) -> Upper East | C154: =IF(COUNTRY_INFO!C154=0," ",COUNTRY_INFO!C154) -> Bawku Municipal | D154: =IF(COUNTRY_INFO!$T$9:$T$1000="MDA1 (IVM+ALB)", COUNTRY_INFO!$T$9:$T$1000, " ") ->  | I154: 0 | M154: 0
A155: =IF(COUNTRY_INFO!A155=0," ",COUNTRY_INFO!A155) -> Ghana | B155: =IF(COUNTRY_INFO!B155=0," ",COUNTRY_INFO!B155) -> Upper East | C155: =IF(COUNTRY_INFO!C155=0," ",COUNTRY_INFO!C155) -> Pusiga | D155: =IF(COUNTRY_INFO!$T$9:$T$1000="MDA1 (IVM+ALB)", COUNTRY_INFO!$T$9:$T$1000, " ") ->  | I155: 0 | M155: 0
A156: =IF(COUNTRY_INFO!A156=0," ",COUNTRY_INFO!A156) -> Ghana | B156: =IF(COUNTRY_INFO!B156=0," ",COUNTRY_INFO!B156) -> Upper East | C156: =IF(COUNTRY_INFO!C156=0," ",COUNTRY_INFO!C156) -> Binduri | D156: =IF(COUNTRY_INFO!$T$9:$T$1000="MDA1 (IVM+ALB)", COUNTRY_INFO!$T$9:$T$1000, " ") ->  | I156: 0 | M156: 0
A157: =IF(COUNTRY_INFO!A157=0," ",COUNTRY_INFO!A157) -> Ghana | B157: =IF(COUNTRY_INFO!B157=0," ",COUNTRY_INFO!B157) -> Upper East | C157: =IF(COUNTRY_INFO!C157=0," ",COUNTRY_INFO!C157) -> Bawku West | D157: =IF(COUNTRY_INFO!$T$9:$T$1000="MDA1 (IVM+ALB)", COUNTRY_INFO!$T$9:$T$1000, " ") ->  | I157: 0 | M157: 0
A158: =IF(COUNTRY_INFO!A158=0," ",COUNTRY_INFO!A158) -> Ghana | B158: =IF(COUNTRY_INFO!B158=0," ",COUNTRY_INFO!B158) -> Upper East | C158: =IF(COUNTRY_INFO!C158=0," ",COUNTRY_INFO!C158) -> Bolgatanga Municipal | D158: =IF(COUNTRY_INFO!$T$9:$T$1000="MDA1 (IVM+ALB)", COUNTRY_INFO!$T$9:$T$1000, " ") ->  | I158: 0 | M158: 0
A159: =IF(COUNTRY_INFO!A159=0," ",COUNTRY_INFO!A159) -> Ghana | B159: =IF(COUNTRY_INFO!B159=0," ",COUNTRY_INFO!B159) -> Upper East | C159: =IF(COUNTRY_INFO!C159=0," ",COUNTRY_INFO!C159) -> Bongo | D159: =IF(COUNTRY_INFO!$T$9:$T$1000="MDA1 (IVM+ALB)", COUNTRY_INFO!$T$9:$T$1000, " ") ->  | I159: 0 | M159: 0
A160: =IF(COUNTRY_INFO!A160=0," ",COUNTRY_INFO!A160) -> Ghana | B160: =IF(COUNTRY_INFO!B160=0," ",COUNTRY_INFO!B160) -> Upper East | C160: =IF(COUNTRY_INFO!C160=0," ",COUNTRY_INFO!C160) -> Builsa North | D160: =IF(COUNTRY_INFO!$T$9:$T$1000="MDA1 (IVM+ALB)", COUNTRY_INFO!$T$9:$T$1000, " ") ->  | I160: 0 | M160: 0
A161: =IF(COUNTRY_INFO!A161=0," ",COUNTRY_INFO!A161) -> Ghana | B161: =IF(COUNTRY_INFO!B161=0," ",COUNTRY_INFO!B161) -> Upper East | C161: =IF(COUNTRY_INFO!C161=0," ",COUNTRY_INFO!C161) -> Builsa South | D161: =IF(COUNTRY_INFO!$T$9:$T$1000="MDA1 (IVM+ALB)", COUNTRY_INFO!$T$9:$T$1000, " ") ->  | I161: 0 | M161: 0
A162: =IF(COUNTRY_INFO!A162=0," ",COUNTRY_INFO!A162) -> Ghana | B162: =IF(COUNTRY_INFO!B162=0," ",COUNTRY_INFO!B162) -> Upper East | C162: =IF(COUNTRY_INFO!C162=0," ",COUNTRY_INFO!C162) -> Garu-Tempane | D162: =IF(COUNTRY_INFO!$T$9:$T$1000="MDA1 (IVM+ALB)", COUNTRY_INFO!$T$9:$T$1000, " ") ->  | I162: 0 | M162: 0
A163: =IF(COUNTRY_INFO!A163=0," ",COUNTRY_INFO!A163) -> Ghana | B163: =IF(COUNTRY_INFO!B163=0," ",COUNTRY_INFO!B163) -> Upper East | C163: =IF(COUNTRY_INFO!C163=0," ",COUNTRY_INFO!C163) -> Kassena-Nankana | D163: =IF(COUNTRY_INFO!$T$9:$T$1000="MDA1 (IVM+ALB)", COUNTRY_INFO!$T$9:$T$1000, " ") ->  | I163: 0 | M163: 0
A164: =IF(COUNTRY_INFO!A164=0," ",COUNTRY_INFO!A164) -> Ghana | B164: =IF(COUNTRY_INFO!B164=0," ",COUNTRY_INFO!B164) -> Upper East | C164: =IF(COUNTRY_INFO!C164=0," ",COUNTRY_INFO!C164) -> Kassena-Nankana West | D164: =IF(COUNTRY_INFO!$T$9:$T$1000="MDA1 (IVM+ALB)", COUNTRY_INFO!$T$9:$T$1000, " ") -> MDA1 (IVM+ALB) | E164: July 2019 | G164: 19497 | H164: 49100 | I164: 68597 | K164: 13868 | L164: 42735 | M164: 56603 | O164: 71.12889162 | P164: 87.03665988 | Q164: 82.51527035
A165: =IF(COUNTRY_INFO!A165=0," ",COUNTRY_INFO!A165) -> Ghana | B165: =IF(COUNTRY_INFO!B165=0," ",COUNTRY_INFO!B165) -> Upper East | C165: =IF(COUNTRY_INFO!C165=0," ",COUNTRY_INFO!C165) -> Nadbam | D165: =IF(COUNTRY_INFO!$T$9:$T$1000="MDA1 (IVM+ALB)", COUNTRY_INFO!$T$9:$T$1000, " ") -> MDA1 (IVM+ALB) | E165: July 2019 | G165: 9332 | H165: 23502 | I165: 32834 | K165: 8956 | L165: 27598 | M165: 36554 | O165: 95.97085298 | P165: 117.428304 | Q165: 111.3297192
A166: =IF(COUNTRY_INFO!A166=0," ",COUNTRY_INFO!A166) -> Ghana | B166: =IF(COUNTRY_INFO!B166=0," ",COUNTRY_INFO!B166) -> Upper East | C166: =IF(COUNTRY_INFO!C166=0," ",COUNTRY_INFO!C166) -> Talensi | D166: =IF(COUNTRY_INFO!$T$9:$T$1000="MDA1 (IVM+ALB)", COUNTRY_INFO!$T$9:$T$1000, " ") ->  | I166: 0 | M166: 0
A167: =IF(COUNTRY_INFO!A167=0," ",COUNTRY_INFO!A167) -> Ghana | B167: =IF(COUNTRY_INFO!B167=0," ",COUNTRY_INFO!B167) -> Upper West | C167: =IF(COUNTRY_INFO!C167=0," ",COUNTRY_INFO!C167) -> Jirapa | D167: =IF(COUNTRY_INFO!$T$9:$T$1000="MDA1 (IVM+ALB)", COUNTRY_INFO!$T$9:$T$1000, " ") -> MDA1 (IVM+ALB) | E167: July 2019 | G167: 25772 | H167: 64904 | I167: 90676 | K167: 17291 | L167: 53316 | M167: 70607 | O167: 67.09219308 | P167: 82.14593862 | Q167: 77.86735189
A168: =IF(COUNTRY_INFO!A168=0," ",COUNTRY_INFO!A168) -> Ghana | B168: =IF(COUNTRY_INFO!B168=0," ",COUNTRY_INFO!B168) -> Upper West | C168: =IF(COUNTRY_INFO!C168=0," ",COUNTRY_INFO!C168) -> Lambussie | D168: =IF(COUNTRY_INFO!$T$9:$T$1000="MDA1 (IVM+ALB)", COUNTRY_INFO!$T$9:$T$1000, " ") ->  | I168: 0 | M168: 0
A169: =IF(COUNTRY_INFO!A169=0," ",COUNTRY_INFO!A169) -> Ghana | B169: =IF(COUNTRY_INFO!B169=0," ",COUNTRY_INFO!B169) -> Upper West | C169: =IF(COUNTRY_INFO!C169=0," ",COUNTRY_INFO!C169) -> Lawra | D169: =IF(COUNTRY_INFO!$T$9:$T$1000="MDA1 (IVM+ALB)", COUNTRY_INFO!$T$9:$T$1000, " ") -> MDA1 (IVM+ALB) | E169: July 2019 | G169: 16219 | H169: 40845 | I169: 57064 | K169: 10789 | L169: 33247 | M169: 44036 | O169: 66.52074727 | P169: 81.39796793 | Q169: 77.1694939
A170: =IF(COUNTRY_INFO!A170=0," ",COUNTRY_INFO!A170) -> Ghana | B170: =IF(COUNTRY_INFO!B170=0," ",COUNTRY_INFO!B170) -> Upper West | C170: =IF(COUNTRY_INFO!C170=0," ",COUNTRY_INFO!C170) -> Nandom | D170: =IF(COUNTRY_INFO!$T$9:$T$1000="MDA1 (IVM+ALB)", COUNTRY_INFO!$T$9:$T$1000, " ") ->  | I170: 0 | M170: 0
A171: =IF(COUNTRY_INFO!A171=0," ",COUNTRY_INFO!A171) -> Ghana | B171: =IF(COUNTRY_INFO!B171=0," ",COUNTRY_INFO!B171) -> Upper West | C171: =IF(COUNTRY_INFO!C171=0," ",COUNTRY_INFO!C171) -> Nadowli | D171: =IF(COUNTRY_INFO!$T$9:$T$1000="MDA1 (IVM+ALB)", COUNTRY_INFO!$T$9:$T$1000, " ") ->  | I171: 0 | M171: 0
A172: =IF(COUNTRY_INFO!A172=0," ",COUNTRY_INFO!A172) -> Ghana | B172: =IF(COUNTRY_INFO!B172=0," ",COUNTRY_INFO!B172) -> Upper West | C172: =IF(COUNTRY_INFO!C172=0," ",COUNTRY_INFO!C172) -> Daffiama Bussie Issa | D172: =IF(COUNTRY_INFO!$T$9:$T$1000="MDA1 (IVM+ALB)", COUNTRY_INFO!$T$9:$T$1000, " ") ->  | I172: 0 | M172: 0
A173: =IF(COUNTRY_INFO!A173=0," ",COUNTRY_INFO!A173) -> Ghana | B173: =IF(COUNTRY_INFO!B173=0," ",COUNTRY_INFO!B173) -> Upper West | C173: =IF(COUNTRY_INFO!C173=0," ",COUNTRY_INFO!C173) -> Sissala East | D173: =IF(COUNTRY_INFO!$T$9:$T$1000="MDA1 (IVM+ALB)", COUNTRY_INFO!$T$9:$T$1000, " ") ->  | I173: 0 | M173: 0
A174: =IF(COUNTRY_INFO!A174=0," ",COUNTRY_INFO!A174) -> Ghana | B174: =IF(COUNTRY_INFO!B174=0," ",COUNTRY_INFO!B174) -> Upper West | C174: =IF(COUNTRY_INFO!C174=0," ",COUNTRY_INFO!C174) -> Sissala West | D174: =IF(COUNTRY_INFO!$T$9:$T$1000="MDA1 (IVM+ALB)", COUNTRY_INFO!$T$9:$T$1000, " ") ->  | I174: 0 | M174: 0
A175: =IF(COUNTRY_INFO!A175=0," ",COUNTRY_INFO!A175) -> Ghana | B175: =IF(COUNTRY_INFO!B175=0," ",COUNTRY_INFO!B175) -> Upper West | C175: =IF(COUNTRY_INFO!C175=0," ",COUNTRY_INFO!C175) -> Wa East | D175: =IF(COUNTRY_INFO!$T$9:$T$1000="MDA1 (IVM+ALB)", COUNTRY_INFO!$T$9:$T$1000, " ") -> MDA1 (IVM+ALB) | E175: July 2019 | G175: 21012 | H175: 52917 | I175: 73929 | K175: 13976 | L175: 43067 | M175: 57043 | O175: 66.51437274 | P175: 81.38594403 | Q175: 77.15916623
A176: =IF(COUNTRY_INFO!A176=0," ",COUNTRY_INFO!A176) -> Ghana | B176: =IF(COUNTRY_INFO!B176=0," ",COUNTRY_INFO!B176) -> Upper West | C176: =IF(COUNTRY_INFO!C176=0," ",COUNTRY_INFO!C176) -> Wa Municipal | D176: =IF(COUNTRY_INFO!$T$9:$T$1000="MDA1 (IVM+ALB)", COUNTRY_INFO!$T$9:$T$1000, " ") ->  | I176: 0 | M176: 0
A177: =IF(COUNTRY_INFO!A177=0," ",COUNTRY_INFO!A177) -> Ghana | B177: =IF(COUNTRY_INFO!B177=0," ",COUNTRY_INFO!B177) -> Upper West | C177: =IF(COUNTRY_INFO!C177=0," ",COUNTRY_INFO!C177) -> Wa West | D177: =IF(COUNTRY_INFO!$T$9:$T$1000="MDA1 (IVM+ALB)", COUNTRY_INFO!$T$9:$T$1000, " ") -> MDA1 (IVM+ALB) | E177: July 2019 | G177: 23716 | H177: 59726 | I177: 83442 | K177: 18403 | L177: 56710 | M177: 75113 | O177: 77.5974026 | P177: 94.95027291 | Q177: 90.01821625
A178: =IF(COUNTRY_INFO!A178=0," ",COUNTRY_INFO!A178) -> Ghana | B178: =IF(COUNTRY_INFO!B178=0," ",COUNTRY_INFO!B178) -> Volta | C178: =IF(COUNTRY_INFO!C178=0," ",COUNTRY_INFO!C178) -> Agotime Ziope | D178: =IF(COUNTRY_INFO!$T$9:$T$1000="MDA1 (IVM+ALB)", COUNTRY_INFO!$T$9:$T$1000, " ") ->  | I178: 0 | M178: 0
A179: =IF(COUNTRY_INFO!A179=0," ",COUNTRY_INFO!A179) -> Ghana | B179: =IF(COUNTRY_INFO!B179=0," ",COUNTRY_INFO!B179) -> Volta | C179: =IF(COUNTRY_INFO!C179=0," ",COUNTRY_INFO!C179) -> Adaklu | D179: =IF(COUNTRY_INFO!$T$9:$T$1000="MDA1 (IVM+ALB)", COUNTRY_INFO!$T$9:$T$1000, " ") ->  | I179: 0 | M179: 0
A180: =IF(COUNTRY_INFO!A180=0," ",COUNTRY_INFO!A180) -> Ghana | B180: =IF(COUNTRY_INFO!B180=0," ",COUNTRY_INFO!B180) -> Volta | C180: =IF(COUNTRY_INFO!C180=0," ",COUNTRY_INFO!C180) -> Akatsi South | D180: =IF(COUNTRY_INFO!$T$9:$T$1000="MDA1 (IVM+ALB)", COUNTRY_INFO!$T$9:$T$1000, " ") ->  | I180: 0 | M180: 0
A181: =IF(COUNTRY_INFO!A181=0," ",COUNTRY_INFO!A181) -> Ghana | B181: =IF(COUNTRY_INFO!B181=0," ",COUNTRY_INFO!B181) -> Volta | C181: =IF(COUNTRY_INFO!C181=0," ",COUNTRY_INFO!C181) -> Akatsi North | D181: =IF(COUNTRY_INFO!$T$9:$T$1000="MDA1 (IVM+ALB)", COUNTRY_INFO!$T$9:$T$1000, " ") ->  | I181: 0 | M181: 0
A182: =IF(COUNTRY_INFO!A182=0," ",COUNTRY_INFO!A182) -> Ghana | B182: =IF(COUNTRY_INFO!B182=0," ",COUNTRY_INFO!B182) -> Volta | C182: =IF(COUNTRY_INFO!C182=0," ",COUNTRY_INFO!C182) -> Biakoye | D182: =IF(COUNTRY_INFO!$T$9:$T$1000="MDA1 (IVM+ALB)", COUNTRY_INFO!$T$9:$T$1000, " ") ->  | I182: 0 | M182: 0
A183: =IF(COUNTRY_INFO!A183=0," ",COUNTRY_INFO!A183) -> Ghana | B183: =IF(COUNTRY_INFO!B183=0," ",COUNTRY_INFO!B183) -> Volta | C183: =IF(COUNTRY_INFO!C183=0," ",COUNTRY_INFO!C183) -> Ho Municipal | D183: =IF(COUNTRY_INFO!$T$9:$T$1000="MDA1 (IVM+ALB)", COUNTRY_INFO!$T$9:$T$1000, " ") ->  | I183: 0 | M183: 0
A184: =IF(COUNTRY_INFO!A184=0," ",COUNTRY_INFO!A184) -> Ghana | B184: =IF(COUNTRY_INFO!B184=0," ",COUNTRY_INFO!B184) -> Volta | C184: =IF(COUNTRY_INFO!C184=0," ",COUNTRY_INFO!C184) -> Ho West | D184: =IF(COUNTRY_INFO!$T$9:$T$1000="MDA1 (IVM+ALB)", COUNTRY_INFO!$T$9:$T$1000, " ") ->  | I184: 0 | M184: 0
A185: =IF(COUNTRY_INFO!A185=0," ",COUNTRY_INFO!A185) -> Ghana | B185: =IF(COUNTRY_INFO!B185=0," ",COUNTRY_INFO!B185) -> Volta | C185: =IF(COUNTRY_INFO!C185=0," ",COUNTRY_INFO!C185) -> Hohoe | D185: =IF(COUNTRY_INFO!$T$9:$T$1000="MDA1 (IVM+ALB)", COUNTRY_INFO!$T$9:$T$1000, " ") ->  | I185: 0 | M185: 0
A186: =IF(COUNTRY_INFO!A186=0," ",COUNTRY_INFO!A186) -> Ghana | B186: =IF(COUNTRY_INFO!B186=0," ",COUNTRY_INFO!B186) -> Volta | C186: =IF(COUNTRY_INFO!C186=0," ",COUNTRY_INFO!C186) -> Afadjato South | D186: =IF(COUNTRY_INFO!$T$9:$T$1000="MDA1 (IVM+ALB)", COUNTRY_INFO!$T$9:$T$1000, " ") ->  | I186: 0 | M186: 0
A187: =IF(COUNTRY_INFO!A187=0," ",COUNTRY_INFO!A187) -> Ghana | B187: =IF(COUNTRY_INFO!B187=0," ",COUNTRY_INFO!B187) -> Volta | C187: =IF(COUNTRY_INFO!C187=0," ",COUNTRY_INFO!C187) -> Jasikan | D187: =IF(COUNTRY_INFO!$T$9:$T$1000="MDA1 (IVM+ALB)", COUNTRY_INFO!$T$9:$T$1000, " ") ->  | I187: 0 | M187: 0
A188: =IF(COUNTRY_INFO!A188=0," ",COUNTRY_INFO!A188) -> Ghana | B188: =IF(COUNTRY_INFO!B188=0," ",COUNTRY_INFO!B188) -> Volta | C188: =IF(COUNTRY_INFO!C188=0," ",COUNTRY_INFO!C188) -> Kadjebi | D188: =IF(COUNTRY_INFO!$T$9:$T$1000="MDA1 (IVM+ALB)", COUNTRY_INFO!$T$9:$T$1000, " ") ->  | I188: 0 | M188: 0
A189: =IF(COUNTRY_INFO!A189=0," ",COUNTRY_INFO!A189) -> Ghana | B189: =IF(COUNTRY_INFO!B189=0," ",COUNTRY_INFO!B189) -> Volta | C189: =IF(COUNTRY_INFO!C189=0," ",COUNTRY_INFO!C189) -> Keta | D189: =IF(COUNTRY_INFO!$T$9:$T$1000="MDA1 (IVM+ALB)", COUNTRY_INFO!$T$9:$T$1000, " ") ->  | I189: 0 | M189: 0
A190: =IF(COUNTRY_INFO!A190=0," ",COUNTRY_INFO!A190) -> Ghana | B190: =IF(COUNTRY_INFO!B190=0," ",COUNTRY_INFO!B190) -> Volta | C190: =IF(COUNTRY_INFO!C190=0," ",COUNTRY_INFO!C190) -> Ketu North | D190: =IF(COUNTRY_INFO!$T$9:$T$1000="MDA1 (IVM+ALB)", COUNTRY_INFO!$T$9:$T$1000, " ") ->  | I190: 0 | M190: 0
A191: =IF(COUNTRY_INFO!A191=0," ",COUNTRY_INFO!A191) -> Ghana | B191: =IF(COUNTRY_INFO!B191=0," ",COUNTRY_INFO!B191) -> Volta | C191: =IF(COUNTRY_INFO!C191=0," ",COUNTRY_INFO!C191) -> Ketu South | D191: =IF(COUNTRY_INFO!$T$9:$T$1000="MDA1 (IVM+ALB)", COUNTRY_INFO!$T$9:$T$1000, " ") ->  | I191: 0 | M191: 0
A192: =IF(COUNTRY_INFO!A192=0," ",COUNTRY_INFO!A192) -> Ghana | B192: =IF(COUNTRY_INFO!B192=0," ",COUNTRY_INFO!B192) -> Volta | C192: =IF(COUNTRY_INFO!C192=0," ",COUNTRY_INFO!C192) -> Kpando | D192: =IF(COUNTRY_INFO!$T$9:$T$1000="MDA1 (IVM+ALB)", COUNTRY_INFO!$T$9:$T$1000, " ") ->  | I192: 0 | M192: 0
A193: =IF(COUNTRY_INFO!A193=0," ",COUNTRY_INFO!A193) -> Ghana | B193: =IF(COUNTRY_INFO!B193=0," ",COUNTRY_INFO!B193) -> Volta | C193: =IF(COUNTRY_INFO!C193=0," ",COUNTRY_INFO!C193) -> North Dayi | D193: =IF(COUNTRY_INFO!$T$9:$T$1000="MDA1 (IVM+ALB)", COUNTRY_INFO!$T$9:$T$1000, " ") ->  | I193: 0 | M193: 0
A194: =IF(COUNTRY_INFO!A194=0," ",COUNTRY_INFO!A194) -> Ghana | B194: =IF(COUNTRY_INFO!B194=0," ",COUNTRY_INFO!B194) -> Volta | C194: =IF(COUNTRY_INFO!C194=0," ",COUNTRY_INFO!C194) -> Krachi East | D194: =IF(COUNTRY_INFO!$T$9:$T$1000="MDA1 (IVM+ALB)", COUNTRY_INFO!$T$9:$T$1000, " ") ->  | I194: 0 | M194: 0
A195: =IF(COUNTRY_INFO!A195=0," ",COUNTRY_INFO!A195) -> Ghana | B195: =IF(COUNTRY_INFO!B195=0," ",COUNTRY_INFO!B195) -> Volta | C195: =IF(COUNTRY_INFO!C195=0," ",COUNTRY_INFO!C195) -> Krachi West | D195: =IF(COUNTRY_INFO!$T$9:$T$1000="MDA1 (IVM+ALB)", COUNTRY_INFO!$T$9:$T$1000, " ") ->  | I195: 0 | M195: 0
A196: =IF(COUNTRY_INFO!A196=0," ",COUNTRY_INFO!A196) -> Ghana | B196: =IF(COUNTRY_INFO!B196=0," ",COUNTRY_INFO!B196) -> Volta | C196: =IF(COUNTRY_INFO!C196=0," ",COUNTRY_INFO!C196) -> Krachi Nchumuru | D196: =IF(COUNTRY_INFO!$T$9:$T$1000="MDA1 (IVM+ALB)", COUNTRY_INFO!$T$9:$T$1000, " ") ->  | I196: 0 | M196: 0
A197: =IF(COUNTRY_INFO!A197=0," ",COUNTRY_INFO!A197) -> Ghana | B197: =IF(COUNTRY_INFO!B197=0," ",COUNTRY_INFO!B197) -> Volta | C197: =IF(COUNTRY_INFO!C197=0," ",COUNTRY_INFO!C197) -> Nkwanta North | D197: =IF(COUNTRY_INFO!$T$9:$T$1000="MDA1 (IVM+ALB)", COUNTRY_INFO!$T$9:$T$1000, " ") ->  | I197: 0 | M197: 0
A198: =IF(COUNTRY_INFO!A198=0," ",COUNTRY_INFO!A198) -> Ghana | B198: =IF(COUNTRY_INFO!B198=0," ",COUNTRY_INFO!B198) -> Volta | C198: =IF(COUNTRY_INFO!C198=0," ",COUNTRY_INFO!C198) -> Nkwanta South | D198: =IF(COUNTRY_INFO!$T$9:$T$1000="MDA1 (IVM+ALB)", COUNTRY_INFO!$T$9:$T$1000, " ") ->  | I198: 0 | M198: 0
A199: =IF(COUNTRY_INFO!A199=0," ",COUNTRY_INFO!A199) -> Ghana | B199: =IF(COUNTRY_INFO!B199=0," ",COUNTRY_INFO!B199) -> Volta | C199: =IF(COUNTRY_INFO!C199=0," ",COUNTRY_INFO!C199) -> North Tongu | D199: =IF(COUNTRY_INFO!$T$9:$T$1000="MDA1 (IVM+ALB)", COUNTRY_INFO!$T$9:$T$1000, " ") ->  | I199: 0 | M199: 0
A200: =IF(COUNTRY_INFO!A200=0," ",COUNTRY_INFO!A200) -> Ghana | B200: =IF(COUNTRY_INFO!B200=0," ",COUNTRY_INFO!B200) -> Volta | C200: =IF(COUNTRY_INFO!C200=0," ",COUNTRY_INFO!C200) -> Central Tongu | D200: =IF(COUNTRY_INFO!$T$9:$T$1000="MDA1 (IVM+ALB)", COUNTRY_INFO!$T$9:$T$1000, " ") ->  | I200: 0 | M200: 0
A201: =IF(COUNTRY_INFO!A201=0," ",COUNTRY_INFO!A201) -> Ghana | B201: =IF(COUNTRY_INFO!B201=0," ",COUNTRY_INFO!B201) -> Volta | C201: =IF(COUNTRY_INFO!C201=0," ",COUNTRY_INFO!C201) -> South Dayi | D201: =IF(COUNTRY_INFO!$T$9:$T$1000="MDA1 (IVM+ALB)", COUNTRY_INFO!$T$9:$T$1000, " ") ->  | I201: 0 | M201: 0
A202: =IF(COUNTRY_INFO!A202=0," ",COUNTRY_INFO!A202) -> Ghana | B202: =IF(COUNTRY_INFO!B202=0," ",COUNTRY_INFO!B202) -> Volta | C202: =IF(COUNTRY_INFO!C202=0," ",COUNTRY_INFO!C202) -> South Tongu | D202: =IF(COUNTRY_INFO!$T$9:$T$1000="MDA1 (IVM+ALB)", COUNTRY_INFO!$T$9:$T$1000, " ") ->  | I202: =SUM(F202:H202) -> 0 | M202: =SUM(J202:L202) -> 0 | O202: =IF(G202<>0, IF(K202/G202*100=0, "-", K202/G202*100), " ") ->  | P202: =IF(H202<>0, IF(L202/H202*100=0, "-", L202/H202*100), " ") ->  | Q202: =IF(I202<>0, IF(M202/I202*100=0, "-", M202/I202*100), " ") -> 
A203: =IF(COUNTRY_INFO!A203=0," ",COUNTRY_INFO!A203) -> Ghana | B203: =IF(COUNTRY_INFO!B203=0," ",COUNTRY_INFO!B203) -> Western | C203: =IF(COUNTRY_INFO!C203=0," ",COUNTRY_INFO!C203) -> Ahanta West | D203: =IF(COUNTRY_INFO!$T$9:$T$1000="MDA1 (IVM+ALB)", COUNTRY_INFO!$T$9:$T$1000, " ") -> MDA1 (IVM+ALB) | E203: July 2019 | G203: 31210 | H203: 78598 | I203: 109808 | K203: 22606 | L203: 69663 | M203: 92269 | O203: 72.43191285 | P203: 88.63202626 | Q203: 84.0275754
... 21 more rows

Sheet MDA2 (hidden)
A1: MDA 2 - Diethylcarbamazine citrate (DEC) + Albendazole (ALB)
A2: Administrative structure, population requiring PC by age group, population treated by age group and coverage
A4: TOTAL | F4: =SUM(F$9:F$1000) -> 0 | G4: =SUM(G$9:G$1000) -> 0 | H4: 0 | I4: 0 | J4: 0 | K4: 0 | L4: 0 | M4: 0 | N4: =IF(F4<>0, IF(J4/F4*100=0, "-", J4/F4*100), " ") ->  | O4: =IF(G4<>0, IF(K4/G4*100=0, "-", K4/G4*100), " ") ->  | P4: =IF(H4<>0, IF(L4/H4*100=0, "-", L4/H4*100), " ") ->  | Q4: =IF(I4<>0, IF(M4/I4*100=0, "-", M4/I4*100), " ") -> 
D6: PC implemented | E6: Date | F6: Population targeted for MDA 2 | J6: Population treated | N6: Programme coverage (%)
A7: Country | B7: Province/State | C7: District | F7: PreSAC | G7: SAC | H7: Adults | I7: Total | J7: PreSAC | K7: SAC | L7: Adults | M7: Total | N7: PreSAC | O7: SAC | P7: Adults | Q7: Total
A9: =IF(COUNTRY_INFO!A9=0," ",COUNTRY_INFO!A9) -> Ghana | B9: =IF(COUNTRY_INFO!B9=0," ",COUNTRY_INFO!B9) -> Ashanti | C9: =IF(COUNTRY_INFO!C9=0," ",COUNTRY_INFO!C9) -> Adansi North | D9: =IF(COUNTRY_INFO!$T$9:$T$1000="MDA2 (DEC+ALB)", COUNTRY_INFO!$T$9:$T$1000, " ") ->  | I9: =SUM(F9:H9) -> 0 | M9: =SUM(J9:L9) -> 0 | N9: =IF(F9<>0, IF(J9/F9*100=0, "-", J9/F9*100), " ") -> 
A10: =IF(COUNTRY_INFO!A10=0," ",COUNTRY_INFO!A10) -> Ghana | B10: =IF(COUNTRY_INFO!B10=0," ",COUNTRY_INFO!B10) -> Ashanti | C10: =IF(COUNTRY_INFO!C10=0," ",COUNTRY_INFO!C10) -> Adansi South | D10: =IF(COUNTRY_INFO!$T$9:$T$1000="MDA2 (DEC+ALB)", COUNTRY_INFO!$T$9:$T$1000, " ") ->  | I10: =SUM(F10:H10) -> 0 | M10: =SUM(J10:L10) -> 0 | N10: =IF(F10<>0, IF(J10/F10*100=0, "-", J10/F10*100), " ") ->  | O10: =IF(G10<>0, IF(K10/G10*100=0, "-", K10/G10*100), " ") ->  | P10: =IF(H10<>0, IF(L10/H10*100=0, "-", L10/H10*100), " ") ->  | Q10: =IF(I10<>0, IF(M10/I10*100=0, "-", M10/I10*100), " ") -> 
A11: =IF(COUNTRY_INFO!A11=0," ",COUNTRY_INFO!A11) -> Ghana | B11: =IF(COUNTRY_INFO!B11=0," ",COUNTRY_INFO!B11) -> Ashanti | C11: =IF(COUNTRY_INFO!C11=0," ",COUNTRY_INFO!C11) -> Afigya-Kwabre | D11: =IF(COUNTRY_INFO!$T$9:$T$1000="MDA2 (DEC+ALB)", COUNTRY_INFO!$T$9:$T$1000, " ") ->  | I11: 0 | M11: 0
A12: =IF(COUNTRY_INFO!A12=0," ",COUNTRY_INFO!A12) -> Ghana | B12: =IF(COUNTRY_INFO!B12=0," ",COUNTRY_INFO!B12) -> Ashanti | C12: =IF(COUNTRY_INFO!C12=0," ",COUNTRY_INFO!C12) -> Ahafo-Ano North | D12: =IF(COUNTRY_INFO!$T$9:$T$1000="MDA2 (DEC+ALB)", COUNTRY_INFO!$T$9:$T$1000, " ") ->  | I12: 0 | M12: 0
A13: =IF(COUNTRY_INFO!A13=0," ",COUNTRY_INFO!A13) -> Ghana | B13: =IF(COUNTRY_INFO!B13=0," ",COUNTRY_INFO!B13) -> Ashanti | C13: =IF(COUNTRY_INFO!C13=0," ",COUNTRY_INFO!C13) -> Ahafo-Ano South | D13: =IF(COUNTRY_INFO!$T$9:$T$1000="MDA2 (DEC+ALB)", COUNTRY_INFO!$T$9:$T$1000, " ") ->  | I13: 0 | M13: 0
A14: =IF(COUNTRY_INFO!A14=0," ",COUNTRY_INFO!A14) -> Ghana | B14: =IF(COUNTRY_INFO!B14=0," ",COUNTRY_INFO!B14) -> Ashanti | C14: =IF(COUNTRY_INFO!C14=0," ",COUNTRY_INFO!C14) -> Amansie Central | D14: =IF(COUNTRY_INFO!$T$9:$T$1000="MDA2 (DEC+ALB)", COUNTRY_INFO!$T$9:$T$1000, " ") ->  | I14: 0 | M14: 0
A15: =IF(COUNTRY_INFO!A15=0," ",COUNTRY_INFO!A15) -> Ghana | B15: =IF(COUNTRY_INFO!B15=0," ",COUNTRY_INFO!B15) -> Ashanti | C15: =IF(COUNTRY_INFO!C15=0," ",COUNTRY_INFO!C15) -> Mampong Muncipal | D15: =IF(COUNTRY_INFO!$T$9:$T$1000="MDA2 (DEC+ALB)", COUNTRY_INFO!$T$9:$T$1000, " ") ->  | I15: 0 | M15: 0
A16: =IF(COUNTRY_INFO!A16=0," ",COUNTRY_INFO!A16) -> Ghana | B16: =IF(COUNTRY_INFO!B16=0," ",COUNTRY_INFO!B16) -> Ashanti | C16: =IF(COUNTRY_INFO!C16=0," ",COUNTRY_INFO!C16) -> Amansie West | D16: =IF(COUNTRY_INFO!$T$9:$T$1000="MDA2 (DEC+ALB)", COUNTRY_INFO!$T$9:$T$1000, " ") ->  | I16: 0 | M16: 0
A17: =IF(COUNTRY_INFO!A17=0," ",COUNTRY_INFO!A17) -> Ghana | B17: =IF(COUNTRY_INFO!B17=0," ",COUNTRY_INFO!B17) -> Ashanti | C17: =IF(COUNTRY_INFO!C17=0," ",COUNTRY_INFO!C17) -> Asante-Akim Central | D17: =IF(COUNTRY_INFO!$T$9:$T$1000="MDA2 (DEC+ALB)", COUNTRY_INFO!$T$9:$T$1000, " ") ->  | I17: 0 | M17: 0
A18: =IF(COUNTRY_INFO!A18=0," ",COUNTRY_INFO!A18) -> Ghana | B18: =IF(COUNTRY_INFO!B18=0," ",COUNTRY_INFO!B18) -> Ashanti | C18: =IF(COUNTRY_INFO!C18=0," ",COUNTRY_INFO!C18) -> Asante-Akim North | D18: =IF(COUNTRY_INFO!$T$9:$T$1000="MDA2 (DEC+ALB)", COUNTRY_INFO!$T$9:$T$1000, " ") ->  | I18: 0 | M18: 0
A19: =IF(COUNTRY_INFO!A19=0," ",COUNTRY_INFO!A19) -> Ghana | B19: =IF(COUNTRY_INFO!B19=0," ",COUNTRY_INFO!B19) -> Ashanti | C19: =IF(COUNTRY_INFO!C19=0," ",COUNTRY_INFO!C19) -> Asante-Akim South | D19: =IF(COUNTRY_INFO!$T$9:$T$1000="MDA2 (DEC+ALB)", COUNTRY_INFO!$T$9:$T$1000, " ") ->  | I19: 0 | M19: 0
A20: =IF(COUNTRY_INFO!A20=0," ",COUNTRY_INFO!A20) -> Ghana | B20: =IF(COUNTRY_INFO!B20=0," ",COUNTRY_INFO!B20) -> Ashanti | C20: =IF(COUNTRY_INFO!C20=0," ",COUNTRY_INFO!C20) -> Atwima-Kwanwoma | D20: =IF(COUNTRY_INFO!$T$9:$T$1000="MDA2 (DEC+ALB)", COUNTRY_INFO!$T$9:$T$1000, " ") ->  | I20: 0 | M20: 0
A21: =IF(COUNTRY_INFO!A21=0," ",COUNTRY_INFO!A21) -> Ghana | B21: =IF(COUNTRY_INFO!B21=0," ",COUNTRY_INFO!B21) -> Ashanti | C21: =IF(COUNTRY_INFO!C21=0," ",COUNTRY_INFO!C21) -> Atwima-Mponua | D21: =IF(COUNTRY_INFO!$T$9:$T$1000="MDA2 (DEC+ALB)", COUNTRY_INFO!$T$9:$T$1000, " ") ->  | I21: 0 | M21: 0
A22: =IF(COUNTRY_INFO!A22=0," ",COUNTRY_INFO!A22) -> Ghana | B22: =IF(COUNTRY_INFO!B22=0," ",COUNTRY_INFO!B22) -> Ashanti | C22: =IF(COUNTRY_INFO!C22=0," ",COUNTRY_INFO!C22) -> Atwima-Nwabiagya | D22: =IF(COUNTRY_INFO!$T$9:$T$1000="MDA2 (DEC+ALB)", COUNTRY_INFO!$T$9:$T$1000, " ") ->  | I22: 0 | M22: 0
A23: =IF(COUNTRY_INFO!A23=0," ",COUNTRY_INFO!A23) -> Ghana | B23: =IF(COUNTRY_INFO!B23=0," ",COUNTRY_INFO!B23) -> Ashanti | C23: =IF(COUNTRY_INFO!C23=0," ",COUNTRY_INFO!C23) -> Bosomtwe | D23: =IF(COUNTRY_INFO!$T$9:$T$1000="MDA2 (DEC+ALB)", COUNTRY_INFO!$T$9:$T$1000, " ") ->  | I23: 0 | M23: 0
A24: =IF(COUNTRY_INFO!A24=0," ",COUNTRY_INFO!A24) -> Ghana | B24: =IF(COUNTRY_INFO!B24=0," ",COUNTRY_INFO!B24) -> Ashanti | C24: =IF(COUNTRY_INFO!C24=0," ",COUNTRY_INFO!C24) -> Bosome-Freho | D24: =IF(COUNTRY_INFO!$T$9:$T$1000="MDA2 (DEC+ALB)", COUNTRY_INFO!$T$9:$T$1000, " ") ->  | I24: 0 | M24: 0
A25: =IF(COUNTRY_INFO!A25=0," ",COUNTRY_INFO!A25) -> Ghana | B25: =IF(COUNTRY_INFO!B25=0," ",COUNTRY_INFO!B25) -> Ashanti | C25: =IF(COUNTRY_INFO!C25=0," ",COUNTRY_INFO!C25) -> Ejisu-Juaben | D25: =IF(COUNTRY_INFO!$T$9:$T$1000="MDA2 (DEC+ALB)", COUNTRY_INFO!$T$9:$T$1000, " ") ->  | I25: 0 | M25: 0
A26: =IF(COUNTRY_INFO!A26=0," ",COUNTRY_INFO!A26) -> Ghana | B26: =IF(COUNTRY_INFO!B26=0," ",COUNTRY_INFO!B26) -> Ashanti | C26: =IF(COUNTRY_INFO!C26=0," ",COUNTRY_INFO!C26) -> Ejura-Sekyedomasi | D26: =IF(COUNTRY_INFO!$T$9:$T$1000="MDA2 (DEC+ALB)", COUNTRY_INFO!$T$9:$T$1000, " ") ->  | I26: 0 | M26: 0
A27: =IF(COUNTRY_INFO!A27=0," ",COUNTRY_INFO!A27) -> Ghana | B27: =IF(COUNTRY_INFO!B27=0," ",COUNTRY_INFO!B27) -> Ashanti | C27: =IF(COUNTRY_INFO!C27=0," ",COUNTRY_INFO!C27) -> Kumasi Metropolis | D27: =IF(COUNTRY_INFO!$T$9:$T$1000="MDA2 (DEC+ALB)", COUNTRY_INFO!$T$9:$T$1000, " ") ->  | I27: 0 | M27: 0
A28: =IF(COUNTRY_INFO!A28=0," ",COUNTRY_INFO!A28) -> Ghana | B28: =IF(COUNTRY_INFO!B28=0," ",COUNTRY_INFO!B28) -> Ashanti | C28: =IF(COUNTRY_INFO!C28=0," ",COUNTRY_INFO!C28) -> Kwabre | D28: =IF(COUNTRY_INFO!$T$9:$T$1000="MDA2 (DEC+ALB)", COUNTRY_INFO!$T$9:$T$1000, " ") ->  | I28: 0 | M28: 0
A29: =IF(COUNTRY_INFO!A29=0," ",COUNTRY_INFO!A29) -> Ghana | B29: =IF(COUNTRY_INFO!B29=0," ",COUNTRY_INFO!B29) -> Ashanti | C29: =IF(COUNTRY_INFO!C29=0," ",COUNTRY_INFO!C29) -> Bekwai Municipal | D29: =IF(COUNTRY_INFO!$T$9:$T$1000="MDA2 (DEC+ALB)", COUNTRY_INFO!$T$9:$T$1000, " ") ->  | I29: 0 | M29: 0
A30: =IF(COUNTRY_INFO!A30=0," ",COUNTRY_INFO!A30) -> Ghana | B30: =IF(COUNTRY_INFO!B30=0," ",COUNTRY_INFO!B30) -> Ashanti | C30: =IF(COUNTRY_INFO!C30=0," ",COUNTRY_INFO!C30) -> Asokore-Mampong | D30: =IF(COUNTRY_INFO!$T$9:$T$1000="MDA2 (DEC+ALB)", COUNTRY_INFO!$T$9:$T$1000, " ") ->  | I30: 0 | M30: 0
A31: =IF(COUNTRY_INFO!A31=0," ",COUNTRY_INFO!A31) -> Ghana | B31: =IF(COUNTRY_INFO!B31=0," ",COUNTRY_INFO!B31) -> Ashanti | C31: =IF(COUNTRY_INFO!C31=0," ",COUNTRY_INFO!C31) -> Obuasi Municipal | D31: =IF(COUNTRY_INFO!$T$9:$T$1000="MDA2 (DEC+ALB)", COUNTRY_INFO!$T$9:$T$1000, " ") ->  | I31: 0 | M31: 0
A32: =IF(COUNTRY_INFO!A32=0," ",COUNTRY_INFO!A32) -> Ghana | B32: =IF(COUNTRY_INFO!B32=0," ",COUNTRY_INFO!B32) -> Ashanti | C32: =IF(COUNTRY_INFO!C32=0," ",COUNTRY_INFO!C32) -> Offiinso Municipal | D32: =IF(COUNTRY_INFO!$T$9:$T$1000="MDA2 (DEC+ALB)", COUNTRY_INFO!$T$9:$T$1000, " ") ->  | I32: 0 | M32: 0
A33: =IF(COUNTRY_INFO!A33=0," ",COUNTRY_INFO!A33) -> Ghana | B33: =IF(COUNTRY_INFO!B33=0," ",COUNTRY_INFO!B33) -> Ashanti | C33: =IF(COUNTRY_INFO!C33=0," ",COUNTRY_INFO!C33) -> Offinso North | D33: =IF(COUNTRY_INFO!$T$9:$T$1000="MDA2 (DEC+ALB)", COUNTRY_INFO!$T$9:$T$1000, " ") ->  | I33: 0 | M33: 0
A34: =IF(COUNTRY_INFO!A34=0," ",COUNTRY_INFO!A34) -> Ghana | B34: =IF(COUNTRY_INFO!B34=0," ",COUNTRY_INFO!B34) -> Ashanti | C34: =IF(COUNTRY_INFO!C34=0," ",COUNTRY_INFO!C34) -> Sekyere-Afram Plains | D34: =IF(COUNTRY_INFO!$T$9:$T$1000="MDA2 (DEC+ALB)", COUNTRY_INFO!$T$9:$T$1000, " ") ->  | I34: 0 | M34: 0
A35: =IF(COUNTRY_INFO!A35=0," ",COUNTRY_INFO!A35) -> Ghana | B35: =IF(COUNTRY_INFO!B35=0," ",COUNTRY_INFO!B35) -> Ashanti | C35: =IF(COUNTRY_INFO!C35=0," ",COUNTRY_INFO!C35) -> Kumawu | D35: =IF(COUNTRY_INFO!$T$9:$T$1000="MDA2 (DEC+ALB)", COUNTRY_INFO!$T$9:$T$1000, " ") ->  | I35: 0 | M35: 0
A36: =IF(COUNTRY_INFO!A36=0," ",COUNTRY_INFO!A36) -> Ghana | B36: =IF(COUNTRY_INFO!B36=0," ",COUNTRY_INFO!B36) -> Ashanti | C36: =IF(COUNTRY_INFO!C36=0," ",COUNTRY_INFO!C36) -> Sekyere Central | D36: =IF(COUNTRY_INFO!$T$9:$T$1000="MDA2 (DEC+ALB)", COUNTRY_INFO!$T$9:$T$1000, " ") ->  | I36: 0 | M36: 0
A37: =IF(COUNTRY_INFO!A37=0," ",COUNTRY_INFO!A37) -> Ghana | B37: =IF(COUNTRY_INFO!B37=0," ",COUNTRY_INFO!B37) -> Ashanti | C37: =IF(COUNTRY_INFO!C37=0," ",COUNTRY_INFO!C37) -> Sekyere East | D37: =IF(COUNTRY_INFO!$T$9:$T$1000="MDA2 (DEC+ALB)", COUNTRY_INFO!$T$9:$T$1000, " ") ->  | I37: 0 | M37: 0
A38: =IF(COUNTRY_INFO!A38=0," ",COUNTRY_INFO!A38) -> Ghana | B38: =IF(COUNTRY_INFO!B38=0," ",COUNTRY_INFO!B38) -> Ashanti | C38: =IF(COUNTRY_INFO!C38=0," ",COUNTRY_INFO!C38) -> Sekyere South | D38: =IF(COUNTRY_INFO!$T$9:$T$1000="MDA2 (DEC+ALB)", COUNTRY_INFO!$T$9:$T$1000, " ") ->  | I38: 0 | M38: 0
A39: =IF(COUNTRY_INFO!A39=0," ",COUNTRY_INFO!A39) -> Ghana | B39: =IF(COUNTRY_INFO!B39=0," ",COUNTRY_INFO!B39) -> Brong-Ahafo | C39: =IF(COUNTRY_INFO!C39=0," ",COUNTRY_INFO!C39) -> Asunafo North | D39: =IF(COUNTRY_INFO!$T$9:$T$1000="MDA2 (DEC+ALB)", COUNTRY_INFO!$T$9:$T$1000, " ") ->  | I39: 0 | M39: 0
A40: =IF(COUNTRY_INFO!A40=0," ",COUNTRY_INFO!A40) -> Ghana | B40: =IF(COUNTRY_INFO!B40=0," ",COUNTRY_INFO!B40) -> Brong-Ahafo | C40: =IF(COUNTRY_INFO!C40=0," ",COUNTRY_INFO!C40) -> Asunafo South | D40: =IF(COUNTRY_INFO!$T$9:$T$1000="MDA2 (DEC+ALB)", COUNTRY_INFO!$T$9:$T$1000, " ") ->  | I40: 0 | M40: 0
A41: =IF(COUNTRY_INFO!A41=0," ",COUNTRY_INFO!A41) -> Ghana | B41: =IF(COUNTRY_INFO!B41=0," ",COUNTRY_INFO!B41) -> Brong-Ahafo | C41: =IF(COUNTRY_INFO!C41=0," ",COUNTRY_INFO!C41) -> Asutifi North | D41: =IF(COUNTRY_INFO!$T$9:$T$1000="MDA2 (DEC+ALB)", COUNTRY_INFO!$T$9:$T$1000, " ") ->  | I41: 0 | M41: 0
A42: =IF(COUNTRY_INFO!A42=0," ",COUNTRY_INFO!A42) -> Ghana | B42: =IF(COUNTRY_INFO!B42=0," ",COUNTRY_INFO!B42) -> Brong-Ahafo | C42: =IF(COUNTRY_INFO!C42=0," ",COUNTRY_INFO!C42) -> Asutifi South | D42: =IF(COUNTRY_INFO!$T$9:$T$1000="MDA2 (DEC+ALB)", COUNTRY_INFO!$T$9:$T$1000, " ") ->  | I42: 0 | M42: 0
A43: =IF(COUNTRY_INFO!A43=0," ",COUNTRY_INFO!A43) -> Ghana | B43: =IF(COUNTRY_INFO!B43=0," ",COUNTRY_INFO!B43) -> Brong-Ahafo | C43: =IF(COUNTRY_INFO!C43=0," ",COUNTRY_INFO!C43) -> Atebubu-Amanteng | D43: =IF(COUNTRY_INFO!$T$9:$T$1000="MDA2 (DEC+ALB)", COUNTRY_INFO!$T$9:$T$1000, " ") ->  | I43: 0 | M43: 0
A44: =IF(COUNTRY_INFO!A44=0," ",COUNTRY_INFO!A44) -> Ghana | B44: =IF(COUNTRY_INFO!B44=0," ",COUNTRY_INFO!B44) -> Brong-Ahafo | C44: =IF(COUNTRY_INFO!C44=0," ",COUNTRY_INFO!C44) -> Berekum | D44: =IF(COUNTRY_INFO!$T$9:$T$1000="MDA2 (DEC+ALB)", COUNTRY_INFO!$T$9:$T$1000, " ") ->  | I44: 0 | M44: 0
A45: =IF(COUNTRY_INFO!A45=0," ",COUNTRY_INFO!A45) -> Ghana | B45: =IF(COUNTRY_INFO!B45=0," ",COUNTRY_INFO!B45) -> Brong-Ahafo | C45: =IF(COUNTRY_INFO!C45=0," ",COUNTRY_INFO!C45) -> Dormaa Municipal | D45: =IF(COUNTRY_INFO!$T$9:$T$1000="MDA2 (DEC+ALB)", COUNTRY_INFO!$T$9:$T$1000, " ") ->  | I45: 0 | M45: 0
A46: =IF(COUNTRY_INFO!A46=0," ",COUNTRY_INFO!A46) -> Ghana | B46: =IF(COUNTRY_INFO!B46=0," ",COUNTRY_INFO!B46) -> Brong-Ahafo | C46: =IF(COUNTRY_INFO!C46=0," ",COUNTRY_INFO!C46) -> Dormaa West | D46: =IF(COUNTRY_INFO!$T$9:$T$1000="MDA2 (DEC+ALB)", COUNTRY_INFO!$T$9:$T$1000, " ") ->  | I46: 0 | M46: 0
A47: =IF(COUNTRY_INFO!A47=0," ",COUNTRY_INFO!A47) -> Ghana | B47: =IF(COUNTRY_INFO!B47=0," ",COUNTRY_INFO!B47) -> Brong-Ahafo | C47: =IF(COUNTRY_INFO!C47=0," ",COUNTRY_INFO!C47) -> Dormaa East | D47: =IF(COUNTRY_INFO!$T$9:$T$1000="MDA2 (DEC+ALB)", COUNTRY_INFO!$T$9:$T$1000, " ") ->  | I47: 0 | M47: 0
A48: =IF(COUNTRY_INFO!A48=0," ",COUNTRY_INFO!A48) -> Ghana | B48: =IF(COUNTRY_INFO!B48=0," ",COUNTRY_INFO!B48) -> Brong-Ahafo | C48: =IF(COUNTRY_INFO!C48=0," ",COUNTRY_INFO!C48) -> Jaman North | D48: =IF(COUNTRY_INFO!$T$9:$T$1000="MDA2 (DEC+ALB)", COUNTRY_INFO!$T$9:$T$1000, " ") ->  | I48: 0 | M48: 0
A49: =IF(COUNTRY_INFO!A49=0," ",COUNTRY_INFO!A49) -> Ghana | B49: =IF(COUNTRY_INFO!B49=0," ",COUNTRY_INFO!B49) -> Brong-Ahafo | C49: =IF(COUNTRY_INFO!C49=0," ",COUNTRY_INFO!C49) -> Jaman south | D49: =IF(COUNTRY_INFO!$T$9:$T$1000="MDA2 (DEC+ALB)", COUNTRY_INFO!$T$9:$T$1000, " ") ->  | I49: 0 | M49: 0
A50: =IF(COUNTRY_INFO!A50=0," ",COUNTRY_INFO!A50) -> Ghana | B50: =IF(COUNTRY_INFO!B50=0," ",COUNTRY_INFO!B50) -> Brong-Ahafo | C50: =IF(COUNTRY_INFO!C50=0," ",COUNTRY_INFO!C50) -> Kintampo North | D50: =IF(COUNTRY_INFO!$T$9:$T$1000="MDA2 (DEC+ALB)", COUNTRY_INFO!$T$9:$T$1000, " ") ->  | I50: 0 | M50: 0
A51: =IF(COUNTRY_INFO!A51=0," ",COUNTRY_INFO!A51) -> Ghana | B51: =IF(COUNTRY_INFO!B51=0," ",COUNTRY_INFO!B51) -> Brong-Ahafo | C51: =IF(COUNTRY_INFO!C51=0," ",COUNTRY_INFO!C51) -> Kintampo South | D51: =IF(COUNTRY_INFO!$T$9:$T$1000="MDA2 (DEC+ALB)", COUNTRY_INFO!$T$9:$T$1000, " ") ->  | I51: 0 | M51: 0
A52: =IF(COUNTRY_INFO!A52=0," ",COUNTRY_INFO!A52) -> Ghana | B52: =IF(COUNTRY_INFO!B52=0," ",COUNTRY_INFO!B52) -> Brong-Ahafo | C52: =IF(COUNTRY_INFO!C52=0," ",COUNTRY_INFO!C52) -> Nkoranza North | D52: =IF(COUNTRY_INFO!$T$9:$T$1000="MDA2 (DEC+ALB)", COUNTRY_INFO!$T$9:$T$1000, " ") ->  | I52: 0 | M52: 0
A53: =IF(COUNTRY_INFO!A53=0," ",COUNTRY_INFO!A53) -> Ghana | B53: =IF(COUNTRY_INFO!B53=0," ",COUNTRY_INFO!B53) -> Brong-Ahafo | C53: =IF(COUNTRY_INFO!C53=0," ",COUNTRY_INFO!C53) -> Nkoranza South | D53: =IF(COUNTRY_INFO!$T$9:$T$1000="MDA2 (DEC+ALB)", COUNTRY_INFO!$T$9:$T$1000, " ") ->  | I53: 0 | M53: 0
A54: =IF(COUNTRY_INFO!A54=0," ",COUNTRY_INFO!A54) -> Ghana | B54: =IF(COUNTRY_INFO!B54=0," ",COUNTRY_INFO!B54) -> Brong-Ahafo | C54: =IF(COUNTRY_INFO!C54=0," ",COUNTRY_INFO!C54) -> Pru | D54: =IF(COUNTRY_INFO!$T$9:$T$1000="MDA2 (DEC+ALB)", COUNTRY_INFO!$T$9:$T$1000, " ") ->  | I54: 0 | M54: 0
A55: =IF(COUNTRY_INFO!A55=0," ",COUNTRY_INFO!A55) -> Ghana | B55: =IF(COUNTRY_INFO!B55=0," ",COUNTRY_INFO!B55) -> Brong-Ahafo | C55: =IF(COUNTRY_INFO!C55=0," ",COUNTRY_INFO!C55) -> Sene East | D55: =IF(COUNTRY_INFO!$T$9:$T$1000="MDA2 (DEC+ALB)", COUNTRY_INFO!$T$9:$T$1000, " ") ->  | I55: 0 | M55: 0
A56: =IF(COUNTRY_INFO!A56=0," ",COUNTRY_INFO!A56) -> Ghana | B56: =IF(COUNTRY_INFO!B56=0," ",COUNTRY_INFO!B56) -> Brong-Ahafo | C56: =IF(COUNTRY_INFO!C56=0," ",COUNTRY_INFO!C56) -> Sene West | D56: =IF(COUNTRY_INFO!$T$9:$T$1000="MDA2 (DEC+ALB)", COUNTRY_INFO!$T$9:$T$1000, " ") ->  | I56: 0 | M56: 0
A57: =IF(COUNTRY_INFO!A57=0," ",COUNTRY_INFO!A57) -> Ghana | B57: =IF(COUNTRY_INFO!B57=0," ",COUNTRY_INFO!B57) -> Brong-Ahafo | C57: =IF(COUNTRY_INFO!C57=0," ",COUNTRY_INFO!C57) -> Sunyani Municipal | D57: =IF(COUNTRY_INFO!$T$9:$T$1000="MDA2 (DEC+ALB)", COUNTRY_INFO!$T$9:$T$1000, " ") ->  | I57: 0 | M57: 0
A58: =IF(COUNTRY_INFO!A58=0," ",COUNTRY_INFO!A58) -> Ghana | B58: =IF(COUNTRY_INFO!B58=0," ",COUNTRY_INFO!B58) -> Brong-Ahafo | C58: =IF(COUNTRY_INFO!C58=0," ",COUNTRY_INFO!C58) -> Sunyani West | D58: =IF(COUNTRY_INFO!$T$9:$T$1000="MDA2 (DEC+ALB)", COUNTRY_INFO!$T$9:$T$1000, " ") ->  | I58: 0 | M58: 0
A59: =IF(COUNTRY_INFO!A59=0," ",COUNTRY_INFO!A59) -> Ghana | B59: =IF(COUNTRY_INFO!B59=0," ",COUNTRY_INFO!B59) -> Brong-Ahafo | C59: =IF(COUNTRY_INFO!C59=0," ",COUNTRY_INFO!C59) -> Tain | D59: =IF(COUNTRY_INFO!$T$9:$T$1000="MDA2 (DEC+ALB)", COUNTRY_INFO!$T$9:$T$1000, " ") ->  | I59: 0 | M59: 0
A60: =IF(COUNTRY_INFO!A60=0," ",COUNTRY_INFO!A60) -> Ghana | B60: =IF(COUNTRY_INFO!B60=0," ",COUNTRY_INFO!B60) -> Brong-Ahafo | C60: =IF(COUNTRY_INFO!C60=0," ",COUNTRY_INFO!C60) -> Banda | D60: =IF(COUNTRY_INFO!$T$9:$T$1000="MDA2 (DEC+ALB)", COUNTRY_INFO!$T$9:$T$1000, " ") ->  | I60: 0 | M60: 0
A61: =IF(COUNTRY_INFO!A61=0," ",COUNTRY_INFO!A61) -> Ghana | B61: =IF(COUNTRY_INFO!B61=0," ",COUNTRY_INFO!B61) -> Brong-Ahafo | C61: =IF(COUNTRY_INFO!C61=0," ",COUNTRY_INFO!C61) -> Tano North | D61: =IF(COUNTRY_INFO!$T$9:$T$1000="MDA2 (DEC+ALB)", COUNTRY_INFO!$T$9:$T$1000, " ") ->  | I61: 0 | M61: 0
A62: =IF(COUNTRY_INFO!A62=0," ",COUNTRY_INFO!A62) -> Ghana | B62: =IF(COUNTRY_INFO!B62=0," ",COUNTRY_INFO!B62) -> Brong-Ahafo | C62: =IF(COUNTRY_INFO!C62=0," ",COUNTRY_INFO!C62) -> Tano South | D62: =IF(COUNTRY_INFO!$T$9:$T$1000="MDA2 (DEC+ALB)", COUNTRY_INFO!$T$9:$T$1000, " ") ->  | I62: 0 | M62: 0
A63: =IF(COUNTRY_INFO!A63=0," ",COUNTRY_INFO!A63) -> Ghana | B63: =IF(COUNTRY_INFO!B63=0," ",COUNTRY_INFO!B63) -> Brong-Ahafo | C63: =IF(COUNTRY_INFO!C63=0," ",COUNTRY_INFO!C63) -> Techiman Municipal | D63: =IF(COUNTRY_INFO!$T$9:$T$1000="MDA2 (DEC+ALB)", COUNTRY_INFO!$T$9:$T$1000, " ") ->  | I63: 0 | M63: 0
A64: =IF(COUNTRY_INFO!A64=0," ",COUNTRY_INFO!A64) -> Ghana | B64: =IF(COUNTRY_INFO!B64=0," ",COUNTRY_INFO!B64) -> Brong-Ahafo | C64: =IF(COUNTRY_INFO!C64=0," ",COUNTRY_INFO!C64) -> Techiman North | D64: =IF(COUNTRY_INFO!$T$9:$T$1000="MDA2 (DEC+ALB)", COUNTRY_INFO!$T$9:$T$1000, " ") ->  | I64: 0 | M64: 0
A65: =IF(COUNTRY_INFO!A65=0," ",COUNTRY_INFO!A65) -> Ghana | B65: =IF(COUNTRY_INFO!B65=0," ",COUNTRY_INFO!B65) -> Brong-Ahafo | C65: =IF(COUNTRY_INFO!C65=0," ",COUNTRY_INFO!C65) -> Wenchi Municipal | D65: =IF(COUNTRY_INFO!$T$9:$T$1000="MDA2 (DEC+ALB)", COUNTRY_INFO!$T$9:$T$1000, " ") ->  | I65: 0 | M65: 0
A66: =IF(COUNTRY_INFO!A66=0," ",COUNTRY_INFO!A66) -> Ghana | B66: =IF(COUNTRY_INFO!B66=0," ",COUNTRY_INFO!B66) -> Central | C66: =IF(COUNTRY_INFO!C66=0," ",COUNTRY_INFO!C66) -> Abura-Asebu-Kwamankese | D66: =IF(COUNTRY_INFO!$T$9:$T$1000="MDA2 (DEC+ALB)", COUNTRY_INFO!$T$9:$T$1000, " ") ->  | I66: 0 | M66: 0
A67: =IF(COUNTRY_INFO!A67=0," ",COUNTRY_INFO!A67) -> Ghana | B67: =IF(COUNTRY_INFO!B67=0," ",COUNTRY_INFO!B67) -> Central | C67: =IF(COUNTRY_INFO!C67=0," ",COUNTRY_INFO!C67) -> Agona East | D67: =IF(COUNTRY_INFO!$T$9:$T$1000="MDA2 (DEC+ALB)", COUNTRY_INFO!$T$9:$T$1000, " ") ->  | I67: 0 | M67: 0
A68: =IF(COUNTRY_INFO!A68=0," ",COUNTRY_INFO!A68) -> Ghana | B68: =IF(COUNTRY_INFO!B68=0," ",COUNTRY_INFO!B68) -> Central | C68: =IF(COUNTRY_INFO!C68=0," ",COUNTRY_INFO!C68) -> Agona West | D68: =IF(COUNTRY_INFO!$T$9:$T$1000="MDA2 (DEC+ALB)", COUNTRY_INFO!$T$9:$T$1000, " ") ->  | I68: 0 | M68: 0
A69: =IF(COUNTRY_INFO!A69=0," ",COUNTRY_INFO!A69) -> Ghana | B69: =IF(COUNTRY_INFO!B69=0," ",COUNTRY_INFO!B69) -> Central | C69: =IF(COUNTRY_INFO!C69=0," ",COUNTRY_INFO!C69) -> Ajumako-Enyan-Essiam | D69: =IF(COUNTRY_INFO!$T$9:$T$1000="MDA2 (DEC+ALB)", COUNTRY_INFO!$T$9:$T$1000, " ") ->  | I69: 0 | M69: 0
A70: =IF(COUNTRY_INFO!A70=0," ",COUNTRY_INFO!A70) -> Ghana | B70: =IF(COUNTRY_INFO!B70=0," ",COUNTRY_INFO!B70) -> Central | C70: =IF(COUNTRY_INFO!C70=0," ",COUNTRY_INFO!C70) -> Asikuma-Odoben-Brakwa | D70: =IF(COUNTRY_INFO!$T$9:$T$1000="MDA2 (DEC+ALB)", COUNTRY_INFO!$T$9:$T$1000, " ") ->  | I70: 0 | M70: 0
A71: =IF(COUNTRY_INFO!A71=0," ",COUNTRY_INFO!A71) -> Ghana | B71: =IF(COUNTRY_INFO!B71=0," ",COUNTRY_INFO!B71) -> Central | C71: =IF(COUNTRY_INFO!C71=0," ",COUNTRY_INFO!C71) -> Assin North | D71: =IF(COUNTRY_INFO!$T$9:$T$1000="MDA2 (DEC+ALB)", COUNTRY_INFO!$T$9:$T$1000, " ") ->  | I71: 0 | M71: 0
A72: =IF(COUNTRY_INFO!A72=0," ",COUNTRY_INFO!A72) -> Ghana | B72: =IF(COUNTRY_INFO!B72=0," ",COUNTRY_INFO!B72) -> Central | C72: =IF(COUNTRY_INFO!C72=0," ",COUNTRY_INFO!C72) -> Assin South | D72: =IF(COUNTRY_INFO!$T$9:$T$1000="MDA2 (DEC+ALB)", COUNTRY_INFO!$T$9:$T$1000, " ") ->  | I72: 0 | M72: 0
A73: =IF(COUNTRY_INFO!A73=0," ",COUNTRY_INFO!A73) -> Ghana | B73: =IF(COUNTRY_INFO!B73=0," ",COUNTRY_INFO!B73) -> Central | C73: =IF(COUNTRY_INFO!C73=0," ",COUNTRY_INFO!C73) -> Awutu-Senya West | D73: =IF(COUNTRY_INFO!$T$9:$T$1000="MDA2 (DEC+ALB)", COUNTRY_INFO!$T$9:$T$1000, " ") ->  | I73: 0 | M73: 0
A74: =IF(COUNTRY_INFO!A74=0," ",COUNTRY_INFO!A74) -> Ghana | B74: =IF(COUNTRY_INFO!B74=0," ",COUNTRY_INFO!B74) -> Central | C74: =IF(COUNTRY_INFO!C74=0," ",COUNTRY_INFO!C74) -> Awutu-Senya East | D74: =IF(COUNTRY_INFO!$T$9:$T$1000="MDA2 (DEC+ALB)", COUNTRY_INFO!$T$9:$T$1000, " ") ->  | I74: =SUM(F74:H74) -> 0 | M74: =SUM(J74:L74) -> 0 | N74: =IF(F74<>0, IF(J74/F74*100=0, "-", J74/F74*100), " ") ->  | O74: =IF(G74<>0, IF(K74/G74*100=0, "-", K74/G74*100), " ") ->  | P74: =IF(H74<>0, IF(L74/H74*100=0, "-", L74/H74*100), " ") ->  | Q74: =IF(I74<>0, IF(M74/I74*100=0, "-", M74/I74*100), " ") -> 
A75: =IF(COUNTRY_INFO!A75=0," ",COUNTRY_INFO!A75) -> Ghana | B75: =IF(COUNTRY_INFO!B75=0," ",COUNTRY_INFO!B75) -> Central | C75: =IF(COUNTRY_INFO!C75=0," ",COUNTRY_INFO!C75) -> Cape Coast | D75: =IF(COUNTRY_INFO!$T$9:$T$1000="MDA2 (DEC+ALB)", COUNTRY_INFO!$T$9:$T$1000, " ") ->  | I75: 0 | M75: 0
A76: =IF(COUNTRY_INFO!A76=0," ",COUNTRY_INFO!A76) -> Ghana | B76: =IF(COUNTRY_INFO!B76=0," ",COUNTRY_INFO!B76) -> Central | C76: =IF(COUNTRY_INFO!C76=0," ",COUNTRY_INFO!C76) -> Efutu | D76: =IF(COUNTRY_INFO!$T$9:$T$1000="MDA2 (DEC+ALB)", COUNTRY_INFO!$T$9:$T$1000, " ") ->  | I76: 0 | M76: 0
A77: =IF(COUNTRY_INFO!A77=0," ",COUNTRY_INFO!A77) -> Ghana | B77: =IF(COUNTRY_INFO!B77=0," ",COUNTRY_INFO!B77) -> Central | C77: =IF(COUNTRY_INFO!C77=0," ",COUNTRY_INFO!C77) -> Gomoa East | D77: =IF(COUNTRY_INFO!$T$9:$T$1000="MDA2 (DEC+ALB)", COUNTRY_INFO!$T$9:$T$1000, " ") ->  | I77: 0 | M77: 0
A78: =IF(COUNTRY_INFO!A78=0," ",COUNTRY_INFO!A78) -> Ghana | B78: =IF(COUNTRY_INFO!B78=0," ",COUNTRY_INFO!B78) -> Central | C78: =IF(COUNTRY_INFO!C78=0," ",COUNTRY_INFO!C78) -> Gomoa West | D78: =IF(COUNTRY_INFO!$T$9:$T$1000="MDA2 (DEC+ALB)", COUNTRY_INFO!$T$9:$T$1000, " ") ->  | I78: 0 | M78: 0
A79: =IF(COUNTRY_INFO!A79=0," ",COUNTRY_INFO!A79) -> Ghana | B79: =IF(COUNTRY_INFO!B79=0," ",COUNTRY_INFO!B79) -> Central | C79: =IF(COUNTRY_INFO!C79=0," ",COUNTRY_INFO!C79) -> Komenda-Edina-Eguafo-Abirem | D79: =IF(COUNTRY_INFO!$T$9:$T$1000="MDA2 (DEC+ALB)", COUNTRY_INFO!$T$9:$T$1000, " ") ->  | I79: 0 | M79: 0
A80: =IF(COUNTRY_INFO!A80=0," ",COUNTRY_INFO!A80) -> Ghana | B80: =IF(COUNTRY_INFO!B80=0," ",COUNTRY_INFO!B80) -> Central | C80: =IF(COUNTRY_INFO!C80=0," ",COUNTRY_INFO!C80) -> Mfansteman | D80: =IF(COUNTRY_INFO!$T$9:$T$1000="MDA2 (DEC+ALB)", COUNTRY_INFO!$T$9:$T$1000, " ") ->  | I80: 0 | M80: 0
A81: =IF(COUNTRY_INFO!A81=0," ",COUNTRY_INFO!A81) -> Ghana | B81: =IF(COUNTRY_INFO!B81=0," ",COUNTRY_INFO!B81) -> Central | C81: =IF(COUNTRY_INFO!C81=0," ",COUNTRY_INFO!C81) -> Ekumfi | D81: =IF(COUNTRY_INFO!$T$9:$T$1000="MDA2 (DEC+ALB)", COUNTRY_INFO!$T$9:$T$1000, " ") ->  | I81: 0 | M81: 0
A82: =IF(COUNTRY_INFO!A82=0," ",COUNTRY_INFO!A82) -> Ghana | B82: =IF(COUNTRY_INFO!B82=0," ",COUNTRY_INFO!B82) -> Central | C82: =IF(COUNTRY_INFO!C82=0," ",COUNTRY_INFO!C82) -> Hemang Lower Denkyira | D82: =IF(COUNTRY_INFO!$T$9:$T$1000="MDA2 (DEC+ALB)", COUNTRY_INFO!$T$9:$T$1000, " ") ->  | I82: 0 | M82: 0
A83: =IF(COUNTRY_INFO!A83=0," ",COUNTRY_INFO!A83) -> Ghana | B83: =IF(COUNTRY_INFO!B83=0," ",COUNTRY_INFO!B83) -> Central | C83: =IF(COUNTRY_INFO!C83=0," ",COUNTRY_INFO!C83) -> Twifu-Ati Mokwa | D83: =IF(COUNTRY_INFO!$T$9:$T$1000="MDA2 (DEC+ALB)", COUNTRY_INFO!$T$9:$T$1000, " ") ->  | I83: 0 | M83: 0
A84: =IF(COUNTRY_INFO!A84=0," ",COUNTRY_INFO!A84) -> Ghana | B84: =IF(COUNTRY_INFO!B84=0," ",COUNTRY_INFO!B84) -> Central | C84: =IF(COUNTRY_INFO!C84=0," ",COUNTRY_INFO!C84) -> Upper Denkyira East | D84: =IF(COUNTRY_INFO!$T$9:$T$1000="MDA2 (DEC+ALB)", COUNTRY_INFO!$T$9:$T$1000, " ") ->  | I84: 0 | M84: 0
A85: =IF(COUNTRY_INFO!A85=0," ",COUNTRY_INFO!A85) -> Ghana | B85: =IF(COUNTRY_INFO!B85=0," ",COUNTRY_INFO!B85) -> Central | C85: =IF(COUNTRY_INFO!C85=0," ",COUNTRY_INFO!C85) -> Upper Denkyira West | D85: =IF(COUNTRY_INFO!$T$9:$T$1000="MDA2 (DEC+ALB)", COUNTRY_INFO!$T$9:$T$1000, " ") ->  | I85: 0 | M85: 0
A86: =IF(COUNTRY_INFO!A86=0," ",COUNTRY_INFO!A86) -> Ghana | B86: =IF(COUNTRY_INFO!B86=0," ",COUNTRY_INFO!B86) -> Eastern | C86: =IF(COUNTRY_INFO!C86=0," ",COUNTRY_INFO!C86) -> Akwapim North | D86: =IF(COUNTRY_INFO!$T$9:$T$1000="MDA2 (DEC+ALB)", COUNTRY_INFO!$T$9:$T$1000, " ") ->  | I86: 0 | M86: 0
A87: =IF(COUNTRY_INFO!A87=0," ",COUNTRY_INFO!A87) -> Ghana | B87: =IF(COUNTRY_INFO!B87=0," ",COUNTRY_INFO!B87) -> Eastern | C87: =IF(COUNTRY_INFO!C87=0," ",COUNTRY_INFO!C87) -> Akwapim South | D87: =IF(COUNTRY_INFO!$T$9:$T$1000="MDA2 (DEC+ALB)", COUNTRY_INFO!$T$9:$T$1000, " ") ->  | I87: 0 | M87: 0
A88: =IF(COUNTRY_INFO!A88=0," ",COUNTRY_INFO!A88) -> Ghana | B88: =IF(COUNTRY_INFO!B88=0," ",COUNTRY_INFO!B88) -> Eastern | C88: =IF(COUNTRY_INFO!C88=0," ",COUNTRY_INFO!C88) -> Nsawam Adoagyiri Municipal | D88: =IF(COUNTRY_INFO!$T$9:$T$1000="MDA2 (DEC+ALB)", COUNTRY_INFO!$T$9:$T$1000, " ") ->  | I88: 0 | M88: 0
A89: =IF(COUNTRY_INFO!A89=0," ",COUNTRY_INFO!A89) -> Ghana | B89: =IF(COUNTRY_INFO!B89=0," ",COUNTRY_INFO!B89) -> Eastern | C89: =IF(COUNTRY_INFO!C89=0," ",COUNTRY_INFO!C89) -> Akyemansa | D89: =IF(COUNTRY_INFO!$T$9:$T$1000="MDA2 (DEC+ALB)", COUNTRY_INFO!$T$9:$T$1000, " ") ->  | I89: 0 | M89: 0
A90: =IF(COUNTRY_INFO!A90=0," ",COUNTRY_INFO!A90) -> Ghana | B90: =IF(COUNTRY_INFO!B90=0," ",COUNTRY_INFO!B90) -> Eastern | C90: =IF(COUNTRY_INFO!C90=0," ",COUNTRY_INFO!C90) -> Asuogyaman | D90: =IF(COUNTRY_INFO!$T$9:$T$1000="MDA2 (DEC+ALB)", COUNTRY_INFO!$T$9:$T$1000, " ") ->  | I90: 0 | M90: 0
A91: =IF(COUNTRY_INFO!A91=0," ",COUNTRY_INFO!A91) -> Ghana | B91: =IF(COUNTRY_INFO!B91=0," ",COUNTRY_INFO!B91) -> Eastern | C91: =IF(COUNTRY_INFO!C91=0," ",COUNTRY_INFO!C91) -> Atiwa | D91: =IF(COUNTRY_INFO!$T$9:$T$1000="MDA2 (DEC+ALB)", COUNTRY_INFO!$T$9:$T$1000, " ") ->  | I91: 0 | M91: 0
A92: =IF(COUNTRY_INFO!A92=0," ",COUNTRY_INFO!A92) -> Ghana | B92: =IF(COUNTRY_INFO!B92=0," ",COUNTRY_INFO!B92) -> Eastern | C92: =IF(COUNTRY_INFO!C92=0," ",COUNTRY_INFO!C92) -> Birim Central | D92: =IF(COUNTRY_INFO!$T$9:$T$1000="MDA2 (DEC+ALB)", COUNTRY_INFO!$T$9:$T$1000, " ") ->  | I92: 0 | M92: 0
A93: =IF(COUNTRY_INFO!A93=0," ",COUNTRY_INFO!A93) -> Ghana | B93: =IF(COUNTRY_INFO!B93=0," ",COUNTRY_INFO!B93) -> Eastern | C93: =IF(COUNTRY_INFO!C93=0," ",COUNTRY_INFO!C93) -> Birim North | D93: =IF(COUNTRY_INFO!$T$9:$T$1000="MDA2 (DEC+ALB)", COUNTRY_INFO!$T$9:$T$1000, " ") ->  | I93: 0 | M93: 0
A94: =IF(COUNTRY_INFO!A94=0," ",COUNTRY_INFO!A94) -> Ghana | B94: =IF(COUNTRY_INFO!B94=0," ",COUNTRY_INFO!B94) -> Eastern | C94: =IF(COUNTRY_INFO!C94=0," ",COUNTRY_INFO!C94) -> Birim South | D94: =IF(COUNTRY_INFO!$T$9:$T$1000="MDA2 (DEC+ALB)", COUNTRY_INFO!$T$9:$T$1000, " ") ->  | I94: 0 | M94: 0
A95: =IF(COUNTRY_INFO!A95=0," ",COUNTRY_INFO!A95) -> Ghana | B95: =IF(COUNTRY_INFO!B95=0," ",COUNTRY_INFO!B95) -> Eastern | C95: =IF(COUNTRY_INFO!C95=0," ",COUNTRY_INFO!C95) -> East Akim Municipal | D95: =IF(COUNTRY_INFO!$T$9:$T$1000="MDA2 (DEC+ALB)", COUNTRY_INFO!$T$9:$T$1000, " ") ->  | I95: 0 | M95: 0
A96: =IF(COUNTRY_INFO!A96=0," ",COUNTRY_INFO!A96) -> Ghana | B96: =IF(COUNTRY_INFO!B96=0," ",COUNTRY_INFO!B96) -> Eastern | C96: =IF(COUNTRY_INFO!C96=0," ",COUNTRY_INFO!C96) -> Fanteakwa | D96: =IF(COUNTRY_INFO!$T$9:$T$1000="MDA2 (DEC+ALB)", COUNTRY_INFO!$T$9:$T$1000, " ") ->  | I96: 0 | M96: 0
A97: =IF(COUNTRY_INFO!A97=0," ",COUNTRY_INFO!A97) -> Ghana | B97: =IF(COUNTRY_INFO!B97=0," ",COUNTRY_INFO!B97) -> Eastern | C97: =IF(COUNTRY_INFO!C97=0," ",COUNTRY_INFO!C97) -> Kwaebibirem | D97: =IF(COUNTRY_INFO!$T$9:$T$1000="MDA2 (DEC+ALB)", COUNTRY_INFO!$T$9:$T$1000, " ") ->  | I97: 0 | M97: 0
A98: =IF(COUNTRY_INFO!A98=0," ",COUNTRY_INFO!A98) -> Ghana | B98: =IF(COUNTRY_INFO!B98=0," ",COUNTRY_INFO!B98) -> Eastern | C98: =IF(COUNTRY_INFO!C98=0," ",COUNTRY_INFO!C98) -> Denkyembour | D98: =IF(COUNTRY_INFO!$T$9:$T$1000="MDA2 (DEC+ALB)", COUNTRY_INFO!$T$9:$T$1000, " ") ->  | I98: 0 | M98: 0
A99: =IF(COUNTRY_INFO!A99=0," ",COUNTRY_INFO!A99) -> Ghana | B99: =IF(COUNTRY_INFO!B99=0," ",COUNTRY_INFO!B99) -> Eastern | C99: =IF(COUNTRY_INFO!C99=0," ",COUNTRY_INFO!C99) -> Kwahu East | D99: =IF(COUNTRY_INFO!$T$9:$T$1000="MDA2 (DEC+ALB)", COUNTRY_INFO!$T$9:$T$1000, " ") ->  | I99: 0 | M99: 0
A100: =IF(COUNTRY_INFO!A100=0," ",COUNTRY_INFO!A100) -> Ghana | B100: =IF(COUNTRY_INFO!B100=0," ",COUNTRY_INFO!B100) -> Eastern | C100: =IF(COUNTRY_INFO!C100=0," ",COUNTRY_INFO!C100) -> Kwahu Afram Plains North | D100: =IF(COUNTRY_INFO!$T$9:$T$1000="MDA2 (DEC+ALB)", COUNTRY_INFO!$T$9:$T$1000, " ") ->  | I100: 0 | M100: 0
A101: =IF(COUNTRY_INFO!A101=0," ",COUNTRY_INFO!A101) -> Ghana | B101: =IF(COUNTRY_INFO!B101=0," ",COUNTRY_INFO!B101) -> Eastern | C101: =IF(COUNTRY_INFO!C101=0," ",COUNTRY_INFO!C101) -> Kwahu Afram Plains South | D101: =IF(COUNTRY_INFO!$T$9:$T$1000="MDA2 (DEC+ALB)", COUNTRY_INFO!$T$9:$T$1000, " ") ->  | I101: 0 | M101: 0
A102: =IF(COUNTRY_INFO!A102=0," ",COUNTRY_INFO!A102) -> Ghana | B102: =IF(COUNTRY_INFO!B102=0," ",COUNTRY_INFO!B102) -> Eastern | C102: =IF(COUNTRY_INFO!C102=0," ",COUNTRY_INFO!C102) -> Kwahu South | D102: =IF(COUNTRY_INFO!$T$9:$T$1000="MDA2 (DEC+ALB)", COUNTRY_INFO!$T$9:$T$1000, " ") ->  | I102: 0 | M102: 0
A103: =IF(COUNTRY_INFO!A103=0," ",COUNTRY_INFO!A103) -> Ghana | B103: =IF(COUNTRY_INFO!B103=0," ",COUNTRY_INFO!B103) -> Eastern | C103: =IF(COUNTRY_INFO!C103=0," ",COUNTRY_INFO!C103) -> Kwahu West | D103: =IF(COUNTRY_INFO!$T$9:$T$1000="MDA2 (DEC+ALB)", COUNTRY_INFO!$T$9:$T$1000, " ") ->  | I103: 0 | M103: 0
A104: =IF(COUNTRY_INFO!A104=0," ",COUNTRY_INFO!A104) -> Ghana | B104: =IF(COUNTRY_INFO!B104=0," ",COUNTRY_INFO!B104) -> Eastern | C104: =IF(COUNTRY_INFO!C104=0," ",COUNTRY_INFO!C104) -> Lower Manya Krobo | D104: =IF(COUNTRY_INFO!$T$9:$T$1000="MDA2 (DEC+ALB)", COUNTRY_INFO!$T$9:$T$1000, " ") ->  | I104: 0 | M104: 0
A105: =IF(COUNTRY_INFO!A105=0," ",COUNTRY_INFO!A105) -> Ghana | B105: =IF(COUNTRY_INFO!B105=0," ",COUNTRY_INFO!B105) -> Eastern | C105: =IF(COUNTRY_INFO!C105=0," ",COUNTRY_INFO!C105) -> New Juaben Municipal | D105: =IF(COUNTRY_INFO!$T$9:$T$1000="MDA2 (DEC+ALB)", COUNTRY_INFO!$T$9:$T$1000, " ") ->  | I105: 0 | M105: 0
A106: =IF(COUNTRY_INFO!A106=0," ",COUNTRY_INFO!A106) -> Ghana | B106: =IF(COUNTRY_INFO!B106=0," ",COUNTRY_INFO!B106) -> Eastern | C106: =IF(COUNTRY_INFO!C106=0," ",COUNTRY_INFO!C106) -> Suhum | D106: =IF(COUNTRY_INFO!$T$9:$T$1000="MDA2 (DEC+ALB)", COUNTRY_INFO!$T$9:$T$1000, " ") ->  | I106: 0 | M106: 0
A107: =IF(COUNTRY_INFO!A107=0," ",COUNTRY_INFO!A107) -> Ghana | B107: =IF(COUNTRY_INFO!B107=0," ",COUNTRY_INFO!B107) -> Eastern | C107: =IF(COUNTRY_INFO!C107=0," ",COUNTRY_INFO!C107) -> Ayensuano | D107: =IF(COUNTRY_INFO!$T$9:$T$1000="MDA2 (DEC+ALB)", COUNTRY_INFO!$T$9:$T$1000, " ") ->  | I107: 0 | M107: 0
A108: =IF(COUNTRY_INFO!A108=0," ",COUNTRY_INFO!A108) -> Ghana | B108: =IF(COUNTRY_INFO!B108=0," ",COUNTRY_INFO!B108) -> Eastern | C108: =IF(COUNTRY_INFO!C108=0," ",COUNTRY_INFO!C108) -> Upper Manya Krobo | D108: =IF(COUNTRY_INFO!$T$9:$T$1000="MDA2 (DEC+ALB)", COUNTRY_INFO!$T$9:$T$1000, " ") ->  | I108: 0 | M108: 0
A109: =IF(COUNTRY_INFO!A109=0," ",COUNTRY_INFO!A109) -> Ghana | B109: =IF(COUNTRY_INFO!B109=0," ",COUNTRY_INFO!B109) -> Eastern | C109: =IF(COUNTRY_INFO!C109=0," ",COUNTRY_INFO!C109) -> Upper West Akim | D109: =IF(COUNTRY_INFO!$T$9:$T$1000="MDA2 (DEC+ALB)", COUNTRY_INFO!$T$9:$T$1000, " ") ->  | I109: 0 | M109: 0
A110: =IF(COUNTRY_INFO!A110=0," ",COUNTRY_INFO!A110) -> Ghana | B110: =IF(COUNTRY_INFO!B110=0," ",COUNTRY_INFO!B110) -> Eastern | C110: =IF(COUNTRY_INFO!C110=0," ",COUNTRY_INFO!C110) -> West Akim Municipal | D110: =IF(COUNTRY_INFO!$T$9:$T$1000="MDA2 (DEC+ALB)", COUNTRY_INFO!$T$9:$T$1000, " ") ->  | I110: 0 | M110: 0
A111: =IF(COUNTRY_INFO!A111=0," ",COUNTRY_INFO!A111) -> Ghana | B111: =IF(COUNTRY_INFO!B111=0," ",COUNTRY_INFO!B111) -> Eastern | C111: =IF(COUNTRY_INFO!C111=0," ",COUNTRY_INFO!C111) -> Yilo Krobo | D111: =IF(COUNTRY_INFO!$T$9:$T$1000="MDA2 (DEC+ALB)", COUNTRY_INFO!$T$9:$T$1000, " ") ->  | I111: 0 | M111: 0
A112: =IF(COUNTRY_INFO!A112=0," ",COUNTRY_INFO!A112) -> Ghana | B112: =IF(COUNTRY_INFO!B112=0," ",COUNTRY_INFO!B112) -> Greater Accra | C112: =IF(COUNTRY_INFO!C112=0," ",COUNTRY_INFO!C112) -> Accra Metro | D112: =IF(COUNTRY_INFO!$T$9:$T$1000="MDA2 (DEC+ALB)", COUNTRY_INFO!$T$9:$T$1000, " ") ->  | I112: 0 | M112: 0
A113: =IF(COUNTRY_INFO!A113=0," ",COUNTRY_INFO!A113) -> Ghana | B113: =IF(COUNTRY_INFO!B113=0," ",COUNTRY_INFO!B113) -> Greater Accra | C113: =IF(COUNTRY_INFO!C113=0," ",COUNTRY_INFO!C113) -> La Dade-Kotopon | D113: =IF(COUNTRY_INFO!$T$9:$T$1000="MDA2 (DEC+ALB)", COUNTRY_INFO!$T$9:$T$1000, " ") ->  | I113: 0 | M113: 0
A114: =IF(COUNTRY_INFO!A114=0," ",COUNTRY_INFO!A114) -> Ghana | B114: =IF(COUNTRY_INFO!B114=0," ",COUNTRY_INFO!B114) -> Greater Accra | C114: =IF(COUNTRY_INFO!C114=0," ",COUNTRY_INFO!C114) -> Adenta | D114: =IF(COUNTRY_INFO!$T$9:$T$1000="MDA2 (DEC+ALB)", COUNTRY_INFO!$T$9:$T$1000, " ") ->  | I114: 0 | M114: 0
A115: =IF(COUNTRY_INFO!A115=0," ",COUNTRY_INFO!A115) -> Ghana | B115: =IF(COUNTRY_INFO!B115=0," ",COUNTRY_INFO!B115) -> Greater Accra | C115: =IF(COUNTRY_INFO!C115=0," ",COUNTRY_INFO!C115) -> Ashiaman | D115: =IF(COUNTRY_INFO!$T$9:$T$1000="MDA2 (DEC+ALB)", COUNTRY_INFO!$T$9:$T$1000, " ") ->  | I115: 0 | M115: 0
A116: =IF(COUNTRY_INFO!A116=0," ",COUNTRY_INFO!A116) -> Ghana | B116: =IF(COUNTRY_INFO!B116=0," ",COUNTRY_INFO!B116) -> Greater Accra | C116: =IF(COUNTRY_INFO!C116=0," ",COUNTRY_INFO!C116) -> Ada East | D116: =IF(COUNTRY_INFO!$T$9:$T$1000="MDA2 (DEC+ALB)", COUNTRY_INFO!$T$9:$T$1000, " ") ->  | I116: 0 | M116: 0
A117: =IF(COUNTRY_INFO!A117=0," ",COUNTRY_INFO!A117) -> Ghana | B117: =IF(COUNTRY_INFO!B117=0," ",COUNTRY_INFO!B117) -> Greater Accra | C117: =IF(COUNTRY_INFO!C117=0," ",COUNTRY_INFO!C117) -> Ada West | D117: =IF(COUNTRY_INFO!$T$9:$T$1000="MDA2 (DEC+ALB)", COUNTRY_INFO!$T$9:$T$1000, " ") ->  | I117: 0 | M117: 0
A118: =IF(COUNTRY_INFO!A118=0," ",COUNTRY_INFO!A118) -> Ghana | B118: =IF(COUNTRY_INFO!B118=0," ",COUNTRY_INFO!B118) -> Greater Accra | C118: =IF(COUNTRY_INFO!C118=0," ",COUNTRY_INFO!C118) -> Shai Osudoku | D118: =IF(COUNTRY_INFO!$T$9:$T$1000="MDA2 (DEC+ALB)", COUNTRY_INFO!$T$9:$T$1000, " ") ->  | I118: 0 | M118: 0
A119: =IF(COUNTRY_INFO!A119=0," ",COUNTRY_INFO!A119) -> Ghana | B119: =IF(COUNTRY_INFO!B119=0," ",COUNTRY_INFO!B119) -> Greater Accra | C119: =IF(COUNTRY_INFO!C119=0," ",COUNTRY_INFO!C119) -> Ningo Prampram | D119: =IF(COUNTRY_INFO!$T$9:$T$1000="MDA2 (DEC+ALB)", COUNTRY_INFO!$T$9:$T$1000, " ") ->  | I119: 0 | M119: 0
A120: =IF(COUNTRY_INFO!A120=0," ",COUNTRY_INFO!A120) -> Ghana | B120: =IF(COUNTRY_INFO!B120=0," ",COUNTRY_INFO!B120) -> Greater Accra | C120: =IF(COUNTRY_INFO!C120=0," ",COUNTRY_INFO!C120) -> Ga East | D120: =IF(COUNTRY_INFO!$T$9:$T$1000="MDA2 (DEC+ALB)", COUNTRY_INFO!$T$9:$T$1000, " ") ->  | I120: 0 | M120: 0
A121: =IF(COUNTRY_INFO!A121=0," ",COUNTRY_INFO!A121) -> Ghana | B121: =IF(COUNTRY_INFO!B121=0," ",COUNTRY_INFO!B121) -> Greater Accra | C121: =IF(COUNTRY_INFO!C121=0," ",COUNTRY_INFO!C121) -> La-Nkwantanang-Madina | D121: =IF(COUNTRY_INFO!$T$9:$T$1000="MDA2 (DEC+ALB)", COUNTRY_INFO!$T$9:$T$1000, " ") ->  | I121: 0 | M121: 0
A122: =IF(COUNTRY_INFO!A122=0," ",COUNTRY_INFO!A122) -> Ghana | B122: =IF(COUNTRY_INFO!B122=0," ",COUNTRY_INFO!B122) -> Greater Accra | C122: =IF(COUNTRY_INFO!C122=0," ",COUNTRY_INFO!C122) -> Ga South | D122: =IF(COUNTRY_INFO!$T$9:$T$1000="MDA2 (DEC+ALB)", COUNTRY_INFO!$T$9:$T$1000, " ") ->  | I122: 0 | M122: 0
A123: =IF(COUNTRY_INFO!A123=0," ",COUNTRY_INFO!A123) -> Ghana | B123: =IF(COUNTRY_INFO!B123=0," ",COUNTRY_INFO!B123) -> Greater Accra | C123: =IF(COUNTRY_INFO!C123=0," ",COUNTRY_INFO!C123) -> Ga Central | D123: =IF(COUNTRY_INFO!$T$9:$T$1000="MDA2 (DEC+ALB)", COUNTRY_INFO!$T$9:$T$1000, " ") ->  | I123: 0 | M123: 0
A124: =IF(COUNTRY_INFO!A124=0," ",COUNTRY_INFO!A124) -> Ghana | B124: =IF(COUNTRY_INFO!B124=0," ",COUNTRY_INFO!B124) -> Greater Accra | C124: =IF(COUNTRY_INFO!C124=0," ",COUNTRY_INFO!C124) -> Ga West | D124: =IF(COUNTRY_INFO!$T$9:$T$1000="MDA2 (DEC+ALB)", COUNTRY_INFO!$T$9:$T$1000, " ") ->  | I124: 0 | M124: 0
A125: =IF(COUNTRY_INFO!A125=0," ",COUNTRY_INFO!A125) -> Ghana | B125: =IF(COUNTRY_INFO!B125=0," ",COUNTRY_INFO!B125) -> Greater Accra | C125: =IF(COUNTRY_INFO!C125=0," ",COUNTRY_INFO!C125) -> Ledzokuku-Krowor | D125: =IF(COUNTRY_INFO!$T$9:$T$1000="MDA2 (DEC+ALB)", COUNTRY_INFO!$T$9:$T$1000, " ") ->  | I125: 0 | M125: 0
A126: =IF(COUNTRY_INFO!A126=0," ",COUNTRY_INFO!A126) -> Ghana | B126: =IF(COUNTRY_INFO!B126=0," ",COUNTRY_INFO!B126) -> Greater Accra | C126: =IF(COUNTRY_INFO!C126=0," ",COUNTRY_INFO!C126) -> Tema | D126: =IF(COUNTRY_INFO!$T$9:$T$1000="MDA2 (DEC+ALB)", COUNTRY_INFO!$T$9:$T$1000, " ") ->  | I126: 0 | M126: 0
A127: =IF(COUNTRY_INFO!A127=0," ",COUNTRY_INFO!A127) -> Ghana | B127: =IF(COUNTRY_INFO!B127=0," ",COUNTRY_INFO!B127) -> Greater Accra | C127: =IF(COUNTRY_INFO!C127=0," ",COUNTRY_INFO!C127) -> Kpone Katamanso | D127: =IF(COUNTRY_INFO!$T$9:$T$1000="MDA2 (DEC+ALB)", COUNTRY_INFO!$T$9:$T$1000, " ") ->  | I127: 0 | M127: 0
A128: =IF(COUNTRY_INFO!A128=0," ",COUNTRY_INFO!A128) -> Ghana | B128: =IF(COUNTRY_INFO!B128=0," ",COUNTRY_INFO!B128) -> Northern | C128: =IF(COUNTRY_INFO!C128=0," ",COUNTRY_INFO!C128) -> Bole | D128: =IF(COUNTRY_INFO!$T$9:$T$1000="MDA2 (DEC+ALB)", COUNTRY_INFO!$T$9:$T$1000, " ") ->  | I128: 0 | M128: 0
A129: =IF(COUNTRY_INFO!A129=0," ",COUNTRY_INFO!A129) -> Ghana | B129: =IF(COUNTRY_INFO!B129=0," ",COUNTRY_INFO!B129) -> Northern | C129: =IF(COUNTRY_INFO!C129=0," ",COUNTRY_INFO!C129) -> Bunkpurugu-Yunyuo | D129: =IF(COUNTRY_INFO!$T$9:$T$1000="MDA2 (DEC+ALB)", COUNTRY_INFO!$T$9:$T$1000, " ") ->  | I129: 0 | M129: 0
A130: =IF(COUNTRY_INFO!A130=0," ",COUNTRY_INFO!A130) -> Ghana | B130: =IF(COUNTRY_INFO!B130=0," ",COUNTRY_INFO!B130) -> Northern | C130: =IF(COUNTRY_INFO!C130=0," ",COUNTRY_INFO!C130) -> Central Gonja | D130: =IF(COUNTRY_INFO!$T$9:$T$1000="MDA2 (DEC+ALB)", COUNTRY_INFO!$T$9:$T$1000, " ") ->  | I130: 0 | M130: 0
A131: =IF(COUNTRY_INFO!A131=0," ",COUNTRY_INFO!A131) -> Ghana | B131: =IF(COUNTRY_INFO!B131=0," ",COUNTRY_INFO!B131) -> Northern | C131: =IF(COUNTRY_INFO!C131=0," ",COUNTRY_INFO!C131) -> Chereponi | D131: =IF(COUNTRY_INFO!$T$9:$T$1000="MDA2 (DEC+ALB)", COUNTRY_INFO!$T$9:$T$1000, " ") ->  | I131: 0 | M131: 0
A132: =IF(COUNTRY_INFO!A132=0," ",COUNTRY_INFO!A132) -> Ghana | B132: =IF(COUNTRY_INFO!B132=0," ",COUNTRY_INFO!B132) -> Northern | C132: =IF(COUNTRY_INFO!C132=0," ",COUNTRY_INFO!C132) -> East Gonja | D132: =IF(COUNTRY_INFO!$T$9:$T$1000="MDA2 (DEC+ALB)", COUNTRY_INFO!$T$9:$T$1000, " ") ->  | I132: 0 | M132: 0
A133: =IF(COUNTRY_INFO!A133=0," ",COUNTRY_INFO!A133) -> Ghana | B133: =IF(COUNTRY_INFO!B133=0," ",COUNTRY_INFO!B133) -> Northern | C133: =IF(COUNTRY_INFO!C133=0," ",COUNTRY_INFO!C133) -> East Mamprusi | D133: =IF(COUNTRY_INFO!$T$9:$T$1000="MDA2 (DEC+ALB)", COUNTRY_INFO!$T$9:$T$1000, " ") ->  | I133: 0 | M133: 0
A134: =IF(COUNTRY_INFO!A134=0," ",COUNTRY_INFO!A134) -> Ghana | B134: =IF(COUNTRY_INFO!B134=0," ",COUNTRY_INFO!B134) -> Northern | C134: =IF(COUNTRY_INFO!C134=0," ",COUNTRY_INFO!C134) -> Gushiegu | D134: =IF(COUNTRY_INFO!$T$9:$T$1000="MDA2 (DEC+ALB)", COUNTRY_INFO!$T$9:$T$1000, " ") ->  | I134: 0 | M134: 0
A135: =IF(COUNTRY_INFO!A135=0," ",COUNTRY_INFO!A135) -> Ghana | B135: =IF(COUNTRY_INFO!B135=0," ",COUNTRY_INFO!B135) -> Northern | C135: =IF(COUNTRY_INFO!C135=0," ",COUNTRY_INFO!C135) -> Karaga | D135: =IF(COUNTRY_INFO!$T$9:$T$1000="MDA2 (DEC+ALB)", COUNTRY_INFO!$T$9:$T$1000, " ") ->  | I135: 0 | M135: 0
A136: =IF(COUNTRY_INFO!A136=0," ",COUNTRY_INFO!A136) -> Ghana | B136: =IF(COUNTRY_INFO!B136=0," ",COUNTRY_INFO!B136) -> Northern | C136: =IF(COUNTRY_INFO!C136=0," ",COUNTRY_INFO!C136) -> Kpandai | D136: =IF(COUNTRY_INFO!$T$9:$T$1000="MDA2 (DEC+ALB)", COUNTRY_INFO!$T$9:$T$1000, " ") ->  | I136: 0 | M136: 0
A137: =IF(COUNTRY_INFO!A137=0," ",COUNTRY_INFO!A137) -> Ghana | B137: =IF(COUNTRY_INFO!B137=0," ",COUNTRY_INFO!B137) -> Northern | C137: =IF(COUNTRY_INFO!C137=0," ",COUNTRY_INFO!C137) -> Nanumba North | D137: =IF(COUNTRY_INFO!$T$9:$T$1000="MDA2 (DEC+ALB)", COUNTRY_INFO!$T$9:$T$1000, " ") ->  | I137: 0 | M137: 0
A138: =IF(COUNTRY_INFO!A138=0," ",COUNTRY_INFO!A138) -> Ghana | B138: =IF(COUNTRY_INFO!B138=0," ",COUNTRY_INFO!B138) -> Northern | C138: =IF(COUNTRY_INFO!C138=0," ",COUNTRY_INFO!C138) -> Nanumba South | D138: =IF(COUNTRY_INFO!$T$9:$T$1000="MDA2 (DEC+ALB)", COUNTRY_INFO!$T$9:$T$1000, " ") ->  | I138: =SUM(F138:H138) -> 0 | M138: =SUM(J138:L138) -> 0 | N138: =IF(F138<>0, IF(J138/F138*100=0, "-", J138/F138*100), " ") ->  | O138: =IF(G138<>0, IF(K138/G138*100=0, "-", K138/G138*100), " ") ->  | P138: =IF(H138<>0, IF(L138/H138*100=0, "-", L138/H138*100), " ") ->  | Q138: =IF(I138<>0, IF(M138/I138*100=0, "-", M138/I138*100), " ") -> 
A139: =IF(COUNTRY_INFO!A139=0," ",COUNTRY_INFO!A139) -> Ghana | B139: =IF(COUNTRY_INFO!B139=0," ",COUNTRY_INFO!B139) -> Northern | C139: =IF(COUNTRY_INFO!C139=0," ",COUNTRY_INFO!C139) -> Saboba | D139: =IF(COUNTRY_INFO!$T$9:$T$1000="MDA2 (DEC+ALB)", COUNTRY_INFO!$T$9:$T$1000, " ") ->  | I139: 0 | M139: 0
A140: =IF(COUNTRY_INFO!A140=0," ",COUNTRY_INFO!A140) -> Ghana | B140: =IF(COUNTRY_INFO!B140=0," ",COUNTRY_INFO!B140) -> Northern | C140: =IF(COUNTRY_INFO!C140=0," ",COUNTRY_INFO!C140) -> Savelugu-Nanton | D140: =IF(COUNTRY_INFO!$T$9:$T$1000="MDA2 (DEC+ALB)", COUNTRY_INFO!$T$9:$T$1000, " ") ->  | I140: 0 | M140: 0
A141: =IF(COUNTRY_INFO!A141=0," ",COUNTRY_INFO!A141) -> Ghana | B141: =IF(COUNTRY_INFO!B141=0," ",COUNTRY_INFO!B141) -> Northern | C141: =IF(COUNTRY_INFO!C141=0," ",COUNTRY_INFO!C141) -> Sawla-Tuna-Kalba | D141: =IF(COUNTRY_INFO!$T$9:$T$1000="MDA2 (DEC+ALB)", COUNTRY_INFO!$T$9:$T$1000, " ") ->  | I141: 0 | M141: 0
A142: =IF(COUNTRY_INFO!A142=0," ",COUNTRY_INFO!A142) -> Ghana | B142: =IF(COUNTRY_INFO!B142=0," ",COUNTRY_INFO!B142) -> Northern | C142: =IF(COUNTRY_INFO!C142=0," ",COUNTRY_INFO!C142) -> Tamale | D142: =IF(COUNTRY_INFO!$T$9:$T$1000="MDA2 (DEC+ALB)", COUNTRY_INFO!$T$9:$T$1000, " ") ->  | I142: 0 | M142: 0
A143: =IF(COUNTRY_INFO!A143=0," ",COUNTRY_INFO!A143) -> Ghana | B143: =IF(COUNTRY_INFO!B143=0," ",COUNTRY_INFO!B143) -> Northern | C143: =IF(COUNTRY_INFO!C143=0," ",COUNTRY_INFO!C143) -> Sagnarigu | D143: =IF(COUNTRY_INFO!$T$9:$T$1000="MDA2 (DEC+ALB)", COUNTRY_INFO!$T$9:$T$1000, " ") ->  | I143: 0 | M143: 0
A144: =IF(COUNTRY_INFO!A144=0," ",COUNTRY_INFO!A144) -> Ghana | B144: =IF(COUNTRY_INFO!B144=0," ",COUNTRY_INFO!B144) -> Northern | C144: =IF(COUNTRY_INFO!C144=0," ",COUNTRY_INFO!C144) -> Tolon | D144: =IF(COUNTRY_INFO!$T$9:$T$1000="MDA2 (DEC+ALB)", COUNTRY_INFO!$T$9:$T$1000, " ") ->  | I144: 0 | M144: 0
A145: =IF(COUNTRY_INFO!A145=0," ",COUNTRY_INFO!A145) -> Ghana | B145: =IF(COUNTRY_INFO!B145=0," ",COUNTRY_INFO!B145) -> Northern | C145: =IF(COUNTRY_INFO!C145=0," ",COUNTRY_INFO!C145) -> Kumbungu | D145: =IF(COUNTRY_INFO!$T$9:$T$1000="MDA2 (DEC+ALB)", COUNTRY_INFO!$T$9:$T$1000, " ") ->  | I145: 0 | M145: 0
A146: =IF(COUNTRY_INFO!A146=0," ",COUNTRY_INFO!A146) -> Ghana | B146: =IF(COUNTRY_INFO!B146=0," ",COUNTRY_INFO!B146) -> Northern | C146: =IF(COUNTRY_INFO!C146=0," ",COUNTRY_INFO!C146) -> West Gonja | D146: =IF(COUNTRY_INFO!$T$9:$T$1000="MDA2 (DEC+ALB)", COUNTRY_INFO!$T$9:$T$1000, " ") ->  | I146: 0 | M146: 0
A147: =IF(COUNTRY_INFO!A147=0," ",COUNTRY_INFO!A147) -> Ghana | B147: =IF(COUNTRY_INFO!B147=0," ",COUNTRY_INFO!B147) -> Northern | C147: =IF(COUNTRY_INFO!C147=0," ",COUNTRY_INFO!C147) -> North Gonja | D147: =IF(COUNTRY_INFO!$T$9:$T$1000="MDA2 (DEC+ALB)", COUNTRY_INFO!$T$9:$T$1000, " ") ->  | I147: 0 | M147: 0
A148: =IF(COUNTRY_INFO!A148=0," ",COUNTRY_INFO!A148) -> Ghana | B148: =IF(COUNTRY_INFO!B148=0," ",COUNTRY_INFO!B148) -> Northern | C148: =IF(COUNTRY_INFO!C148=0," ",COUNTRY_INFO!C148) -> West Mamprusi | D148: =IF(COUNTRY_INFO!$T$9:$T$1000="MDA2 (DEC+ALB)", COUNTRY_INFO!$T$9:$T$1000, " ") ->  | I148: 0 | M148: 0
A149: =IF(COUNTRY_INFO!A149=0," ",COUNTRY_INFO!A149) -> Ghana | B149: =IF(COUNTRY_INFO!B149=0," ",COUNTRY_INFO!B149) -> Northern | C149: =IF(COUNTRY_INFO!C149=0," ",COUNTRY_INFO!C149) -> Mamprugo Moaduri | D149: =IF(COUNTRY_INFO!$T$9:$T$1000="MDA2 (DEC+ALB)", COUNTRY_INFO!$T$9:$T$1000, " ") ->  | I149: 0 | M149: 0
A150: =IF(COUNTRY_INFO!A150=0," ",COUNTRY_INFO!A150) -> Ghana | B150: =IF(COUNTRY_INFO!B150=0," ",COUNTRY_INFO!B150) -> Northern | C150: =IF(COUNTRY_INFO!C150=0," ",COUNTRY_INFO!C150) -> Yendi | D150: =IF(COUNTRY_INFO!$T$9:$T$1000="MDA2 (DEC+ALB)", COUNTRY_INFO!$T$9:$T$1000, " ") ->  | I150: 0 | M150: 0
A151: =IF(COUNTRY_INFO!A151=0," ",COUNTRY_INFO!A151) -> Ghana | B151: =IF(COUNTRY_INFO!B151=0," ",COUNTRY_INFO!B151) -> Northern | C151: =IF(COUNTRY_INFO!C151=0," ",COUNTRY_INFO!C151) -> Mion | D151: =IF(COUNTRY_INFO!$T$9:$T$1000="MDA2 (DEC+ALB)", COUNTRY_INFO!$T$9:$T$1000, " ") ->  | I151: 0 | M151: 0
A152: =IF(COUNTRY_INFO!A152=0," ",COUNTRY_INFO!A152) -> Ghana | B152: =IF(COUNTRY_INFO!B152=0," ",COUNTRY_INFO!B152) -> Northern | C152: =IF(COUNTRY_INFO!C152=0," ",COUNTRY_INFO!C152) -> Zabzugu | D152: =IF(COUNTRY_INFO!$T$9:$T$1000="MDA2 (DEC+ALB)", COUNTRY_INFO!$T$9:$T$1000, " ") ->  | I152: 0 | M152: 0
A153: =IF(COUNTRY_INFO!A153=0," ",COUNTRY_INFO!A153) -> Ghana | B153: =IF(COUNTRY_INFO!B153=0," ",COUNTRY_INFO!B153) -> Northern | C153: =IF(COUNTRY_INFO!C153=0," ",COUNTRY_INFO!C153) -> Tatale Sangule | D153: =IF(COUNTRY_INFO!$T$9:$T$1000="MDA2 (DEC+ALB)", COUNTRY_INFO!$T$9:$T$1000, " ") ->  | I153: 0 | M153: 0
A154: =IF(COUNTRY_INFO!A154=0," ",COUNTRY_INFO!A154) -> Ghana | B154: =IF(COUNTRY_INFO!B154=0," ",COUNTRY_INFO!B154) -> Upper East | C154: =IF(COUNTRY_INFO!C154=0," ",COUNTRY_INFO!C154) -> Bawku Municipal | D154: =IF(COUNTRY_INFO!$T$9:$T$1000="MDA2 (DEC+ALB)", COUNTRY_INFO!$T$9:$T$1000, " ") ->  | I154: 0 | M154: 0
A155: =IF(COUNTRY_INFO!A155=0," ",COUNTRY_INFO!A155) -> Ghana | B155: =IF(COUNTRY_INFO!B155=0," ",COUNTRY_INFO!B155) -> Upper East | C155: =IF(COUNTRY_INFO!C155=0," ",COUNTRY_INFO!C155) -> Pusiga | D155: =IF(COUNTRY_INFO!$T$9:$T$1000="MDA2 (DEC+ALB)", COUNTRY_INFO!$T$9:$T$1000, " ") ->  | I155: 0 | M155: 0
A156: =IF(COUNTRY_INFO!A156=0," ",COUNTRY_INFO!A156) -> Ghana | B156: =IF(COUNTRY_INFO!B156=0," ",COUNTRY_INFO!B156) -> Upper East | C156: =IF(COUNTRY_INFO!C156=0," ",COUNTRY_INFO!C156) -> Binduri | D156: =IF(COUNTRY_INFO!$T$9:$T$1000="MDA2 (DEC+ALB)", COUNTRY_INFO!$T$9:$T$1000, " ") ->  | I156: 0 | M156: 0
A157: =IF(COUNTRY_INFO!A157=0," ",COUNTRY_INFO!A157) -> Ghana | B157: =IF(COUNTRY_INFO!B157=0," ",COUNTRY_INFO!B157) -> Upper East | C157: =IF(COUNTRY_INFO!C157=0," ",COUNTRY_INFO!C157) -> Bawku West | D157: =IF(COUNTRY_INFO!$T$9:$T$1000="MDA2 (DEC+ALB)", COUNTRY_INFO!$T$9:$T$1000, " ") ->  | I157: 0 | M157: 0
A158: =IF(COUNTRY_INFO!A158=0," ",COUNTRY_INFO!A158) -> Ghana | B158: =IF(COUNTRY_INFO!B158=0," ",COUNTRY_INFO!B158) -> Upper East | C158: =IF(COUNTRY_INFO!C158=0," ",COUNTRY_INFO!C158) -> Bolgatanga Municipal | D158: =IF(COUNTRY_INFO!$T$9:$T$1000="MDA2 (DEC+ALB)", COUNTRY_INFO!$T$9:$T$1000, " ") ->  | I158: 0 | M158: 0
A159: =IF(COUNTRY_INFO!A159=0," ",COUNTRY_INFO!A159) -> Ghana | B159: =IF(COUNTRY_INFO!B159=0," ",COUNTRY_INFO!B159) -> Upper East | C159: =IF(COUNTRY_INFO!C159=0," ",COUNTRY_INFO!C159) -> Bongo | D159: =IF(COUNTRY_INFO!$T$9:$T$1000="MDA2 (DEC+ALB)", COUNTRY_INFO!$T$9:$T$1000, " ") ->  | I159: 0 | M159: 0
A160: =IF(COUNTRY_INFO!A160=0," ",COUNTRY_INFO!A160) -> Ghana | B160: =IF(COUNTRY_INFO!B160=0," ",COUNTRY_INFO!B160) -> Upper East | C160: =IF(COUNTRY_INFO!C160=0," ",COUNTRY_INFO!C160) -> Builsa North | D160: =IF(COUNTRY_INFO!$T$9:$T$1000="MDA2 (DEC+ALB)", COUNTRY_INFO!$T$9:$T$1000, " ") ->  | I160: 0 | M160: 0
A161: =IF(COUNTRY_INFO!A161=0," ",COUNTRY_INFO!A161) -> Ghana | B161: =IF(COUNTRY_INFO!B161=0," ",COUNTRY_INFO!B161) -> Upper East | C161: =IF(COUNTRY_INFO!C161=0," ",COUNTRY_INFO!C161) -> Builsa South | D161: =IF(COUNTRY_INFO!$T$9:$T$1000="MDA2 (DEC+ALB)", COUNTRY_INFO!$T$9:$T$1000, " ") ->  | I161: 0 | M161: 0
A162: =IF(COUNTRY_INFO!A162=0," ",COUNTRY_INFO!A162) -> Ghana | B162: =IF(COUNTRY_INFO!B162=0," ",COUNTRY_INFO!B162) -> Upper East | C162: =IF(COUNTRY_INFO!C162=0," ",COUNTRY_INFO!C162) -> Garu-Tempane | D162: =IF(COUNTRY_INFO!$T$9:$T$1000="MDA2 (DEC+ALB)", COUNTRY_INFO!$T$9:$T$1000, " ") ->  | I162: 0 | M162: 0
A163: =IF(COUNTRY_INFO!A163=0," ",COUNTRY_INFO!A163) -> Ghana | B163: =IF(COUNTRY_INFO!B163=0," ",COUNTRY_INFO!B163) -> Upper East | C163: =IF(COUNTRY_INFO!C163=0," ",COUNTRY_INFO!C163) -> Kassena-Nankana | D163: =IF(COUNTRY_INFO!$T$9:$T$1000="MDA2 (DEC+ALB)", COUNTRY_INFO!$T$9:$T$1000, " ") ->  | I163: 0 | M163: 0
A164: =IF(COUNTRY_INFO!A164=0," ",COUNTRY_INFO!A164) -> Ghana | B164: =IF(COUNTRY_INFO!B164=0," ",COUNTRY_INFO!B164) -> Upper East | C164: =IF(COUNTRY_INFO!C164=0," ",COUNTRY_INFO!C164) -> Kassena-Nankana West | D164: =IF(COUNTRY_INFO!$T$9:$T$1000="MDA2 (DEC+ALB)", COUNTRY_INFO!$T$9:$T$1000, " ") ->  | I164: 0 | M164: 0
A165: =IF(COUNTRY_INFO!A165=0," ",COUNTRY_INFO!A165) -> Ghana | B165: =IF(COUNTRY_INFO!B165=0," ",COUNTRY_INFO!B165) -> Upper East | C165: =IF(COUNTRY_INFO!C165=0," ",COUNTRY_INFO!C165) -> Nadbam | D165: =IF(COUNTRY_INFO!$T$9:$T$1000="MDA2 (DEC+ALB)", COUNTRY_INFO!$T$9:$T$1000, " ") ->  | I165: 0 | M165: 0
A166: =IF(COUNTRY_INFO!A166=0," ",COUNTRY_INFO!A166) -> Ghana | B166: =IF(COUNTRY_INFO!B166=0," ",COUNTRY_INFO!B166) -> Upper East | C166: =IF(COUNTRY_INFO!C166=0," ",COUNTRY_INFO!C166) -> Talensi | D166: =IF(COUNTRY_INFO!$T$9:$T$1000="MDA2 (DEC+ALB)", COUNTRY_INFO!$T$9:$T$1000, " ") ->  | I166: 0 | M166: 0
A167: =IF(COUNTRY_INFO!A167=0," ",COUNTRY_INFO!A167) -> Ghana | B167: =IF(COUNTRY_INFO!B167=0," ",COUNTRY_INFO!B167) -> Upper West | C167: =IF(COUNTRY_INFO!C167=0," ",COUNTRY_INFO!C167) -> Jirapa | D167: =IF(COUNTRY_INFO!$T$9:$T$1000="MDA2 (DEC+ALB)", COUNTRY_INFO!$T$9:$T$1000, " ") ->  | I167: 0 | M167: 0
A168: =IF(COUNTRY_INFO!A168=0," ",COUNTRY_INFO!A168) -> Ghana | B168: =IF(COUNTRY_INFO!B168=0," ",COUNTRY_INFO!B168) -> Upper West | C168: =IF(COUNTRY_INFO!C168=0," ",COUNTRY_INFO!C168) -> Lambussie | D168: =IF(COUNTRY_INFO!$T$9:$T$1000="MDA2 (DEC+ALB)", COUNTRY_INFO!$T$9:$T$1000, " ") ->  | I168: 0 | M168: 0
A169: =IF(COUNTRY_INFO!A169=0," ",COUNTRY_INFO!A169) -> Ghana | B169: =IF(COUNTRY_INFO!B169=0," ",COUNTRY_INFO!B169) -> Upper West | C169: =IF(COUNTRY_INFO!C169=0," ",COUNTRY_INFO!C169) -> Lawra | D169: =IF(COUNTRY_INFO!$T$9:$T$1000="MDA2 (DEC+ALB)", COUNTRY_INFO!$T$9:$T$1000, " ") ->  | I169: 0 | M169: 0
A170: =IF(COUNTRY_INFO!A170=0," ",COUNTRY_INFO!A170) -> Ghana | B170: =IF(COUNTRY_INFO!B170=0," ",COUNTRY_INFO!B170) -> Upper West | C170: =IF(COUNTRY_INFO!C170=0," ",COUNTRY_INFO!C170) -> Nandom | D170: =IF(COUNTRY_INFO!$T$9:$T$1000="MDA2 (DEC+ALB)", COUNTRY_INFO!$T$9:$T$1000, " ") ->  | I170: 0 | M170: 0
A171: =IF(COUNTRY_INFO!A171=0," ",COUNTRY_INFO!A171) -> Ghana | B171: =IF(COUNTRY_INFO!B171=0," ",COUNTRY_INFO!B171) -> Upper West | C171: =IF(COUNTRY_INFO!C171=0," ",COUNTRY_INFO!C171) -> Nadowli | D171: =IF(COUNTRY_INFO!$T$9:$T$1000="MDA2 (DEC+ALB)", COUNTRY_INFO!$T$9:$T$1000, " ") ->  | I171: 0 | M171: 0
A172: =IF(COUNTRY_INFO!A172=0," ",COUNTRY_INFO!A172) -> Ghana | B172: =IF(COUNTRY_INFO!B172=0," ",COUNTRY_INFO!B172) -> Upper West | C172: =IF(COUNTRY_INFO!C172=0," ",COUNTRY_INFO!C172) -> Daffiama Bussie Issa | D172: =IF(COUNTRY_INFO!$T$9:$T$1000="MDA2 (DEC+ALB)", COUNTRY_INFO!$T$9:$T$1000, " ") ->  | I172: 0 | M172: 0
A173: =IF(COUNTRY_INFO!A173=0," ",COUNTRY_INFO!A173) -> Ghana | B173: =IF(COUNTRY_INFO!B173=0," ",COUNTRY_INFO!B173) -> Upper West | C173: =IF(COUNTRY_INFO!C173=0," ",COUNTRY_INFO!C173) -> Sissala East | D173: =IF(COUNTRY_INFO!$T$9:$T$1000="MDA2 (DEC+ALB)", COUNTRY_INFO!$T$9:$T$1000, " ") ->  | I173: 0 | M173: 0
A174: =IF(COUNTRY_INFO!A174=0," ",COUNTRY_INFO!A174) -> Ghana | B174: =IF(COUNTRY_INFO!B174=0," ",COUNTRY_INFO!B174) -> Upper West | C174: =IF(COUNTRY_INFO!C174=0," ",COUNTRY_INFO!C174) -> Sissala West | D174: =IF(COUNTRY_INFO!$T$9:$T$1000="MDA2 (DEC+ALB)", COUNTRY_INFO!$T$9:$T$1000, " ") ->  | I174: 0 | M174: 0
A175: =IF(COUNTRY_INFO!A175=0," ",COUNTRY_INFO!A175) -> Ghana | B175: =IF(COUNTRY_INFO!B175=0," ",COUNTRY_INFO!B175) -> Upper West | C175: =IF(COUNTRY_INFO!C175=0," ",COUNTRY_INFO!C175) -> Wa East | D175: =IF(COUNTRY_INFO!$T$9:$T$1000="MDA2 (DEC+ALB)", COUNTRY_INFO!$T$9:$T$1000, " ") ->  | I175: 0 | M175: 0
A176: =IF(COUNTRY_INFO!A176=0," ",COUNTRY_INFO!A176) -> Ghana | B176: =IF(COUNTRY_INFO!B176=0," ",COUNTRY_INFO!B176) -> Upper West | C176: =IF(COUNTRY_INFO!C176=0," ",COUNTRY_INFO!C176) -> Wa Municipal | D176: =IF(COUNTRY_INFO!$T$9:$T$1000="MDA2 (DEC+ALB)", COUNTRY_INFO!$T$9:$T$1000, " ") ->  | I176: 0 | M176: 0
A177: =IF(COUNTRY_INFO!A177=0," ",COUNTRY_INFO!A177) -> Ghana | B177: =IF(COUNTRY_INFO!B177=0," ",COUNTRY_INFO!B177) -> Upper West | C177: =IF(COUNTRY_INFO!C177=0," ",COUNTRY_INFO!C177) -> Wa West | D177: =IF(COUNTRY_INFO!$T$9:$T$1000="MDA2 (DEC+ALB)", COUNTRY_INFO!$T$9:$T$1000, " ") ->  | I177: 0 | M177: 0
A178: =IF(COUNTRY_INFO!A178=0," ",COUNTRY_INFO!A178) -> Ghana | B178: =IF(COUNTRY_INFO!B178=0," ",COUNTRY_INFO!B178) -> Volta | C178: =IF(COUNTRY_INFO!C178=0," ",COUNTRY_INFO!C178) -> Agotime Ziope | D178: =IF(COUNTRY_INFO!$T$9:$T$1000="MDA2 (DEC+ALB)", COUNTRY_INFO!$T$9:$T$1000, " ") ->  | I178: 0 | M178: 0
A179: =IF(COUNTRY_INFO!A179=0," ",COUNTRY_INFO!A179) -> Ghana | B179: =IF(COUNTRY_INFO!B179=0," ",COUNTRY_INFO!B179) -> Volta | C179: =IF(COUNTRY_INFO!C179=0," ",COUNTRY_INFO!C179) -> Adaklu | D179: =IF(COUNTRY_INFO!$T$9:$T$1000="MDA2 (DEC+ALB)", COUNTRY_INFO!$T$9:$T$1000, " ") ->  | I179: 0 | M179: 0
A180: =IF(COUNTRY_INFO!A180=0," ",COUNTRY_INFO!A180) -> Ghana | B180: =IF(COUNTRY_INFO!B180=0," ",COUNTRY_INFO!B180) -> Volta | C180: =IF(COUNTRY_INFO!C180=0," ",COUNTRY_INFO!C180) -> Akatsi South | D180: =IF(COUNTRY_INFO!$T$9:$T$1000="MDA2 (DEC+ALB)", COUNTRY_INFO!$T$9:$T$1000, " ") ->  | I180: 0 | M180: 0
A181: =IF(COUNTRY_INFO!A181=0," ",COUNTRY_INFO!A181) -> Ghana | B181: =IF(COUNTRY_INFO!B181=0," ",COUNTRY_INFO!B181) -> Volta | C181: =IF(COUNTRY_INFO!C181=0," ",COUNTRY_INFO!C181) -> Akatsi North | D181: =IF(COUNTRY_INFO!$T$9:$T$1000="MDA2 (DEC+ALB)", COUNTRY_INFO!$T$9:$T$1000, " ") ->  | I181: 0 | M181: 0
A182: =IF(COUNTRY_INFO!A182=0," ",COUNTRY_INFO!A182) -> Ghana | B182: =IF(COUNTRY_INFO!B182=0," ",COUNTRY_INFO!B182) -> Volta | C182: =IF(COUNTRY_INFO!C182=0," ",COUNTRY_INFO!C182) -> Biakoye | D182: =IF(COUNTRY_INFO!$T$9:$T$1000="MDA2 (DEC+ALB)", COUNTRY_INFO!$T$9:$T$1000, " ") ->  | I182: 0 | M182: 0
A183: =IF(COUNTRY_INFO!A183=0," ",COUNTRY_INFO!A183) -> Ghana | B183: =IF(COUNTRY_INFO!B183=0," ",COUNTRY_INFO!B183) -> Volta | C183: =IF(COUNTRY_INFO!C183=0," ",COUNTRY_INFO!C183) -> Ho Municipal | D183: =IF(COUNTRY_INFO!$T$9:$T$1000="MDA2 (DEC+ALB)", COUNTRY_INFO!$T$9:$T$1000, " ") ->  | I183: 0 | M183: 0
A184: =IF(COUNTRY_INFO!A184=0," ",COUNTRY_INFO!A184) -> Ghana | B184: =IF(COUNTRY_INFO!B184=0," ",COUNTRY_INFO!B184) -> Volta | C184: =IF(COUNTRY_INFO!C184=0," ",COUNTRY_INFO!C184) -> Ho West | D184: =IF(COUNTRY_INFO!$T$9:$T$1000="MDA2 (DEC+ALB)", COUNTRY_INFO!$T$9:$T$1000, " ") ->  | I184: 0 | M184: 0
